Workbook

Sheet notes

Sheet daily uptake
F2: Crop Nitrogen Uptake Calculator | U2: Marsha Campbell Mathews & David Crohn
P3: temperature data sources | U3: ver. 1-15-2012 © University of California 2011, 2012
P4: before Jan 1: | Q4: Denair 2010
P5: after Jan 1: | Q5: Denair 2011
P6: backup: | Q6: Denair avg 1994 - 2010
B8: =TODAY() -> 2012-01-17 | C8: day of season | D8: winter cereal forage | H8: silage corn | O8: triple crop sudan | U8: calculate uptake between two dates
B9: =E9 -> 2010-11-01 | C9: 1 | E9: 2010-11-01 | F9: WF planting date | I9: 2011-05-15 | J9: corn planting date | P9: 2011-08-31 | Q9: sudan planting date | U9: 2010-10-31 | V9: date 1
C10: =E10-$E$9+1 -> 169 | E10: 2011-04-18 | F10: WF harvest date | I10: 2011-08-29 | J10: corn harvest date | P10: 2011-10-07 | Q10: sudan harvest date | U10: 2011-01-16 | V10: date 2
E11: 140 | F11: lbs/A expected N uptake | I11: 250 | J11: lbs/A expected N uptake | P11: 100 | Q11: lbs/A expected N uptake | U11: =SUMIF(C$95:C$502,">="&C27,L$95:L$502)-SUMIF(C$95:C$502,">="&C28,L$95:L$502) -> 35.53436805 | V11: N uptake between dates (lbs N/acre)
C12: =IF(E12>0,E12-$E$9+1,"") -> 95 | E12: 2011-02-03 | F12: irrigation date 1 | I12: =I9+30 -> 2011-06-14 | J12: 1st irrigation date | P12: 2011-09-19 | Q12: irrigation date 1
C13: =IF(E13>0,E13-$E$9+1,"") -> 131 | E13: 2011-03-11 | F13: irrigation date 2 | I13: 10 | J13: num days between irrigations | P13: 2011-09-28 | Q13: irrigation date 2 | U13: Corn GDU date | V13: cumulative corn GDU from planting
C14: =IF(E14>0,E14-$E$9+1,"") ->  | F14: irrigation date 3 | I14: =VLOOKUP(C23,$C$95:$V$502,$P$94,FALSE) ->  | J14: ="GDUs planting to "&TEXT(C22,"mmm d;@") -> GDUs planting to Jan 16 | Q14: irrigation date 3 | V14: to this date (yesterday if blank)
F15: time of maximum uptake | I15: =VLOOKUP(C20,$C$95:$V$502,$P$94,FALSE) -> 2168.5 | J15: GDU planting to harvest | Q15: irrigation date 4 | U15: ="cutoff minimum = "&cutoff.corn.min&" ⁰F cutoff maximum = "&cutoff.corn.max&" ⁰F" -> cutoff minimum = 50 ⁰F cutoff maximum = 95 ⁰F
C17: =IF(E17>0,E17-$E$9+1,"") -> 
B18: corn planting | C18: =IF(I9>0,I9-$E$9+1,"") -> 196
B19: yesterday | C19: =TODAY()-$E$9-1 -> 441
B20: corn harvest | C20: =IF(I10>0,I10-$E$9+1,"") -> 302
B21: corn 1st irrig | C21: =IF(I12>0,I12-$E$9+1,"") -> 226
B22: corn GDU thru date | C22: =IF(U14>0,U14,TODAY()-1) -> 2012-01-16
B23: corn GDU thru day | C23: =C22-E9+1 -> 442
B24: third planting | C24: =IF(P9>0,P9-$E$9+1,I10-$E$9) -> 304
B25: third harvest | C25: =IF(P10>0,P10-$E$9+1,I10-$E$9) -> 341
B27: datebetween start | C27: =IF(U9-$E$9+1>0,U9-$E$9+1,0) -> 0
B28: datebetween end | C28: =IF(U10>0,U10-$E$9+1,"") -> 77
E30: date | F30: crop and irrigation number | G30: N uptake lbs/A thru next irrig | I30: cumulative uptake lbs/A to date | J30: adjust date | AA30: lbs/ac N/period
B31: =IF(E31=E$42,"true","false") -> false | C31: =IF(E31>0,E31-$E$9+1,"") -> 1 | E31: =E9 -> 2010-11-01 | F31: winter crop planting | G31: =SUM(AA31:AA36) -> 47.45478838 | AA31: =SUMIF(C$95:C$502,">="&C31,L$95:L$502)-SUMIF(C$95:C$502,">="&C32,L$95:L$502) -> 7.045645135
B32: =IF(E32=E$42,"true","false") -> false | C32: 17 | E32: =IF(J32>0,J32,(ROUND((($E$37-$E$31)/6),0)*1)+E$31) -> 2010-11-17 | I32: =IF(B32="true",0,SUM(AA$31:AA31)) -> 7.045645135 | AA32: 5.159145959 | AN32: dates for equal number of days in each period
B33: false | C33: 33 | E33: =IF(J33>0,J33,(ROUND((($E$37-$E$31)/6),0)*2)+E$31) -> 2010-12-03 | I33: =IF(B33="true",0,SUM(AA$31:AA32)) -> 12.20479109 | AA33: 9.594300542 | AN33: 16 | AO33: days in period
B34: false | C34: 49 | E34: =IF(J34>0,J34,(ROUND((($E$37-$E$31)/6),0)*3)+E$31) -> 2010-12-19 | I34: =IF(B34="true",0,SUM(AA$31:AA33)) -> 21.79909164 | AA34: 9.351153986 | AN34: =$E31+$AN$33 -> 2010-11-17
B35: false | C35: 65 | E35: =IF(J35>0,J35,(ROUND((($E$37-$E$31)/6),0)*4)+E$31) -> 2011-01-04 | I35: =IF(B35="true",0,SUM(AA$31:AA34)) -> 31.15024562 | AA35: 7.283587468 | AN35: =AN34+$AN$33 -> 2010-12-03
B36: false | C36: 81 | E36: =IF(J36>0,J36,(ROUND((($E$37-$E$31)/6),0)*5)+E$31) -> 2011-01-20 | I36: =IF(B36="true",0,SUM(AA$31:AA35)) -> 38.43383309 | AA36: 9.02095529 | AN36: 2010-12-19
B37: false | C37: 95 | E37: =IF(J37>0,J37,IF(E12>0,E12,E$10)) -> 2011-02-03 | F37: winter crop 1st | G37: =SUM(AA37:AA39) -> 36.18322219 | I37: =IF(B37="true",0,SUM(AA$31:AA36)) -> 47.45478838 | AA37: 11.42972668 | AN37: 2011-01-04
B38: false | C38: 107 | E38: =(ROUND((($E$40-$E$37)/3),0)*1)+E$37 -> 2011-02-15 | I38: =IF(B38="true",0,SUM(AA$31:AA37)) -> 58.88451506 | AA38: 9.691675009 | AN38: 2011-01-20
B39: false | C39: 119 | E39: =(ROUND((($E$40-$E$37)/3),0)*2)+E$37 -> 2011-02-27 | I39: =IF(B39="true",0,SUM(AA$31:AA38)) -> 68.57619007 | AA39: 15.06182049 | AN39: 2011-02-05
B40: false | C40: 131 | E40: =IF(J40>0,J40,IF(E13>0,E13,E$10)) -> 2011-03-11 | F40: winter crop 2nd | G40: =SUM(AA40:AA42) -> 54.42451723 | I40: =IF(B40="true",0,SUM(AA$31:AA39)) -> 83.63801057 | AA40: 54.42451723 | AN40: 2011-02-21
B41: true | C41: 169 | E41: =IF(J41>0,J41,IF(E14>0,E14,E$10)) -> 2011-04-18 | F41: winter crop 3rd | G41: =SUM(AA41:AA43) -> 0 | I41: =IF(B41="true",0,SUM(AA$31:AA40)) -> 0 | AA41: 0 | AN41: 2011-03-09
B42: ="false" -> false | C42: 169 | E42: =E10 -> 2011-04-18 | F42: winter crop harvest | I42: =IF(B42="true",0,SUM(AA$31:AA41)) -> 138.0625278 | AN42: 2011-03-25
AN43: 2011-04-10
B44: =IF(E44=E$55,"true","false") -> false | C44: =IF(E44>0,E44-$E$9+1,"") -> 196 | E44: =I9 -> 2011-05-15 | F44: corn planting | G44: =AA44 -> 2.53310207 | AA44: =SUMIF(C$95:C$502,">="&C44,L$95:L$502)-SUMIF(C$95:C$502,">="&C45,L$95:L$502) -> 2.53310207 | AN44: 2011-04-26
B45: =IF(E45=E$55,"true","false") -> false | C45: 226 | E45: =IF(J45>0,J45,I12) -> 2011-06-14 | F45: corn 1st | G45: 14.90739036 | I45: =IF(B45="true",0,SUM(AA$44:AA44)) -> 2.53310207 | AA45: 14.90739036
B46: false | C46: 236 | E46: =IF(J46>0,J46,IF((E45+I$13)<E$55-5,E45+I$13,E$55)) -> 2011-06-24 | F46: corn 2nd | G46: 16.55142949 | I46: =IF(B46="true",0,SUM(AA$44:AA45)) -> 17.44049243 | AA46: 16.55142949 | AN46: 11 | AO46: days in period
B47: false | C47: 246 | E47: 2011-07-04 | F47: corn 3rd | G47: 71.22985223 | I47: =IF(B47="true",0,SUM(AA$44:AA46)) -> 33.99192191 | AA47: 71.22985223 | AN47: =$E44+$AN$46 -> 2011-05-26
B48: false | C48: 256 | E48: 2011-07-14 | F48: corn 4th | G48: 83.86520767 | I48: =IF(B48="true",0,SUM(AA$44:AA47)) -> 105.2217741 | AA48: 83.86520767 | AN48: =AN47+$AN$46 -> 2011-06-06
B49: false | C49: 266 | E49: 2011-07-24 | F49: corn 5th | G49: 11.15923466 | I49: =IF(B49="true",0,SUM(AA$44:AA48)) -> 189.0869818 | AA49: 11.15923466 | AN49: 2011-06-17
B50: false | C50: 276 | E50: 2011-08-03 | F50: corn 6th | G50: 0 | I50: =IF(B50="true",0,SUM(AA$44:AA49)) -> 200.2462165 | AA50: 0 | AN50: 2011-06-28
B51: false | C51: 286 | E51: 2011-08-13 | F51: corn 7th | G51: 20.8622092 | I51: =IF(B51="true",0,SUM(AA$44:AA50)) -> 200.2462165 | AA51: 20.8622092 | AN51: 2011-07-09
B52: false | C52: 296 | E52: 2011-08-23 | F52: corn 8th | G52: 24.52012281 | I52: =IF(B52="true",0,SUM(AA$44:AA51)) -> 221.1084257 | AA52: 24.52012281 | AN52: 2011-07-20
B53: true | C53: 302 | E53: 2011-08-29 | F53: corn 9th | G53: 0 | I53: =IF(B53="true",0,SUM(AA$44:AA52)) -> 0 | AA53: 0 | AN53: 2011-07-31
B54: true | C54: 302 | E54: 2011-08-29 | F54: corn 10th | G54: 0 | I54: =IF(B54="true",0,SUM(AA$44:AA53)) -> 0 | AA54: 0 | AN54: 2011-08-11
B55: ="false" -> false | C55: 302 | E55: =I10 -> 2011-08-29 | F55: corn harvest | G55: 0 | I55: =IF(B55="true",0,SUM(AA$44:AA54)) -> 245.6285485 | AN55: 2011-08-22
AN56: 2011-09-02
B57: =IF(E57=E$62,"true","false") -> false | C57: =IF(E57>0,E57-$E$9+1,"") -> 304 | E57: =IF(P9>0,P9,E55) -> 2011-08-31 | F57: triple crop planting | G57: =AA57 -> 29.5206306 | AA57: =SUMIF(C$95:C$502,">="&C57,L$95:L$502)-SUMIF(C$95:C$502,">="&C58,L$95:L$502) -> 29.5206306 | AN57: 2011-09-13
B58: =IF(E58=E$62,"true","false") -> false | C58: 323 | E58: =IF(J58>0,J58,IF(P12>0,P12,E$62)) -> 2011-09-19 | F58: triple crop 1st | G58: =AA58 -> 28.80221296 | I58: =IF(B58="true",0,SUM(AA$57:AA57)) -> 29.5206306 | AA58: =SUMIF(C$95:C$502,">="&C58,L$95:L$502)-SUMIF(C$95:C$502,">="&C59,L$95:L$502) -> 28.80221296
B59: =IF(E59=E$62,"true","false") -> false | C59: 332 | E59: =IF(J59>0,J59,IF(P13>0,P13,E$62)) -> 2011-09-28 | F59: triple crop 2nd | G59: =AA59 -> 37.83091139 | I59: =IF(B59="true",0,SUM(AA$57:AA58)) -> 58.32284357 | AA59: =SUMIF(C$95:C$502,">="&C59,L$95:L$502)-SUMIF(C$95:C$502,">="&C60,L$95:L$502) -> 37.83091139
B60: =IF(E60=E$62,"true","false") -> true | C60: 341 | E60: =IF(J60>0,J60,IF(P14>0,P14,E$62)) -> 2011-10-07 | F60: triple crop 3rd | G60: =AA60 -> 0 | I60: =IF(B60="true",0,SUM(AA$57:AA59)) -> 0 | AA60: =SUMIF(C$95:C$502,">="&C60,L$95:L$502)-SUMIF(C$95:C$502,">="&C61,L$95:L$502) -> 0
B61: =IF(E61=E$62,"true","false") -> true | C61: 341 | E61: =IF(J61>0,J61,IF(P15>0,P15,E$62)) -> 2011-10-07 | F61: triple crop 4th | G61: =AA61 -> 0 | I61: =IF(B61="true",0,SUM(AA$57:AA60)) -> 0 | AA61: =SUMIF(C$95:C$502,">="&C61,L$95:L$502)-SUMIF(C$95:C$502,">="&C62,L$95:L$502) -> 0
B62: ="false" -> false | C62: 341 | E62: =IF(P10>0,P10,E57) -> 2011-10-07 | F62: triple crop harvest | I62: =IF(B62="true",0,SUM(AA$57:AA61)) -> 96.15375495
U88: primary year 1: | V88: =PrimaryYear1 -> Denair 2010
P89: forage | Q89: corn | U89: primary year 2: | V89: =PrimaryYear2 -> Denair 2011
N90: max cutoff | P90: 75 | Q90: 95 | U90: Backup year: | V90: =BackupYear -> Denair avg 1994 - 2010
N91: min cutoff | P91: 45 | Q91: 50
G92: =SUM(G95:G502) -> 140 | I92: =SUM(I95:I502) -> 250 | J92: =SUM(J95:J502) -> 100 | U92: these are in °F
C93: day of season | F93: date | G93: cereal lbs N/A per day | I93: Corn lbs N per day | J93: Sudan lbs N per day | L93: lbs N/day, all | N93: corn GDU | P93: Cumulative corn GDU | Q93: forage GDD | S93: mean daily temp. | U93: air maximum temperature | V93: air minimum temperature | W93: data source for max | X93: data source for min
C94: =COLUMN(C94)-COLUMN($C94)+1 -> 1 | F94: =COLUMN(F94)-COLUMN($C94)+1 -> 4 | G94: =COLUMN(G94)-COLUMN($C94)+1 -> 5 | I94: =COLUMN(I94)-COLUMN($C94)+1 -> 7 | J94: 8 | L94: =COLUMN(L94)-COLUMN($C94)+1 -> 10 | M94: 11 | N94: 12 | O94: 13 | P94: 14 | Q94: 15 | S94: =COLUMN(S94)-COLUMN($C94)+1 -> 17 | U94: =COLUMN(U94)-COLUMN($C94)+1 -> 19 | V94: =COLUMN(V94)-COLUMN($C94)+1 -> 20
C95: 1 | F95: =E9 -> 2010-11-01 | G95: ='uptake calcs'!M12 -> 0.3932282541 | I95: ='uptake calcs'!L12 -> 0 | J95: ='uptake calcs'!N12 -> 0 | L95: =SUM(G95:J95) -> 0.3932282541 | N95: =IF($U95>cutoff.corn.min,((IF($U95>cutoff.corn.max,cutoff.corn.max,$U95)+IF($V95<cutoff.corn.min,cutoff.corn.min,$V95))/2)-cutoff.corn.min,0) -> 10.5 | P95: =IF(AND(C95>=C$44,C95<=$C$55),N95+P94,0) -> 0 | Q95: =((U95+V95)/2)-32 -> 26 | S95: =AVERAGE(U95:V95) -> 58 | U95: 71 | V95: 45 | W95: Year 1 | X95: Year 1
C96: 2 | F96: =F95+1 -> 2010-11-02 | G96: =MAX('uptake calcs'!M13-'uptake calcs'!M12,0) -> 0.4506901564 | I96: =MAX('uptake calcs'!L13-'uptake calcs'!L12,0) -> 0 | J96: =MAX('uptake calcs'!N13-'uptake calcs'!N12,0) -> 0 | L96: 0.4506901564 | N96: =IF($U96>cutoff.corn.min,((IF($U96>cutoff.corn.max,cutoff.corn.max,$U96)+IF($V96<cutoff.corn.min,cutoff.corn.min,$V96))/2)-cutoff.corn.min,0) -> 13.5 | P96: 0 | Q96: 29 | S96: 61 | U96: 77 | V96: 45 | W96: Year 1 | X96: Year 1
C97: 3 | F97: =F96+1 -> 2010-11-03 | G97: =MAX('uptake calcs'!M14-'uptake calcs'!M13,0) -> 0.5043373558 | I97: =MAX('uptake calcs'!L14-'uptake calcs'!L13,0) -> 0 | J97: =MAX('uptake calcs'!N14-'uptake calcs'!N13,0) -> 0 | L97: 0.5043373558 | N97: 14.5 | P97: 0 | Q97: 31.5 | S97: 63.5 | U97: 79 | V97: 48 | W97: Year 1 | X97: Year 1
C98: 4 | F98: 2010-11-04 | G98: =MAX('uptake calcs'!M15-'uptake calcs'!M14,0) -> 0.5285212599 | I98: =MAX('uptake calcs'!L15-'uptake calcs'!L14,0) -> 0 | J98: =MAX('uptake calcs'!N15-'uptake calcs'!N14,0) -> 0 | L98: 0.5285212599 | N98: 14.5 | P98: 0 | Q98: 32 | S98: 64 | U98: 79 | V98: 49 | W98: Year 1 | X98: Year 1
C99: 5 | F99: 2010-11-05 | G99: =MAX('uptake calcs'!M16-'uptake calcs'!M15,0) -> 0.6146070301 | I99: =MAX('uptake calcs'!L16-'uptake calcs'!L15,0) -> 0 | J99: =MAX('uptake calcs'!N16-'uptake calcs'!N15,0) -> 0 | L99: 0.6146070301 | N99: 18 | P99: 0 | Q99: 36 | S99: 68 | U99: 83 | V99: 53 | W99: Year 1 | X99: Year 1
C100: 6 | F100: 2010-11-06 | G100: =MAX('uptake calcs'!M17-'uptake calcs'!M16,0) -> 0.5198535515 | I100: =MAX('uptake calcs'!L17-'uptake calcs'!L16,0) -> 0 | J100: =MAX('uptake calcs'!N17-'uptake calcs'!N16,0) -> 0 | L100: 0.5198535515 | N100: 11.5 | P100: 0 | Q100: 29.5 | S100: 61.5 | U100: 72 | V100: 51 | W100: Year 1 | X100: Year 1
C101: 7 | F101: 2010-11-07 | G101: =MAX('uptake calcs'!M18-'uptake calcs'!M17,0) -> 0.3882911446 | I101: =MAX('uptake calcs'!L18-'uptake calcs'!L17,0) -> 0 | J101: =MAX('uptake calcs'!N18-'uptake calcs'!N17,0) -> 0 | L101: 0.3882911446 | N101: 3.5 | P101: 0 | Q101: 21.5 | S101: 53.5 | U101: 57 | V101: 50 | W101: Year 1 | X101: Year 1
C102: 8 | F102: 2010-11-08 | G102: =MAX('uptake calcs'!M19-'uptake calcs'!M18,0) -> 0.3405799896 | I102: =MAX('uptake calcs'!L19-'uptake calcs'!L18,0) -> 0 | J102: =MAX('uptake calcs'!N19-'uptake calcs'!N18,0) -> 0 | L102: 0.3405799896 | N102: 5 | P102: 0 | Q102: 18.5 | S102: 50.5 | U102: 60 | V102: 41 | W102: Year 1 | X102: Year 1
C103: 9 | F103: 2010-11-09 | G103: =MAX('uptake calcs'!M20-'uptake calcs'!M19,0) -> 0.3466540231 | I103: =MAX('uptake calcs'!L20-'uptake calcs'!L19,0) -> 0 | J103: =MAX('uptake calcs'!N20-'uptake calcs'!N19,0) -> 0 | L103: 0.3466540231 | N103: 7 | P103: 0 | Q103: 18.5 | S103: 50.5 | U103: 64 | V103: 37 | W103: Year 1 | X103: Year 1
C104: 10 | F104: 2010-11-10 | G104: =MAX('uptake calcs'!M21-'uptake calcs'!M20,0) -> 0.3913286918 | I104: =MAX('uptake calcs'!L21-'uptake calcs'!L20,0) -> 0 | J104: =MAX('uptake calcs'!N21-'uptake calcs'!N20,0) -> 0 | L104: 0.3913286918 | N104: 5.5 | P104: 0 | Q104: 20.5 | S104: 52.5 | U104: 61 | V104: 44 | W104: Year 1 | X104: Year 1
C105: 11 | F105: 2010-11-11 | G105: =MAX('uptake calcs'!M22-'uptake calcs'!M21,0) -> 0.3695511888 | I105: =MAX('uptake calcs'!L22-'uptake calcs'!L21,0) -> 0 | J105: =MAX('uptake calcs'!N22-'uptake calcs'!N21,0) -> 0 | L105: 0.3695511888 | N105: 6.5 | P105: 0 | Q105: 19 | S105: 51 | U105: 63 | V105: 39 | W105: Year 1 | X105: Year 1
C106: 12 | F106: 2010-11-12 | G106: =MAX('uptake calcs'!M23-'uptake calcs'!M22,0) -> 0.3562728237 | I106: =MAX('uptake calcs'!L23-'uptake calcs'!L22,0) -> 0 | J106: =MAX('uptake calcs'!N23-'uptake calcs'!N22,0) -> 0 | L106: 0.3562728237 | N106: 7 | P106: 0 | Q106: 18 | S106: 50 | U106: 64 | V106: 36 | W106: Year 1 | X106: Year 1
C107: 13 | F107: 2010-11-13 | G107: =MAX('uptake calcs'!M24-'uptake calcs'!M23,0) -> 0.362359276 | I107: =MAX('uptake calcs'!L24-'uptake calcs'!L23,0) -> 0 | J107: =MAX('uptake calcs'!N24-'uptake calcs'!N23,0) -> 0 | L107: 0.362359276 | N107: 6.5 | P107: 0 | Q107: 18 | S107: 50 | U107: 63 | V107: 37 | W107: Year 1 | X107: Year 1
C108: 14 | F108: 2010-11-14 | G108: =MAX('uptake calcs'!M25-'uptake calcs'!M24,0) -> 0.4512662277 | I108: =MAX('uptake calcs'!L25-'uptake calcs'!L24,0) -> 0 | J108: =MAX('uptake calcs'!N25-'uptake calcs'!N24,0) -> 0 | L108: 0.4512662277 | N108: 9.5 | P108: 0 | Q108: 22 | S108: 54 | U108: 69 | V108: 39 | W108: Year 1 | X108: Year 1
C109: 15 | F109: 2010-11-15 | G109: =MAX('uptake calcs'!M26-'uptake calcs'!M25,0) -> 0.5347791297 | I109: =MAX('uptake calcs'!L26-'uptake calcs'!L25,0) -> 0 | J109: =MAX('uptake calcs'!N26-'uptake calcs'!N25,0) -> 0 | L109: 0.5347791297 | N109: 11.5 | P109: 0 | Q109: 25.5 | S109: 57.5 | U109: 73 | V109: 42 | W109: Year 1 | X109: Year 1
C110: 16 | F110: 2010-11-16 | G110: =MAX('uptake calcs'!M27-'uptake calcs'!M26,0) -> 0.4933250325 | I110: =MAX('uptake calcs'!L27-'uptake calcs'!L26,0) -> 0 | J110: =MAX('uptake calcs'!N27-'uptake calcs'!N26,0) -> 0 | L110: 0.4933250325 | N110: 9 | P110: 0 | Q110: 23 | S110: 55 | U110: 68 | V110: 42 | W110: Year 1 | X110: Year 1
C111: 17 | F111: 2010-11-17 | G111: =MAX('uptake calcs'!M28-'uptake calcs'!M27,0) -> 0.5149823607 | I111: =MAX('uptake calcs'!L28-'uptake calcs'!L27,0) -> 0 | J111: =MAX('uptake calcs'!N28-'uptake calcs'!N27,0) -> 0 | L111: 0.5149823607 | N111: 11.5 | P111: 0 | Q111: 23.5 | S111: 55.5 | U111: 73 | V111: 38 | W111: Year 1 | X111: Year 1
C112: 18 | F112: 2010-11-18 | G112: =MAX('uptake calcs'!M29-'uptake calcs'!M28,0) -> 0.5375304498 | I112: =MAX('uptake calcs'!L29-'uptake calcs'!L28,0) -> 0 | J112: =MAX('uptake calcs'!N29-'uptake calcs'!N28,0) -> 0 | L112: 0.5375304498 | N112: 10.5 | P112: 0 | Q112: 24 | S112: 56 | U112: 71 | V112: 41 | W112: Year 1 | X112: Year 1
C113: 19 | F113: 2010-11-19 | G113: =MAX('uptake calcs'!M30-'uptake calcs'!M29,0) -> 0.4224602679 | I113: =MAX('uptake calcs'!L30-'uptake calcs'!L29,0) -> 0 | J113: =MAX('uptake calcs'!N30-'uptake calcs'!N29,0) -> 0 | L113: 0.4224602679 | N113: 2.5 | P113: 0 | Q113: 18.5 | S113: 50.5 | U113: 55 | V113: 46 | W113: Year 1 | X113: Year 1
C114: 20 | F114: 2010-11-20 | G114: =MAX('uptake calcs'!M31-'uptake calcs'!M30,0) -> 0.4179139863 | I114: =MAX('uptake calcs'!L31-'uptake calcs'!L30,0) -> 0 | J114: =MAX('uptake calcs'!N31-'uptake calcs'!N30,0) -> 0 | L114: 0.4179139863 | N114: 3 | P114: 0 | Q114: 18 | S114: 50 | U114: 56 | V114: 44 | W114: Year 1 | X114: Year 1
C115: 21 | F115: 2010-11-21 | G115: =MAX('uptake calcs'!M32-'uptake calcs'!M31,0) -> 0.365363251 | I115: =MAX('uptake calcs'!L32-'uptake calcs'!L31,0) -> 0 | J115: =MAX('uptake calcs'!N32-'uptake calcs'!N31,0) -> 0 | L115: 0.365363251 | N115: 2 | P115: 0 | Q115: 15.5 | S115: 47.5 | U115: 54 | V115: 41 | W115: Year 1 | X115: Year 1
C116: 22 | F116: 2010-11-22 | G116: =MAX('uptake calcs'!M33-'uptake calcs'!M32,0) -> 0.4428075449 | I116: =MAX('uptake calcs'!L33-'uptake calcs'!L32,0) -> 0 | J116: =MAX('uptake calcs'!N33-'uptake calcs'!N32,0) -> 0 | L116: 0.4428075449 | N116: 3.5 | P116: 0 | Q116: 18.5 | S116: 50.5 | U116: 57 | V116: 44 | W116: Year 1 | X116: Year 1
C117: 23 | F117: 2010-11-23 | G117: =MAX('uptake calcs'!M34-'uptake calcs'!M33,0) -> 0.3033808113 | I117: =MAX('uptake calcs'!L34-'uptake calcs'!L33,0) -> 0 | J117: =MAX('uptake calcs'!N34-'uptake calcs'!N33,0) -> 0 | L117: 0.3033808113 | N117: 0.5 | P117: 0 | Q117: 12.5 | S117: 44.5 | U117: 51 | V117: 38 | W117: Year 1 | X117: Year 1
C118: 24 | F118: 2010-11-24 | G118: =MAX('uptake calcs'!M35-'uptake calcs'!M34,0) -> 0.159102864 | I118: =MAX('uptake calcs'!L35-'uptake calcs'!L34,0) -> 0 | J118: =MAX('uptake calcs'!N35-'uptake calcs'!N34,0) -> 0 | L118: 0.159102864 | N118: 0 | P118: 0 | Q118: 6.5 | S118: 38.5 | U118: 47 | V118: 30 | W118: Year 1 | X118: Year 1
C119: 25 | F119: 2010-11-25 | G119: =MAX('uptake calcs'!M36-'uptake calcs'!M35,0) -> 0.184729942 | I119: =MAX('uptake calcs'!L36-'uptake calcs'!L35,0) -> 0 | J119: =MAX('uptake calcs'!N36-'uptake calcs'!N35,0) -> 0 | L119: 0.184729942 | N119: 1 | P119: 0 | Q119: 7.5 | S119: 39.5 | U119: 52 | V119: 27 | W119: Year 1 | X119: Year 1
C120: 26 | F120: 2010-11-26 | G120: =MAX('uptake calcs'!M37-'uptake calcs'!M36,0) -> 0.2357682389 | I120: =MAX('uptake calcs'!L37-'uptake calcs'!L36,0) -> 0 | J120: =MAX('uptake calcs'!N37-'uptake calcs'!N36,0) -> 0 | L120: 0.2357682389 | N120: 2.5 | P120: 0 | Q120: 9.5 | S120: 41.5 | U120: 55 | V120: 28 | W120: Year 1 | X120: Year 1
C121: 27 | F121: 2010-11-27 | G121: =MAX('uptake calcs'!M38-'uptake calcs'!M37,0) -> 0.2377651003 | I121: =MAX('uptake calcs'!L38-'uptake calcs'!L37,0) -> 0 | J121: =MAX('uptake calcs'!N38-'uptake calcs'!N37,0) -> 0 | L121: 0.2377651003 | N121: 0 | P121: 0 | Q121: 9.5 | S121: 41.5 | U121: 47 | V121: 36 | W121: Year 1 | X121: Year 1
C122: 28 | F122: 2010-11-28 | G122: =MAX('uptake calcs'!M39-'uptake calcs'!M38,0) -> 0.2778169215 | I122: =MAX('uptake calcs'!L39-'uptake calcs'!L38,0) -> 0 | J122: =MAX('uptake calcs'!N39-'uptake calcs'!N38,0) -> 0 | L122: 0.2778169215 | N122: 0 | P122: 0 | Q122: 11 | S122: 43 | U122: 50 | V122: 36 | W122: Year 1 | X122: Year 1
C123: 29 | F123: 2010-11-29 | G123: =MAX('uptake calcs'!M40-'uptake calcs'!M39,0) -> 0.2293202209 | I123: =MAX('uptake calcs'!L40-'uptake calcs'!L39,0) -> 0 | J123: =MAX('uptake calcs'!N40-'uptake calcs'!N39,0) -> 0 | L123: 0.2293202209 | N123: 1 | P123: 0 | Q123: 9 | S123: 41 | U123: 52 | V123: 30 | W123: Year 1 | X123: Year 1
C124: 30 | F124: 2010-11-30 | G124: =MAX('uptake calcs'!M41-'uptake calcs'!M40,0) -> 0.2440397409 | I124: =MAX('uptake calcs'!L41-'uptake calcs'!L40,0) -> 0 | J124: =MAX('uptake calcs'!N41-'uptake calcs'!N40,0) -> 0 | L124: 0.2440397409 | N124: 1.5 | P124: 0 | Q124: 9.5 | S124: 41.5 | U124: 53 | V124: 30 | W124: Year 1 | X124: Year 1
C125: 31 | F125: 2010-12-01 | G125: =MAX('uptake calcs'!M42-'uptake calcs'!M41,0) -> 0.285127049 | I125: =MAX('uptake calcs'!L42-'uptake calcs'!L41,0) -> 0 | J125: =MAX('uptake calcs'!N42-'uptake calcs'!N41,0) -> 0 | L125: 0.285127049 | N125: 3 | P125: 0 | Q125: 11 | S125: 43 | U125: 56 | V125: 30 | W125: Year 1 | X125: Year 1
C126: 32 | F126: 2010-12-02 | G126: =MAX('uptake calcs'!M43-'uptake calcs'!M42,0) -> 0.3010372098 | I126: =MAX('uptake calcs'!L43-'uptake calcs'!L42,0) -> 0 | J126: =MAX('uptake calcs'!N43-'uptake calcs'!N42,0) -> 0 | L126: 0.3010372098 | N126: 1.5 | P126: 0 | Q126: 11.5 | S126: 43.5 | U126: 53 | V126: 34 | W126: Year 1 | X126: Year 1
C127: 33 | F127: 2010-12-03 | G127: =MAX('uptake calcs'!M44-'uptake calcs'!M43,0) -> 0.3972218853 | I127: =MAX('uptake calcs'!L44-'uptake calcs'!L43,0) -> 0 | J127: =MAX('uptake calcs'!N44-'uptake calcs'!N43,0) -> 0 | L127: 0.3972218853 | N127: 1.5 | P127: 0 | Q127: 15 | S127: 47 | U127: 53 | V127: 41 | W127: Year 1 | X127: Year 1
C128: 34 | F128: 2010-12-04 | G128: =MAX('uptake calcs'!M45-'uptake calcs'!M44,0) -> 0.5648711105 | I128: =MAX('uptake calcs'!L45-'uptake calcs'!L44,0) -> 0 | J128: =MAX('uptake calcs'!N45-'uptake calcs'!N44,0) -> 0 | L128: 0.5648711105 | N128: 5.5 | P128: 0 | Q128: 21 | S128: 53 | U128: 61 | V128: 45 | W128: Year 1 | X128: Year 1
C129: 35 | F129: 2010-12-05 | G129: =MAX('uptake calcs'!M46-'uptake calcs'!M45,0) -> 0.6028516025 | I129: =MAX('uptake calcs'!L46-'uptake calcs'!L45,0) -> 0 | J129: =MAX('uptake calcs'!N46-'uptake calcs'!N45,0) -> 0 | L129: 0.6028516025 | N129: 6 | P129: 0 | Q129: 22 | S129: 54 | U129: 62 | V129: 46 | W129: Year 1 | X129: Year 1
C130: 36 | F130: 2010-12-06 | G130: =MAX('uptake calcs'!M47-'uptake calcs'!M46,0) -> 0.6848690059 | I130: =MAX('uptake calcs'!L47-'uptake calcs'!L46,0) -> 0 | J130: =MAX('uptake calcs'!N47-'uptake calcs'!N46,0) -> 0 | L130: 0.6848690059 | N130: 8.5 | P130: 0 | Q130: 24.5 | S130: 56.5 | U130: 67 | V130: 46 | W130: Year 1 | X130: Year 1
C131: 37 | F131: 2010-12-07 | G131: =MAX('uptake calcs'!M48-'uptake calcs'!M47,0) -> 0.5123470247 | I131: =MAX('uptake calcs'!L48-'uptake calcs'!L47,0) -> 0 | J131: =MAX('uptake calcs'!N48-'uptake calcs'!N47,0) -> 0 | L131: 0.5123470247 | N131: 6 | P131: 0 | Q131: 18 | S131: 50 | U131: 62 | V131: 38 | W131: Year 1 | X131: Year 1
C132: 38 | F132: 2010-12-08 | G132: =MAX('uptake calcs'!M49-'uptake calcs'!M48,0) -> 0.520203588 | I132: =MAX('uptake calcs'!L49-'uptake calcs'!L48,0) -> 0 | J132: =MAX('uptake calcs'!N49-'uptake calcs'!N48,0) -> 0 | L132: 0.520203588 | N132: 3 | P132: 0 | Q132: 18 | S132: 50 | U132: 56 | V132: 44 | W132: Year 1 | X132: Year 1
C133: 39 | F133: 2010-12-09 | G133: =MAX('uptake calcs'!M50-'uptake calcs'!M49,0) -> 0.6762527903 | I133: =MAX('uptake calcs'!L50-'uptake calcs'!L49,0) -> 0 | J133: =MAX('uptake calcs'!N50-'uptake calcs'!N49,0) -> 0 | L133: 0.6762527903 | N133: 6.5 | P133: 0 | Q133: 23 | S133: 55 | U133: 63 | V133: 47 | W133: Year 1 | X133: Year 1
C134: 40 | F134: 2010-12-10 | G134: =MAX('uptake calcs'!M51-'uptake calcs'!M50,0) -> 0.7499136922 | I134: =MAX('uptake calcs'!L51-'uptake calcs'!L50,0) -> 0 | J134: =MAX('uptake calcs'!N51-'uptake calcs'!N50,0) -> 0 | L134: 0.7499136922 | N134: 8 | P134: 0 | Q134: 25 | S134: 57 | U134: 66 | V134: 48 | W134: Year 1 | X134: Year 1
C135: 41 | F135: 2010-12-11 | G135: =MAX('uptake calcs'!M52-'uptake calcs'!M51,0) -> 0.6574412324 | I135: =MAX('uptake calcs'!L52-'uptake calcs'!L51,0) -> 0 | J135: =MAX('uptake calcs'!N52-'uptake calcs'!N51,0) -> 0 | L135: 0.6574412324 | N135: 3.5 | P135: 0 | Q135: 21.5 | S135: 53.5 | U135: 57 | V135: 50 | W135: Year 1 | X135: Year 1
C136: 42 | F136: 2010-12-12 | G136: =MAX('uptake calcs'!M53-'uptake calcs'!M52,0) -> 0.7477078342 | I136: =MAX('uptake calcs'!L53-'uptake calcs'!L52,0) -> 0 | J136: =MAX('uptake calcs'!N53-'uptake calcs'!N52,0) -> 0 | L136: 0.7477078342 | N136: 6 | P136: 0 | Q136: 24 | S136: 56 | U136: 58 | V136: 54 | W136: Year 1 | X136: Year 1
C137: 43 | F137: 2010-12-13 | G137: =MAX('uptake calcs'!M54-'uptake calcs'!M53,0) -> 0.6823261465 | I137: =MAX('uptake calcs'!L54-'uptake calcs'!L53,0) -> 0 | J137: =MAX('uptake calcs'!N54-'uptake calcs'!N53,0) -> 0 | L137: 0.6823261465 | N137: 3.5 | P137: 0 | Q137: 21.5 | S137: 53.5 | U137: 55 | V137: 52 | W137: Year 1 | X137: Year 1
C138: 44 | F138: 2010-12-14 | G138: =MAX('uptake calcs'!M55-'uptake calcs'!M54,0) -> 0.6129136647 | I138: =MAX('uptake calcs'!L55-'uptake calcs'!L54,0) -> 0 | J138: =MAX('uptake calcs'!N55-'uptake calcs'!N54,0) -> 0 | L138: 0.6129136647 | N138: 1.5 | P138: 0 | Q138: 19 | S138: 51 | U138: 53 | V138: 49 | W138: Year 1 | X138: Year 1
C139: 45 | F139: 2010-12-15 | G139: =MAX('uptake calcs'!M56-'uptake calcs'!M55,0) -> 0.5069614343 | I139: =MAX('uptake calcs'!L56-'uptake calcs'!L55,0) -> 0 | J139: =MAX('uptake calcs'!N56-'uptake calcs'!N55,0) -> 0 | L139: 0.5069614343 | N139: 2.5 | P139: 0 | Q139: 15.5 | S139: 47.5 | U139: 55 | V139: 40 | W139: Year 1 | X139: Year 1
C140: 46 | F140: 2010-12-16 | G140: =MAX('uptake calcs'!M57-'uptake calcs'!M56,0) -> 0.3304073552 | I140: =MAX('uptake calcs'!L57-'uptake calcs'!L56,0) -> 0 | J140: =MAX('uptake calcs'!N57-'uptake calcs'!N56,0) -> 0 | L140: 0.3304073552 | N140: 0 | P140: 0 | Q140: 10 | S140: 42 | U140: 45 | V140: 39 | W140: Year 1 | X140: Year 1
C141: 47 | F141: 2010-12-17 | G141: =MAX('uptake calcs'!M58-'uptake calcs'!M57,0) -> 0.5845431769 | I141: =MAX('uptake calcs'!L58-'uptake calcs'!L57,0) -> 0 | J141: =MAX('uptake calcs'!N58-'uptake calcs'!N57,0) -> 0 | L141: 0.5845431769 | N141: 2.5 | P141: 0 | Q141: 17.5 | S141: 49.5 | U141: 55 | V141: 44 | W141: Year 1 | X141: Year 1
C142: 48 | F142: 2010-12-18 | G142: =MAX('uptake calcs'!M59-'uptake calcs'!M58,0) -> 0.7634689987 | I142: =MAX('uptake calcs'!L59-'uptake calcs'!L58,0) -> 0 | J142: =MAX('uptake calcs'!N59-'uptake calcs'!N58,0) -> 0 | L142: 0.7634689987 | N142: 4.5 | P142: 0 | Q142: 22.5 | S142: 54.5 | U142: 57 | V142: 52 | W142: Year 1 | X142: Year 1
C143: 49 | F143: 2010-12-19 | G143: =MAX('uptake calcs'!M60-'uptake calcs'!M59,0) -> 0.759560189 | I143: =MAX('uptake calcs'!L60-'uptake calcs'!L59,0) -> 0 | J143: =MAX('uptake calcs'!N60-'uptake calcs'!N59,0) -> 0 | L143: 0.759560189 | N143: 4.5 | P143: 0 | Q143: 22 | S143: 54 | U143: 59 | V143: 49 | W143: Year 1 | X143: Year 1
C144: 50 | F144: 2010-12-20 | G144: =MAX('uptake calcs'!M61-'uptake calcs'!M60,0) -> 0.5429511571 | I144: =MAX('uptake calcs'!L61-'uptake calcs'!L60,0) -> 0 | J144: =MAX('uptake calcs'!N61-'uptake calcs'!N60,0) -> 0 | L144: 0.5429511571 | N144: 1 | P144: 0 | Q144: 15.5 | S144: 47.5 | U144: 52 | V144: 43 | W144: Year 1 | X144: Year 1
C145: 51 | F145: 2010-12-21 | G145: =MAX('uptake calcs'!M62-'uptake calcs'!M61,0) -> 0.5137981227 | I145: =MAX('uptake calcs'!L62-'uptake calcs'!L61,0) -> 0 | J145: =MAX('uptake calcs'!N62-'uptake calcs'!N61,0) -> 0 | L145: 0.5137981227 | N145: 2.5 | P145: 0 | Q145: 14.5 | S145: 46.5 | U145: 55 | V145: 38 | W145: Year 1 | X145: Year 1
C146: 52 | F146: 2010-12-22 | G146: =MAX('uptake calcs'!M63-'uptake calcs'!M62,0) -> 0.7723510687 | I146: =MAX('uptake calcs'!L63-'uptake calcs'!L62,0) -> 0 | J146: =MAX('uptake calcs'!N63-'uptake calcs'!N62,0) -> 0 | L146: 0.7723510687 | N146: 4 | P146: 0 | Q146: 21.5 | S146: 53.5 | U146: 58 | V146: 49 | W146: Year 1 | X146: Year 1
C147: 53 | F147: 2010-12-23 | G147: =MAX('uptake calcs'!M64-'uptake calcs'!M63,0) -> 0.6746871614 | I147: =MAX('uptake calcs'!L64-'uptake calcs'!L63,0) -> 0 | J147: =MAX('uptake calcs'!N64-'uptake calcs'!N63,0) -> 0 | L147: 0.6746871614 | N147: 5 | P147: 0 | Q147: 18.5 | S147: 50.5 | U147: 60 | V147: 41 | W147: Year 1 | X147: Year 1
C148: 54 | F148: 2010-12-24 | G148: =MAX('uptake calcs'!M65-'uptake calcs'!M64,0) -> 0.5168200803 | I148: =MAX('uptake calcs'!L65-'uptake calcs'!L64,0) -> 0 | J148: =MAX('uptake calcs'!N65-'uptake calcs'!N64,0) -> 0 | L148: 0.5168200803 | N148: 1 | P148: 0 | Q148: 14 | S148: 46 | U148: 52 | V148: 40 | W148: Year 1 | X148: Year 1
C149: 55 | F149: 2010-12-25 | G149: =MAX('uptake calcs'!M66-'uptake calcs'!M65,0) -> 0.5972696851 | I149: =MAX('uptake calcs'!L66-'uptake calcs'!L65,0) -> 0 | J149: =MAX('uptake calcs'!N66-'uptake calcs'!N65,0) -> 0 | L149: 0.5972696851 | N149: 2 | P149: 0 | Q149: 16 | S149: 48 | U149: 54 | V149: 42 | W149: Year 1 | X149: Year 1
C150: 56 | F150: 2010-12-26 | G150: =MAX('uptake calcs'!M67-'uptake calcs'!M66,0) -> 0.64236515 | I150: =MAX('uptake calcs'!L67-'uptake calcs'!L66,0) -> 0 | J150: =MAX('uptake calcs'!N67-'uptake calcs'!N66,0) -> 0 | L150: 0.64236515 | N150: 5 | P150: 0 | Q150: 17 | S150: 49 | U150: 60 | V150: 38 | W150: Year 1 | X150: Year 1
C151: 57 | F151: 2010-12-27 | G151: =MAX('uptake calcs'!M68-'uptake calcs'!M67,0) -> 0.5542469069 | I151: =MAX('uptake calcs'!L68-'uptake calcs'!L67,0) -> 0 | J151: =MAX('uptake calcs'!N68-'uptake calcs'!N67,0) -> 0 | L151: 0.5542469069 | N151: 3 | P151: 0 | Q151: 14.5 | S151: 46.5 | U151: 56 | V151: 37 | W151: Year 1 | X151: Year 1
C152: 58 | F152: 2010-12-28 | G152: =MAX('uptake calcs'!M69-'uptake calcs'!M68,0) -> 0.4825048215 | I152: =MAX('uptake calcs'!L69-'uptake calcs'!L68,0) -> 0 | J152: =MAX('uptake calcs'!N69-'uptake calcs'!N68,0) -> 0 | L152: 0.4825048215 | N152: 0 | P152: 0 | Q152: 12.5 | S152: 44.5 | U152: 50 | V152: 39 | W152: Year 1 | X152: Year 1
C153: 59 | F153: 2010-12-29 | G153: =MAX('uptake calcs'!M70-'uptake calcs'!M69,0) -> 0.5651804494 | I153: =MAX('uptake calcs'!L70-'uptake calcs'!L69,0) -> 0 | J153: =MAX('uptake calcs'!N70-'uptake calcs'!N69,0) -> 0 | L153: 0.5651804494 | N153: 2 | P153: 0 | Q153: 14.5 | S153: 46.5 | U153: 54 | V153: 39 | W153: Year 1 | X153: Year 1
C154: 60 | F154: 2010-12-30 | G154: =MAX('uptake calcs'!M71-'uptake calcs'!M70,0) -> 0.3143468037 | I154: =MAX('uptake calcs'!L71-'uptake calcs'!L70,0) -> 0 | J154: =MAX('uptake calcs'!N71-'uptake calcs'!N70,0) -> 0 | L154: 0.3143468037 | N154: 0 | P154: 0 | Q154: 8 | S154: 40 | U154: 49 | V154: 31 | W154: Year 1 | X154: Year 1
C155: 61 | F155: 2010-12-31 | G155: =MAX('uptake calcs'!M72-'uptake calcs'!M71,0) -> 0.7138571197 | I155: =MAX('uptake calcs'!L72-'uptake calcs'!L71,0) -> 0 | J155: =MAX('uptake calcs'!N72-'uptake calcs'!N71,0) -> 0 | L155: 0.7138571197 | N155: 2.5 | P155: 0 | Q155: 18 | S155: 50 | U155: 55 | V155: 45 | W155: Year 1 | X155: Year 1
C156: 62 | F156: 2011-01-01 | G156: =MAX('uptake calcs'!M73-'uptake calcs'!M72,0) -> 0.5816897075 | I156: =MAX('uptake calcs'!L73-'uptake calcs'!L72,0) -> 0 | J156: =MAX('uptake calcs'!N73-'uptake calcs'!N72,0) -> 0 | L156: 0.5816897075 | N156: 0.5 | P156: 0 | Q156: 14.5 | S156: 46.5 | U156: 51 | V156: 42 | W156: Year 2 | X156: Year 2
C157: 63 | F157: 2011-01-02 | G157: =MAX('uptake calcs'!M74-'uptake calcs'!M73,0) -> 0.5876279174 | I157: =MAX('uptake calcs'!L74-'uptake calcs'!L73,0) -> 0 | J157: =MAX('uptake calcs'!N74-'uptake calcs'!N73,0) -> 0 | L157: 0.5876279174 | N157: 0 | P157: 0 | Q157: 14.5 | S157: 46.5 | U157: 48 | V157: 45 | W157: Year 2 | X157: Year 2
C158: 64 | F158: 2011-01-03 | G158: =MAX('uptake calcs'!M75-'uptake calcs'!M74,0) -> 0.5318976456 | I158: =MAX('uptake calcs'!L75-'uptake calcs'!L74,0) -> 0 | J158: =MAX('uptake calcs'!N75-'uptake calcs'!N74,0) -> 0 | L158: 0.5318976456 | N158: 2 | P158: 0 | Q158: 13 | S158: 45 | U158: 54 | V158: 36 | W158: Year 2 | X158: Year 2
C159: 65 | F159: 2011-01-04 | G159: =MAX('uptake calcs'!M76-'uptake calcs'!M75,0) -> 0.2883905235 | I159: =MAX('uptake calcs'!L76-'uptake calcs'!L75,0) -> 0 | J159: =MAX('uptake calcs'!N76-'uptake calcs'!N75,0) -> 0 | L159: =SUM(G159:J159) -> 0.2883905235 | N159: =IF($U159>cutoff.corn.min,((IF($U159>cutoff.corn.max,cutoff.corn.max,$U159)+IF($V159<cutoff.corn.min,cutoff.corn.min,$V159))/2)-cutoff.corn.min,0) -> 0 | P159: =IF(AND(C159>=C$44,C159<=$C$55),N159+P158,0) -> 0 | Q159: =((U159+V159)/2)-32 -> 7 | S159: =AVERAGE(U159:V159) -> 39 | U159: 48 | V159: 30 | W159: Year 2 | X159: Year 2
C160: 66 | F160: 2011-01-05 | G160: =MAX('uptake calcs'!M77-'uptake calcs'!M76,0) -> 0.2275678987 | I160: =MAX('uptake calcs'!L77-'uptake calcs'!L76,0) -> 0 | J160: =MAX('uptake calcs'!N77-'uptake calcs'!N76,0) -> 0 | L160: 0.2275678987 | N160: 0 | P160: 0 | Q160: 5.5 | S160: 37.5 | U160: 43 | V160: 32 | W160: Year 2 | X160: Year 2
C161: 67 | F161: =F160+1 -> 2011-01-06 | G161: =MAX('uptake calcs'!M78-'uptake calcs'!M77,0) -> 0.2908741322 | I161: =MAX('uptake calcs'!L78-'uptake calcs'!L77,0) -> 0 | J161: =MAX('uptake calcs'!N78-'uptake calcs'!N77,0) -> 0 | L161: 0.2908741322 | N161: 0 | P161: 0 | Q161: 7 | S161: 39 | U161: 40 | V161: 38 | W161: Year 2 | X161: Year 2
C162: 68 | F162: 2011-01-07 | G162: =MAX('uptake calcs'!M79-'uptake calcs'!M78,0) -> 0.250428798 | I162: =MAX('uptake calcs'!L79-'uptake calcs'!L78,0) -> 0 | J162: =MAX('uptake calcs'!N79-'uptake calcs'!N78,0) -> 0 | L162: 0.250428798 | N162: 0 | P162: 0 | Q162: 6 | S162: 38 | U162: 39 | V162: 37 | W162: Year 2 | X162: Year 2
C163: 69 | F163: 2011-01-08 | G163: =MAX('uptake calcs'!M80-'uptake calcs'!M79,0) -> 0.2724528959 | I163: =MAX('uptake calcs'!L80-'uptake calcs'!L79,0) -> 0 | J163: =MAX('uptake calcs'!N80-'uptake calcs'!N79,0) -> 0 | L163: 0.2724528959 | N163: 0 | P163: 0 | Q163: 6.5 | S163: 38.5 | U163: 40 | V163: 37 | W163: Year 2 | X163: Year 2
C164: 70 | F164: 2011-01-09 | G164: =MAX('uptake calcs'!M81-'uptake calcs'!M80,0) -> 0.08407343772 | I164: =MAX('uptake calcs'!L81-'uptake calcs'!L80,0) -> 0 | J164: =MAX('uptake calcs'!N81-'uptake calcs'!N80,0) -> 0 | L164: 0.08407343772 | N164: 0 | P164: 0 | Q164: 2 | S164: 34 | U164: 39 | V164: 29 | W164: Year 2 | X164: Year 2
C165: 71 | F165: 2011-01-10 | G165: =MAX('uptake calcs'!M82-'uptake calcs'!M81,0) -> 0.1684883342 | I165: =MAX('uptake calcs'!L82-'uptake calcs'!L81,0) -> 0 | J165: =MAX('uptake calcs'!N82-'uptake calcs'!N81,0) -> 0 | L165: 0.1684883342 | N165: 0 | P165: 0 | Q165: 4 | S165: 36 | U165: 47 | V165: 25 | W165: Year 2 | X165: Year 2
C166: 72 | F166: 2011-01-11 | G166: =MAX('uptake calcs'!M83-'uptake calcs'!M82,0) -> 0.4019852409 | I166: =MAX('uptake calcs'!L83-'uptake calcs'!L82,0) -> 0 | J166: =MAX('uptake calcs'!N83-'uptake calcs'!N82,0) -> 0 | L166: 0.4019852409 | N166: 0 | P166: 0 | Q166: 9.5 | S166: 41.5 | U166: 47 | V166: 36 | W166: Year 2 | X166: Year 2
C167: 73 | F167: 2011-01-12 | G167: =MAX('uptake calcs'!M84-'uptake calcs'!M83,0) -> 0.661390072 | I167: =MAX('uptake calcs'!L84-'uptake calcs'!L83,0) -> 0 | J167: =MAX('uptake calcs'!N84-'uptake calcs'!N83,0) -> 0 | L167: 0.661390072 | N167: 3.5 | P167: 0 | Q167: 15.5 | S167: 47.5 | U167: 57 | V167: 38 | W167: Year 2 | X167: Year 2
C168: 74 | F168: 2011-01-13 | G168: =MAX('uptake calcs'!M85-'uptake calcs'!M84,0) -> 0.5383682338 | I168: =MAX('uptake calcs'!L85-'uptake calcs'!L84,0) -> 0 | J168: =MAX('uptake calcs'!N85-'uptake calcs'!N84,0) -> 0 | L168: 0.5383682338 | N168: 2.5 | P168: 0 | Q168: 12.5 | S168: 44.5 | U168: 55 | V168: 34 | W168: Year 2 | X168: Year 2
C169: 75 | F169: 2011-01-14 | G169: =MAX('uptake calcs'!M86-'uptake calcs'!M85,0) -> 0.6300915905 | I169: =MAX('uptake calcs'!L86-'uptake calcs'!L85,0) -> 0 | J169: =MAX('uptake calcs'!N86-'uptake calcs'!N85,0) -> 0 | L169: 0.6300915905 | N169: 1 | P169: 0 | Q169: 14.5 | S169: 46.5 | U169: 52 | V169: 41 | W169: Year 2 | X169: Year 2
C170: 76 | F170: 2011-01-15 | G170: =MAX('uptake calcs'!M87-'uptake calcs'!M86,0) -> 0.5700112656 | I170: =MAX('uptake calcs'!L87-'uptake calcs'!L86,0) -> 0 | J170: =MAX('uptake calcs'!N87-'uptake calcs'!N86,0) -> 0 | L170: 0.5700112656 | N170: 1.5 | P170: 0 | Q170: 13 | S170: 45 | U170: 53 | V170: 37 | W170: Year 2 | X170: Year 2
C171: 77 | F171: 2011-01-16 | G171: =MAX('uptake calcs'!M88-'uptake calcs'!M87,0) -> 0.7749411282 | I171: =MAX('uptake calcs'!L88-'uptake calcs'!L87,0) -> 0 | J171: =MAX('uptake calcs'!N88-'uptake calcs'!N87,0) -> 0 | L171: 0.7749411282 | N171: 1 | P171: 0 | Q171: 17.5 | S171: 49.5 | U171: 52 | V171: 47 | W171: Year 2 | X171: Year 2
C172: 78 | F172: 2011-01-17 | G172: =MAX('uptake calcs'!M89-'uptake calcs'!M88,0) -> 0.7611705169 | I172: =MAX('uptake calcs'!L89-'uptake calcs'!L88,0) -> 0 | J172: =MAX('uptake calcs'!N89-'uptake calcs'!N88,0) -> 0 | L172: 0.7611705169 | N172: 0 | P172: 0 | Q172: 17 | S172: 49 | U172: 50 | V172: 48 | W172: Year 2 | X172: Year 2
C173: 79 | F173: 2011-01-18 | G173: =MAX('uptake calcs'!M90-'uptake calcs'!M89,0) -> 0.8149327681 | I173: =MAX('uptake calcs'!L90-'uptake calcs'!L89,0) -> 0 | J173: =MAX('uptake calcs'!N90-'uptake calcs'!N89,0) -> 0 | L173: 0.8149327681 | N173: 4 | P173: 0 | Q173: 18 | S173: 50 | U173: 58 | V173: 42 | W173: Year 2 | X173: Year 2
C174: 80 | F174: 2011-01-19 | G174: =MAX('uptake calcs'!M91-'uptake calcs'!M90,0) -> 0.5484206311 | I174: =MAX('uptake calcs'!L91-'uptake calcs'!L90,0) -> 0 | J174: =MAX('uptake calcs'!N91-'uptake calcs'!N90,0) -> 0 | L174: 0.5484206311 | N174: 1 | P174: 0 | Q174: 12 | S174: 44 | U174: 52 | V174: 36 | W174: Year 2 | X174: Year 2
C175: 81 | F175: 2011-01-20 | G175: =MAX('uptake calcs'!M92-'uptake calcs'!M91,0) -> 0.645008329 | I175: =MAX('uptake calcs'!L92-'uptake calcs'!L91,0) -> 0 | J175: =MAX('uptake calcs'!N92-'uptake calcs'!N91,0) -> 0 | L175: 0.645008329 | N175: 5 | P175: 0 | Q175: 14 | S175: 46 | U175: 60 | V175: 32 | W175: Year 2 | X175: Year 2
C176: 82 | F176: 2011-01-21 | G176: =MAX('uptake calcs'!M93-'uptake calcs'!M92,0) -> 0.6972687793 | I176: =MAX('uptake calcs'!L93-'uptake calcs'!L92,0) -> 0 | J176: =MAX('uptake calcs'!N93-'uptake calcs'!N92,0) -> 0 | L176: 0.6972687793 | N176: 5.5 | P176: 0 | Q176: 15 | S176: 47 | U176: 61 | V176: 33 | W176: Year 2 | X176: Year 2
C177: 83 | F177: 2011-01-22 | G177: =MAX('uptake calcs'!M94-'uptake calcs'!M93,0) -> 0.6094706477 | I177: =MAX('uptake calcs'!L94-'uptake calcs'!L93,0) -> 0 | J177: =MAX('uptake calcs'!N94-'uptake calcs'!N93,0) -> 0 | L177: 0.6094706477 | N177: 2.5 | P177: 0 | Q177: 13 | S177: 45 | U177: 55 | V177: 35 | W177: Year 2 | X177: Year 2
C178: 84 | F178: 2011-01-23 | G178: =MAX('uptake calcs'!M95-'uptake calcs'!M94,0) -> 0.6617139287 | I178: =MAX('uptake calcs'!L95-'uptake calcs'!L94,0) -> 0 | J178: =MAX('uptake calcs'!N95-'uptake calcs'!N94,0) -> 0 | L178: 0.6617139287 | N178: 2.5 | P178: 0 | Q178: 14 | S178: 46 | U178: 55 | V178: 37 | W178: Year 2 | X178: Year 2
C179: 85 | F179: 2011-01-24 | G179: =MAX('uptake calcs'!M96-'uptake calcs'!M95,0) -> 0.8349441911 | I179: =MAX('uptake calcs'!L96-'uptake calcs'!L95,0) -> 0 | J179: =MAX('uptake calcs'!N96-'uptake calcs'!N95,0) -> 0 | L179: 0.8349441911 | N179: 6 | P179: 0 | Q179: 17.5 | S179: 49.5 | U179: 62 | V179: 37 | W179: Year 2 | X179: Year 2
C180: 86 | F180: 2011-01-25 | G180: =MAX('uptake calcs'!M97-'uptake calcs'!M96,0) -> 0.6258425652 | I180: =MAX('uptake calcs'!L97-'uptake calcs'!L96,0) -> 0 | J180: =MAX('uptake calcs'!N97-'uptake calcs'!N96,0) -> 0 | L180: 0.6258425652 | N180: 0 | P180: 0 | Q180: 13 | S180: 45 | U180: 48 | V180: 42 | W180: Year 2 | X180: Year 2
C181: 87 | F181: 2011-01-26 | G181: =MAX('uptake calcs'!M98-'uptake calcs'!M97,0) -> 0.6062606147 | I181: =MAX('uptake calcs'!L98-'uptake calcs'!L97,0) -> 0 | J181: =MAX('uptake calcs'!N98-'uptake calcs'!N97,0) -> 0 | L181: 0.6062606147 | N181: 0 | P181: 0 | Q181: 12.5 | S181: 44.5 | U181: 48 | V181: 41 | W181: Year 2 | X181: Year 2
C182: 88 | F182: 2011-01-27 | G182: =MAX('uptake calcs'!M99-'uptake calcs'!M98,0) -> 0.5371409301 | I182: =MAX('uptake calcs'!L99-'uptake calcs'!L98,0) -> 0 | J182: =MAX('uptake calcs'!N99-'uptake calcs'!N98,0) -> 0 | L182: 0.5371409301 | N182: 0 | P182: 0 | Q182: 11 | S182: 43 | U182: 47 | V182: 39 | W182: Year 2 | X182: Year 2
C183: 89 | F183: 2011-01-28 | G183: =MAX('uptake calcs'!M100-'uptake calcs'!M99,0) -> 0.4912530322 | I183: =MAX('uptake calcs'!L100-'uptake calcs'!L99,0) -> 0 | J183: =MAX('uptake calcs'!N100-'uptake calcs'!N99,0) -> 0 | L183: 0.4912530322 | N183: 0 | P183: 0 | Q183: 10 | S183: 42 | U183: 45 | V183: 39 | W183: Year 2 | X183: Year 2
C184: 90 | F184: 2011-01-29 | G184: =MAX('uptake calcs'!M101-'uptake calcs'!M100,0) -> 0.5436076959 | I184: =MAX('uptake calcs'!L101-'uptake calcs'!L100,0) -> 0 | J184: =MAX('uptake calcs'!N101-'uptake calcs'!N100,0) -> 0 | L184: 0.5436076959 | N184: 0 | P184: 0 | Q184: 11 | S184: 43 | U184: 47 | V184: 39 | W184: Year 2 | X184: Year 2
C185: 91 | F185: 2011-01-30 | G185: =MAX('uptake calcs'!M102-'uptake calcs'!M101,0) -> 0.846754241 | I185: =MAX('uptake calcs'!L102-'uptake calcs'!L101,0) -> 0 | J185: =MAX('uptake calcs'!N102-'uptake calcs'!N101,0) -> 0 | L185: 0.846754241 | N185: 2.5 | P185: 0 | Q185: 17 | S185: 49 | U185: 55 | V185: 43 | W185: Year 2 | X185: Year 2
C186: 92 | F186: 2011-01-31 | G186: =MAX('uptake calcs'!M103-'uptake calcs'!M102,0) -> 0.678138881 | I186: =MAX('uptake calcs'!L103-'uptake calcs'!L102,0) -> 0 | J186: =MAX('uptake calcs'!N103-'uptake calcs'!N102,0) -> 0 | L186: 0.678138881 | N186: 2 | P186: 0 | Q186: 13.5 | S186: 45.5 | U186: 54 | V186: 37 | W186: Year 2 | X186: Year 2
C187: 93 | F187: 2011-02-01 | G187: =MAX('uptake calcs'!M104-'uptake calcs'!M103,0) -> 0.5816489745 | I187: =MAX('uptake calcs'!L104-'uptake calcs'!L103,0) -> 0 | J187: =MAX('uptake calcs'!N104-'uptake calcs'!N103,0) -> 0 | L187: 0.5816489745 | N187: 2.5 | P187: 0 | Q187: 11.5 | S187: 43.5 | U187: 55 | V187: 32 | W187: Year 2 | X187: Year 2
C188: 94 | F188: 2011-02-02 | G188: =MAX('uptake calcs'!M105-'uptake calcs'!M104,0) -> 0.661902479 | I188: =MAX('uptake calcs'!L105-'uptake calcs'!L104,0) -> 0 | J188: =MAX('uptake calcs'!N105-'uptake calcs'!N104,0) -> 0 | L188: 0.661902479 | N188: 4.5 | P188: 0 | Q188: 13 | S188: 45 | U188: 59 | V188: 31 | W188: Year 2 | X188: Year 2
C189: 95 | F189: 2011-02-03 | G189: =MAX('uptake calcs'!M106-'uptake calcs'!M105,0) -> 0.6922661878 | I189: =MAX('uptake calcs'!L106-'uptake calcs'!L105,0) -> 0 | J189: =MAX('uptake calcs'!N106-'uptake calcs'!N105,0) -> 0 | L189: 0.6922661878 | N189: 5 | P189: 0 | Q189: 13.5 | S189: 45.5 | U189: 60 | V189: 31 | W189: Year 2 | X189: Year 2
C190: 96 | F190: 2011-02-04 | G190: =MAX('uptake calcs'!M107-'uptake calcs'!M106,0) -> 0.7750182051 | I190: =MAX('uptake calcs'!L107-'uptake calcs'!L106,0) -> 0 | J190: =MAX('uptake calcs'!N107-'uptake calcs'!N106,0) -> 0 | L190: 0.7750182051 | N190: 6 | P190: 0 | Q190: 15 | S190: 47 | U190: 62 | V190: 32 | W190: Year 2 | X190: Year 2
C191: 97 | F191: 2011-02-05 | G191: =MAX('uptake calcs'!M108-'uptake calcs'!M107,0) -> 0.9119036262 | I191: =MAX('uptake calcs'!L108-'uptake calcs'!L107,0) -> 0 | J191: =MAX('uptake calcs'!N108-'uptake calcs'!N107,0) -> 0 | L191: 0.9119036262 | N191: 7.5 | P191: 0 | Q191: 17.5 | S191: 49.5 | U191: 65 | V191: 34 | W191: Year 2 | X191: Year 2
C192: 98 | F192: 2011-02-06 | G192: =MAX('uptake calcs'!M109-'uptake calcs'!M108,0) -> 1.158094377 | I192: =MAX('uptake calcs'!L109-'uptake calcs'!L108,0) -> 0 | J192: =MAX('uptake calcs'!N109-'uptake calcs'!N108,0) -> 0 | L192: 1.158094377 | N192: 11 | P192: 0 | Q192: 22 | S192: 54 | U192: 72 | V192: 36 | W192: Year 2 | X192: Year 2
C193: 99 | F193: 2011-02-07 | G193: =MAX('uptake calcs'!M110-'uptake calcs'!M109,0) -> 1.117504276 | I193: =MAX('uptake calcs'!L110-'uptake calcs'!L109,0) -> 0 | J193: =MAX('uptake calcs'!N110-'uptake calcs'!N109,0) -> 0 | L193: 1.117504276 | N193: 9.5 | P193: 0 | Q193: 21 | S193: 53 | U193: 69 | V193: 37 | W193: Year 2 | X193: Year 2
C194: 100 | F194: 2011-02-08 | G194: =MAX('uptake calcs'!M111-'uptake calcs'!M110,0) -> 0.8053572087 | I194: =MAX('uptake calcs'!L111-'uptake calcs'!L110,0) -> 0 | J194: =MAX('uptake calcs'!N111-'uptake calcs'!N110,0) -> 0 | L194: 0.8053572087 | N194: 5 | P194: 0 | Q194: 15 | S194: 47 | U194: 60 | V194: 34 | W194: Year 2 | X194: Year 2
C195: 101 | F195: 2011-02-09 | G195: =MAX('uptake calcs'!M112-'uptake calcs'!M111,0) -> 0.7027489347 | I195: =MAX('uptake calcs'!L112-'uptake calcs'!L111,0) -> 0 | J195: =MAX('uptake calcs'!N112-'uptake calcs'!N111,0) -> 0 | L195: 0.7027489347 | N195: 5.5 | P195: 0 | Q195: 13 | S195: 45 | U195: 61 | V195: 29 | W195: Year 2 | X195: Year 2
C196: 102 | F196: 2011-02-10 | G196: =MAX('uptake calcs'!M113-'uptake calcs'!M112,0) -> 0.7890236192 | I196: =MAX('uptake calcs'!L113-'uptake calcs'!L112,0) -> 0 | J196: =MAX('uptake calcs'!N113-'uptake calcs'!N112,0) -> 0 | L196: 0.7890236192 | N196: 6 | P196: 0 | Q196: 14.5 | S196: 46.5 | U196: 62 | V196: 31 | W196: Year 2 | X196: Year 2
C197: 103 | F197: 2011-02-11 | G197: =MAX('uptake calcs'!M114-'uptake calcs'!M113,0) -> 0.8494399614 | I197: =MAX('uptake calcs'!L114-'uptake calcs'!L113,0) -> 0 | J197: =MAX('uptake calcs'!N114-'uptake calcs'!N113,0) -> 0 | L197: 0.8494399614 | N197: 7.5 | P197: 0 | Q197: 15.5 | S197: 47.5 | U197: 65 | V197: 30 | W197: Year 2 | X197: Year 2
C198: 104 | F198: 2011-02-12 | G198: =MAX('uptake calcs'!M115-'uptake calcs'!M114,0) -> 1.243975863 | I198: =MAX('uptake calcs'!L115-'uptake calcs'!L114,0) -> 0 | J198: =MAX('uptake calcs'!N115-'uptake calcs'!N114,0) -> 0 | L198: 1.243975863 | N198: 11.5 | P198: 0 | Q198: 22.5 | S198: 54.5 | U198: 73 | V198: 36 | W198: Year 2 | X198: Year 2
C199: 105 | F199: 2011-02-13 | G199: =MAX('uptake calcs'!M116-'uptake calcs'!M115,0) -> 1.06041515 | I199: =MAX('uptake calcs'!L116-'uptake calcs'!L115,0) -> 0 | J199: =MAX('uptake calcs'!N116-'uptake calcs'!N115,0) -> 0 | L199: 1.06041515 | N199: 9.5 | P199: 0 | Q199: 19 | S199: 51 | U199: 69 | V199: 33 | W199: Year 2 | X199: Year 2
C200: 106 | F200: 2011-02-14 | G200: =MAX('uptake calcs'!M117-'uptake calcs'!M116,0) -> 1.323979275 | I200: =MAX('uptake calcs'!L117-'uptake calcs'!L116,0) -> 0 | J200: =MAX('uptake calcs'!N117-'uptake calcs'!N116,0) -> 0 | L200: 1.323979275 | N200: 6.5 | P200: 0 | Q200: 23.5 | S200: 55.5 | U200: 63 | V200: 48 | W200: Year 2 | X200: Year 2
C201: 107 | F201: 2011-02-15 | G201: =MAX('uptake calcs'!M118-'uptake calcs'!M117,0) -> 1.337486659 | I201: =MAX('uptake calcs'!L118-'uptake calcs'!L117,0) -> 0 | J201: =MAX('uptake calcs'!N118-'uptake calcs'!N117,0) -> 0 | L201: 1.337486659 | N201: 6.5 | P201: 0 | Q201: 23.5 | S201: 55.5 | U201: 63 | V201: 48 | W201: Year 2 | X201: Year 2
C202: 108 | F202: 2011-02-16 | G202: =MAX('uptake calcs'!M119-'uptake calcs'!M118,0) -> 0.9470250541 | I202: =MAX('uptake calcs'!L119-'uptake calcs'!L118,0) -> 0 | J202: =MAX('uptake calcs'!N119-'uptake calcs'!N118,0) -> 0 | L202: 0.9470250541 | N202: 3.5 | P202: 0 | Q202: 16.5 | S202: 48.5 | U202: 57 | V202: 40 | W202: Year 2 | X202: Year 2
C203: 109 | F203: 2011-02-17 | G203: =MAX('uptake calcs'!M120-'uptake calcs'!M119,0) -> 0.8085962865 | I203: =MAX('uptake calcs'!L120-'uptake calcs'!L119,0) -> 0 | J203: =MAX('uptake calcs'!N120-'uptake calcs'!N119,0) -> 0 | L203: 0.8085962865 | N203: 0.5 | P203: 0 | Q203: 14 | S203: 46 | U203: 51 | V203: 41 | W203: Year 2 | X203: Year 2
C204: 110 | F204: 2011-02-18 | G204: =MAX('uptake calcs'!M121-'uptake calcs'!M120,0) -> 0.7258374774 | I204: =MAX('uptake calcs'!L121-'uptake calcs'!L120,0) -> 0 | J204: =MAX('uptake calcs'!N121-'uptake calcs'!N120,0) -> 0 | L204: 0.7258374774 | N204: 0 | P204: 0 | Q204: 12.5 | S204: 44.5 | U204: 48 | V204: 41 | W204: Year 2 | X204: Year 2
C205: 111 | F205: 2011-02-19 | G205: =MAX('uptake calcs'!M122-'uptake calcs'!M121,0) -> 0.7879626677 | I205: =MAX('uptake calcs'!L122-'uptake calcs'!L121,0) -> 0 | J205: =MAX('uptake calcs'!N122-'uptake calcs'!N121,0) -> 0 | L205: 0.7879626677 | N205: 2 | P205: 0 | Q205: 13.5 | S205: 45.5 | U205: 54 | V205: 37 | W205: Year 2 | X205: Year 2
C206: 112 | F206: 2011-02-20 | G206: =MAX('uptake calcs'!M123-'uptake calcs'!M122,0) -> 0.7039071688 | I206: =MAX('uptake calcs'!L123-'uptake calcs'!L122,0) -> 0 | J206: =MAX('uptake calcs'!N123-'uptake calcs'!N122,0) -> 0 | L206: 0.7039071688 | N206: 2.5 | P206: 0 | Q206: 12 | S206: 44 | U206: 55 | V206: 33 | W206: Year 2 | X206: Year 2
C207: 113 | F207: 2011-02-21 | G207: =MAX('uptake calcs'!M124-'uptake calcs'!M123,0) -> 0.7662327729 | I207: =MAX('uptake calcs'!L124-'uptake calcs'!L123,0) -> 0 | J207: =MAX('uptake calcs'!N124-'uptake calcs'!N123,0) -> 0 | L207: 0.7662327729 | N207: 2 | P207: 0 | Q207: 13 | S207: 45 | U207: 54 | V207: 36 | W207: Year 2 | X207: Year 2
C208: 114 | F208: 2011-02-22 | G208: =MAX('uptake calcs'!M125-'uptake calcs'!M124,0) -> 0.8590832565 | I208: =MAX('uptake calcs'!L125-'uptake calcs'!L124,0) -> 0 | J208: =MAX('uptake calcs'!N125-'uptake calcs'!N124,0) -> 0 | L208: 0.8590832565 | N208: 4 | P208: 0 | Q208: 14.5 | S208: 46.5 | U208: 58 | V208: 35 | W208: Year 2 | X208: Year 2
C209: 115 | F209: 2011-02-23 | G209: =MAX('uptake calcs'!M126-'uptake calcs'!M125,0) -> 0.7442937921 | I209: =MAX('uptake calcs'!L126-'uptake calcs'!L125,0) -> 0 | J209: =MAX('uptake calcs'!N126-'uptake calcs'!N125,0) -> 0 | L209: 0.7442937921 | N209: 4 | P209: 0 | Q209: 12.5 | S209: 44.5 | U209: 58 | V209: 31 | W209: Year 2 | X209: Year 2
C210: 116 | F210: 2011-02-24 | G210: =MAX('uptake calcs'!M127-'uptake calcs'!M126,0) -> 0.747675158 | I210: =MAX('uptake calcs'!L127-'uptake calcs'!L126,0) -> 0 | J210: =MAX('uptake calcs'!N127-'uptake calcs'!N126,0) -> 0 | L210: 0.747675158 | N210: 1.5 | P210: 0 | Q210: 12.5 | S210: 44.5 | U210: 53 | V210: 36 | W210: Year 2 | X210: Year 2
C211: 117 | F211: 2011-02-25 | G211: =MAX('uptake calcs'!M128-'uptake calcs'!M127,0) -> 0.8413518258 | I211: =MAX('uptake calcs'!L128-'uptake calcs'!L127,0) -> 0 | J211: =MAX('uptake calcs'!N128-'uptake calcs'!N127,0) -> 0 | L211: 0.8413518258 | N211: 1.5 | P211: 0 | Q211: 14 | S211: 46 | U211: 53 | V211: 39 | W211: Year 2 | X211: Year 2
C212: 118 | F212: 2011-02-26 | G212: =MAX('uptake calcs'!M129-'uptake calcs'!M128,0) -> 0.42222289 | I212: =MAX('uptake calcs'!L129-'uptake calcs'!L128,0) -> 0 | J212: =MAX('uptake calcs'!N129-'uptake calcs'!N128,0) -> 0 | L212: 0.42222289 | N212: 0 | P212: 0 | Q212: 7 | S212: 39 | U212: 48 | V212: 30 | W212: Year 2 | X212: Year 2
C213: 119 | F213: 2011-02-27 | G213: =MAX('uptake calcs'!M130-'uptake calcs'!M129,0) -> 0.6655501457 | I213: =MAX('uptake calcs'!L130-'uptake calcs'!L129,0) -> 0 | J213: =MAX('uptake calcs'!N130-'uptake calcs'!N129,0) -> 0 | L213: 0.6655501457 | N213: 3.5 | P213: 0 | Q213: 11 | S213: 43 | U213: 57 | V213: 29 | W213: Year 2 | X213: Year 2
C214: 120 | F214: 2011-02-28 | G214: =MAX('uptake calcs'!M131-'uptake calcs'!M130,0) -> 0.8506520487 | I214: =MAX('uptake calcs'!L131-'uptake calcs'!L130,0) -> 0 | J214: =MAX('uptake calcs'!N131-'uptake calcs'!N130,0) -> 0 | L214: 0.8506520487 | N214: 5.5 | P214: 0 | Q214: 14 | S214: 46 | U214: 61 | V214: 31 | W214: Year 2 | X214: Year 2
C215: 121 | F215: 2011-03-01 | G215: =MAX('uptake calcs'!M132-'uptake calcs'!M131,0) -> 0.824015481 | I215: =MAX('uptake calcs'!L132-'uptake calcs'!L131,0) -> 0 | J215: =MAX('uptake calcs'!N132-'uptake calcs'!N131,0) -> 0 | L215: 0.824015481 | N215: 4.5 | P215: 0 | Q215: 13.5 | S215: 45.5 | U215: 59 | V215: 32 | W215: Year 2 | X215: Year 2
C216: 122 | F216: 2011-03-02 | G216: =MAX('uptake calcs'!M133-'uptake calcs'!M132,0) -> 1.535435888 | I216: =MAX('uptake calcs'!L133-'uptake calcs'!L132,0) -> 0 | J216: =MAX('uptake calcs'!N133-'uptake calcs'!N132,0) -> 0 | L216: 1.535435888 | N216: 7.5 | P216: 0 | Q216: 25 | S216: 57 | U216: 65 | V216: 49 | W216: Year 2 | X216: Year 2
C217: 123 | F217: 2011-03-03 | G217: =MAX('uptake calcs'!M134-'uptake calcs'!M133,0) -> 1.361083451 | I217: =MAX('uptake calcs'!L134-'uptake calcs'!L133,0) -> 0 | J217: =MAX('uptake calcs'!N134-'uptake calcs'!N133,0) -> 0 | L217: 1.361083451 | N217: 8 | P217: 0 | Q217: 22 | S217: 54 | U217: 66 | V217: 42 | W217: Year 2 | X217: Year 2
C218: 124 | F218: 2011-03-04 | G218: =MAX('uptake calcs'!M135-'uptake calcs'!M134,0) -> 1.276348157 | I218: =MAX('uptake calcs'!L135-'uptake calcs'!L134,0) -> 0 | J218: =MAX('uptake calcs'!N135-'uptake calcs'!N134,0) -> 0 | L218: 1.276348157 | N218: 7.5 | P218: 0 | Q218: 20.5 | S218: 52.5 | U218: 65 | V218: 40 | W218: Year 2 | X218: Year 2
C219: 125 | F219: 2011-03-05 | G219: =MAX('uptake calcs'!M136-'uptake calcs'!M135,0) -> 1.503806022 | I219: =MAX('uptake calcs'!L136-'uptake calcs'!L135,0) -> 0 | J219: =MAX('uptake calcs'!N136-'uptake calcs'!N135,0) -> 0 | L219: 1.503806022 | N219: 9.5 | P219: 0 | Q219: 24 | S219: 56 | U219: 69 | V219: 43 | W219: Year 2 | X219: Year 2
C220: 126 | F220: 2011-03-06 | G220: =MAX('uptake calcs'!M137-'uptake calcs'!M136,0) -> 1.545348788 | I220: =MAX('uptake calcs'!L137-'uptake calcs'!L136,0) -> 0 | J220: =MAX('uptake calcs'!N137-'uptake calcs'!N136,0) -> 0 | L220: 1.545348788 | N220: 6.5 | P220: 0 | Q220: 24.5 | S220: 56.5 | U220: 62 | V220: 51 | W220: Year 2 | X220: Year 2
C221: 127 | F221: 2011-03-07 | G221: =MAX('uptake calcs'!M138-'uptake calcs'!M137,0) -> 1.364271957 | I221: =MAX('uptake calcs'!L138-'uptake calcs'!L137,0) -> 0 | J221: =MAX('uptake calcs'!N138-'uptake calcs'!N137,0) -> 0 | L221: 1.364271957 | N221: 4.5 | P221: 0 | Q221: 21.5 | S221: 53.5 | U221: 59 | V221: 48 | W221: Year 2 | X221: Year 2
C222: 128 | F222: 2011-03-08 | G222: =MAX('uptake calcs'!M139-'uptake calcs'!M138,0) -> 1.307614973 | I222: =MAX('uptake calcs'!L139-'uptake calcs'!L138,0) -> 0 | J222: =MAX('uptake calcs'!N139-'uptake calcs'!N138,0) -> 0 | L222: 1.307614973 | N222: 7.5 | P222: 0 | Q222: 20.5 | S222: 52.5 | U222: 65 | V222: 40 | W222: Year 2 | X222: Year 2
C223: 129 | F223: 2011-03-09 | G223: =MAX('uptake calcs'!M140-'uptake calcs'!M139,0) -> 1.378226189 | I223: =MAX('uptake calcs'!L140-'uptake calcs'!L139,0) -> 0 | J223: =MAX('uptake calcs'!N140-'uptake calcs'!N139,0) -> 0 | L223: =SUM(G223:J223) -> 1.378226189 | N223: =IF($U223>cutoff.corn.min,((IF($U223>cutoff.corn.max,cutoff.corn.max,$U223)+IF($V223<cutoff.corn.min,cutoff.corn.min,$V223))/2)-cutoff.corn.min,0) -> 8.5 | P223: =IF(AND(C223>=C$44,C223<=$C$55),N223+P222,0) -> 0 | Q223: =((U223+V223)/2)-32 -> 21.5 | S223: =AVERAGE(U223:V223) -> 53.5 | U223: 67 | V223: 40 | W223: Year 2 | X223: Year 2
C224: 130 | F224: 2011-03-10 | G224: =MAX('uptake calcs'!M141-'uptake calcs'!M140,0) -> 1.449467394 | I224: =MAX('uptake calcs'!L141-'uptake calcs'!L140,0) -> 0 | J224: =MAX('uptake calcs'!N141-'uptake calcs'!N140,0) -> 0 | L224: 1.449467394 | N224: 8.5 | P224: 0 | Q224: 22.5 | S224: 54.5 | U224: 67 | V224: 42 | W224: Year 2 | X224: Year 2
C225: 131 | F225: =F224+1 -> 2011-03-11 | G225: =MAX('uptake calcs'!M142-'uptake calcs'!M141,0) -> 1.196992327 | I225: =MAX('uptake calcs'!L142-'uptake calcs'!L141,0) -> 0 | J225: =MAX('uptake calcs'!N142-'uptake calcs'!N141,0) -> 0 | L225: 1.196992327 | N225: 6 | P225: 0 | Q225: 18.5 | S225: 50.5 | U225: 62 | V225: 39 | W225: Year 2 | X225: Year 2
C226: 132 | F226: 2011-03-12 | G226: =MAX('uptake calcs'!M143-'uptake calcs'!M142,0) -> 1.299070441 | I226: =MAX('uptake calcs'!L143-'uptake calcs'!L142,0) -> 0 | J226: =MAX('uptake calcs'!N143-'uptake calcs'!N142,0) -> 0 | L226: 1.299070441 | N226: 7 | P226: 0 | Q226: 20 | S226: 52 | U226: 64 | V226: 40 | W226: Year 2 | X226: Year 2
C227: 133 | F227: 2011-03-13 | G227: =MAX('uptake calcs'!M144-'uptake calcs'!M143,0) -> 1.434690274 | I227: =MAX('uptake calcs'!L144-'uptake calcs'!L143,0) -> 0 | J227: =MAX('uptake calcs'!N144-'uptake calcs'!N143,0) -> 0 | L227: 1.434690274 | N227: 8 | P227: 0 | Q227: 22 | S227: 54 | U227: 66 | V227: 42 | W227: Year 2 | X227: Year 2
C228: 134 | F228: 2011-03-14 | G228: =MAX('uptake calcs'!M145-'uptake calcs'!M144,0) -> 1.932557496 | I228: =MAX('uptake calcs'!L145-'uptake calcs'!L144,0) -> 0 | J228: =MAX('uptake calcs'!N145-'uptake calcs'!N144,0) -> 0 | L228: 1.932557496 | N228: 11.5 | P228: 0 | Q228: 29.5 | S228: 61.5 | U228: 72 | V228: 51 | W228: Year 2 | X228: Year 2
C229: 135 | F229: 2011-03-15 | G229: =MAX('uptake calcs'!M146-'uptake calcs'!M145,0) -> 1.842836829 | I229: =MAX('uptake calcs'!L146-'uptake calcs'!L145,0) -> 0 | J229: =MAX('uptake calcs'!N146-'uptake calcs'!N145,0) -> 0 | L229: 1.842836829 | N229: 11 | P229: 0 | Q229: 28 | S229: 60 | U229: 72 | V229: 48 | W229: Year 2 | X229: Year 2
C230: 136 | F230: 2011-03-16 | G230: =MAX('uptake calcs'!M147-'uptake calcs'!M146,0) -> 1.320967161 | I230: =MAX('uptake calcs'!L147-'uptake calcs'!L146,0) -> 0 | J230: =MAX('uptake calcs'!N147-'uptake calcs'!N146,0) -> 0 | L230: 1.320967161 | N230: 4.5 | P230: 0 | Q230: 20 | S230: 52 | U230: 59 | V230: 45 | W230: Year 2 | X230: Year 2
... 272 more rows

Sheet mineralization
Q3: mineralz.date.applic1 | T3: mineralz.date.applic2 | W3: mineralz.date.applic3 | Z3: mineralz.date.applic4 | AC3: mineralz.date.applic5 | AF3: mineralz.date.applic6 | AI3: mineralz.date.applic7 | AL3: mineralz.date.applic8 | AO3: mineralz.date.applic9 | AR3: mineralz.date.applic10 | AU3: mineralz.date.applic11 | AX3: mineralz.date.applic12 | BA3: mineralz.date.applic13 | BD3: mineralz.date.applic14 | BG3: mineralz.date.applic15
Q4: mineralz.material.applic1 | T4: mineralz.material.applic2 | W4: mineralz.material.applic3 | Z4: mineralz.material.applic4 | AC4: mineralz.material.applic5 | AF4: mineralz.material.applic6 | AI4: mineralz.material.applic7 | AL4: mineralz.material.applic8 | AO4: mineralz.material.applic9 | AR4: mineralz.material.applic10 | AU4: mineralz.material.applic11 | AX4: mineralz.material.applic12 | BA4: mineralz.material.applic13 | BD4: mineralz.material.applic14 | BG4: mineralz.material.applic15
Q5: mineralz.orgN.applic1 | R5: mineralz.NH4N.applic1 | S5: mineralz.TKN.applic1 | T5: mineralz.orgN.applic2 | U5: mineralz.NH4N.applic2 | V5: mineralz.TKN.applic2 | W5: mineralz.orgN.applic3 | X5: mineralz.NH4N.applic3 | Y5: mineralz.TKN.applic3 | Z5: mineralz.orgN.applic4 | AA5: mineralz.NH4N.applic4 | AB5: mineralz.TKN.applic4 | AC5: mineralz.orgN.applic5 | AD5: mineralz.NH4N.applic5 | AE5: mineralz.TKN.applic5 | AF5: mineralz.orgN.applic6 | AG5: mineralz.NH4N.applic6 | AH5: mineralz.TKN.applic6 | AI5: mineralz.orgN.applic7 | AJ5: mineralz.NH4N.applic7 | AK5: mineralz.TKN.applic7 | AL5: mineralz.orgN.applic8 | AM5: mineralz.NH4N.applic8 | AN5: mineralz.TKN.applic8 | AO5: mineralz.orgN.applic9 | AP5: mineralz.NH4N.applic9 | AQ5: mineralz.TKN.applic9 | AR5: mineralz.orgN.applic10 | AS5: mineralz.NH4N.applic10 | AT5: mineralz.TKN.applic10 | AU5: mineralz.orgN.applic11 | AV5: mineralz.NH4N.applic11 | AW5: mineralz.TKN.applic11 | AX5: mineralz.orgN.applic12 | AY5: mineralz.NH4N.applic12 | AZ5: mineralz.TKN.applic12 | BA5: mineralz.orgN.applic13 | BB5: mineralz.NH4N.applic13 | BC5: mineralz.TKN.applic13 | BD5: mineralz.orgN.applic14 | BE5: mineralz.NH4N.applic14 | BF5: mineralz.TKN.applic14 | BG5: mineralz.orgN.applic15 | BH5: mineralz.NH4N.applic15 | BI5: mineralz.TKN.applic15
B6: date of last crop harvest | C6: 2010-08-20 | E6: Organic Nitrogen Mineralization Calculator | Q6: organic N | R6: available N | S6: lbs/acre | T6: organic N | U6: available N | V6: lbs/acre | W6: organic N | X6: available N | Y6: lbs/acre | Z6: organic N | AA6: available N | AB6: lbs/acre | AC6: organic N | AD6: available N | AE6: lbs/acre | AF6: organic N | AG6: available N | AH6: lbs/acre | AI6: organic N | AJ6: available N | AK6: lbs/acre | AL6: organic N | AM6: available N | AN6: lbs/acre | AO6: organic N | AP6: available N | AQ6: lbs/acre | AR6: organic N | AS6: available N | AT6: lbs/acre | AU6: organic N | AV6: available N | AW6: lbs/acre | AX6: organic N | AY6: available N | AZ6: lbs/acre | BA6: organic N | BB6: available N | BC6: lbs/acre | BD6: organic N | BE6: available N | BF6: lbs/acre | BG6: organic N | BH6: available N | BI6: lbs/acre
B7: incorporation date | C7: =Q7 -> 2010-10-14 | O7: incorporation date: | Q7: 2010-10-14 | T7: 2011-02-03 | W7: 2011-06-14
O8: material: | Q8: Corral Solids | T8: Lagoon Water | W8: Lagoon Water
O9: lbs N/acre applied: | Q9: 200 | R9: 5 | T9: 60 | U9: 100 | W9: 30 | X9: 45
C10: day of season | D10: ='daily uptake'!E30 -> date | E10: ='daily uptake'!F30 -> crop and irrigation number | F10: cumulative uptake lbs/A to date | G10: N uptake lbs/A thru next event | I10: % lost | L10: Avail N all sources through next event | M10: Avail N applied this date | N10: All sources Org-N release lbs/A thru next event | O10: cumulative Org-N release lbs/A to date | Q10: N release lbs/A thru next event | R10: cumulative release lbs/A to date | S10: cumulative % release to date | T10: N release lbs/A thru next event | U10: cumulative release lbs/A to date | V10: cumulative % release to date | W10: N release lbs/A thru next event | X10: cumulative release lbs/A to date | Y10: cumulative % release to date | Z10: N release lbs/A thru next event | AA10: cumulative release lbs/A to date | AB10: cumulative % release to date | AC10: N release lbs/A thru next event | AD10: cumulative release lbs/A to date | AE10: cumulative % release to date | AF10: N release lbs/A thru next event | AG10: cumulative release lbs/A to date | AH10: cumulative % release to date | AI10: N release lbs/A thru next event | AJ10: cumulative release lbs/A to date | AK10: cumulative % release to date | AL10: N release lbs/A thru next event | AM10: cumulative release lbs/A to date | AN10: cumulative % release to date | AO10: N release lbs/A thru next event | AP10: cumulative release lbs/A to date | AQ10: cumulative % release to date | AR10: N release lbs/A thru next event | AS10: cumulative release lbs/A to date | AT10: cumulative % release to date | AU10: N release lbs/A thru next event | AV10: cumulative release lbs/A to date | AW10: cumulative % release to date | AX10: N release lbs/A thru next event | AY10: cumulative release lbs/A to date | AZ10: cumulative % release to date | BA10: N release lbs/A thru next event | BB10: cumulative release lbs/A to date | BC10: cumulative % release to date | BD10: N release lbs/A thru next event | BE10: cumulative release lbs/A to date | BF10: cumulative % release to date | BG10: N release lbs/A thru next event | BH10: cumulative release lbs/A to date | BI10: cumulative % release to date
C11: =IF(D11>0,D11-$C$6+1,"") -> 56 | D11: 2010-10-14 | E11: winter crop preplant 1 | J11: =(O11-#REF!)+M11-(F11-#REF!)+#REF!-(#REF!*I11) ->  | L11: =SUM(M11,N11) -> 5 | M11: =AvailN(D11) -> 5 | N11: =SUM(Q11,T11,W11,Z11,AC11,AF11,AI11,AL11,AO11,AR11,AU11,AX11,BA11,BD11) -> 0 | O11: =SUM(R11,U11,X11,AA11,AD11,AG11,AJ11,AM11,AP11,AS11,AV11,AY11,BB11,BE11) -> 0.7036614259 | R11: =Q$9*S11 -> 0.7036614259 | S11: 0.00351830713 | U11: =T$9*V11 -> 0 | X11: =W$9*Y11 -> 0 | AA11: =Z$9*AB11 -> 0 | AD11: =AC$9*AE11 -> 0 | AG11: =AF$9*AH11 -> 0 | AJ11: =AI$9*AK11 -> 0 | AM11: =AL$9*AN11 -> 0 | AP11: =AO$9*AQ11 -> 0 | AS11: =AR$9*AT11 -> 0 | AV11: =AU$9*AW11 -> 0 | AY11: =AX$9*AZ11 -> 0 | BB11: =BA$9*BC11 -> 0 | BE11: =BD$9*BF11 -> 0 | BH11: =BG$9*BI11 -> 0
E12: winter crop preirrig | I12: 0.4 | J12: =(O12-O11)+M12-(F12-F11)+J11-(J11*I12) ->  | L12: =SUM(M12,N12) -> 0 | M12: 0 | N12: 0 | O12: =SUM(R12,U12,X12,AA12,AD12,AG12,AJ12,AM12,AP12,AS12,AV12,AY12,BB12,BE12) -> 0 | R12: =Q$9*S12 -> 0 | U12: 0 | X12: 0 | AA12: 0 | AD12: 0 | AG12: 0 | AJ12: 0 | AM12: 0 | AP12: 0 | AS12: 0 | AV12: 0 | AY12: 0 | BB12: 0 | BE12: 0 | BH12: 0
C13: 74 | D13: ='daily uptake'!E31 -> 2010-11-01 | E13: winter crop planting | F13: ='daily uptake'!I31 -> 0 | G13: ='daily uptake'!G31 -> 47.45478838 | J13: =(O13-O12)+M13-(F13-F12)+J12-(J12*I13) ->  | L13: 81.00888849 | M13: 0 | N13: 81.00888849 | O13: 13.8685104 | Q13: =R19 -> 80.74254337 | R13: 13.8685104 | S13: 0.06934255199 | T13: =U19 -> 0.266345121 | U13: 0 | W13: =X19 -> 0 | X13: 0 | Z13: =AA19 -> 0 | AA13: 0 | AC13: =AD19 -> 0 | AD13: 0 | AF13: =AG19 -> 0 | AG13: 0 | AI13: =AJ19 -> 0 | AJ13: 0 | AL13: =AM19 -> 0 | AM13: 0 | AO13: =AP19 -> 0 | AP13: 0 | AR13: =AS19 -> 0 | AS13: 0 | AU13: =AV19 -> 0 | AV13: 0 | AX13: =AY19 -> 0 | AY13: 0 | BA13: =BB19 -> 0 | BB13: 0 | BD13: =BE19 -> 0 | BE13: 0 | BG13: =BH19 -> 0 | BH13: 0
C14: 90 | D14: ='daily uptake'!E32 -> 2010-11-17 | F14: ='daily uptake'!I32 -> 7.045645135 | G14: ='daily uptake'!G32 -> 0 | L14: 0 | M14: 0 | N14: 0 | O14: 27.03496197 | R14: 27.03496197 | S14: 0.1351748099 | U14: 0 | X14: 0 | AA14: 0 | AD14: 0 | AG14: 0 | AJ14: 0 | AM14: 0 | AP14: 0 | AS14: 0 | AV14: 0 | AY14: 0 | BB14: 0 | BE14: 0 | BH14: 0
C15: 106 | D15: ='daily uptake'!E33 -> 2010-12-03 | F15: ='daily uptake'!I33 -> 12.20479109 | G15: ='daily uptake'!G33 -> 0 | L15: 0 | M15: 0 | N15: 0 | O15: 40.29651365 | R15: 40.29651365 | S15: 0.2014825682 | U15: 0 | X15: 0 | AA15: 0 | AD15: 0 | AG15: 0 | AJ15: 0 | AM15: 0 | AP15: 0 | AS15: 0 | AV15: 0 | AY15: 0 | BB15: 0 | BE15: 0 | BH15: 0
C16: 122 | D16: ='daily uptake'!E34 -> 2010-12-19 | F16: ='daily uptake'!I34 -> 21.79909164 | G16: ='daily uptake'!G34 -> 0 | L16: 0 | M16: 0 | N16: 0 | O16: 51.87259962 | R16: 51.87259962 | S16: 0.2593629981 | U16: 0 | X16: 0 | AA16: 0 | AD16: 0 | AG16: 0 | AJ16: 0 | AM16: 0 | AP16: 0 | AS16: 0 | AV16: 0 | AY16: 0 | BB16: 0 | BE16: 0 | BH16: 0
C17: 138 | D17: ='daily uptake'!E35 -> 2011-01-04 | F17: ='daily uptake'!I35 -> 31.15024562 | G17: ='daily uptake'!G35 -> 0 | L17: 0 | M17: 0 | N17: 0 | O17: 62.88710761 | R17: 62.88710761 | S17: 0.3144355381 | U17: 0 | X17: 0 | AA17: 0 | AD17: 0 | AG17: 0 | AJ17: 0 | AM17: 0 | AP17: 0 | AS17: 0 | AV17: 0 | AY17: 0 | BB17: 0 | BE17: 0 | BH17: 0
C18: 154 | D18: ='daily uptake'!E36 -> 2011-01-20 | F18: ='daily uptake'!I36 -> 38.43383309 | G18: ='daily uptake'!G36 -> 0 | L18: 0 | M18: 0 | N18: 0 | O18: 72.77050477 | R18: 72.77050477 | S18: 0.3638525239 | U18: 0 | X18: 0 | AA18: 0 | AD18: 0 | AG18: 0 | AJ18: 0 | AM18: 0 | AP18: 0 | AS18: 0 | AV18: 0 | AY18: 0 | BB18: 0 | BE18: 0 | BH18: 0
C19: 168 | D19: ='daily uptake'!E37 -> 2011-02-03 | E19: winter crop 1st | F19: ='daily uptake'!I37 -> 47.45478838 | G19: ='daily uptake'!G37 -> 36.18322219 | I19: 0.4 | L19: 124.4134587 | M19: 100 | N19: 24.4134587 | O19: 81.00888849 | Q19: =IF($G22>0,R22-R19,R24-R19) -> 14.95083347 | R19: 80.74254337 | S19: 0.4037127168 | T19: =IF($G22>0,U22-U19,U24-U19) -> 9.462625238 | U19: 0.266345121 | V19: 0.004439085351 | W19: =IF($G22>0,X22-X19,X24-X19) -> 0 | X19: 0 | Z19: =IF($G22>0,AA22-AA19,AA24-AA19) -> 0 | AA19: 0 | AC19: =IF($G22>0,AD22-AD19,AD24-AD19) -> 0 | AD19: 0 | AF19: =IF($G22>0,AG22-AG19,AG24-AG19) -> 0 | AG19: 0 | AI19: =IF($G22>0,AJ22-AJ19,AJ24-AJ19) -> 0 | AJ19: 0 | AL19: =IF($G22>0,AM22-AM19,AM24-AM19) -> 0 | AM19: 0 | AO19: =IF($G22>0,AP22-AP19,AP24-AP19) -> 0 | AP19: 0 | AR19: =IF($G22>0,AS22-AS19,AS24-AS19) -> 0 | AS19: 0 | AU19: =IF($G22>0,AV22-AV19,AV24-AV19) -> 0 | AV19: 0 | AX19: =IF($G22>0,AY22-AY19,AY24-AY19) -> 0 | AY19: 0 | BA19: =IF($G22>0,BB22-BB19,BB24-BB19) -> 0 | BB19: 0 | BD19: =IF($G22>0,BE22-BE19,BE24-BE19) -> 0 | BE19: 0 | BG19: =IF($G22>0,BH22-BH19,BH24-BH19) -> 0 | BH19: 0
C20: 180 | D20: ='daily uptake'!E38 -> 2011-02-15 | F20: ='daily uptake'!I38 -> 58.88451506 | G20: ='daily uptake'!G38 -> 0 | L20: 0 | M20: 0 | N20: 0 | O20: 90.16964888 | R20: 86.64815302 | S20: 0.4332407651 | U20: 3.521495854 | V20: 0.05869159756 | X20: 0 | AA20: 0 | AD20: 0 | AG20: 0 | AJ20: 0 | AM20: 0 | AP20: 0 | AS20: 0 | AV20: 0 | AY20: 0 | BB20: 0 | BE20: 0 | BH20: 0
C21: 192 | D21: ='daily uptake'!E39 -> 2011-02-27 | F21: ='daily uptake'!I39 -> 68.57619007 | G21: ='daily uptake'!G39 -> 0 | J21: =(O21-O20)+M21-(F21-F20)+J20-(J20*I21) ->  | L21: 0 | M21: 0 | N21: 0 | O21: 98.36726339 | R21: 91.60304042 | S21: 0.4580152021 | U21: 6.764222978 | V21: 0.1127370496 | X21: 0 | AA21: 0 | AD21: 0 | AG21: 0 | AJ21: 0 | AM21: 0 | AP21: 0 | AS21: 0 | AV21: 0 | AY21: 0 | BB21: 0 | BE21: 0 | BH21: 0
C22: 204 | D22: ='daily uptake'!E40 -> 2011-03-11 | E22: winter crop 2nd | F22: ='daily uptake'!I40 -> 83.63801057 | G22: ='daily uptake'!G40 -> 54.42451723 | I22: 0.4 | J22: =(O22-O21)+M22-(F22-F21)+J21-(J21*I22) ->  | L22: 18.44356145 | M22: 0 | N22: 18.44356145 | O22: 105.4223472 | Q22: =IF($G23>0,R24-R22,R23-R22) -> 9.177079064 | R22: 95.69337683 | S22: 0.4784668842 | T22: =IF($G23>0,U24-U22,U23-U22) -> 9.266482391 | U22: 9.728970359 | V22: 0.162149506 | W22: =IF($G23>0,X24-X22,X23-X22) -> 0 | X22: 0 | Z22: =IF($G23>0,AA24-AA22,AA23-AA22) -> 0 | AA22: 0 | AC22: =IF($G23>0,AD24-AD22,AD23-AD22) -> 0 | AD22: 0 | AF22: =IF($G23>0,AG24-AG22,AG23-AG22) -> 0 | AG22: 0 | AI22: =IF($G23>0,AJ24-AJ22,AJ23-AJ22) -> 0 | AJ22: 0 | AL22: =IF($G23>0,AM24-AM22,AM23-AM22) -> 0 | AM22: 0 | AO22: =IF($G23>0,AP24-AP22,AP23-AP22) -> 0 | AP22: 0 | AR22: =IF($G23>0,AS24-AS22,AS23-AS22) -> 0 | AS22: 0 | AU22: =IF($G23>0,AV24-AV22,AV23-AV22) -> 0 | AV22: 0 | AX22: =IF($G23>0,AY24-AY22,AY23-AY22) -> 0 | AY22: 0 | BA22: =IF($G23>0,BB24-BB22,BB23-BB22) -> 0 | BB22: 0 | BD22: =IF($G23>0,BE24-BE22,BE23-BE22) -> 0 | BE22: 0 | BG22: =IF($G23>0,BH24-BH22,BH23-BH22) -> 0 | BH22: 0
C23: 242 | D23: ='daily uptake'!E41 -> 2011-04-18 | E23: winter crop 3rd | F23: ='daily uptake'!I41 -> 0 | G23: ='daily uptake'!G41 -> 0 | J23: =(O23-O22)+M23-(F23-F22)+J22-(J22*I23) ->  | L23: 0 | M23: 0 | N23: =SUM(Q23,T23,W23,Z23,AC23,AF23,AI23,AL23,AO23,AR23,AU23,AX23,BA23,BD23) -> 0 | O23: 123.8659086 | Q23: =IF($G23>0,R24-R23,0) -> 0 | R23: 104.8704559 | S23: 0.5243522795 | T23: =IF($G23>0,U24-U23,0) -> 0 | U23: 18.99545275 | V23: 0.3165908792 | W23: =IF($G23>0,X24-X23,0) -> 0 | X23: 0 | Z23: =IF($G23>0,AA24-AA23,0) -> 0 | AA23: 0 | AC23: =IF($G23>0,AD24-AD23,0) -> 0 | AD23: 0 | AF23: =IF($G23>0,AG24-AG23,0) -> 0 | AG23: 0 | AI23: =IF($G23>0,AJ24-AJ23,0) -> 0 | AJ23: 0 | AL23: =IF($G23>0,AM24-AM23,0) -> 0 | AM23: 0 | AO23: =IF($G23>0,AP24-AP23,0) -> 0 | AP23: 0 | AR23: =IF($G23>0,AS24-AS23,0) -> 0 | AS23: 0 | AU23: =IF($G23>0,AV24-AV23,0) -> 0 | AV23: 0 | AX23: =IF($G23>0,AY24-AY23,0) -> 0 | AY23: 0 | BA23: =IF($G23>0,BB24-BB23,0) -> 0 | BB23: 0 | BD23: =IF($G23>0,BE24-BE23,0) -> 0 | BE23: 0 | BG23: =IF($G23>0,BH24-BH23,0) -> 0 | BH23: 0
C24: 242 | D24: ='daily uptake'!E42 -> 2011-04-18 | E24: winter crop harvest | F24: ='daily uptake'!I42 -> 138.0625278 | G24: ='daily uptake'!G42 -> 0 | L24: 12.34119562 | M24: 0 | N24: =SUM(Q24,T24,W24,Z24,AC24,AF24,AI24,AL24,AO24,AR24,AU24,AX24,BA24,BD24) -> 12.34119562 | O24: 123.8659086 | Q24: =R28-R24 -> 5.309012495 | R24: 104.8704559 | S24: 0.5243522795 | T24: =U28-U24 -> 7.032183128 | U24: 18.99545275 | V24: 0.3165908792 | W24: =X28-X24 -> 0 | X24: 0 | Z24: =AA28-AA24 -> 0 | AA24: 0 | AC24: =AD28-AD24 -> 0 | AD24: 0 | AF24: =AG28-AG24 -> 0 | AG24: 0 | AI24: =AJ28-AJ24 -> 0 | AJ24: 0 | AL24: =AM28-AM24 -> 0 | AM24: 0 | AO24: =AP28-AP24 -> 0 | AP24: 0 | AR24: =AS28-AS24 -> 0 | AS24: 0 | AU24: =AV28-AV24 -> 0 | AV24: 0 | AX24: =AY28-AY24 -> 0 | AY24: 0 | BA24: =BB28-BB24 -> 0 | BB24: 0 | BD24: =BE28-BE24 -> 0 | BE24: 0 | BG24: =BH28-BH24 -> 0 | BH24: 0
L25: 0 | M25: 0 | N25: 0 | O25: 0 | R25: 0 | U25: 0 | X25: 0 | AA25: 0 | AD25: 0 | AG25: 0 | AJ25: 0 | AM25: 0 | AP25: 0 | AS25: 0 | AV25: 0 | AY25: 0 | BB25: 0 | BE25: 0 | BH25: 0
C26: =IF(D26>0,D26-$C$6+1,"") ->  | E26: corn preplant | L26: 0 | M26: 0 | N26: 0 | O26: 0 | R26: 0 | U26: 0 | X26: 0 | AA26: 0 | AD26: 0 | AG26: 0 | AJ26: 0 | AM26: 0 | AP26: 0 | AS26: 0 | AV26: 0 | AY26: 0 | BB26: 0 | BE26: 0 | BH26: 0
C27: 255 | D27: 2011-05-01 | E27: corn preirrig | I27: 0.5 | L27: 0 | M27: 0 | N27: 0 | O27: 130.0799753 | R27: 107.7268675 | S27: 0.5386343375 | U27: =T$9*V27 -> 22.35310781 | V27: 0.3725517968 | X27: 0 | AA27: 0 | AD27: 0 | AG27: 0 | AJ27: 0 | AM27: 0 | AP27: 0 | AS27: 0 | AV27: 0 | AY27: 0 | BB27: 0 | BE27: 0 | BH27: 0
C28: 269 | D28: ='daily uptake'!E44 -> 2011-05-15 | E28: corn planting | F28: ='daily uptake'!I44 -> 0 | G28: ='daily uptake'!G44 -> 2.53310207 | I28: 0 | L28: 13.53804824 | M28: 0 | N28: 13.53804824 | O28: 136.2071043 | Q28: =R29-R28 -> 5.302084012 | R28: 110.1794684 | S28: 0.550897342 | T28: =U29-U28 -> 7.906663153 | U28: 26.02763588 | V28: 0.4337939313 | W28: =X29-X28 -> 0.3293010732 | X28: 0 | Z28: =AA29-AA28 -> 0 | AA28: 0 | AC28: =AD29-AD28 -> 0 | AD28: 0 | AF28: =AG29-AG28 -> 0 | AG28: 0 | AI28: =AJ29-AJ28 -> 0 | AJ28: 0 | AL28: =AM29-AM28 -> 0 | AM28: 0 | AO28: =AP29-AP28 -> 0 | AP28: 0 | AR28: =AS29-AS28 -> 0 | AS28: 0 | AU28: =AV29-AV28 -> 0 | AV28: 0 | AX28: =AY29-AY28 -> 0 | AY28: 0 | BA28: =BB29-BB28 -> 0 | BB28: 0 | BD28: =BE29-BE28 -> 0 | BE28: 0 | BG28: =BH29-BH28 -> 0 | BH28: 0
C29: 299 | D29: ='daily uptake'!E45 -> 2011-06-14 | E29: corn 1st | F29: ='daily uptake'!I45 -> 2.53310207 | G29: ='daily uptake'!G45 -> 14.90739036 | I29: 0.4 | L29: 52.27281362 | M29: 45 | N29: 7.272813621 | O29: 149.7451525 | Q29: =R30-R29 -> 1.767866374 | R29: 115.4815524 | S29: 0.577407762 | T29: 2.51580436 | U29: 33.93429903 | V29: 0.5655716505 | W29: 2.989142887 | X29: 0.3293010732 | Y29: 0.01097670244 | Z29: 0 | AA29: 0 | AC29: 0 | AD29: 0 | AF29: 0 | AG29: 0 | AI29: 0 | AJ29: 0 | AL29: 0 | AM29: 0 | AO29: 0 | AP29: 0 | AR29: 0 | AS29: 0 | AU29: 0 | AV29: 0 | AX29: 0 | AY29: 0 | BA29: 0 | BB29: 0 | BD29: 0 | BE29: 0 | BG29: 0 | BH29: 0
C30: 309 | D30: ='daily uptake'!E46 -> 2011-06-24 | E30: corn 2nd | F30: ='daily uptake'!I46 -> 17.44049243 | G30: ='daily uptake'!G46 -> 16.55142949 | I30: 0.4 | L30: 7.22459497 | M30: 0 | N30: 7.22459497 | O30: 157.0179661 | Q30: 1.658891984 | R30: 117.2494188 | S30: 0.5862470939 | T30: 2.552652454 | U30: 36.45010339 | V30: 0.6075017232 | W30: 3.013050532 | X30: 3.31844396 | Y30: 0.1106147987 | Z30: 0 | AA30: 0 | AC30: 0 | AD30: 0 | AF30: 0 | AG30: 0 | AI30: 0 | AJ30: 0 | AL30: 0 | AM30: 0 | AO30: 0 | AP30: 0 | AR30: 0 | AS30: 0 | AU30: 0 | AV30: 0 | AX30: 0 | AY30: 0 | BA30: 0 | BB30: 0 | BD30: 0 | BE30: 0 | BG30: 0 | BH30: 0
C31: 319 | D31: ='daily uptake'!E47 -> 2011-07-04 | E31: corn 3rd | F31: ='daily uptake'!I47 -> 33.99192191 | G31: ='daily uptake'!G47 -> 71.22985223 | I31: 0.4 | L31: 6.994042058 | M31: 0 | N31: 6.994042058 | O31: 164.2425611 | Q31: 1.972819799 | R31: 118.9083108 | S31: 0.5945415538 | T31: 2.311471125 | U31: 39.00275584 | V31: 0.6500459307 | W31: 2.709751133 | X31: 6.331494492 | Y31: 0.2110498164 | Z31: 0 | AA31: 0 | AC31: 0 | AD31: 0 | AF31: 0 | AG31: 0 | AI31: 0 | AJ31: 0 | AL31: 0 | AM31: 0 | AO31: 0 | AP31: 0 | AR31: 0 | AS31: 0 | AU31: 0 | AV31: 0 | AX31: 0 | AY31: 0 | BA31: 0 | BB31: 0 | BD31: 0 | BE31: 0 | BG31: 0 | BH31: 0
C32: 329 | D32: ='daily uptake'!E48 -> 2011-07-14 | E32: corn 4th | F32: ='daily uptake'!I48 -> 105.2217741 | G32: ='daily uptake'!G48 -> 83.86520767 | I32: 0.4 | L32: 6.755932961 | M32: 0 | N32: 6.755932961 | O32: 171.2366032 | Q32: 1.98858693 | R32: 120.8811306 | S32: 0.6044056528 | T32: 2.202800543 | U32: 41.31422697 | V32: 0.6885704495 | W32: 2.564545487 | X32: 9.041245626 | Y32: 0.3013748542 | Z32: 0 | AA32: 0 | AC32: 0 | AD32: 0 | AF32: 0 | AG32: 0 | AI32: 0 | AJ32: 0 | AL32: 0 | AM32: 0 | AO32: 0 | AP32: 0 | AR32: 0 | AS32: 0 | AU32: 0 | AV32: 0 | AX32: 0 | AY32: 0 | BA32: 0 | BB32: 0 | BD32: 0 | BE32: 0 | BG32: 0 | BH32: 0
C33: 339 | D33: ='daily uptake'!E49 -> 2011-07-24 | E33: corn 5th | F33: ='daily uptake'!I49 -> 189.0869818 | G33: ='daily uptake'!G49 -> 11.15923466 | I33: 0.4 | L33: 5.895699544 | M33: 0 | N33: 5.895699544 | O33: =SUM(R33,U33,X33,AA33,AD33,AG33,AJ33,AM33,AP33,AS33,AV33,AY33,BB33,BE33) -> 177.9925361 | Q33: 1.990280255 | R33: 122.8697175 | S33: 0.6143485875 | T33: 1.811034073 | U33: 43.51702751 | V33: 0.7252837919 | W33: 2.094385216 | X33: 11.60579111 | Y33: 0.3868597037 | Z33: 0 | AA33: 0 | AC33: 0 | AD33: 0 | AF33: 0 | AG33: 0 | AI33: 0 | AJ33: 0 | AL33: 0 | AM33: 0 | AO33: 0 | AP33: 0 | AR33: 0 | AS33: 0 | AU33: 0 | AV33: 0 | AX33: 0 | AY33: 0 | BA33: 0 | BB33: 0 | BD33: 0 | BE33: 0 | BG33: 0 | BH33: 0
C34: 349 | D34: ='daily uptake'!E50 -> 2011-08-03 | E34: corn 6th | F34: ='daily uptake'!I50 -> 200.2462165 | G34: ='daily uptake'!G50 -> 0 | I34: 0.4 | L34: 5.287431179 | M34: 0 | N34: 5.287431179 | O34: 183.8882357 | Q34: =IF($G35=0,R$39-R34,R35-R34) -> 2.081535715 | R34: 124.8599977 | S34: 0.6242999887 | T34: =IF($G35=0,U$39-U34,U35-U34) -> 1.491399257 | U34: 45.32806159 | V34: 0.7554676931 | W34: =IF($G35=0,X$39-X34,X35-X34) -> 1.714496207 | X34: 13.70017633 | Y34: 0.4566725443 | Z34: =IF($G35=0,AA$39-AA34,AA35-AA34) -> 0 | AA34: 0 | AC34: =IF($G35=0,AD$39-AD34,AD35-AD34) -> 0 | AD34: 0 | AF34: =IF($G35=0,AG$39-AG34,AG35-AG34) -> 0 | AG34: 0 | AI34: =IF($G35=0,AJ$39-AJ34,AJ35-AJ34) -> 0 | AJ34: 0 | AL34: =IF($G35=0,AM$39-AM34,AM35-AM34) -> 0 | AM34: 0 | AO34: =IF($G35=0,AP$39-AP34,AP35-AP34) -> 0 | AP34: 0 | AR34: =IF($G35=0,AS$39-AS34,AS35-AS34) -> 0 | AS34: 0 | AU34: =IF($G35=0,AV$39-AV34,AV35-AV34) -> 0 | AV34: 0 | AX34: =IF($G35=0,AY$39-AY34,AY35-AY34) -> 0 | AY34: 0 | BA34: =IF($G35=0,BB$39-BB34,BB35-BB34) -> 0 | BB34: 0 | BD34: =IF($G35=0,BE$39-BE34,BE35-BE34) -> 0 | BE34: 0 | BG34: =IF($G35=0,BH$39-BH34,BH35-BH34) -> 0 | BH34: 0
C35: 359 | D35: ='daily uptake'!E51 -> 2011-08-13 | E35: corn 7th | F35: ='daily uptake'!I51 -> 200.2462165 | G35: ='daily uptake'!G51 -> 20.8622092 | I35: 0.4 | L35: 5.02271295 | M35: 0 | N35: 5.02271295 | O35: 189.1756668 | Q35: =IF($G36=0,R$39-R35,R36-R35) -> 2.227339141 | R35: 126.9415335 | S35: 0.6347076673 | T35: 1.304193002 | U35: 46.81946084 | V35: 0.7803243474 | W35: 1.491180807 | X35: 15.41467253 | Y35: 0.5138224178 | Z35: 0 | AA35: 0 | AC35: 0 | AD35: 0 | AF35: 0 | AG35: 0 | AI35: 0 | AJ35: 0 | AL35: 0 | AM35: 0 | AO35: 0 | AP35: 0 | AR35: 0 | AS35: 0 | AU35: 0 | AV35: 0 | AX35: 0 | AY35: 0 | BA35: 0 | BB35: 0 | BD35: 0 | BE35: 0 | BG35: 0 | BH35: 0
C36: 369 | D36: ='daily uptake'!E52 -> 2011-08-23 | E36: corn 8th | F36: ='daily uptake'!I52 -> 221.1084257 | G36: ='daily uptake'!G52 -> 24.52012281 | I36: 0.2 | L36: 2.967023667 | M36: 0 | N36: 2.967023667 | O36: 194.1983798 | Q36: =IF($G37=0,R$39-R36,R37-R36) -> 1.382442165 | R36: 129.1688726 | S36: 0.645844363 | T36: 0.740953402 | U36: 48.12365385 | V36: 0.8020608974 | W36: 0.8436281001 | X36: 16.90585334 | Y36: 0.5635284447 | Z36: 0 | AA36: 0 | AC36: 0 | AD36: 0 | AF36: 0 | AG36: 0 | AI36: 0 | AJ36: 0 | AL36: 0 | AM36: 0 | AO36: 0 | AP36: 0 | AR36: 0 | AS36: 0 | AU36: 0 | AV36: 0 | AX36: 0 | AY36: 0 | BA36: 0 | BB36: 0 | BD36: 0 | BE36: 0 | BG36: 0 | BH36: 0
C37: 375 | D37: ='daily uptake'!E53 -> 2011-08-29 | E37: corn 9th | F37: ='daily uptake'!I53 -> 0 | G37: ='daily uptake'!G53 -> 0 | L37: 0 | M37: 0 | N37: 0 | O37: 197.1654035 | Q37: =IF($G38=0,R$39-R37,R38-R37) -> 0 | R37: 130.5513148 | S37: 0.6527565738 | T37: 0 | U37: 48.86460725 | V37: 0.8144101208 | W37: 0 | X37: 17.74948144 | Y37: 0.5916493814 | Z37: 0 | AA37: 0 | AC37: 0 | AD37: 0 | AF37: 0 | AG37: 0 | AI37: 0 | AJ37: 0 | AL37: 0 | AM37: 0 | AO37: 0 | AP37: 0 | AR37: 0 | AS37: 0 | AU37: 0 | AV37: 0 | AX37: 0 | AY37: 0 | BA37: 0 | BB37: 0 | BD37: 0 | BE37: 0 | BG37: 0 | BH37: 0
C38: 375 | D38: ='daily uptake'!E54 -> 2011-08-29 | E38: corn 10th | F38: ='daily uptake'!I54 -> 0 | G38: ='daily uptake'!G54 -> 0 | L38: 0 | M38: 0 | N38: 0 | O38: 197.1654035 | Q38: =IF($G39=0,R$39-R38,R39-R38) -> 0 | R38: 130.5513148 | S38: 0.6527565738 | T38: 0 | U38: 48.86460725 | V38: 0.8144101208 | W38: 0 | X38: 17.74948144 | Y38: 0.5916493814 | Z38: 0 | AA38: 0 | AC38: 0 | AD38: 0 | AF38: 0 | AG38: 0 | AI38: 0 | AJ38: 0 | AL38: 0 | AM38: 0 | AO38: 0 | AP38: 0 | AR38: 0 | AS38: 0 | AU38: 0 | AV38: 0 | AX38: 0 | AY38: 0 | BA38: 0 | BB38: 0 | BD38: 0 | BE38: 0 | BG38: 0 | BH38: 0
C39: 375 | D39: ='daily uptake'!E55 -> 2011-08-29 | E39: corn harvest | F39: ='daily uptake'!I55 -> 245.6285485 | G39: ='daily uptake'!G55 -> 0 | L39: 0.9342461959 | M39: 0 | N39: 0.9342461959 | O39: 197.1654035 | Q39: =R43-R39 -> 0.455562156 | R39: 130.5513148 | S39: 0.6527565738 | T39: =U43-U39 -> 0.2240800974 | U39: 48.86460725 | V39: 0.8144101208 | W39: =X43-X39 -> 0.2546039425 | X39: 17.74948144 | Y39: 0.5916493814 | Z39: =AA43-AA39 -> 0 | AA39: 0 | AC39: =AD43-AD39 -> 0 | AD39: 0 | AF39: =AG43-AG39 -> 0 | AG39: 0 | AI39: =AJ43-AJ39 -> 0 | AJ39: 0 | AL39: =AM43-AM39 -> 0 | AM39: 0 | AO39: =AP43-AP39 -> 0 | AP39: 0 | AR39: =AS43-AS39 -> 0 | AS39: 0 | AU39: =AV43-AV39 -> 0 | AV39: 0 | AX39: =AY43-AY39 -> 0 | AY39: 0 | BA39: =BB43-BB39 -> 0 | BB39: 0 | BD39: =BE43-BE39 -> 0 | BE39: 0 | BG39: =BH43-BH39 -> 0 | BH39: 0
C40: =IF(D40>0,D40-$C$6+1,"") ->  | L40: 0 | M40: 0 | N40: 0 | O40: 0 | R40: 0 | U40: 0 | X40: 0 | AA40: 0 | AD40: 0 | AG40: 0 | AJ40: 0 | AM40: 0 | AP40: 0 | AS40: 0 | AV40: 0 | AY40: 0 | BB40: 0 | BE40: 0 | BH40: 0
E41: triple crop preplant 1 | L41: 0 | M41: 0 | N41: 0 | O41: 0 | R41: 0 | U41: 0 | X41: 0 | AA41: 0 | AD41: 0 | AG41: 0 | AJ41: 0 | AM41: 0 | AP41: 0 | AS41: 0 | AV41: 0 | AY41: 0 | BB41: 0 | BE41: 0 | BH41: 0
E42: triple crop preirrg | F42: ='daily uptake'!I56 -> 0 | G42: ='daily uptake'!G56 -> 0 | L42: 0 | M42: 0 | N42: 0 | O42: 0 | R42: 0 | U42: 0 | X42: 0 | AA42: 0 | AD42: 0 | AG42: 0 | AJ42: 0 | AM42: 0 | AP42: 0 | AS42: 0 | AV42: 0 | AY42: 0 | BB42: 0 | BE42: 0 | BH42: 0
C43: 377 | D43: ='daily uptake'!E57 -> 2011-08-31 | E43: triple crop planting | F43: ='daily uptake'!I57 -> 0 | G43: ='daily uptake'!G57 -> 29.5206306 | L43: 9.090458534 | M43: 0 | N43: 9.090458534 | O43: 198.0996497 | Q43: =R44-R43 -> 5.076645976 | R43: 131.0068769 | S43: 0.6550343846 | T43: =U44-U43 -> 1.883700449 | U43: =T$9*V43 -> 49.08868734 | V43: 0.8181447891 | W43: =X44-X43 -> 2.13011211 | X43: 18.00408538 | Y43: 0.6001361795 | Z43: =AA44-AA43 -> 0 | AA43: 0 | AC43: =AD44-AD43 -> 0 | AD43: 0 | AF43: =AG44-AG43 -> 0 | AG43: 0 | AI43: =AJ44-AJ43 -> 0 | AJ43: 0 | AL43: =AM44-AM43 -> 0 | AM43: 0 | AO43: =AP44-AP43 -> 0 | AP43: 0 | AR43: =AS44-AS43 -> 0 | AS43: 0 | AU43: =AV44-AV43 -> 0 | AV43: 0 | AX43: =AY44-AY43 -> 0 | AY43: 0 | BA43: =BB44-BB43 -> 0 | BB43: 0 | BD43: =BE44-BE43 -> 0 | BE43: 0 | BG43: =BH44-BH43 -> 0 | BH43: 0
C44: 396 | D44: ='daily uptake'!E58 -> 2011-09-19 | E44: triple crop 1st | F44: ='daily uptake'!I58 -> 29.5206306 | G44: ='daily uptake'!G58 -> 28.80221296 | L44: 4.065354891 | M44: 0 | N44: 4.065354891 | O44: 207.1901082 | Q44: =R45-R44 -> 2.549089873 | R44: 136.0835229 | S44: 0.6804176145 | T44: =U45-U44 -> 0.7139452243 | U44: 50.97238779 | V44: 0.8495397966 | W44: =X45-X44 -> 0.8023197941 | X44: 20.13419749 | Y44: 0.6711399165 | Z44: =AA45-AA44 -> 0 | AA44: 0 | AC44: =AD45-AD44 -> 0 | AD44: 0 | AF44: =AG45-AG44 -> 0 | AG44: 0 | AI44: =AJ45-AJ44 -> 0 | AJ44: 0 | AL44: =AM45-AM44 -> 0 | AM44: 0 | AO44: =AP45-AP44 -> 0 | AP44: 0 | AR44: =AS45-AS44 -> 0 | AS44: 0 | AU44: =AV45-AV44 -> 0 | AV44: 0 | AX44: =AY45-AY44 -> 0 | AY44: 0 | BA44: =BB45-BB44 -> 0 | BB44: 0 | BD44: =BE45-BE44 -> 0 | BE44: 0 | BG44: 0 | BH44: 0
C45: 405 | D45: ='daily uptake'!E59 -> 2011-09-28 | E45: triple crop 2nd | F45: ='daily uptake'!I59 -> 58.32284357 | G45: ='daily uptake'!G59 -> 37.83091139 | L45: 3.864775499 | M45: 0 | N45: 3.864775499 | O45: 211.2554631 | Q45: =IF($G46=0,R$48-R45,R46-R45) -> 2.436446579 | R45: 138.6326128 | S45: 0.6931630639 | T45: =IF($G46=0,U$48-U45,U46-U45) -> 0.6738128137 | U45: 51.68633302 | V45: 0.8614388836 | W45: =IF($G46=0,X$48-X45,X46-X45) -> 0.7545161059 | X45: 20.93651729 | Y45: 0.6978839096 | Z45: =IF($G46=0,AA$48-AA45,AA46-AA45) -> 0 | AA45: 0 | AC45: =IF($G46=0,AD$48-AD45,AD46-AD45) -> 0 | AD45: 0 | AF45: =IF($G46=0,AG$48-AG45,AG46-AG45) -> 0 | AG45: 0 | AI45: =IF($G46=0,AJ$48-AJ45,AJ46-AJ45) -> 0 | AJ45: 0 | AL45: =IF($G46=0,AM$48-AM45,AM46-AM45) -> 0 | AM45: 0 | AO45: =IF($G46=0,AP$48-AP45,AP46-AP45) -> 0 | AP45: 0 | AR45: =IF($G46=0,AS$48-AS45,AS46-AS45) -> 0 | AS45: 0 | AU45: =IF($G46=0,AV$48-AV45,AV46-AV45) -> 0 | AV45: 0 | AX45: =IF($G46=0,AY$48-AY45,AY46-AY45) -> 0 | AY45: 0 | BA45: =IF($G46=0,BB$48-BB45,BB46-BB45) -> 0 | BB45: 0 | BD45: =IF($G46=0,BE$48-BE45,BE46-BE45) -> 0 | BE45: 0 | BG45: =IF($G46=0,BH$48-BH45,BH46-BH45) -> 0 | BH45: 0
C46: 414 | D46: ='daily uptake'!E60 -> 2011-10-07 | E46: triple crop 3rd | F46: ='daily uptake'!I60 -> 0 | G46: ='daily uptake'!G60 -> 0 | L46: 0 | M46: 0 | N46: 0 | O46: 215.1202386 | Q46: =IF($G47=0,R$48-R46,R47-R46) -> 0 | R46: 141.0690594 | S46: 0.7053452968 | T46: 0 | U46: 52.36014583 | V46: 0.8726690972 | W46: 0 | X46: 21.69103339 | Y46: 0.7230344465 | Z46: 0 | AA46: 0 | AC46: 0 | AD46: 0 | AF46: 0 | AG46: 0 | AI46: 0 | AJ46: 0 | AL46: 0 | AM46: 0 | AO46: 0 | AP46: 0 | AR46: 0 | AS46: 0 | AU46: 0 | AV46: 0 | AX46: 0 | AY46: 0 | BA46: 0 | BB46: 0 | BD46: 0 | BE46: 0 | BG46: 0 | BH46: 0
C47: 414 | D47: ='daily uptake'!E61 -> 2011-10-07 | E47: triple crop 4th | F47: ='daily uptake'!I61 -> 0 | G47: ='daily uptake'!G61 -> 0 | L47: 0 | M47: 0 | N47: 0 | O47: 215.1202386 | Q47: 0 | R47: 141.0690594 | S47: 0.7053452968 | T47: 0 | U47: 52.36014583 | V47: 0.8726690972 | W47: 0 | X47: 21.69103339 | Y47: 0.7230344465 | Z47: 0 | AA47: 0 | AC47: 0 | AD47: 0 | AF47: 0 | AG47: 0 | AI47: 0 | AJ47: 0 | AL47: 0 | AM47: 0 | AO47: 0 | AP47: 0 | AR47: 0 | AS47: 0 | AU47: 0 | AV47: 0 | AX47: 0 | AY47: 0 | BA47: 0 | BB47: 0 | BD47: 0 | BE47: 0 | BG47: 0 | BH47: 0
C48: =IF(D48>0,D48-$C$6+1,"") -> 414 | D48: ='daily uptake'!E62 -> 2011-10-07 | E48: triple crop harvest | F48: ='daily uptake'!I62 -> 96.15375495 | G48: ='daily uptake'!G62 -> 0 | L48: 0 | M48: 0 | N48: 0 | O48: 215.1202386 | Q48: 0 | R48: 141.0690594 | S48: 0.7053452968 | T48: 0 | U48: 52.36014583 | V48: 0.8726690972 | W48: 0 | X48: 21.69103339 | Y48: 0.7230344465 | Z48: 0 | AA48: 0 | AC48: 0 | AD48: 0 | AF48: 0 | AG48: 0 | AI48: 0 | AJ48: 0 | AL48: 0 | AM48: 0 | AO48: 0 | AP48: 0 | AR48: 0 | AS48: 0 | AU48: 0 | AV48: 0 | AX48: 0 | AY48: 0 | BA48: 0 | BB48: 0 | BD48: 0 | BE48: 0 | BG48: 0 | BH48: 0
C49: =IF(D49>0,D49-$C$6+1,"") ->  | L49: 0 | M49: 0 | N49: 0 | O49: 0 | R49: 0 | U49: 0 | X49: 0 | AA49: 0 | AD49: 0 | AG49: 0 | AJ49: 0 | AM49: 0 | AP49: 0 | AS49: 0 | AV49: 0 | AY49: 0 | BB49: 0 | BE49: 0 | BH49: 0
R50: 0 | U50: 0 | X50: 0 | AA50: 0 | AD50: 0 | AG50: 0 | AJ50: 0 | AM50: 0 | AP50: 0 | AS50: 0 | AV50: 0 | AY50: 0 | BB50: 0 | BE50: 0 | BH50: 0
R51: 0 | U51: 0 | X51: 0 | AA51: 0 | AD51: 0 | AG51: 0 | AJ51: 0 | AM51: 0 | AP51: 0 | AS51: 0 | AV51: 0 | AY51: 0 | BB51: 0 | BE51: 0 | BH51: 0
R52: 0 | U52: 0 | X52: 0 | AA52: 0 | AD52: 0 | AG52: 0 | AJ52: 0 | AM52: 0 | AP52: 0 | AS52: 0 | AV52: 0 | AY52: 0 | BB52: 0 | BE52: 0 | BH52: 0

Sheet minmax data
C6: Daily Weather Data
C8: Year: | D8: Modesto avg | I8: Merced 30 yr avg | N8: Parlier 30 yr avg | S8: Shafter 30 yr avg | X8: Denair avg 1994 - 2010 | AC8: Denair 2009 | AH8: Denair 2010 | AM8: Denair 2011
D9: Precipitation | E9: Air Max | F9: Air Min | G9: Soil Max Temperature | H9: Soil Min Temperature | I9: Precipitation | J9: Air Max | K9: Air Min | L9: Soil Max Temperature | M9: Soil Min Temperature | N9: Precipitation | O9: Air Max | P9: Air Min | Q9: Soil Max Temperature | R9: Soil Min Temperature | S9: Precipitation | T9: Air Max | U9: Air Min | V9: Soil Max Temperature | W9: Soil Min Temperature | X9: Precipitation | Y9: Air Max | Z9: Air Min | AA9: Soil Max Temperature | AB9: Soil Min Temperature | AC9: Precipitation | AD9: Air Max | AE9: Air Min | AF9: Soil Max Temperature | AG9: Soil Min Temperature | AH9: Precipitation | AI9: Air Max | AJ9: Air Min | AK9: Soil Max Temperature | AL9: Soil Min Temperature | AM9: Precipitation | AN9: Air Max | AO9: Air Min | AP9: Soil Max Temperature | AQ9: Soil Min Temperature | AR9: Precipitation | AS9: Air Max | AT9: Air Min | AU9: Soil Max Temperature | AV9: Soil Min Temperature | AW9: Precipitation | AX9: Air Max | AY9: Air Min | AZ9: Soil Max Temperature | BA9: Soil Min Temperature
B10: 1 | C10: Jan 1 | D10: 0.1 | E10: 55 | F10: 35 | J10: 53.4 | K10: 36 | N10: 0.1 | O10: 54 | P10: 36 | Q10: 49 | R10: 46 | S10: 0.04 | T10: 56 | U10: 37 | V10: 50 | W10: 49 | Y10: 53.94117647 | Z10: 37.17647059 | AA10: =AVERAGE(AF10,AK10,AP10) -> 50 | AB10: =AVERAGE(AG10,AL10,AQ10) -> 49 | AC10: 0.01 | AD10: 45 | AE10: 41 | AF10: 49 | AG10: 49 | AH10: 0 | AI10: 60 | AJ10: 43 | AK10: 52 | AL10: 50 | AM10: 0.47 | AN10: 51 | AO10: 42 | AP10: 49 | AQ10: 48
B11: 2 | C11: Jan 2 | D11: 0.02 | E11: 55 | F11: 36 | J11: 53.4 | K11: 36.1 | N11: 0.1 | O11: 53 | P11: 37 | Q11: 49 | R11: 46 | S11: 0.05 | T11: 54 | U11: 37 | V11: 51 | W11: 49 | Y11: 53.70588235 | Z11: 37.23529412 | AA11: =AVERAGE(AF11,AK11,AP11) -> 50 | AB11: =AVERAGE(AG11,AL11,AQ11) -> 49.33333333 | AC11: 0.07 | AD11: 46 | AE11: 36 | AF11: 49 | AG11: 49 | AH11: 0.01 | AI11: 53 | AJ11: 38 | AK11: 51 | AL11: 50 | AM11: 0.67 | AN11: 48 | AO11: 45 | AP11: 50 | AQ11: 49
B12: 3 | C12: Jan 3 | D12: 0.06 | E12: 55 | F12: 38 | J12: 53.5 | K12: 36.3 | N12: 0.08 | O12: 54 | P12: 38 | Q12: 50 | R12: 46 | S12: 0.05 | T12: 56 | U12: 38 | V12: 51 | W12: 49 | Y12: 53.52941176 | Z12: 36.29411765 | AA12: =AVERAGE(AF12,AK12,AP12) -> 50.66666667 | AB12: =AVERAGE(AG12,AL12,AQ12) -> 49.33333333 | AC12: 0 | AD12: 50 | AE12: 31 | AF12: 49 | AG12: 47 | AH12: 0 | AI12: 50 | AJ12: 45 | AK12: 52 | AL12: 51 | AM12: 0 | AN12: 54 | AO12: 36 | AP12: 51 | AQ12: 50
B13: 4 | C13: Jan 4 | D13: 0.17 | E13: 53 | F13: 35 | J13: 53.6 | K13: 36.4 | N13: 0.21 | O13: 53 | P13: 39 | Q13: 50 | R13: 47 | S13: 0.16 | T13: 54 | U13: 39 | V13: 51 | W13: 49 | Y13: 53.35294118 | Z13: 35.35294118 | AA13: 50 | AB13: 48.66666667 | AC13: 0 | AD13: 49 | AE13: 23 | AF13: 48 | AG13: 46 | AH13: 0 | AI13: 57 | AJ13: 37 | AK13: 52 | AL13: 51 | AM13: 0.02 | AN13: 48 | AO13: 30 | AP13: 50 | AQ13: 49
B14: 5 | C14: Jan 5 | D14: 0.06 | E14: 54 | F14: 34 | J14: 53.8 | K14: 36.5 | N14: 0.22 | O14: 54 | P14: 37 | Q14: 50 | R14: 47 | S14: 0.12 | T14: 55 | U14: 38 | V14: 51 | W14: 50 | Y14: 52.94117647 | Z14: 34.64705882 | AA14: 49 | AB14: 48.33333333 | AC14: 0.04 | AD14: 44 | AE14: 35 | AF14: 47 | AG14: 46 | AH14: 0 | AI14: 47 | AJ14: 39 | AK14: 51 | AL14: 51 | AM14: 0.01 | AN14: 43 | AO14: 32 | AP14: 49 | AQ14: 48
B15: 6 | C15: Jan 6 | D15: 0.05 | E15: 53 | F15: 35 | J15: 53.9 | K15: 36.6 | N15: 0.07 | O15: 54 | P15: 34 | Q15: 49 | R15: 46 | S15: 0.04 | T15: 55 | U15: 35 | V15: 51 | W15: 49 | Y15: 51.94117647 | Z15: 34.23529412 | AA15: 49 | AB15: 48.33333333 | AC15: 0 | AD15: 46 | AE15: 33 | AF15: 47 | AG15: 47 | AH15: 0 | AI15: 47 | AJ15: 39 | AK15: 51 | AL15: 50 | AM15: 0 | AN15: 40 | AO15: 38 | AP15: 49 | AQ15: 48
B16: 7 | C16: Jan 7 | D16: 0.04 | E16: 55 | F16: 39 | J16: 54.1 | K16: 36.6 | N16: 0.13 | O16: 56 | P16: 37 | Q16: 49 | R16: 46 | S16: 0.05 | T16: 57 | U16: 36 | V16: 51 | W16: 49 | Y16: 52.17647059 | Z16: 36.05882353 | AA16: 48.33333333 | AB16: 48 | AC16: 0.01 | AD16: 47 | AE16: 32 | AF16: 47 | AG16: 46 | AH16: 0 | AI16: 44 | AJ16: 37 | AK16: 50 | AL16: 50 | AM16: 0 | AN16: 39 | AO16: 37 | AP16: 48 | AQ16: 48
B17: 8 | C17: Jan 8 | D17: 0.05 | E17: 55 | F17: 38 | J17: 54.2 | K17: 36.7 | N17: 0.03 | O17: 54 | P17: 36 | Q17: 49 | R17: 46 | S17: 0.02 | T17: 55 | U17: 37 | V17: 51 | W17: 49 | Y17: 52.52941176 | Z17: 37.58823529 | AA17: 49 | AB17: 48 | AC17: 0 | AD17: 51 | AE17: 33 | AF17: 48 | AG17: 47 | AH17: 0.01 | AI17: 51 | AJ17: 41 | AK17: 51 | AL17: 50 | AM17: 0 | AN17: 40 | AO17: 37 | AP17: 48 | AQ17: 47
B18: 9 | C18: Jan 9 | D18: 0.14 | E18: 55 | F18: 39 | J18: 54.4 | K18: 36.9 | N18: 0.02 | O18: 53 | P18: 37 | Q18: 49 | R18: 46 | S18: 0.04 | T18: 54 | U18: 37 | V18: 51 | W18: 49 | Y18: 53.70588235 | Z18: 38 | AA18: 49 | AB18: 47.66666667 | AC18: 0 | AD18: 55 | AE18: 27 | AF18: 48 | AG18: 46 | AH18: 0 | AI18: 48 | AJ18: 42 | AK18: 51 | AL18: 50 | AM18: 0 | AN18: 39 | AO18: 29 | AP18: 48 | AQ18: 47
B19: 10 | C19: Jan 10 | D19: 0.08 | E19: 55 | F19: 38 | J19: 54.5 | K19: 37 | N19: 0.17 | O19: 54 | P19: 37 | Q19: 49 | R19: 46 | S19: 0.12 | T19: 54 | U19: 38 | V19: 51 | W19: 49 | Y19: 54.05882353 | Z19: 37.64705882 | AA19: 48.33333333 | AB19: 47 | AC19: 0 | AD19: 59 | AE19: 27 | AF19: 47 | AG19: 46 | AH19: 0.01 | AI19: 45 | AJ19: 42 | AK19: 51 | AL19: 50 | AM19: 0 | AN19: 47 | AO19: 25 | AP19: 47 | AQ19: 45
B20: 11 | C20: Jan 11 | D20: 0.06 | E20: 56 | F20: 38 | J20: 54.6 | K20: 37.1 | N20: 0.02 | O20: 54 | P20: 36 | Q20: 49 | R20: 46 | S20: 0.03 | T20: 56 | U20: 36 | V20: 51 | W20: 50 | Y20: 51.82352941 | Z20: 37.88235294 | AA20: 48.33333333 | AB20: 47 | AC20: 0.01 | AD20: 62 | AE20: 26 | AF20: 47 | AG20: 45 | AH20: 0 | AI20: 49 | AJ20: 42 | AK20: 51 | AL20: 50 | AM20: 0.1 | AN20: 47 | AO20: 36 | AP20: 47 | AQ20: 46
B21: 12 | C21: Jan 12 | D21: 0.11 | E21: 57 | F21: 37 | J21: 54.7 | K21: 37.1 | N21: 0.13 | O21: 54 | P21: 37 | Q21: 49 | R21: 46 | S21: 0.06 | T21: 56 | U21: 37 | V21: 51 | W21: 50 | Y21: 52.64705882 | Z21: 37.70588235 | AA21: 49 | AB21: 47.33333333 | AC21: 0 | AD21: 63 | AE21: 29 | AF21: 47 | AG21: 45 | AH21: 0.13 | AI21: 63 | AJ21: 43 | AK21: 52 | AL21: 50 | AM21: 0 | AN21: 57 | AO21: 38 | AP21: 48 | AQ21: 47
B22: 13 | C22: Jan 13 | D22: 0.07 | E22: 57 | F22: 38 | J22: 54.8 | K22: 37.2 | N22: 0.15 | O22: 56 | P22: 37 | Q22: 50 | R22: 46 | S22: 0.03 | T22: 57 | U22: 37 | V22: 51 | W22: 49 | Y22: 54.41176471 | Z22: 35.23529412 | AA22: 49.66666667 | AB22: 48.33333333 | AC22: 0 | AD22: 68 | AE22: 29 | AF22: 48 | AG22: 46 | AH22: 0.48 | AI22: 63 | AJ22: 45 | AK22: 53 | AL22: 52 | AM22: 0.06 | AN22: 55 | AO22: 34 | AP22: 48 | AQ22: 47
B23: 14 | C23: Jan 14 | D23: 0.05 | E23: 56 | F23: 38 | J23: 54.9 | K23: 37.2 | N23: 0.1 | O23: 55 | P23: 37 | Q23: 50 | R23: 47 | S23: 0.01 | T23: 56 | U23: 38 | V23: 51 | W23: 50 | Y23: 52.58823529 | Z23: 35.70588235 | AA23: 49.66666667 | AB23: 48.33333333 | AC23: 0 | AD23: 65 | AE23: 27 | AF23: 48 | AG23: 46 | AH23: 0 | AI23: 59 | AJ23: 40 | AK23: 52 | AL23: 51 | AM23: 0.01 | AN23: 52 | AO23: 41 | AP23: 49 | AQ23: 48
B24: 15 | C24: Jan 15 | D24: 0.07 | E24: 56 | F24: 40 | J24: 55 | K24: 37.2 | N24: 0.19 | O24: 55 | P24: 39 | Q24: 50 | R24: 47 | S24: 0.03 | T24: 54 | U24: 38 | V24: 51 | W24: 50 | Y24: 52.64705882 | Z24: 36.05882353 | AA24: 49.66666667 | AB24: 47.66666667 | AC24: 0 | AD24: 66 | AE24: 28 | AF24: 48 | AG24: 45 | AH24: 0.01 | AI24: 51 | AJ24: 39 | AK24: 51 | AL24: 50 | AM24: 0.01 | AN24: 53 | AO24: 37 | AP24: 50 | AQ24: 48
B25: 16 | C25: Jan 16 | D25: 0.07 | E25: 58 | F25: 40 | J25: 55.1 | K25: 37.2 | N25: 0.09 | O25: 55 | P25: 40 | Q25: 50 | R25: 47 | S25: 0.04 | T25: 57 | U25: 38 | V25: 51 | W25: 50 | Y25: 54.64705882 | Z25: 36.17647059 | AA25: 50.33333333 | AB25: 49 | AC25: 0 | AD25: 66 | AE25: 28 | AF25: 48 | AG25: 46 | AH25: 0.01 | AI25: 55 | AJ25: 41 | AK25: 52 | AL25: 51 | AM25: 0 | AN25: 52 | AO25: 47 | AP25: 51 | AQ25: 50
B26: 17 | C26: Jan 17 | D26: 0.15 | E26: 57 | F26: 38 | J26: 55.3 | K26: 37.2 | N26: 0.08 | O26: 56 | P26: 38 | Q26: 51 | R26: 47 | S26: 0.04 | T26: 57 | U26: 38 | V26: 51 | W26: 50 | Y26: 54.35294118 | Z26: 36.76470588 | AA26: 50.33333333 | AB26: 49 | AC26: 0 | AD26: 68 | AE26: 28 | AF26: 48 | AG26: 46 | AH26: 0.52 | AI26: 57 | AJ26: 42 | AK26: 52 | AL26: 51 | AM26: 0 | AN26: 50 | AO26: 48 | AP26: 51 | AQ26: 50
B27: 18 | C27: Jan 18 | D27: 0.09 | E27: 59 | F27: 39 | J27: 55.5 | K27: 37.3 | N27: 0.03 | O27: 59 | P27: 38 | Q27: 51 | R27: 47 | S27: 0.01 | T27: 60 | U27: 38 | V27: 51 | W27: 50 | Y27: 55.11764706 | Z27: 37.17647059 | AA27: 50.66666667 | AB27: 49.66666667 | AC27: 0 | AD27: 67 | AE27: 29 | AF27: 48 | AG27: 46 | AH27: 0.49 | AI27: 58 | AJ27: 49 | AK27: 52 | AL27: 52 | AM27: 0 | AN27: 58 | AO27: 42 | AP27: 52 | AQ27: 51
B28: 19 | C28: Jan 19 | D28: 0.05 | E28: 60 | F28: 39 | J28: 55.7 | K28: 37.3 | N28: 0.02 | O28: 58 | P28: 38 | Q28: 51 | R28: 47 | S28: 0.02 | T28: 59 | U28: 37 | V28: 52 | W28: 50 | Y28: 55.05882353 | Z28: 36.35294118 | AA28: 50.33333333 | AB28: 48.66666667 | AC28: 0 | AD28: 69 | AE28: 29 | AF28: 47 | AG28: 45 | AH28: 0.71 | AI28: 54 | AJ28: 43 | AK28: 52 | AL28: 51 | AM28: 0.01 | AN28: 52 | AO28: 36 | AP28: 52 | AQ28: 50
B29: 20 | C29: Jan 20 | D29: 0.04 | E29: 60 | F29: 38 | J29: 56 | K29: 37.4 | N29: 0.06 | O29: 59 | P29: 37 | Q29: 51 | R29: 47 | S29: 0.04 | T29: 60 | U29: 37 | V29: 51 | W29: 50 | Y29: 54.41176471 | Z29: 35.17647059 | AA29: 49.33333333 | AB29: 48 | AC29: 0 | AD29: 66 | AE29: 30 | AF29: 47 | AG29: 45 | AH29: 0.49 | AI29: 54 | AJ29: 42 | AK29: 51 | AL29: 50 | AM29: 0.01 | AN29: 60 | AO29: 32 | AP29: 50 | AQ29: 49
B30: 21 | C30: Jan 21 | D30: 0.03 | E30: 61 | F30: 38 | J30: 56.2 | K30: 37.4 | N30: 0.01 | O30: 58 | P30: 37 | Q30: 51 | R30: 46 | S30: 0.01 | T30: 59 | U30: 37 | V30: 51 | W30: 50 | Y30: 55.35294118 | Z30: 36 | AA30: 49.33333333 | AB30: 48 | AC30: 0.14 | AD30: 56 | AE30: 36 | AF30: 48 | AG30: 46 | AH30: 0.46 | AI30: 48 | AJ30: 41 | AK30: 50 | AL30: 50 | AM30: 0.01 | AN30: 61 | AO30: 33 | AP30: 50 | AQ30: 48
B31: 22 | C31: Jan 22 | D31: 0.01 | E31: 57 | F31: 35 | J31: 56.5 | K31: 37.5 | N31: 0.05 | O31: 58 | P31: 37 | Q31: 50 | R31: 46 | S31: 0.02 | T31: 59 | U31: 36 | V31: 51 | W31: 50 | Y31: 54.47058824 | Z31: 37.05882353 | AA31: 49.66666667 | AB31: 48.33333333 | AC31: 0.6 | AD31: 52 | AE31: 48 | AF31: 49 | AG31: 48 | AH31: 0.09 | AI31: 50 | AJ31: 39 | AK31: 50 | AL31: 49 | AM31: 0.01 | AN31: 55 | AO31: 35 | AP31: 50 | AQ31: 48
B32: 23 | C32: Jan 23 | D32: 0.18 | E32: 56 | F32: 36 | J32: 56.6 | K32: 37.5 | N32: 0.13 | O32: 56 | P32: 38 | Q32: 50 | R32: 47 | S32: 0.04 | T32: 58 | U32: 38 | V32: 51 | W32: 50 | Y32: 54.35294118 | Z32: 37.52941176 | AA32: 50.66666667 | AB32: 49 | AC32: 0.57 | AD32: 55 | AE32: 50 | AF32: 51 | AG32: 49 | AH32: 0.05 | AI32: 56 | AJ32: 37 | AK32: 50 | AL32: 49 | AM32: 0.02 | AN32: 55 | AO32: 37 | AP32: 51 | AQ32: 49
B33: 24 | C33: Jan 24 | D33: 0.29 | E33: 57 | F33: 36 | J33: 56.9 | K33: 37.6 | N33: 0.26 | O33: 55 | P33: 39 | Q33: 50 | R33: 47 | S33: 0.19 | T33: 57 | U33: 38 | V33: 51 | W33: 50 | Y33: 54.41176471 | Z33: 37.70588235 | AA33: 50.66666667 | AB33: 49.33333333 | AC33: 0.09 | AD33: 62 | AE33: 47 | AF33: 52 | AG33: 51 | AH33: 0 | AI33: 50 | AJ33: 35 | AK33: 49 | AL33: 48 | AM33: 0.01 | AN33: 62 | AO33: 37 | AP33: 51 | AQ33: 49
B34: 25 | C34: Jan 25 | D34: 0.23 | E34: 57 | F34: 37 | J34: 57.2 | K34: 37.7 | N34: 0.13 | O34: 57 | P34: 37 | Q34: 51 | R34: 47 | S34: 0.16 | T34: 57 | U34: 36 | V34: 51 | W34: 50 | Y34: 56.52941176 | Z34: 38.58823529 | AA34: 51 | AB34: 49.66666667 | AC34: 0.18 | AD34: 57 | AE34: 35 | AF34: 52 | AG34: 50 | AH34: 0.03 | AI34: 53 | AJ34: 44 | AK34: 50 | AL34: 49 | AM34: 0.01 | AN34: 48 | AO34: 42 | AP34: 51 | AQ34: 50
B35: 26 | C35: Jan 26 | D35: 0.03 | E35: 58 | F35: 36 | J35: 57.5 | K35: 37.8 | N35: 0.05 | O35: 57 | P35: 37 | Q35: 51 | R35: 47 | S35: 0.04 | T35: 57 | U35: 36 | V35: 51 | W35: 49 | Y35: 54.82352941 | Z35: 38.70588235 | AA35: 50.66666667 | AB35: 49.66666667 | AC35: 0 | AD35: 54 | AE35: 34 | AF35: 50 | AG35: 49 | AH35: 0 | AI35: 53 | AJ35: 46 | AK35: 51 | AL35: 50 | AM35: 0.01 | AN35: 48 | AO35: 41 | AP35: 51 | AQ35: 50
B36: 27 | C36: Jan 27 | D36: 0.07 | E36: 58 | F36: 37 | J36: 57.7 | K36: 37.8 | N36: 0.01 | O36: 58 | P36: 39 | Q36: 51 | R36: 47 | S36: 0 | T36: 59 | U36: 37 | V36: 51 | W36: 50 | Y36: 57.05882353 | Z36: 37.82352941 | AA36: 50.33333333 | AB36: 49.33333333 | AC36: 0 | AD36: 54 | AE36: 31 | AF36: 49 | AG36: 48 | AH36: 0 | AI36: 57 | AJ36: 40 | AK36: 51 | AL36: 50 | AM36: 0.01 | AN36: 47 | AO36: 39 | AP36: 51 | AQ36: 50
B37: 28 | C37: Jan 28 | D37: 0.03 | E37: 59 | F37: 36 | J37: 58 | K37: 37.8 | N37: 0.02 | O37: 60 | P37: 37 | Q37: 51 | R37: 47 | S37: 0.01 | T37: 60 | U37: 37 | V37: 51 | W37: 50 | Y37: 55.94117647 | Z37: 36.17647059 | AA37: 49.66666667 | AB37: 48.33333333 | AC37: 0 | AD37: 57 | AE37: 28 | AF37: 48 | AG37: 46 | AH37: 0.01 | AI37: 58 | AJ37: 35 | AK37: 50 | AL37: 49 | AM37: 0.01 | AN37: 45 | AO37: 39 | AP37: 51 | AQ37: 50
B38: 29 | C38: Jan 29 | D38: 0.03 | E38: 61 | F38: 35 | J38: 58.3 | K38: 37.9 | N38: 0.05 | O38: 59 | P38: 38 | Q38: 51 | R38: 47 | S38: 0.03 | T38: 61 | U38: 37 | V38: 52 | W38: 50 | Y38: 57.88235294 | Z38: 35.41176471 | AA38: 50 | AB38: 48.33333333 | AC38: 0 | AD38: 61 | AE38: 31 | AF38: 48 | AG38: 46 | AH38: 0.02 | AI38: 61 | AJ38: 39 | AK38: 51 | AL38: 49 | AM38: 0.01 | AN38: 47 | AO38: 39 | AP38: 51 | AQ38: 50
B39: 30 | C39: Jan 30 | D39: 0.02 | E39: 58 | F39: 37 | J39: 58.5 | K39: 38 | N39: 0.07 | O39: 60 | P39: 38 | Q39: 51 | R39: 47 | S39: 0.02 | T39: 60 | U39: 38 | V39: 52 | W39: 50 | Y39: 55.23529412 | Z39: 37.29411765 | AA39: 50.33333333 | AB39: 49 | AC39: 0 | AD39: 65 | AE39: 28 | AF39: 48 | AG39: 46 | AH39: 0.01 | AI39: 60 | AJ39: 41 | AK39: 52 | AL39: 51 | AM39: 0.15 | AN39: 55 | AO39: 43 | AP39: 51 | AQ39: 50
B40: 31 | C40: Jan 31 | D40: 0.09 | E40: 60 | F40: 39 | J40: 58.8 | K40: 38 | N40: 0.05 | O40: 60 | P40: 39 | Q40: 51 | R40: 48 | S40: 0.03 | T40: 60 | U40: 39 | V40: 52 | W40: 50 | Y40: 57.05882353 | Z40: 37.94117647 | AA40: 50 | AB40: 48.33333333 | AC40: 0 | AD40: 66 | AE40: 31 | AF40: 48 | AG40: 46 | AH40: 0.01 | AI40: 57 | AJ40: 34 | AK40: 51 | AL40: 49 | AM40: 0 | AN40: 54 | AO40: 37 | AP40: 51 | AQ40: 50
B41: 32 | C41: Feb 1 | D41: 0.02 | E41: 60 | F41: 39 | J41: 59 | K41: 37.9 | N41: 0.02 | O41: 60 | P41: 38 | Q41: 51 | R41: 47 | S41: 0.02 | T41: 61 | U41: 38 | V41: 52 | W41: 50 | Y41: 57.58823529 | Z41: 37.70588235 | AA41: 50 | AB41: 47.66666667 | AC41: 0.01 | AD41: 63 | AE41: 31 | AF41: 48 | AG41: 46 | AH41: 0 | AI41: 60 | AJ41: 36 | AK41: 51 | AL41: 49 | AM41: 0 | AN41: 55 | AO41: 32 | AP41: 51 | AQ41: 48
B42: 33 | C42: Feb 2 | D42: 0.09 | E42: 60 | F42: 38 | J42: 59.2 | K42: 38 | N42: 0.07 | O42: 59 | P42: 39 | Q42: 52 | R42: 47 | S42: 0.03 | T42: 60 | U42: 39 | V42: 52 | W42: 50 | Y42: 58.88235294 | Z42: 37.94117647 | AA42: 49.66666667 | AB42: 47.66666667 | AC42: 0 | AD42: 64 | AE42: 31 | AF42: 49 | AG42: 46 | AH42: 0 | AI42: 59 | AJ42: 40 | AK42: 51 | AL42: 50 | AM42: 0.01 | AN42: 59 | AO42: 31 | AP42: 49 | AQ42: 47
B43: 34 | C43: Feb 3 | D43: 0.16 | E43: 60 | F43: 39 | J43: 59.4 | K43: 38.1 | N43: 0.1 | O43: 61 | P43: 40 | Q43: 52 | R43: 48 | S43: 0.1 | T43: 62 | U43: 38 | V43: 52 | W43: 50 | Y43: 59.88235294 | Z43: 37.58823529 | AA43: 50 | AB43: 47.66666667 | AC43: 0.01 | AD43: 66 | AE43: 30 | AF43: 49 | AG43: 47 | AH43: 0.01 | AI43: 63 | AJ43: 36 | AK43: 52 | AL43: 50 | AM43: 0 | AN43: 60 | AO43: 31 | AP43: 49 | AQ43: 46
B44: 35 | C44: Feb 4 | D44: 0.09 | E44: 61 | F44: 38 | J44: 59.6 | K44: 38.2 | N44: 0.11 | O44: 62 | P44: 40 | Q44: 53 | R44: 48 | S44: 0.09 | T44: 63 | U44: 39 | V44: 52 | W44: 51 | Y44: 60.76470588 | Z44: 38.41176471 | AA44: 50 | AB44: 48.33333333 | AC44: 0.01 | AD44: 63 | AE44: 33 | AF44: 49 | AG44: 47 | AH44: 0.16 | AI44: 59 | AJ44: 45 | AK44: 52 | AL44: 51 | AM44: 0 | AN44: 62 | AO44: 32 | AP44: 49 | AQ44: 47
B45: 36 | C45: Feb 5 | D45: 0.03 | E45: 61 | F45: 38 | J45: 59.9 | K45: 38.4 | N45: 0.01 | O45: 62 | P45: 40 | Q45: 53 | R45: 49 | S45: 0.07 | T45: 62 | U45: 40 | V45: 53 | W45: 51 | Y45: 60.11764706 | Z45: 37.94117647 | AA45: 51 | AB45: 49 | AC45: 0.26 | AD45: 59 | AE45: 44 | AF45: 50 | AG45: 48 | AH45: 0.25 | AI45: 62 | AJ45: 50 | AK45: 53 | AL45: 52 | AM45: 0 | AN45: 65 | AO45: 34 | AP45: 50 | AQ45: 47
B46: 37 | C46: Feb 6 | D46: 0.09 | E46: 60 | F46: 39 | J46: 60.1 | K46: 38.5 | N46: 0.04 | O46: 59 | P46: 40 | Q46: 53 | R46: 49 | S46: 0.03 | T46: 61 | U46: 40 | V46: 53 | W46: 51 | Y46: 59.11764706 | Z46: 37.88235294 | AA46: 51.66666667 | AB46: 50 | AC46: 0.33 | AD46: 56 | AE46: 46 | AF46: 51 | AG46: 49 | AH46: 0.45 | AI46: 54 | AJ46: 47 | AK46: 53 | AL46: 53 | AM46: 0 | AN46: 72 | AO46: 36 | AP46: 51 | AQ46: 48
B47: 38 | C47: Feb 7 | D47: 0.2 | E47: 61 | F47: 42 | J47: 60.4 | K47: 38.6 | N47: 0.12 | O47: 61 | P47: 41 | Q47: 53 | R47: 49 | S47: 0.06 | T47: 63 | U47: 40 | V47: 53 | W47: 51 | Y47: 59.35294118 | Z47: 40.88235294 | AA47: 51.66666667 | AB47: 50.33333333 | AC47: 0 | AD47: 60 | AE47: 40 | AF47: 51 | AG47: 50 | AH47: 0.01 | AI47: 53 | AJ47: 47 | AK47: 53 | AL47: 52 | AM47: 0 | AN47: 69 | AO47: 37 | AP47: 51 | AQ47: 49
B48: 39 | C48: Feb 8 | D48: 0.14 | E48: 60 | F48: 41 | J48: 60.7 | K48: 38.6 | N48: 0.12 | O48: 62 | P48: 41 | Q48: 53 | R48: 49 | S48: 0.06 | T48: 63 | U48: 41 | V48: 53 | W48: 51 | Y48: 59.23529412 | Z48: 39.35294118 | AA48: 51.66666667 | AB48: 50 | AC48: 0.06 | AD48: 61 | AE48: 34 | AF48: 51 | AG48: 49 | AH48: 0.03 | AI48: 59 | AJ48: 48 | AK48: 53 | AL48: 52 | AM48: 0 | AN48: 60 | AO48: 34 | AP48: 51 | AQ48: 49
B49: 40 | C49: Feb 9 | D49: 0.09 | E49: 58 | F49: 39 | J49: 60.9 | K49: 38.7 | N49: 0.1 | O49: 62 | P49: 42 | Q49: 53 | R49: 49 | S49: 0.06 | T49: 64 | U49: 40 | V49: 53 | W49: 51 | Y49: 59.58823529 | Z49: 37.35294118 | AA49: 50.66666667 | AB49: 49.66666667 | AC49: 0 | AD49: 53 | AE49: 35 | AF49: 50 | AG49: 49 | AH49: 0.33 | AI49: 54 | AJ49: 45 | AK49: 53 | AL49: 53 | AM49: 0 | AN49: 61 | AO49: 29 | AP49: 49 | AQ49: 47
B50: 41 | C50: Feb 10 | D50: 0.1 | E50: 61 | F50: 41 | J50: 61.2 | K50: 38.8 | N50: 0.11 | O50: 61 | P50: 41 | Q50: 53 | R50: 49 | S50: 0.03 | T50: 62 | U50: 40 | V50: 53 | W50: 51 | Y50: 60.11764706 | Z50: 36.82352941 | AA50: 50.33333333 | AB50: 48.33333333 | AC50: 0.09 | AD50: 55 | AE50: 29 | AF50: 49 | AG50: 47 | AH50: 0 | AI50: 60 | AJ50: 37 | AK50: 53 | AL50: 51 | AM50: 0 | AN50: 62 | AO50: 31 | AP50: 49 | AQ50: 47
B51: 42 | C51: Feb 11 | D51: 0.13 | E51: 62 | F51: 40 | J51: 61.5 | K51: 38.8 | N51: 0.07 | O51: 60 | P51: 41 | Q51: 53 | R51: 49 | S51: 0.02 | T51: 61 | U51: 39 | V51: 53 | W51: 51 | Y51: 60.17647059 | Z51: 38.76470588 | AA51: 50.33333333 | AB51: 49 | AC51: 0.15 | AD51: 55 | AE51: 38 | AF51: 49 | AG51: 48 | AH51: 0 | AI51: 58 | AJ51: 44 | AK51: 53 | AL51: 52 | AM51: 0 | AN51: 65 | AO51: 30 | AP51: 49 | AQ51: 47
B52: 43 | C52: Feb 12 | D52: 0.08 | E52: 61 | F52: 39 | J52: 61.8 | K52: 38.9 | N52: 0.28 | O52: 61 | P52: 41 | Q52: 53 | R52: 49 | S52: 0.1 | T52: 62 | U52: 41 | V52: 53 | W52: 51 | Y52: 60.52941176 | Z52: 37.88235294 | AA52: 51 | AB52: 49 | AC52: 0.05 | AD52: 54 | AE52: 39 | AF52: 50 | AG52: 48 | AH52: 0 | AI52: 66 | AJ52: 44 | AK52: 53 | AL52: 52 | AM52: 0 | AN52: 73 | AO52: 36 | AP52: 50 | AQ52: 47
B53: 44 | C53: Feb 13 | D53: 0.09 | E53: 62 | F53: 40 | J53: 62.1 | K53: 39.1 | N53: 0.24 | O53: 62 | P53: 41 | Q53: 54 | R53: 50 | S53: 0.09 | T53: 62 | U53: 40 | V53: 53 | W53: 52 | Y53: 60.41176471 | Z53: 40.11764706 | AA53: 51.33333333 | AB53: 49.33333333 | AC53: 0.31 | AD53: 53 | AE53: 40 | AF53: 50 | AG53: 49 | AH53: 0 | AI53: 64 | AJ53: 38 | AK53: 53 | AL53: 51 | AM53: 0 | AN53: 69 | AO53: 33 | AP53: 51 | AQ53: 48
B54: 45 | C54: Feb 14 | D54: 0.08 | E54: 63 | F54: 37 | J54: 62.4 | K54: 39.3 | N54: 0.08 | O54: 63 | P54: 39 | Q54: 54 | R54: 48 | S54: 0.1 | T54: 63 | U54: 38 | V54: 54 | W54: 51 | Y54: 61.88235294 | Z54: 38.11764706 | AA54: 51.33333333 | AB54: 50 | AC54: 0 | AD54: 56 | AE54: 41 | AF54: 50 | AG54: 49 | AH54: 0.01 | AI54: 65 | AJ54: 39 | AK54: 53 | AL54: 52 | AM54: 0 | AN54: 63 | AO54: 48 | AP54: 51 | AQ54: 49
B55: 46 | C55: Feb 15 | D55: 0.03 | E55: 62 | F55: 34 | J55: 62.7 | K55: 39.7 | N55: 0.11 | O55: 62 | P55: 40 | Q55: 54 | R55: 49 | S55: 0.06 | T55: 63 | U55: 38 | V55: 53 | W55: 51 | Y55: 60.05882353 | Z55: 36.58823529 | AA55: 51.66666667 | AB55: 50.33333333 | AC55: 0.21 | AD55: 50 | AE55: 45 | AF55: 50 | AG55: 49 | AH55: 0.01 | AI55: 65 | AJ55: 41 | AK55: 53 | AL55: 52 | AM55: 0 | AN55: 63 | AO55: 48 | AP55: 52 | AQ55: 50
B56: 47 | C56: Feb 16 | D56: 0.13 | E56: 61 | F56: 41 | J56: 62.9 | K56: 39.9 | N56: 0.12 | O56: 61 | P56: 41 | Q56: 54 | R56: 50 | S56: 0.06 | T56: 63 | U56: 42 | V56: 53 | W56: 52 | Y56: 60.82352941 | Z56: 40.41176471 | AA56: 52 | AB56: 50.66666667 | AC56: 0.5 | AD56: 56 | AE56: 44 | AF56: 50 | AG56: 49 | AH56: 0 | AI56: 68 | AJ56: 42 | AK56: 54 | AL56: 52 | AM56: 0.32 | AN56: 57 | AO56: 40 | AP56: 52 | AQ56: 51
B57: 48 | C57: Feb 17 | D57: 0.02 | E57: 64 | F57: 42 | J57: 63.1 | K57: 40 | N57: 0.06 | O57: 63 | P57: 43 | Q57: 55 | R57: 50 | S57: 0.07 | T57: 64 | U57: 42 | V57: 54 | W57: 52 | Y57: 62.17647059 | Z57: 42.11764706 | AA57: 52 | AB57: 50.33333333 | AC57: 0.21 | AD57: 52 | AE57: 42 | AF57: 50 | AG57: 49 | AH57: 0.01 | AI57: 71 | AJ57: 41 | AK57: 54 | AL57: 52 | AM57: 0.8 | AN57: 51 | AO57: 41 | AP57: 52 | AQ57: 50
B58: 49 | C58: Feb 18 | D58: 0.12 | E58: 63 | F58: 40 | J58: 63.2 | K58: 40.1 | N58: 0.07 | O58: 63 | P58: 42 | Q58: 55 | R58: 50 | S58: 0.02 | T58: 64 | U58: 42 | V58: 54 | W58: 52 | Y58: 61.82352941 | Z58: 39.58823529 | AA58: 51.66666667 | AB58: 50.33333333 | AC58: 0 | AD58: 58 | AE58: 33 | AF58: 50 | AG58: 49 | AH58: 0 | AI58: 68 | AJ58: 42 | AK58: 55 | AL58: 53 | AM58: 0.65 | AN58: 48 | AO58: 41 | AP58: 50 | AQ58: 49
B59: 50 | C59: Feb 19 | D59: 0.17 | E59: 62 | F59: 40 | J59: 63.4 | K59: 40.2 | N59: 0.08 | O59: 62 | P59: 41 | Q59: 54 | R59: 51 | S59: 0.06 | T59: 64 | U59: 41 | V59: 55 | W59: 53 | Y59: 58.52941176 | Z59: 40.17647059 | AA59: 51.66666667 | AB59: 50.33333333 | AC59: 0.01 | AD59: 63 | AE59: 33 | AF59: 50 | AG59: 48 | AH59: 0 | AI59: 59 | AJ59: 50 | AK59: 55 | AL59: 54 | AM59: 0.17 | AN59: 54 | AO59: 37 | AP59: 50 | AQ59: 49
B60: 51 | C60: Feb 20 | D60: 0.08 | E60: 62 | F60: 38 | J60: 63.5 | K60: 40.3 | N60: 0.07 | O60: 63 | P60: 41 | Q60: 55 | R60: 50 | S60: 0.06 | T60: 63 | U60: 41 | V60: 55 | W60: 53 | Y60: 59.82352941 | Z60: 40.64705882 | AA60: 51.66666667 | AB60: 50 | AC60: 0 | AD60: 62 | AE60: 35 | AF60: 50 | AG60: 48 | AH60: 0 | AI60: 60 | AJ60: 44 | AK60: 55 | AL60: 54 | AM60: 0 | AN60: 55 | AO60: 33 | AP60: 50 | AQ60: 48
B61: 52 | C61: Feb 21 | D61: 0.08 | E61: 63 | F61: 39 | J61: 63.7 | K61: 40.4 | N61: 0.04 | O61: 64 | P61: 40 | Q61: 55 | R61: 50 | S61: 0.01 | T61: 65 | U61: 40 | V61: 55 | W61: 53 | Y61: 59.47058824 | Z61: 38.47058824 | AA61: 52 | AB61: 50.33333333 | AC61: 0.01 | AD61: 59 | AE61: 35 | AF61: 50 | AG61: 48 | AH61: 0.27 | AI61: 54 | AJ61: 44 | AK61: 55 | AL61: 54 | AM61: 0 | AN61: 54 | AO61: 36 | AP61: 51 | AQ61: 49
B62: 53 | C62: Feb 22 | D62: 0.06 | E62: 63 | F62: 40 | J62: 63.9 | K62: 40.4 | N62: 0.05 | O62: 64 | P62: 40 | Q62: 55 | R62: 50 | S62: 0.01 | T62: 65 | U62: 40 | V62: 55 | W62: 53 | Y62: 58.70588235 | Z62: 39.76470588 | AA62: 51.66666667 | AB62: 50.33333333 | AC62: 0.01 | AD62: 58 | AE62: 52 | AF62: 51 | AG62: 50 | AH62: 0 | AI62: 60 | AJ62: 39 | AK62: 54 | AL62: 53 | AM62: 0 | AN62: 58 | AO62: 35 | AP62: 50 | AQ62: 48
B63: 54 | C63: Feb 23 | D63: 0.06 | E63: 64 | F63: 39 | J63: 64.2 | K63: 40.5 | N63: 0.1 | O63: 63 | P63: 40 | Q63: 55 | R63: 50 | S63: 0.14 | T63: 63 | U63: 40 | V63: 54 | W63: 53 | Y63: 59.76470588 | Z63: 38.35294118 | AA63: 52 | AB63: 50 | AC63: 0.02 | AD63: 64 | AE63: 46 | AF63: 53 | AG63: 51 | AH63: 0.96 | AI63: 51 | AJ63: 42 | AK63: 54 | AL63: 52 | AM63: 0 | AN63: 58 | AO63: 31 | AP63: 49 | AQ63: 47
B64: 55 | C64: Feb 24 | D64: 0.06 | E64: 62 | F64: 39 | J64: 64.4 | K64: 40.6 | N64: 0.04 | O64: 63 | P64: 39 | Q64: 55 | R64: 50 | S64: 0.01 | T64: 64 | U64: 40 | V64: 54 | W64: 52 | Y64: 60.35294118 | Z64: 39.29411765 | AA64: 52.33333333 | AB64: 50.33333333 | AC64: 0.01 | AD64: 63 | AE64: 40 | AF64: 54 | AG64: 51 | AH64: 0.1 | AI64: 60 | AJ64: 42 | AK64: 53 | AL64: 52 | AM64: 0.12 | AN64: 53 | AO64: 36 | AP64: 50 | AQ64: 48
B65: 56 | C65: Feb 25 | D65: 0.02 | E65: 65 | F65: 40 | J65: 64.6 | K65: 40.7 | N65: 0.01 | O65: 66 | P65: 41 | Q65: 56 | R65: 50 | S65: 0.01 | T65: 67 | U65: 41 | V65: 55 | W65: 53 | Y65: 61.35294118 | Z65: 40.29411765 | AA65: 52.66666667 | AB65: 51 | AC65: 0 | AD65: 64 | AE65: 45 | AF65: 54 | AG65: 52 | AH65: 0 | AI65: 63 | AJ65: 40 | AK65: 54 | AL65: 52 | AM65: 0.49 | AN65: 53 | AO65: 39 | AP65: 50 | AQ65: 49
B66: 57 | C66: Feb 26 | D66: 0.04 | E66: 64 | F66: 41 | J66: 64.8 | K66: 40.9 | N66: 0.01 | O66: 67 | P66: 43 | Q66: 57 | R66: 51 | S66: 0.04 | T66: 67 | U66: 42 | V66: 55 | W66: 53 | Y66: 61.47058824 | Z66: 40.29411765 | AA66: 52.33333333 | AB66: 51 | AC66: 0.01 | AD66: 64 | AE66: 42 | AF66: 54 | AG66: 53 | AH66: 0.16 | AI66: 63 | AJ66: 45 | AK66: 54 | AL66: 53 | AM66: 0 | AN66: 48 | AO66: 30 | AP66: 49 | AQ66: 47
B67: 58 | C67: Feb 27 | D67: 0.08 | E67: 64 | F67: 42 | J67: 65 | K67: 40.9 | N67: 0.1 | O67: 65 | P67: 43 | Q67: 57 | R67: 52 | S67: 0.06 | T67: 65 | U67: 44 | V67: 55 | W67: 53 | Y67: 61.29411765 | Z67: 41.29411765 | AA67: 52.33333333 | AB67: 50.66666667 | AC67: 0 | AD67: 60 | AE67: 31 | AF67: 54 | AG67: 52 | AH67: 0.01 | AI67: 61 | AJ67: 45 | AK67: 55 | AL67: 54 | AM67: 0 | AN67: 57 | AO67: 29 | AP67: 48 | AQ67: 46
B68: 59 | C68: Feb 28 | D68: 0.04 | E68: 64 | F68: 42 | J68: 65.1 | K68: 41 | N68: 0.03 | O68: 65 | P68: 43 | Q68: 57 | R68: 52 | S68: 0.02 | T68: 67 | U68: 42 | V68: 55 | W68: 53 | Y68: 62.58823529 | Z68: 39.17647059 | AA68: 52 | AB68: 50 | AC68: 0 | AD68: 61 | AE68: 40 | AF68: 53 | AG68: 51 | AH68: 0 | AI68: 65 | AJ68: 38 | AK68: 54 | AL68: 53 | AM68: 0 | AN68: 61 | AO68: 31 | AP68: 49 | AQ68: 46
B69: 59 | C69: Feb 29 | D69: 0.04 | E69: 64 | F69: 42 | J69: 65.4 | K69: 41.1 | N69: 0.03 | O69: 65 | P69: 43 | Q69: 57 | R69: 52 | S69: 0.02 | T69: 67 | U69: 42 | V69: 55 | W69: 53 | Y69: 62 | Z69: 39 | AA69: =AVERAGE(AA68,AA70) -> 52.16666667 | AB69: =AVERAGE(AB68,AB70) -> 50.5
B70: 60 | C70: Mar 1 | D70: 0.08 | E70: 65 | F70: 42 | J70: 65.6 | K70: 41.2 | N70: 0.1 | O70: 65 | P70: 43 | Q70: 57 | R70: 52 | S70: 0.07 | T70: 66 | U70: 43 | V70: 56 | W70: 54 | Y70: 63.41176471 | Z70: 39.82352941 | AA70: 52.33333333 | AB70: 51 | AC70: 0.05 | AD70: 59 | AE70: 51 | AF70: 53 | AG70: 53 | AH70: 0 | AI70: 65 | AJ70: 44 | AK70: 55 | AL70: 53 | AM70: 0 | AN70: 59 | AO70: 32 | AP70: 49 | AQ70: 47
B71: 61 | C71: Mar 2 | D71: 0.1 | E71: 65 | F71: 43 | J71: 65.8 | K71: 41.2 | N71: 0.11 | O71: 66 | P71: 44 | Q71: 57 | R71: 52 | S71: 0.05 | T71: 67 | U71: 44 | V71: 56 | W71: 54 | Y71: 63.64705882 | Z71: 41.64705882 | AA71: 53.66666667 | AB71: 52 | AC71: 0.08 | AD71: 67 | AE71: 49 | AF71: 55 | AG71: 53 | AH71: 0.23 | AI71: 59 | AJ71: 47 | AK71: 55 | AL71: 54 | AM71: 0.04 | AN71: 65 | AO71: 49 | AP71: 51 | AQ71: 49
B72: 62 | C72: Mar 3 | D72: 0.07 | E72: 63 | F72: 42 | J72: 66 | K72: 41.4 | N72: 0.12 | O72: 66 | P72: 45 | Q72: 57 | R72: 53 | S72: 0.04 | T72: 66 | U72: 43 | V72: 56 | W72: 54 | Y72: 61.11764706 | Z72: 40.47058824 | AA72: 54 | AB72: 52 | AC72: 0.07 | AD72: 60 | AE72: 46 | AF72: 54 | AG72: 53 | AH72: 0.48 | AI72: 51 | AJ72: 41 | AK72: 55 | AL72: 53 | AM72: 0 | AN72: 66 | AO72: 42 | AP72: 53 | AQ72: 50
B73: 63 | C73: Mar 4 | D73: 0.11 | E73: 64 | F73: 40 | J73: 66.2 | K73: 41.5 | N73: 0.1 | O73: 65 | P73: 44 | Q73: 57 | R73: 53 | S73: 0.06 | T73: 67 | U73: 45 | V73: 56 | W73: 54 | Y73: 62.52941176 | Z73: 38.29411765 | AA73: 53.66666667 | AB73: 51.66666667 | AC73: 0.17 | AD73: 56 | AE73: 34 | AF73: 54 | AG73: 52 | AH73: 0.02 | AI73: 58 | AJ73: 38 | AK73: 54 | AL73: 53 | AM73: 0 | AN73: 65 | AO73: 40 | AP73: 53 | AQ73: 50
B74: 64 | C74: Mar 5 | D74: 0.14 | E74: 62 | F74: 41 | J74: 66.3 | K74: 41.6 | N74: 0.21 | O74: 64 | P74: 44 | Q74: 57 | R74: 53 | S74: 0.17 | T74: 66 | U74: 44 | V74: 57 | W74: 54 | Y74: 61.76470588 | Z74: 39.64705882 | AA74: 53.33333333 | AB74: 51 | AC74: 0 | AD74: 58 | AE74: 33 | AF74: 53 | AG74: 51 | AH74: 0 | AI74: 57 | AJ74: 34 | AK74: 53 | AL74: 51 | AM74: 0 | AN74: 69 | AO74: 43 | AP74: 54 | AQ74: 51
B75: 65 | C75: Mar 6 | D75: 0.01 | E75: 65 | F75: 39 | J75: 66.5 | K75: 41.7 | N75: 0.03 | O75: 65 | P75: 44 | Q75: 58 | R75: 53 | S75: 0.04 | T75: 65 | U75: 43 | V75: 57 | W75: 55 | Y75: 63.88235294 | Z75: 39.47058824 | AA75: =AVERAGE(AF75,AK75,AP75) -> 53.33333333 | AB75: =AVERAGE(AG75,AL75,AQ75) -> 52 | AC75: 0 | AD75: 58 | AE75: 34 | AF75: 52 | AG75: 51 | AH75: 0 | AI75: 61 | AJ75: 44 | AK75: 53 | AL75: 52 | AM75: 0.13 | AN75: 62 | AO75: 51 | AP75: 55 | AQ75: 53
B76: 66 | C76: Mar 7 | D76: 0.03 | E76: 67 | F76: 40 | J76: 66.7 | K76: 41.9 | N76: 0.03 | O76: 67 | P76: 43 | Q76: 59 | R76: 53 | S76: 0 | T76: 68 | U76: 44 | V76: 57 | W76: 55 | Y76: 66.11764706 | Z76: 37.88235294 | AA76: 53.66666667 | AB76: 51.66666667 | AC76: 0 | AD76: 60 | AE76: 31 | AF76: 52 | AG76: 50 | AH76: 0 | AI76: 64 | AJ76: 39 | AK76: 54 | AL76: 52 | AM76: 0 | AN76: 59 | AO76: 48 | AP76: 55 | AQ76: 53
B77: 67 | C77: Mar 8 | D77: 0.03 | E77: 68 | F77: 43 | J77: 66.9 | K77: 41.9 | N77: 0.07 | O77: 68 | P77: 45 | Q77: 59 | R77: 54 | S77: 0.06 | T77: 70 | U77: 45 | V77: 58 | W77: 55 | Y77: 66.76470588 | Z77: 40 | AA77: 53.33333333 | AB77: 51 | AC77: 0 | AD77: 65 | AE77: 31 | AF77: 52 | AG77: 49 | AH77: 0 | AI77: 57 | AJ77: 39 | AK77: 53 | AL77: 52 | AM77: 0 | AN77: 65 | AO77: 40 | AP77: 55 | AQ77: 52
B78: 68 | C78: Mar 9 | D78: 0.04 | E78: 67 | F78: 43 | J78: 67.1 | K78: 42.1 | N78: 0.11 | O78: 67 | P78: 45 | Q78: 59 | R78: 54 | S78: 0.03 | T78: 68 | U78: 45 | V78: 58 | W78: 55 | Y78: 66 | Z78: 40.47058824 | AA78: 53.66666667 | AB78: 51.33333333 | AC78: 0 | AD78: 54 | AE78: 34 | AF78: 52 | AG78: 50 | AH78: 0 | AI78: 55 | AJ78: 37 | AK78: 53 | AL78: 51 | AM78: 0 | AN78: 67 | AO78: 40 | AP78: 56 | AQ78: 53
B79: 69 | C79: Mar 10 | D79: 0.13 | E79: 67 | F79: 42 | J79: 67.2 | K79: 42.3 | N79: 0.24 | O79: 67 | P79: 43 | Q79: 59 | R79: 53 | S79: 0.11 | T79: 69 | U79: 44 | V79: 58 | W79: 55 | Y79: 67.17647059 | Z79: 39.88235294 | AA79: 52.66666667 | AB79: 50.66666667 | AC79: 0 | AD79: 57 | AE79: 28 | AF79: 50 | AG79: 48 | AH79: 0.09 | AI79: 53 | AJ79: 35 | AK79: 52 | AL79: 51 | AM79: 0.01 | AN79: 67 | AO79: 42 | AP79: 56 | AQ79: 53
B80: 70 | C80: Mar 11 | D80: 0.02 | E80: 67 | F80: 42 | J80: 67.3 | K80: 42.3 | N80: 0.04 | O80: 66 | P80: 45 | Q80: 60 | R80: 54 | S80: 0.01 | T80: 68 | U80: 44 | V80: 59 | W80: 56 | Y80: 68.23529412 | Z80: 41.17647059 | AA80: 52.66666667 | AB80: 50.33333333 | AC80: 0 | AD80: 61 | AE80: 27 | AF80: 50 | AG80: 48 | AH80: 0 | AI80: 63 | AJ80: 32 | AK80: 53 | AL80: 49 | AM80: 0 | AN80: 62 | AO80: 39 | AP80: 55 | AQ80: 54
B81: 71 | C81: Mar 12 | D81: 0.07 | E81: 66 | F81: 41 | J81: 67.4 | K81: 42.4 | N81: 0.02 | O81: 68 | P81: 42 | Q81: 60 | R81: 53 | S81: 0.02 | T81: 69 | U81: 43 | V81: 59 | W81: 56 | Y81: 68.17647059 | Z81: 40.35294118 | AA81: 52.66666667 | AB81: 50.33333333 | AC81: 0 | AD81: 66 | AE81: 32 | AF81: 51 | AG81: 48 | AH81: 0.37 | AI81: 57 | AJ81: 38 | AK81: 52 | AL81: 50 | AM81: 0 | AN81: 64 | AO81: 40 | AP81: 55 | AQ81: 53
B82: 72 | C82: Mar 13 | D82: 0.02 | E82: 67 | F82: 41 | J82: 67.5 | K82: 42.4 | N82: 0.09 | O82: 67 | P82: 43 | Q82: 60 | R82: 54 | S82: 0.07 | T82: 68 | U82: 43 | V82: 58 | W82: 56 | Y82: 68.05882353 | Z82: 40.64705882 | AA82: 52.66666667 | AB82: 50.33333333 | AC82: 0 | AD82: 68 | AE82: 31 | AF82: 51 | AG82: 48 | AH82: 0 | AI82: 57 | AJ82: 34 | AK82: 52 | AL82: 50 | AM82: 0.01 | AN82: 66 | AO82: 42 | AP82: 55 | AQ82: 53
B83: 73 | C83: Mar 14 | D83: 0.01 | E83: 68 | F83: 40 | J83: 67.6 | K83: 42.2 | N83: 0.08 | O83: 68 | P83: 43 | Q83: 60 | R83: 54 | S83: 0.02 | T83: 69 | U83: 43 | V83: 58 | W83: 56 | Y83: 69.23529412 | Z83: 40.64705882 | AA83: 54 | AB83: 51 | AC83: 0.01 | AD83: 60 | AE83: 32 | AF83: 51 | AG83: 49 | AH83: 0 | AI83: 64 | AJ83: 32 | AK83: 53 | AL83: 49 | AM83: 0.04 | AN83: 72 | AO83: 51 | AP83: 58 | AQ83: 55
B84: 74 | C84: Mar 15 | D84: 0 | E84: 69 | F84: 42 | J84: 67.8 | K84: 42.2 | N84: 0.08 | O84: 66 | P84: 44 | Q84: 59 | R84: 54 | S84: 0.04 | T84: 68 | U84: 44 | V84: 58 | W84: 56 | Y84: 69.11764706 | Z84: 41.70588235 | AA84: 55 | AB84: 52 | AC84: 0 | AD84: 66 | AE84: 36 | AF84: 53 | AG84: 50 | AH84: 0 | AI84: 67 | AJ84: 38 | AK84: 54 | AL84: 50 | AM84: 0 | AN84: 72 | AO84: 48 | AP84: 58 | AQ84: 56
B85: 75 | C85: Mar 16 | D85: 0.02 | E85: 67 | F85: 42 | J85: 68 | K85: 42.2 | N85: 0.04 | O85: 67 | P85: 44 | Q85: 60 | R85: 54 | S85: 0.01 | T85: 69 | U85: 44 | V85: 58 | W85: 56 | Y85: 69.23529412 | Z85: 42.64705882 | AA85: 56 | AB85: 53.66666667 | AC85: 0 | AD85: 69 | AE85: 42 | AF85: 54 | AG85: 52 | AH85: 0 | AI85: 79 | AJ85: 40 | AK85: 56 | AL85: 52 | AM85: 0.07 | AN85: 59 | AO85: 45 | AP85: 58 | AQ85: 57
B86: 76 | C86: Mar 17 | D86: 0.04 | E86: 69 | F86: 41 | J86: 68.2 | K86: 42.2 | N86: 0.08 | O86: 69 | P86: 44 | Q86: 61 | R86: 54 | S86: 0.02 | T86: 71 | U86: 44 | V86: 59 | W86: 56 | Y86: 70.52941176 | Z86: 40.52941176 | AA86: 56.33333333 | AB86: 53.33333333 | AC86: 0 | AD86: 68 | AE86: 42 | AF86: 55 | AG86: 52 | AH86: 0 | AI86: 74 | AJ86: 46 | AK86: 57 | AL86: 54 | AM86: 0 | AN86: 63 | AO86: 37 | AP86: 57 | AQ86: 54
B87: 77 | C87: Mar 18 | D87: 0.02 | E87: 71 | F87: 42 | J87: 68.4 | K87: 42.2 | N87: 0.1 | O87: 71 | P87: 44 | Q87: 61 | R87: 54 | S87: 0.06 | T87: 72 | U87: 44 | V87: 59 | W87: 56 | Y87: 72 | Z87: 42.64705882 | AA87: 55.66666667 | AB87: 53 | AC87: 0 | AD87: 70 | AE87: 42 | AF87: 55 | AG87: 52 | AH87: 0 | AI87: 73 | AJ87: 44 | AK87: 57 | AL87: 54 | AM87: 0.39 | AN87: 59 | AO87: 41 | AP87: 55 | AQ87: 53
B88: 78 | C88: Mar 19 | D88: 0.03 | E88: 70 | F88: 43 | J88: 68.7 | K88: 42.3 | N88: 0.04 | O88: 73 | P88: 46 | Q88: 62 | R88: 55 | S88: 0.05 | T88: 74 | U88: 45 | V88: 59 | W88: 57 | Y88: 72 | Z88: 42.11764706 | AA88: 55.33333333 | AB88: 52.66666667 | AC88: 0 | AD88: 75 | AE88: 44 | AF88: 56 | AG88: 53 | AH88: 0 | AI88: 77 | AJ88: 37 | AK88: 57 | AL88: 53 | AM88: 0.06 | AN88: 53 | AO88: 42 | AP88: 53 | AQ88: 52
B89: 79 | C89: Mar 20 | D89: 0.03 | E89: 69 | F89: 44 | J89: 69 | K89: 42.4 | N89: 0.09 | O89: 73 | P89: 46 | Q89: 63 | R89: 56 | S89: 0.07 | T89: 73 | U89: 47 | V89: 60 | W89: 57 | Y89: 69.41176471 | Z89: 43.94117647 | AA89: 56 | AB89: 53 | AC89: 0 | AD89: 73 | AE89: 39 | AF89: 56 | AG89: 53 | AH89: 0 | AI89: 76 | AJ89: 41 | AK89: 59 | AL89: 54 | AM89: 1 | AN89: 52 | AO89: 43 | AP89: 53 | AQ89: 52
B90: 80 | C90: Mar 21 | D90: 0.02 | E90: 70 | F90: 43 | J90: 69.2 | K90: 42.6 | N90: 0.08 | O90: 71 | P90: 44 | Q90: 62 | R90: 56 | S90: 0.06 | T90: 71 | U90: 46 | V90: 60 | W90: 58 | Y90: 70.05882353 | Z90: 42.94117647 | AA90: 55.33333333 | AB90: 53.33333333 | AC90: 0.12 | AD90: 65 | AE90: 37 | AF90: 55 | AG90: 53 | AH90: 0 | AI90: 72 | AJ90: 42 | AK90: 58 | AL90: 55 | AM90: 0.2 | AN90: 55 | AO90: 40 | AP90: 53 | AQ90: 52
B91: 81 | C91: Mar 22 | D91: 0.08 | E91: 68 | F91: 41 | J91: 69.4 | K91: 42.6 | N91: 0.07 | O91: 72 | P91: 45 | Q91: 63 | R91: 56 | S91: 0.02 | T91: 73 | U91: 45 | V91: 60 | W91: 58 | Y91: 68.76470588 | Z91: 42.41176471 | AA91: 55.33333333 | AB91: 53.33333333 | AC91: 0.06 | AD91: 57 | AE91: 38 | AF91: 55 | AG91: 54 | AH91: 0 | AI91: 67 | AJ91: 46 | AK91: 58 | AL91: 55 | AM91: 0.04 | AN91: 59 | AO91: 34 | AP91: 53 | AQ91: 51
B92: 82 | C92: Mar 23 | D92: 0.09 | E92: 67 | F92: 43 | J92: 69.6 | K92: 42.6 | N92: 0.06 | O92: 70 | P92: 46 | Q92: 62 | R92: 56 | S92: 0.04 | T92: 72 | U92: 45 | V92: 60 | W92: 58 | Y92: 68.70588235 | Z92: 41.94117647 | AA92: 55 | AB92: 53.33333333 | AC92: 0 | AD92: 60 | AE92: 36 | AF92: 54 | AG92: 52 | AH92: 0 | AI92: 71 | AJ92: 41 | AK92: 58 | AL92: 55 | AM92: 0.18 | AN92: 54 | AO92: 45 | AP92: 53 | AQ92: 53
B93: 83 | C93: Mar 24 | D93: 0.11 | E93: 69 | F93: 43 | J93: 69.8 | K93: 42.6 | N93: 0.14 | O93: 70 | P93: 46 | Q93: 62 | R93: 56 | S93: 0.05 | T93: 71 | U93: 45 | V93: 60 | W93: 58 | Y93: 70.70588235 | Z93: 41.94117647 | AA93: 55 | AB93: 52.66666667 | AC93: 0 | AD93: 68 | AE93: 31 | AF93: 53 | AG93: 51 | AH93: 0 | AI93: 74 | AJ93: 45 | AK93: 59 | AL93: 55 | AM93: 0.93 | AN93: 52 | AO93: 41 | AP93: 53 | AQ93: 52
B94: 84 | C94: Mar 25 | D94: 0.1 | E94: 67 | F94: 44 | J94: 70 | K94: 42.6 | N94: 0.15 | O94: 68 | P94: 47 | Q94: 62 | R94: 56 | S94: 0.09 | T94: 69 | U94: 46 | V94: 60 | W94: 58 | Y94: 68.29411765 | Z94: 43.11764706 | AA94: 55 | AB94: 52.33333333 | AC94: 0 | AD94: 70 | AE94: 34 | AF94: 54 | AG94: 51 | AH94: 0 | AI94: 63 | AJ94: 39 | AK94: 58 | AL94: 55 | AM94: 0.01 | AN94: 60 | AO94: 39 | AP94: 53 | AQ94: 51
B95: 85 | C95: Mar 26 | D95: 0.08 | E95: 69 | F95: 41 | J95: 70.3 | K95: 42.6 | N95: 0.02 | O95: 70 | P95: 45 | Q95: 63 | R95: 56 | S95: 0.05 | T95: 71 | U95: 45 | V95: 60 | W95: 58 | Y95: 68.64705882 | Z95: 41.82352941 | AA95: 55 | AB95: 52.66666667 | AC95: 0 | AD95: 74 | AE95: 43 | AF95: 55 | AG95: 52 | AH95: 0 | AI95: 64 | AJ95: 38 | AK95: 57 | AL95: 54 | AM95: 0.51 | AN95: 53 | AO95: 46 | AP95: 53 | AQ95: 52
B96: 86 | C96: Mar 27 | D96: 0.05 | E96: 68 | F96: 41 | J96: 70.5 | K96: 42.7 | N96: 0.03 | O96: 70 | P96: 44 | Q96: 62 | R96: 56 | S96: 0.04 | T96: 71 | U96: 45 | V96: 60 | W96: 58 | Y96: 68 | Z96: 41.17647059 | AA96: 55.66666667 | AB96: 53.33333333 | AC96: 0 | AD96: 75 | AE96: 46 | AF96: 56 | AG96: 54 | AH96: 0 | AI96: 69 | AJ96: 35 | AK96: 57 | AL96: 54 | AM96: 0 | AN96: 65 | AO96: 40 | AP96: 54 | AQ96: 52
B97: 87 | C97: Mar 28 | D97: 0.02 | E97: 69 | F97: 41 | J97: 70.8 | K97: 42.8 | N97: 0.21 | O97: 69 | P97: 44 | Q97: 63 | R97: 56 | S97: 0.02 | T97: 70 | U97: 44 | V97: 60 | W97: 58 | Y97: 69.17647059 | Z97: 40.17647059 | AA97: 56.66666667 | AB97: 53.66666667 | AC97: 0 | AD97: 78 | AE97: 40 | AF97: 57 | AG97: 54 | AH97: 0 | AI97: 77 | AJ97: 40 | AK97: 58 | AL97: 54 | AM97: 0 | AN97: 62 | AO97: 42 | AP97: 55 | AQ97: 53
B98: 88 | C98: Mar 29 | D98: 0 | E98: 70 | F98: 40 | J98: 71.2 | K98: 42.9 | N98: 0 | O98: 71 | P98: 45 | Q98: 64 | R98: 56 | S98: 0 | T98: 73 | U98: 43 | V98: 60 | W98: 58 | Y98: 69.35294118 | Z98: 39.76470588 | AA98: 56.66666667 | AB98: 54.33333333 | AC98: 0 | AD98: 64 | AE98: 47 | AF98: 56 | AG98: 55 | AH98: 0 | AI98: 74 | AJ98: 40 | AK98: 59 | AL98: 55 | AM98: 0 | AN98: 67 | AO98: 40 | AP98: 55 | AQ98: 53
B99: 89 | C99: Mar 30 | D99: 0 | E99: 71 | F99: 41 | J99: 71.5 | K99: 43 | N99: 0.02 | O99: 73 | P99: 46 | Q99: 65 | R99: 57 | S99: 0.01 | T99: 73 | U99: 44 | V99: 61 | W99: 58 | Y99: 69.88235294 | Z99: 41 | AA99: 57 | AB99: 54.66666667 | AC99: 0 | AD99: 66 | AE99: 39 | AF99: 55 | AG99: 53 | AH99: 0 | AI99: 62 | AJ99: 46 | AK99: 59 | AL99: 57 | AM99: 0 | AN99: 73 | AO99: 45 | AP99: 57 | AQ99: 54
B100: 90 | C100: Mar 31 | D100: 0.03 | E100: 71 | F100: 42 | J100: 71.7 | K100: 43.1 | N100: 0.03 | O100: 73 | P100: 46 | Q100: 65 | R100: 57 | S100: 0.03 | T100: 74 | U100: 45 | V100: 61 | W100: 58 | Y100: 69.88235294 | Z100: 39.70588235 | AA100: 57 | AB100: 54.33333333 | AC100: 0 | AD100: 71 | AE100: 34 | AF100: 55 | AG100: 52 | AH100: 0 | AI100: 59 | AJ100: 41 | AK100: 58 | AL100: 56 | AM100: 0 | AN100: 80 | AO100: 47 | AP100: 58 | AQ100: 55
B101: 91 | C101: Apr 1 | D101: 0.05 | E101: 69 | F101: 42 | J101: 71.9 | K101: 43.1 | N101: 0.05 | O101: 71 | P101: 45 | Q101: 64 | R101: 58 | S101: 0.01 | T101: 72 | U101: 44 | V101: 61 | W101: 58 | Y101: 69.11764706 | Z101: 40.88235294 | AA101: 58 | AB101: 55.33333333 | AC101: 0 | AD101: 75 | AE101: 46 | AF101: 56 | AG101: 54 | AH101: 0 | AI101: 60 | AJ101: 39 | AK101: 58 | AL101: 55 | AM101: 0 | AN101: 86 | AO101: 48 | AP101: 60 | AQ101: 57
B102: 92 | C102: Apr 2 | D102: 0 | E102: 71 | F102: 41 | J102: 72.1 | K102: 43.2 | N102: 0 | O102: 71 | P102: 43 | Q102: 64 | R102: 57 | S102: 0 | T102: 72 | U102: 43 | V102: 61 | W102: 58 | Y102: 69.05882353 | Z102: 41.35294118 | AA102: 57.33333333 | AB102: 55.66666667 | AC102: 0 | AD102: 69 | AE102: 34 | AF102: 56 | AG102: 54 | AH102: 0 | AI102: 55 | AJ102: 36 | AK102: 56 | AL102: 54 | AM102: 0 | AN102: 69 | AO102: 47 | AP102: 60 | AQ102: 59
B103: 93 | C103: Apr 3 | D103: 0.01 | E103: 71 | F103: 43 | J103: 72.3 | K103: 43.2 | N103: 0.06 | O103: 72 | P103: 44 | Q103: 64 | R103: 56 | S103: 0.02 | T103: 74 | U103: 44 | V103: 61 | W103: 58 | Y103: 69.64705882 | Z103: 41.29411765 | AA103: 57 | AB103: 55 | AC103: 0 | AD103: 66 | AE103: 42 | AF103: 56 | AG103: 54 | AH103: 0 | AI103: 57 | AJ103: 35 | AK103: 56 | AL103: 54 | AM103: 0 | AN103: 66 | AO103: 44 | AP103: 59 | AQ103: 57
B104: 94 | C104: Apr 4 | D104: 0 | E104: 72 | F104: 42 | J104: 72.4 | K104: 43.3 | N104: 0.01 | O104: 73 | P104: 45 | Q104: 66 | R104: 58 | S104: 0 | T104: 75 | U104: 45 | V104: 61 | W104: 58 | Y104: 69.41176471 | Z104: 40.94117647 | AA104: 56.33333333 | AB104: 53.66666667 | AC104: 0 | AD104: 67 | AE104: 38 | AF104: 56 | AG104: 53 | AH104: 0 | AI104: 55 | AJ104: 35 | AK104: 55 | AL104: 53 | AM104: 0 | AN104: 79 | AO104: 41 | AP104: 58 | AQ104: 55
B105: 95 | C105: Apr 5 | D105: 0.01 | E105: 72 | F105: 41 | J105: 72.6 | K105: 43.3 | N105: 0.04 | O105: 73 | P105: 46 | Q105: 65 | R105: 58 | S105: 0 | T105: 75 | U105: 45 | V105: 62 | W105: 58 | Y105: 69.88235294 | Z105: 41.23529412 | AA105: 57 | AB105: 54 | AC105: 0 | AD105: 76 | AE105: 30 | AF105: 56 | AG105: 52 | AH105: 0 | AI105: 59 | AJ105: 42 | AK105: 56 | AL105: 54 | AM105: 0 | AN105: 76 | AO105: 44 | AP105: 59 | AQ105: 56
B106: 96 | C106: Apr 6 | D106: 0.04 | E106: 71 | F106: 42 | J106: 72.9 | K106: 43.4 | N106: 0.04 | O106: 74 | P106: 46 | Q106: 65 | R106: 58 | S106: 0.04 | T106: 75 | U106: 46 | V106: 63 | W106: 59 | Y106: 70.17647059 | Z106: 41.05882353 | AA106: 57.33333333 | AB106: 54.33333333 | AC106: 0 | AD106: 81 | AE106: 40 | AF106: 57 | AG106: 53 | AH106: 0 | AI106: 62 | AJ106: 36 | AK106: 56 | AL106: 53 | AM106: 0 | AN106: 72 | AO106: 47 | AP106: 59 | AQ106: 57
B107: 97 | C107: Apr 7 | D107: 0.01 | E107: 71 | F107: 42 | J107: 73.1 | K107: 43.6 | N107: 0.04 | O107: 72 | P107: 46 | Q107: 66 | R107: 59 | S107: 0.02 | T107: 74 | U107: 46 | V107: 63 | W107: 60 | Y107: 69.52941176 | Z107: 41.64705882 | AA107: 57 | AB107: 55 | AC107: 0.14 | AD107: 63 | AE107: 42 | AF107: 56 | AG107: 55 | AH107: 0 | AI107: 72 | AJ107: 36 | AK107: 57 | AL107: 53 | AM107: 0.15 | AN107: 58 | AO107: 39 | AP107: 58 | AQ107: 57
B108: 98 | C108: Apr 8 | D108: 0.05 | E108: 69 | F108: 42 | J108: 73.4 | K108: 43.6 | N108: 0.02 | O108: 73 | P108: 45 | Q108: 66 | R108: 59 | S108: 0.01 | T108: 74 | U108: 45 | V108: 62 | W108: 60 | Y108: 67.64705882 | Z108: 42 | AA108: 57.33333333 | AB108: 54.66666667 | AC108: 0 | AD108: 64 | AE108: 46 | AF108: 57 | AG108: 55 | AH108: 0 | AI108: 71 | AJ108: 40 | AK108: 58 | AL108: 54 | AM108: 0 | AN108: 57 | AO108: 35 | AP108: 57 | AQ108: 55
B109: 99 | C109: Apr 9 | D109: 0 | E109: 71 | F109: 40 | J109: 73.7 | K109: 43.8 | N109: 0.02 | O109: 72 | P109: 45 | Q109: 66 | R109: 59 | S109: 0.01 | T109: 73 | U109: 44 | V109: 62 | W109: 59 | Y109: 67.94117647 | Z109: 42.58823529 | AA109: 57 | AB109: 54.33333333 | AC109: 0.1 | AD109: 58 | AE109: 46 | AF109: 57 | AG109: 55 | AH109: 0 | AI109: 69 | AJ109: 46 | AK109: 58 | AL109: 55 | AM109: 0 | AN109: 64 | AO109: 33 | AP109: 56 | AQ109: 53
B110: 100 | C110: Apr 10 | D110: 0 | E110: 73 | F110: 43 | J110: 73.9 | K110: 43.9 | N110: 0.01 | O110: 74 | P110: 46 | Q110: 66 | R110: 59 | S110: 0 | T110: 76 | U110: 44 | V110: 62 | W110: 59 | Y110: 70.11764706 | Z110: 42.58823529 | AA110: 58 | AB110: 55 | AC110: 0.02 | AD110: 61 | AE110: 42 | AF110: 60 | AG110: 56 | AH110: 0 | AI110: 63 | AJ110: 46 | AK110: 58 | AL110: 56 | AM110: 0 | AN110: 68 | AO110: 34 | AP110: 56 | AQ110: 53
B111: 101 | C111: Apr 11 | D111: 0.03 | E111: 73 | F111: 44 | J111: 74.2 | K111: 44.1 | N111: 0.02 | O111: 73 | P111: 46 | Q111: 68 | R111: 59 | S111: 0.02 | T111: 75 | U111: 45 | V111: 63 | W111: 60 | Y111: 69.76470588 | Z111: 44.11764706 | AA111: 58.33333333 | AB111: 54.33333333 | AC111: 0 | AD111: 66 | AE111: 39 | AF111: 61 | AG111: 53 | AH111: 0.46 | AI111: 58 | AJ111: 45 | AK111: 57 | AL111: 55 | AM111: 0 | AN111: 66 | AO111: 40 | AP111: 57 | AQ111: 55
B112: 102 | C112: Apr 12 | D112: 0.02 | E112: 73 | F112: 44 | J112: 74.5 | K112: 44.3 | N112: 0.01 | O112: 75 | P112: 46 | Q112: 67 | R112: 59 | S112: 0.01 | T112: 77 | U112: 45 | V112: 63 | W112: 60 | Y112: 72.76470588 | Z112: 43.94117647 | AA112: 59.33333333 | AB112: 55 | AC112: 0 | AD112: 72 | AE112: 41 | AF112: 64 | AG112: 55 | AH112: 0.46 | AI112: 60 | AJ112: 46 | AK112: 57 | AL112: 55 | AM112: 0 | AN112: 70 | AO112: 39 | AP112: 57 | AQ112: 55
B113: 103 | C113: Apr 13 | D113: 0.03 | E113: 71 | F113: 42 | J113: 74.9 | K113: 44.5 | N113: 0.04 | O113: 74 | P113: 47 | Q113: 67 | R113: 60 | S113: 0 | T113: 77 | U113: 45 | V113: 63 | W113: 60 | Y113: 71.05882353 | Z113: 43.76470588 | AA113: 59 | AB113: 55.33333333 | AC113: 0 | AD113: 71 | AE113: 45 | AF113: 63 | AG113: 57 | AH113: 0 | AI113: 64 | AJ113: 37 | AK113: 57 | AL113: 54 | AM113: 0 | AN113: 61 | AO113: 37 | AP113: 57 | AQ113: 55
B114: 104 | C114: Apr 14 | D114: 0.02 | E114: 72 | F114: 41 | J114: 75.2 | K114: 44.7 | N114: 0.08 | O114: 75 | P114: 46 | Q114: 67 | R114: 60 | S114: 0.04 | T114: 76 | U114: 46 | V114: 63 | W114: 60 | Y114: 70 | Z114: 42.82352941 | AA114: 58 | AB114: 54.66666667 | AC114: 0 | AD114: 59 | AE114: 44 | AF114: 60 | AG114: 56 | AH114: 0 | AI114: 67 | AJ114: 40 | AK114: 57 | AL114: 54 | AM114: 0 | AN114: 65 | AO114: 36 | AP114: 57 | AQ114: 54
B115: 105 | C115: Apr 15 | D115: 0.01 | E115: 71 | F115: 42 | J115: 75.6 | K115: 45 | N115: 0 | O115: 75 | P115: 48 | Q115: 68 | R115: 61 | S115: 0.01 | T115: 77 | U115: 47 | V115: 64 | W115: 61 | Y115: 72.35294118 | Z115: 43.29411765 | AA115: 59.33333333 | AB115: 54.33333333 | AC115: 0 | AD115: 62 | AE115: 38 | AF115: 60 | AG115: 54 | AH115: 0 | AI115: 71 | AJ115: 42 | AK115: 60 | AL115: 55 | AM115: 0 | AN115: 73 | AO115: 41 | AP115: 58 | AQ115: 54
B116: 106 | C116: Apr 16 | D116: 0.02 | E116: 71 | F116: 45 | J116: 76 | K116: 45.2 | N116: 0.06 | O116: 74 | P116: 49 | Q116: 67 | R116: 60 | S116: 0.02 | T116: 76 | U116: 48 | V116: 65 | W116: 61 | Y116: 72 | Z116: 44 | AA116: 60.66666667 | AB116: 55.33333333 | AC116: 0 | AD116: 69 | AE116: 36 | AF116: 62 | AG116: 53 | AH116: 0 | AI116: 71 | AJ116: 45 | AK116: 61 | AL116: 56 | AM116: 0 | AN116: 75 | AO116: 51 | AP116: 59 | AQ116: 57
B117: 107 | C117: Apr 17 | D117: 0.08 | E117: 72 | F117: 44 | J117: 76.2 | K117: 45.4 | N117: 0.08 | O117: 74 | P117: 49 | Q117: 67 | R117: 61 | S117: 0.04 | T117: 77 | U117: 49 | V117: 65 | W117: 62 | Y117: 72.05882353 | Z117: 44.11764706 | AA117: 62.33333333 | AB117: 56.66666667 | AC117: 0 | AD117: 75 | AE117: 39 | AF117: 64 | AG117: 55 | AH117: 0 | AI117: 73 | AJ117: 45 | AK117: 62 | AL117: 57 | AM117: 0 | AN117: 78 | AO117: 49 | AP117: 61 | AQ117: 58
B118: 108 | C118: Apr 18 | D118: 0.02 | E118: 73 | F118: 43 | J118: 76.5 | K118: 45.6 | N118: 0.01 | O118: 74 | P118: 47 | Q118: 68 | R118: 61 | S118: 0.01 | T118: 76 | U118: 47 | V118: 65 | W118: 62 | Y118: 72.70588235 | Z118: 42.82352941 | AA118: 64 | AB118: 57.66666667 | AC118: 0 | AD118: 80 | AE118: 44 | AF118: 67 | AG118: 57 | AH118: 0 | AI118: 77 | AJ118: 42 | AK118: 64 | AL118: 57 | AM118: 0 | AN118: 71 | AO118: 54 | AP118: 61 | AQ118: 59
B119: 109 | C119: Apr 19 | D119: 0.03 | E119: 71 | F119: 44 | J119: 76.7 | K119: 45.8 | N119: 0.07 | O119: 74 | P119: 47 | Q119: 68 | R119: 61 | S119: 0.05 | T119: 77 | U119: 47 | V119: 65 | W119: 62 | Y119: 71.70588235 | Z119: 43.41176471 | AA119: 65 | AB119: 59.33333333 | AC119: 0 | AD119: 88 | AE119: 47 | AF119: 70 | AG119: 60 | AH119: 0 | AI119: 78 | AJ119: 47 | AK119: 64 | AL119: 59 | AM119: 0 | AN119: 71 | AO119: 54 | AP119: 61 | AQ119: 59
B120: 110 | C120: Apr 20 | D120: 0.08 | E120: 72 | F120: 44 | J120: 76.9 | K120: 45.9 | N120: 0.04 | O120: 75 | P120: 49 | Q120: 68 | R120: 61 | S120: 0.02 | T120: 77 | U120: 48 | V120: 65 | W120: 62 | Y120: 71.05882353 | Z120: 44.17647059 | AA120: 64.33333333 | AB120: 60.33333333 | AC120: 0 | AD120: 90 | AE120: 51 | AF120: 70 | AG120: 62 | AH120: 0.7 | AI120: 58 | AJ120: 44 | AK120: 62 | AL120: 59 | AM120: 0 | AN120: 74 | AO120: 54 | AP120: 61 | AQ120: 60
B121: 111 | C121: Apr 21 | D121: 0.01 | E121: 72 | F121: 45 | J121: 77 | K121: 46 | N121: 0 | O121: 76 | P121: 48 | Q121: 69 | R121: 61 | S121: 0 | T121: 78 | U121: 48 | V121: 65 | W121: 62 | Y121: 72.05882353 | Z121: 44.11764706 | AA121: 64 | AB121: 59.66666667 | AC121: 0 | AD121: 91 | AE121: 54 | AF121: 71 | AG121: 63 | AH121: 0.2 | AI121: 51 | AJ121: 42 | AK121: 59 | AL121: 57 | AM121: 0 | AN121: 68 | AO121: 46 | AP121: 62 | AQ121: 59
B122: 112 | C122: Apr 22 | D122: 0.03 | E122: 71 | F122: 43 | J122: 77.2 | K122: 46.2 | N122: 0.01 | O122: 76 | P122: 49 | Q122: 68 | R122: 61 | S122: 0 | T122: 78 | U122: 48 | V122: 65 | W122: 62 | Y122: 72.82352941 | Z122: 45.29411765 | AA122: 64 | AB122: 59.33333333 | AC122: 0 | AD122: 91 | AE122: 55 | AF122: 71 | AG122: 64 | AH122: 0.02 | AI122: 60 | AJ122: 44 | AK122: 60 | AL122: 56 | AM122: 0 | AN122: 66 | AO122: 41 | AP122: 61 | AQ122: 58
B123: 113 | C123: Apr 23 | D123: 0.05 | E123: 70 | F123: 43 | J123: 77.4 | K123: 46.5 | N123: 0.06 | O123: 74 | P123: 48 | Q123: 68 | R123: 61 | S123: 0.05 | T123: 76 | U123: 47 | V123: 65 | W123: 62 | Y123: 72.29411765 | Z123: 45.11764706 | AA123: 64.33333333 | AB123: 59.66666667 | AC123: 0 | AD123: 76 | AE123: 51 | AF123: 69 | AG123: 64 | AH123: 0 | AI123: 72 | AJ123: 42 | AK123: 63 | AL123: 57 | AM123: 0 | AN123: 72 | AO123: 48 | AP123: 61 | AQ123: 58
B124: 114 | C124: Apr 24 | D124: 0.01 | E124: 72 | F124: 45 | J124: 77.6 | K124: 46.7 | N124: 0.02 | O124: 75 | P124: 48 | Q124: 69 | R124: 61 | S124: 0 | T124: 76 | U124: 47 | V124: 65 | W124: 62 | Y124: 73.35294118 | Z124: 44.76470588 | AA124: 63.66666667 | AB124: 60 | AC124: 0 | AD124: 67 | AE124: 39 | AF124: 66 | AG124: 62 | AH124: 0 | AI124: 74 | AJ124: 44 | AK124: 64 | AL124: 59 | AM124: 0 | AN124: 70 | AO124: 46 | AP124: 61 | AQ124: 59
B125: 115 | C125: Apr 25 | D125: 0.02 | E125: 74 | F125: 45 | J125: 77.9 | K125: 46.8 | N125: 0.02 | O125: 77 | P125: 49 | Q125: 70 | R125: 61 | S125: 0.01 | T125: 79 | U125: 48 | V125: 65 | W125: 62 | Y125: 75.70588235 | Z125: 44.23529412 | AA125: 63.66666667 | AB125: 59.66666667 | AC125: 0 | AD125: 71 | AE125: 37 | AF125: 65 | AG125: 60 | AH125: 0 | AI125: 79 | AJ125: 45 | AK125: 65 | AL125: 60 | AM125: 0 | AN125: 73 | AO125: 45 | AP125: 61 | AQ125: 59
B126: 116 | C126: Apr 26 | D126: 0 | E126: 76 | F126: 47 | J126: 78.2 | K126: 47 | N126: 0.02 | O126: 79 | P126: 50 | Q126: 70 | R126: 62 | S126: 0 | T126: 81 | U126: 50 | V126: 66 | W126: 63 | Y126: 78.29411765 | Z126: 45.88235294 | AA126: 64.33333333 | AB126: 59 | AC126: 0 | AD126: 71 | AE126: 36 | AF126: 66 | AG126: 59 | AH126: 0 | AI126: 81 | AJ126: 44 | AK126: 66 | AL126: 60 | AM126: 0 | AN126: 69 | AO126: 41 | AP126: 61 | AQ126: 58
B127: 117 | C127: Apr 27 | D127: 0 | E127: 75 | F127: 46 | J127: 78.4 | K127: 47.2 | N127: 0 | O127: 81 | P127: 50 | Q127: 71 | R127: 63 | S127: 0.02 | T127: 83 | U127: 50 | V127: 66 | W127: 63 | Y127: 76.17647059 | Z127: 46.88235294 | AA127: 63.66666667 | AB127: 60 | AC127: 0 | AD127: 70 | AE127: 42 | AF127: 66 | AG127: 60 | AH127: 0 | AI127: 68 | AJ127: 46 | AK127: 64 | AL127: 62 | AM127: 0 | AN127: 75 | AO127: 41 | AP127: 61 | AQ127: 58
B128: 118 | C128: Apr 28 | D128: 0.02 | E128: 74 | F128: 49 | J128: 78.7 | K128: 47.4 | N128: 0 | O128: 78 | P128: 51 | Q128: 70 | R128: 63 | S128: 0 | T128: 80 | U128: 49 | V128: 66 | W128: 63 | Y128: 73.41176471 | Z128: 47.23529412 | AA128: 63 | AB128: 59.33333333 | AC128: 0 | AD128: 63 | AE128: 39 | AF128: 65 | AG128: 59 | AH128: 0.15 | AI128: 60 | AJ128: 39 | AK128: 62 | AL128: 60 | AM128: 0 | AN128: 73 | AO128: 43 | AP128: 62 | AQ128: 59
B129: 119 | C129: Apr 29 | D129: 0.01 | E129: 76 | F129: 50 | J129: 79 | K129: 47.6 | N129: 0 | O129: 79 | P129: 50 | Q129: 70 | R129: 62 | S129: 0 | T129: 82 | U129: 49 | V129: 66 | W129: 63 | Y129: 75.64705882 | Z129: 46.17647059 | AA129: 62.66666667 | AB129: 58.66666667 | AC129: 0 | AD129: 68 | AE129: 38 | AF129: 65 | AG129: 59 | AH129: 0 | AI129: 62 | AJ129: 37 | AK129: 62 | AL129: 58 | AM129: 0 | AN129: 69 | AO129: 42 | AP129: 61 | AQ129: 59
B130: 120 | C130: Apr 30 | D130: 0.01 | E130: 77 | F130: 48 | J130: 79.3 | K130: 47.8 | N130: 0.01 | O130: 79 | P130: 51 | Q130: 72 | R130: 63 | S130: 0 | T130: 82 | U130: 50 | V130: 67 | W130: 64 | Y130: 78.70588235 | Z130: 46.05882353 | AA130: 62 | AB130: 58 | AC130: 0 | AD130: 73 | AE130: 39 | AF130: 61 | AG130: 57 | AH130: 0 | AI130: 69 | AJ130: 42 | AK130: 63 | AL130: 58 | AM130: 0 | AN130: 74 | AO130: 41 | AP130: 62 | AQ130: 59
B131: 121 | C131: May 1 | D131: 0 | E131: 75 | F131: 47 | J131: 79.6 | K131: 47.9 | N131: 0.01 | O131: 79 | P131: 50 | Q131: 72 | R131: 64 | S131: 0.02 | T131: 81 | U131: 49 | V131: 68 | W131: 64 | Y131: 78.17647059 | Z131: 48.11764706 | AA131: 64.66666667 | AB131: 59.66666667 | AC131: 0.71 | AD131: 72 | AE131: 53 | AF131: 67 | AG131: 62 | AH131: 0 | AI131: 75 | AJ131: 40 | AK131: 64 | AL131: 58 | AM131: 0 | AN131: 78 | AO131: 40 | AP131: 63 | AQ131: 59
B132: 122 | C132: May 2 | D132: 0.01 | E132: 76 | F132: 47 | J132: 79.9 | K132: 48.1 | N132: 0.01 | O132: 78 | P132: 49 | Q132: 71 | R132: 63 | S132: 0.01 | T132: 80 | U132: 49 | V132: 68 | W132: 64 | Y132: 76.35294118 | Z132: 48.58823529 | AA132: 64.66666667 | AB132: 60.33333333 | AC132: 0 | AD132: 66 | AE132: 54 | AF132: 65 | AG132: 61 | AH132: 0 | AI132: 79 | AJ132: 49 | AK132: 65 | AL132: 60 | AM132: 0 | AN132: 84 | AO132: 44 | AP132: 64 | AQ132: 60
B133: 123 | C133: May 3 | D133: 0.05 | E133: 76 | F133: 48 | J133: 80.2 | K133: 48.4 | N133: 0.01 | O133: 79 | P133: 50 | Q133: 72 | R133: 64 | S133: 0.03 | T133: 82 | U133: 50 | V133: 68 | W133: 65 | Y133: 77.47058824 | Z133: 48.11764706 | AA133: 66 | AB133: 61.33333333 | AC133: 0.02 | AD133: 71 | AE133: 56 | AF133: 67 | AG133: 63 | AH133: 0 | AI133: 86 | AJ133: 44 | AK133: 66 | AL133: 60 | AM133: 0 | AN133: 79 | AO133: 48 | AP133: 65 | AQ133: 61
B134: 124 | C134: May 4 | D134: 0.01 | E134: 78 | F134: 47 | J134: 80.6 | K134: 48.5 | N134: 0 | O134: 81 | P134: 50 | Q134: 72 | R134: 64 | S134: 0.01 | T134: 83 | U134: 51 | V134: 68 | W134: 65 | Y134: 76.11764706 | Z134: 46.82352941 | AA134: 67 | AB134: 61.66666667 | AC134: 0 | AD134: 76 | AE134: 54 | AF134: 69 | AG134: 62 | AH134: 0 | AI134: 77 | AJ134: 45 | AK134: 66 | AL134: 62 | AM134: 0 | AN134: 87 | AO134: 47 | AP134: 66 | AQ134: 61
B135: 125 | C135: May 5 | D135: 0.03 | E135: 77 | F135: 47 | J135: 80.8 | K135: 48.7 | N135: 0.04 | O135: 81 | P135: 51 | Q135: 73 | R135: 65 | S135: 0.06 | T135: 83 | U135: 51 | V135: 68 | W135: 65 | Y135: 75.47058824 | Z135: 48.58823529 | AA135: 68.66666667 | AB135: 63 | AC135: 0 | AD135: 79 | AE135: 60 | AF135: 72 | AG135: 65 | AH135: 0 | AI135: 72 | AJ135: 43 | AK135: 66 | AL135: 61 | AM135: 0 | AN135: 93 | AO135: 51 | AP135: 68 | AQ135: 63
B136: 126 | C136: May 6 | D136: 0.07 | E136: 75 | F136: 46 | J136: 81.1 | K136: 48.9 | N136: 0.02 | O136: 81 | P136: 53 | Q136: 72 | R136: 65 | S136: 0.01 | T136: 83 | U136: 52 | V136: 68 | W136: 65 | Y136: 77.11764706 | Z136: 46.58823529 | AA136: 68.33333333 | AB136: 63 | AC136: 0 | AD136: 80 | AE136: 54 | AF136: 71 | AG136: 64 | AH136: 0 | AI136: 72 | AJ136: 44 | AK136: 66 | AL136: 61 | AM136: 0 | AN136: 85 | AO136: 52 | AP136: 68 | AQ136: 64
B137: 127 | C137: May 7 | D137: 0.05 | E137: 75 | F137: 48 | J137: 81.4 | K137: 49.1 | N137: 0.02 | O137: 80 | P137: 53 | Q137: 74 | R137: 65 | S137: 0 | T137: 82 | U137: 53 | V137: 69 | W137: 65 | Y137: 77.11764706 | Z137: 48.05882353 | AA137: 68 | AB137: 63 | AC137: 0 | AD137: 77 | AE137: 54 | AF137: 70 | AG137: 65 | AH137: 0 | AI137: 78 | AJ137: 39 | AK137: 67 | AL137: 60 | AM137: 0 | AN137: 77 | AO137: 47 | AP137: 67 | AQ137: 64
B138: 128 | C138: May 8 | D138: 0 | E138: 76 | F138: 47 | J138: 81.8 | K138: 49.3 | N138: 0 | O138: 81 | P138: 54 | Q138: 75 | R138: 64 | S138: 0 | T138: 83 | U138: 52 | V138: 69 | W138: 65 | Y138: 77.88235294 | Z138: 48.94117647 | AA138: 68.33333333 | AB138: 63.33333333 | AC138: 0 | AD138: 80 | AE138: 51 | AF138: 71 | AG138: 64 | AH138: 0 | AI138: 74 | AJ138: 43 | AK138: 67 | AL138: 62 | AM138: 0 | AN138: 67 | AO138: 43 | AP138: 67 | AQ138: 64
B139: 129 | C139: May 9 | D139: 0 | E139: 75 | F139: 45 | J139: 82.1 | K139: 49.6 | N139: 0.04 | O139: 81 | P139: 52 | Q139: 74 | R139: 65 | S139: 0.01 | T139: 83 | U139: 51 | V139: 70 | W139: 66 | Y139: 77.70588235 | Z139: 47.11764706 | AA139: =AVERAGE(AF139,AK139,AP139) -> 67.33333333 | AB139: =AVERAGE(AG139,AL139,AQ139) -> 62.66666667 | AC139: 0 | AD139: 84 | AE139: 51 | AF139: 72 | AG139: 64 | AH139: 0.07 | AI139: 64 | AJ139: 45 | AK139: 65 | AL139: 62 | AM139: 0 | AN139: 70 | AO139: 40 | AP139: 65 | AQ139: 62
B140: 130 | C140: May 10 | D140: 0 | E140: 78 | F140: 47 | J140: 82.4 | K140: 49.8 | N140: 0 | O140: 81 | P140: 51 | Q140: 74 | R140: 65 | S140: 0 | T140: 83 | U140: 51 | V140: 69 | W140: 66 | Y140: 78.29411765 | Z140: 46.41176471 | AA140: 67 | AB140: 62.66666667 | AC140: 0 | AD140: 85 | AE140: 52 | AF140: 72 | AG140: 65 | AH140: 0.09 | AI140: 64 | AJ140: 44 | AK140: 63 | AL140: 61 | AM140: 0 | AN140: 79 | AO140: 42 | AP140: 66 | AQ140: 62
B141: 131 | C141: May 11 | D141: 0 | E141: 77 | F141: 47 | J141: 82.6 | K141: 50 | N141: 0 | O141: 83 | P141: 53 | Q141: 74 | R141: 66 | S141: 0 | T141: 84 | U141: 51 | V141: 69 | W141: 66 | Y141: 80.94117647 | Z141: 48.05882353 | AA141: 67.66666667 | AB141: 62 | AC141: 0 | AD141: 84 | AE141: 48 | AF141: 72 | AG141: 65 | AH141: 0 | AI141: 67 | AJ141: 39 | AK141: 64 | AL141: 58 | AM141: 0 | AN141: 80 | AO141: 45 | AP141: 67 | AQ141: 63
B142: 132 | C142: May 12 | D142: 0.07 | E142: 75 | F142: 46 | J142: 82.9 | K142: 50.2 | N142: 0.02 | O142: 81 | P142: 53 | Q142: 76 | R142: 67 | S142: 0.02 | T142: 84 | U142: 53 | V142: 70 | W142: 67 | Y142: 79.41176471 | Z142: 48.64705882 | AA142: 68.33333333 | AB142: 62.33333333 | AC142: 0 | AD142: 78 | AE142: 45 | AF142: 70 | AG142: 64 | AH142: 0 | AI142: 76 | AJ142: 43 | AK142: 66 | AL142: 59 | AM142: 0 | AN142: 80 | AO142: 49 | AP142: 69 | AQ142: 64
B143: 133 | C143: May 13 | D143: 0.03 | E143: 74 | F143: 46 | J143: 83.1 | K143: 50.5 | N143: 0.01 | O143: 81 | P143: 52 | Q143: 74 | R143: 67 | S143: 0.01 | T143: 82 | U143: 52 | V143: 71 | W143: 67 | Y143: 81.29411765 | Z143: 49.35294118 | AA143: 69 | AB143: 63.33333333 | AC143: 0 | AD143: 81 | AE143: 49 | AF143: 70 | AG143: 64 | AH143: 0 | AI143: 79 | AJ143: 46 | AK143: 67 | AL143: 61 | AM143: 0 | AN143: 82 | AO143: 48 | AP143: 70 | AQ143: 65
B144: 134 | C144: May 14 | D144: 0 | E144: 76 | F144: 45 | J144: 83.3 | K144: 50.6 | N144: 0.01 | O144: 81 | P144: 52 | Q144: 75 | R144: 66 | S144: 0 | T144: 83 | U144: 52 | V144: 70 | W144: 67 | Y144: 81.41176471 | Z144: 49.47058824 | AA144: 69.66666667 | AB144: 64.33333333 | AC144: 0 | AD144: 81 | AE144: 50 | AF144: 71 | AG144: 65 | AH144: 0 | AI144: 82 | AJ144: 49 | AK144: 69 | AL144: 62 | AM144: 0.06 | AN144: 65 | AO144: 48 | AP144: 69 | AQ144: 66
B145: 135 | C145: May 15 | D145: 0.07 | E145: 75 | F145: 48 | J145: 83.6 | K145: 50.8 | N145: 0.06 | O145: 81 | P145: 53 | Q145: 75 | R145: 67 | S145: 0.02 | T145: 82 | U145: 53 | V145: 71 | W145: 68 | Y145: 80.64705882 | Z145: 52.23529412 | AA145: 70.33333333 | AB145: 64.66666667 | AC145: 0 | AD145: 86 | AE145: 54 | AF145: 73 | AG145: 66 | AH145: 0 | AI145: 83 | AJ145: 50 | AK145: 70 | AL145: 63 | AM145: 0.2 | AN145: 59 | AO145: 44 | AP145: 68 | AQ145: 65
B146: 136 | C146: May 16 | D146: 0.03 | E146: 76 | F146: 48 | J146: 83.8 | K146: 51.1 | N146: 0.01 | O146: 80 | P146: 53 | Q146: 75 | R146: 67 | S146: 0.01 | T146: 82 | U146: 54 | V146: 71 | W146: 68 | Y146: 80 | Z146: 51.05882353 | AA146: 70.33333333 | AB146: 64.66666667 | AC146: 0 | AD146: 94 | AE146: 57 | AF146: 76 | AG146: 67 | AH146: 0 | AI146: 79 | AJ146: 53 | AK146: 70 | AL146: 65 | AM146: 0.09 | AN146: 64 | AO146: 42 | AP146: 65 | AQ146: 62
B147: 137 | C147: May 17 | D147: 0.01 | E147: 76 | F147: 47 | J147: 84.1 | K147: 51.2 | N147: 0.01 | O147: 81 | P147: 53 | Q147: 76 | R147: 67 | S147: 0.01 | T147: 83 | U147: 52 | V147: 71 | W147: 68 | Y147: 80.17647059 | Z147: 51.52941176 | AA147: 69.66666667 | AB147: 65.33333333 | AC147: 0 | AD147: 100 | AE147: 62 | AF147: 77 | AG147: 69 | AH147: 0.02 | AI147: 65 | AJ147: 51 | AK147: 68 | AL147: 65 | AM147: 0.15 | AN147: 61 | AO147: 49 | AP147: 64 | AQ147: 62
B148: 138 | C148: May 18 | D148: 0.02 | E148: 77 | F148: 47 | J148: 84.4 | K148: 51.5 | N148: 0.01 | O148: 81 | P148: 52 | Q148: 75 | R148: 67 | S148: 0 | T148: 83 | U148: 52 | V148: 71 | W148: 68 | Y148: 82.05882353 | Z148: 52.47058824 | AA148: 70.33333333 | AB148: 65 | AC148: 0 | AD148: 96 | AE148: 63 | AF148: 77 | AG148: 70 | AH148: 0 | AI148: 74 | AJ148: 54 | AK148: 69 | AL148: 64 | AM148: 0.04 | AN148: 67 | AO148: 48 | AP148: 65 | AQ148: 61
B149: 139 | C149: May 19 | D149: 0 | E149: 77 | F149: 48 | J149: 84.8 | K149: 51.7 | N149: 0 | O149: 82 | P149: 53 | Q149: 75 | R149: 67 | S149: 0 | T149: 83 | U149: 54 | V149: 71 | W149: 68 | Y149: 82.35294118 | Z149: 50.76470588 | AA149: 70.66666667 | AB149: 66 | AC149: 0 | AD149: 87 | AE149: 60 | AF149: 77 | AG149: 71 | AH149: 0 | AI149: 74 | AJ149: 51 | AK149: 68 | AL149: 65 | AM149: 0 | AN149: 76 | AO149: 46 | AP149: 67 | AQ149: 62
B150: 140 | C150: May 20 | D150: 0.01 | E150: 78 | F150: 48 | J150: 85.2 | K150: 52 | N150: 0 | O150: 83 | P150: 53 | Q150: 75 | R150: 67 | S150: 0 | T150: 84 | U150: 53 | V150: 71 | W150: 68 | Y150: 80.52941176 | Z150: 50.47058824 | AA150: 70.66666667 | AB150: 65.33333333 | AC150: 0 | AD150: 84 | AE150: 49 | AF150: 75 | AG150: 69 | AH150: 0 | AI150: 72 | AJ150: 46 | AK150: 68 | AL150: 64 | AM150: 0 | AN150: 81 | AO150: 48 | AP150: 69 | AQ150: 63
B151: 141 | C151: May 21 | D151: 0 | E151: 79 | F151: 49 | J151: 85.5 | K151: 52.2 | N151: 0 | O151: 83 | P151: 53 | Q151: 76 | R151: 68 | S151: 0 | T151: 85 | U151: 54 | V151: 71 | W151: 68 | Y151: 80.47058824 | Z151: 49.70588235 | AA151: 72 | AB151: 65.33333333 | AC151: 0 | AD151: 87 | AE151: 52 | AF151: 79 | AG151: 67 | AH151: 0 | AI151: 65 | AJ151: 45 | AK151: 67 | AL151: 64 | AM151: 0 | AN151: 79 | AO151: 51 | AP151: 70 | AQ151: 65
B152: 142 | C152: May 22 | D152: 0 | E152: 81 | F152: 49 | J152: 85.9 | K152: 52.5 | N152: 0 | O152: 84 | P152: 53 | Q152: 77 | R152: 68 | S152: 0 | T152: 87 | U152: 54 | V152: 72 | W152: 69 | Y152: 81.58823529 | Z152: 51.23529412 | AA152: 70 | AB152: 65 | AC152: 0 | AD152: 87 | AE152: 53 | AF152: 74 | AG152: 68 | AH152: 0 | AI152: 64 | AJ152: 40 | AK152: 67 | AL152: 62 | AM152: 0 | AN152: 75 | AO152: 46 | AP152: 69 | AQ152: 65
B153: 143 | C153: May 23 | D153: 0.04 | E153: 79 | F153: 50 | J153: 86.1 | K153: 52.7 | N153: 0.03 | O153: 84 | P153: 55 | Q153: 76 | R153: 68 | S153: 0 | T153: 87 | U153: 54 | V153: 71 | W153: 69 | Y153: 81.88235294 | Z153: 52 | AA153: 70.33333333 | AB153: 65 | AC153: 0 | AD153: 81 | AE153: 53 | AF153: 74 | AG153: 68 | AH153: 0 | AI153: 70 | AJ153: 45 | AK153: 67 | AL153: 62 | AM153: 0 | AN153: 72 | AO153: 47 | AP153: 70 | AQ153: 65
B154: 144 | C154: May 24 | D154: 0.04 | E154: 79 | F154: 49 | J154: 86.3 | K154: 52.8 | N154: 0 | O154: 84 | P154: 54 | Q154: 78 | R154: 69 | S154: 0 | T154: 86 | U154: 54 | V154: 73 | W154: 69 | Y154: 81 | Z154: 52 | AA154: 70 | AB154: 65 | AC154: 0 | AD154: 77 | AE154: 49 | AF154: 73 | AG154: 67 | AH154: 0 | AI154: 69 | AJ154: 43 | AK154: 67 | AL154: 63 | AM154: 0 | AN154: 75 | AO154: 42 | AP154: 70 | AQ154: 65
B155: 145 | C155: May 25 | D155: 0.02 | E155: 79 | F155: 49 | J155: 86.6 | K155: 53 | N155: 0.01 | O155: 83 | P155: 55 | Q155: 76 | R155: 69 | S155: 0 | T155: 85 | U155: 54 | V155: 73 | W155: 70 | Y155: 81.41176471 | Z155: 51.41176471 | AA155: 69.66666667 | AB155: 65.33333333 | AC155: 0 | AD155: 82 | AE155: 49 | AF155: 74 | AG155: 67 | AH155: 0.22 | AI155: 70 | AJ155: 45 | AK155: 66 | AL155: 63 | AM155: 0 | AN155: 73 | AO155: 48 | AP155: 69 | AQ155: 66
B156: 146 | C156: May 26 | D156: 0 | E156: 78 | F156: 48 | J156: 86.8 | K156: 53.2 | N156: 0 | O156: 84 | P156: 54 | Q156: 77 | R156: 69 | S156: 0 | T156: 86 | U156: 54 | V156: 73 | W156: 69 | Y156: 82.23529412 | Z156: 52 | AA156: 70.66666667 | AB156: 65 | AC156: 0 | AD156: 88 | AE156: 54 | AF156: 75 | AG156: 68 | AH156: 0.26 | AI156: 72 | AJ156: 51 | AK156: 68 | AL156: 63 | AM156: 0 | AN156: 70 | AO156: 47 | AP156: 69 | AQ156: 64
B157: 147 | C157: May 27 | D157: 0.16 | E157: 77 | F157: 50 | J157: 87 | K157: 53.4 | N157: 0.02 | O157: 83 | P157: 55 | Q157: 77 | R157: 68 | S157: 0.02 | T157: 85 | U157: 54 | V157: 72 | W157: 69 | Y157: 81.82352941 | Z157: 51.64705882 | AA157: 71 | AB157: 66 | AC157: 0 | AD157: 93 | AE157: 60 | AF157: 77 | AG157: 70 | AH157: 0.06 | AI157: 66 | AJ157: 48 | AK157: 66 | AL157: 63 | AM157: 0 | AN157: 73 | AO157: 47 | AP157: 70 | AQ157: 65
B158: 148 | C158: May 28 | D158: 0.05 | E158: 76 | F158: 48 | J158: 87.1 | K158: 53.5 | N158: 0.05 | O158: 84 | P158: 54 | Q158: 76 | R158: 68 | S158: 0.01 | T158: 87 | U158: 55 | V158: 72 | W158: 69 | Y158: 81.94117647 | Z158: 51.11764706 | AA158: 70.66666667 | AB158: 66.33333333 | AC158: 0 | AD158: 92 | AE158: 60 | AF158: 77 | AG158: 71 | AH158: 0 | AI158: 67 | AJ158: 43 | AK158: 66 | AL158: 62 | AM158: 0.11 | AN158: 71 | AO158: 45 | AP158: 69 | AQ158: 66
B159: 149 | C159: May 29 | D159: 0 | E159: 78 | F159: 48 | J159: 87.3 | K159: 53.7 | N159: 0 | O159: 83 | P159: 54 | Q159: 76 | R159: 68 | S159: 0 | T159: 86 | U159: 53 | V159: 72 | W159: 69 | Y159: 83.17647059 | Z159: 50.70588235 | AA159: 70.66666667 | AB159: 66.33333333 | AC159: 0 | AD159: 85 | AE159: 59 | AF159: 76 | AG159: 72 | AH159: 0 | AI159: 78 | AJ159: 51 | AK159: 68 | AL159: 62 | AM159: 0 | AN159: 70 | AO159: 45 | AP159: 68 | AQ159: 65
B160: 150 | C160: May 30 | D160: 0 | E160: 79 | F160: 49 | J160: 87.5 | K160: 53.9 | N160: 0.01 | O160: 85 | P160: 55 | Q160: 77 | R160: 69 | S160: 0 | T160: 86 | U160: 54 | V160: 73 | W160: 69 | Y160: 84.58823529 | Z160: 51.47058824 | AA160: 71.33333333 | AB160: 66 | AC160: 0 | AD160: 82 | AE160: 54 | AF160: 76 | AG160: 71 | AH160: 0 | AI160: 84 | AJ160: 49 | AK160: 69 | AL160: 63 | AM160: 0 | AN160: 75 | AO160: 44 | AP160: 69 | AQ160: 64
B161: 151 | C161: May 31 | D161: 0.02 | E161: 82 | F161: 51 | J161: 87.8 | K161: 54.1 | N161: 0 | O161: 86 | P161: 56 | Q161: 77 | R161: 69 | S161: 0 | T161: 87 | U161: 55 | V161: 73 | W161: 69 | Y161: 85.82352941 | Z161: 53.35294118 | AA161: 71.66666667 | AB161: 67.33333333 | AC161: 0 | AD161: 83 | AE161: 54 | AF161: 75 | AG161: 71 | AH161: 0 | AI161: 81 | AJ161: 53 | AK161: 70 | AL161: 65 | AM161: 0 | AN161: 74 | AO161: 47 | AP161: 70 | AQ161: 66
B162: 152 | C162: Jun 1 | D162: 0 | E162: 82 | F162: 51 | J162: 88.1 | K162: 54.3 | N162: 0 | O162: 88 | P162: 56 | Q162: 77 | R162: 70 | S162: 0 | T162: 89 | U162: 56 | V162: 73 | W162: 70 | Y162: 85.76470588 | Z162: 54.35294118 | AA162: 71.33333333 | AB162: 67.66666667 | AC162: 0 | AD162: 79 | AE162: 55 | AF162: 74 | AG162: 71 | AH162: 0 | AI162: 76 | AJ162: 56 | AK162: 71 | AL162: 66 | AM162: 0.01 | AN162: 66 | AO162: 47 | AP162: 69 | AQ162: 66
B163: 153 | C163: Jun 2 | D163: 0 | E163: 80 | F163: 49 | J163: 88.3 | K163: 54.5 | N163: 0 | O163: 89 | P163: 57 | Q163: 78 | R163: 70 | S163: 0 | T163: 90 | U163: 57 | V163: 73 | W163: 71 | Y163: 84.88235294 | Z163: 52.52941176 | AA163: 71.66666667 | AB163: 67 | AC163: 0 | AD163: 79 | AE163: 56 | AF163: 74 | AG163: 70 | AH163: 0 | AI163: 83 | AJ163: 53 | AK163: 72 | AL163: 66 | AM163: 0 | AN163: 69 | AO163: 42 | AP163: 69 | AQ163: 65
B164: 154 | C164: Jun 3 | D164: 0.01 | E164: 78 | F164: 49 | J164: 88.5 | K164: 54.7 | N164: 0 | O164: 87 | P164: 56 | Q164: 78 | R164: 70 | S164: 0 | T164: 88 | U164: 57 | V164: 73 | W164: 70 | Y164: 83.94117647 | Z164: 53.58823529 | AA164: 71.66666667 | AB164: 68 | AC164: 0.02 | AD164: 83 | AE164: 55 | AF164: 73 | AG164: 70 | AH164: 0 | AI164: 83 | AJ164: 59 | AK164: 73 | AL164: 68 | AM164: 0 | AN164: 70 | AO164: 45 | AP164: 69 | AQ164: 66
B165: 155 | C165: Jun 4 | D165: 0.01 | E165: 78 | F165: 50 | J165: 88.8 | K165: 54.8 | N165: 0.01 | O165: 85 | P165: 57 | Q165: 77 | R165: 70 | S165: 0 | T165: 87 | U165: 56 | V165: 73 | W165: 70 | Y165: 83.88235294 | Z165: 54.35294118 | AA165: 72 | AB165: 66.66666667 | AC165: 0 | AD165: 76 | AE165: 55 | AF165: 74 | AG165: 65 | AH165: 0 | AI165: 84 | AJ165: 59 | AK165: 74 | AL165: 69 | AM165: 0.52 | AN165: 64 | AO165: 54 | AP165: 68 | AQ165: 66
B166: 156 | C166: Jun 5 | D166: 0 | E166: 78 | F166: 48 | J166: 89 | K166: 54.9 | N166: 0.01 | O166: 83 | P166: 57 | Q166: 76 | R166: 70 | S166: 0.02 | T166: 84 | U166: 55 | V166: 73 | W166: 70 | Y166: 81.76470588 | Z166: 53.23529412 | AA166: 72.33333333 | AB166: 66.66666667 | AC166: 0.06 | AD166: 73 | AE166: 54 | AF166: 72 | AG166: 65 | AH166: 0 | AI166: 87 | AJ166: 62 | AK166: 76 | AL166: 70 | AM166: 0.63 | AN166: 75 | AO166: 55 | AP166: 69 | AQ166: 65
B167: 157 | C167: Jun 6 | D167: 0.04 | E167: 77 | F167: 51 | J167: 89.3 | K167: 55.1 | N167: 0.01 | O167: 83 | P167: 55 | Q167: 77 | R167: 69 | S167: 0.01 | T167: 84 | U167: 55 | V167: 73 | W167: 70 | Y167: 82.82352941 | Z167: 53.05882353 | AA167: 72.33333333 | AB167: 67.33333333 | AC167: 0 | AD167: 76 | AE167: 51 | AF167: 70 | AG167: 65 | AH167: 0 | AI167: 88 | AJ167: 61 | AK167: 77 | AL167: 71 | AM167: 0 | AN167: 72 | AO167: 54 | AP167: 70 | AQ167: 66
B168: 158 | C168: Jun 7 | D168: 0.01 | E168: 78 | F168: 52 | J168: 89.6 | K168: 55.3 | N168: 0 | O168: 84 | P168: 55 | Q168: 77 | R168: 70 | S168: 0 | T168: 85 | U168: 55 | V168: 73 | W168: 70 | Y168: 82.29411765 | Z168: 53.41176471 | AA168: 72.33333333 | AB168: 68 | AC168: 0 | AD168: 80 | AE168: 51 | AF168: 71 | AG168: 67 | AH168: 0 | AI168: 83 | AJ168: 57 | AK168: 76 | AL168: 71 | AM168: 0 | AN168: 74 | AO168: 49 | AP168: 70 | AQ168: 66
B169: 159 | C169: Jun 8 | D169: 0.01 | E169: 81 | F169: 50 | J169: 89.9 | K169: 55.4 | N169: 0.04 | O169: 85 | P169: 55 | Q169: 77 | R169: 69 | S169: 0.01 | T169: 87 | U169: 55 | V169: 74 | W169: 70 | Y169: 83.29411765 | Z169: 50.94117647 | AA169: 73.33333333 | AB169: 67.66666667 | AC169: 0 | AD169: 80 | AE169: 52 | AF169: 71 | AG169: 67 | AH169: 0 | AI169: 84 | AJ169: 55 | AK169: 78 | AL169: 70 | AN169: 81 | AO169: 52 | AP169: 71 | AQ169: 66
B170: 160 | C170: Jun 9 | D170: 0 | E170: 82 | F170: 50 | J170: 90.2 | K170: 55.7 | N170: 0 | O170: 89 | P170: 57 | Q170: 77 | R170: 70 | S170: 0 | T170: 90 | U170: 56 | V170: 75 | W170: 71 | Y170: 84.88235294 | Z170: 51.70588235 | AA170: 72 | AB170: 68 | AC170: 0 | AD170: 78 | AE170: 53 | AF170: 71 | AG170: 67 | AH170: 0 | AI170: 78 | AJ170: 55 | AK170: 73 | AL170: 69 | AN170: 83 | AO170: 53 | AP170: 72 | AQ170: 68
B171: 161 | C171: Jun 10 | D171: 0.03 | E171: 80 | F171: 49 | J171: 90.4 | K171: 55.9 | N171: 0.01 | O171: 90 | P171: 58 | Q171: 80 | R171: 70 | S171: 0 | T171: 92 | U171: 58 | V171: 76 | W171: 72 | Y171: 84.23529412 | Z171: 53.17647059 | AA171: 71.66666667 | AB171: 68 | AC171: 0 | AD171: 75 | AE171: 56 | AF171: 71 | AG171: 68 | AH171: 0 | AI171: 74 | AJ171: 51 | AK171: 71 | AL171: 68 | AN171: 82 | AO171: 53 | AP171: 73 | AQ171: 68
B172: 162 | C172: Jun 11 | D172: 0 | E172: 78 | F172: 49 | J172: 90.6 | K172: 56 | N172: 0.01 | O172: 88 | P172: 57 | Q172: 79 | R172: 71 | S172: 0 | T172: 90 | U172: 57 | V172: 76 | W172: 72 | Y172: 84.88235294 | Z172: 52.58823529 | AA172: 71.33333333 | AB172: 67.66666667 | AC172: 0 | AD172: 76 | AE172: 48 | AF172: 71 | AG172: 67 | AH172: 0 | AI172: 82 | AJ172: 58 | AK172: 71 | AL172: 68 | AN172: 76 | AO172: 50 | AP172: 72 | AQ172: 68
B173: 163 | C173: Jun 12 | D173: 0 | E173: 81 | F173: 51 | J173: 90.9 | K173: 56.2 | N173: 0.01 | O173: 87 | P173: 57 | Q173: 78 | R173: 71 | S173: 0.04 | T173: 89 | U173: 56 | V173: 76 | W173: 72 | Y173: 85.29411765 | Z173: 53.23529412 | AA173: 72.33333333 | AB173: 66.66666667 | AC173: 0 | AD173: 77 | AE173: 53 | AF173: 73 | AG173: 67 | AH173: 0 | AI173: 87 | AJ173: 57 | AK173: 71 | AL173: 65 | AN173: 81 | AO173: 52 | AP173: 73 | AQ173: 68
B174: 164 | C174: Jun 13 | D174: 0.01 | E174: 82 | F174: 52 | J174: 91.1 | K174: 56.3 | N174: 0 | O174: 88 | P174: 57 | Q174: 78 | R174: 71 | S174: 0 | T174: 90 | U174: 57 | V174: 75 | W174: 72 | Y174: 87.17647059 | Z174: 53.82352941 | AA174: 74.33333333 | AB174: 68.66666667 | AC174: 0.04 | AD174: 77 | AE174: 57 | AF174: 75 | AG174: 68 | AH174: 0 | AI174: 92 | AJ174: 56 | AK174: 74 | AL174: 69 | AN174: 86 | AO174: 55 | AP174: 74 | AQ174: 69
B175: 165 | C175: Jun 14 | D175: 0.01 | E175: 83 | F175: 53 | J175: 91.3 | K175: 56.4 | N175: 0 | O175: 89 | P175: 58 | Q175: 79 | R175: 71 | S175: 0 | T175: 90 | U175: 57 | V175: 76 | W175: 72 | Y175: 88.29411765 | Z175: 55.23529412 | AA175: 76 | AB175: 69.66666667 | AC175: 0 | AD175: 79 | AE175: 53 | AF175: 76 | AG175: 68 | AH175: 0 | AI175: 97 | AJ175: 59 | AK175: 76 | AL175: 70 | AN175: 90 | AO175: 59 | AP175: 76 | AQ175: 71
B176: 166 | C176: Jun 15 | D176: 0.01 | E176: 83 | F176: 54 | J176: 91.5 | K176: 56.6 | N176: 0.02 | O176: 88 | P176: 58 | Q176: 79 | R176: 72 | S176: 0.01 | T176: 89 | U176: 57 | V176: 77 | W176: 72 | Y176: 86.76470588 | Z176: 54.88235294 | AA176: 75.33333333 | AB176: 70.66666667 | AC176: 0 | AD176: 77 | AE176: 50 | AF176: 75 | AG176: 69 | AH176: 0 | AI176: 83 | AJ176: 54 | AK176: 75 | AL176: 71 | AN176: 91 | AO176: 59 | AP176: 76 | AQ176: 72
B177: 167 | C177: Jun 16 | D177: 0 | E177: 82 | F177: 50 | J177: 91.7 | K177: 56.7 | N177: 0 | O177: 88 | P177: 57 | Q177: 79 | R177: 71 | S177: 0 | T177: 89 | U177: 57 | V177: 77 | W177: 74 | Y177: 86.23529412 | Z177: 53.94117647 | AA177: 75.33333333 | AB177: 70.66666667 | AC177: 0 | AD177: 83 | AE177: 54 | AF177: 77 | AG177: 70 | AH177: 0 | AI177: 80 | AJ177: 51 | AK177: 73 | AL177: 70 | AN177: 86 | AO177: 57 | AP177: 76 | AQ177: 72
B178: 168 | C178: Jun 17 | D178: 0 | E178: 85 | F178: 51 | J178: 91.9 | K178: 56.9 | N178: 0 | O178: 90 | P178: 57 | Q178: 80 | R178: 71 | S178: 0 | T178: 91 | U178: 57 | V178: 77 | W178: 73 | Y178: 87.47058824 | Z178: 53.88235294 | AA178: 76.33333333 | AB178: 70.66666667 | AC178: 0 | AD178: 83 | AE178: 55 | AF178: 78 | AG178: 71 | AH178: 0 | AI178: 85 | AJ178: 48 | AK178: 74 | AL178: 69 | AN178: 87 | AO178: 56 | AP178: 77 | AQ178: 72
B179: 169 | C179: Jun 18 | D179: 0 | E179: 85 | F179: 51 | J179: 92.1 | K179: 57 | N179: 0 | O179: 91 | P179: 58 | Q179: 80 | R179: 72 | S179: 0 | T179: 91 | U179: 58 | V179: 77 | W179: 74 | Y179: 88.17647059 | Z179: 53.52941176 | AA179: 76.66666667 | AB179: 71 | AC179: 0 | AD179: 91 | AE179: 56 | AF179: 79 | AG179: 72 | AH179: 0 | AI179: 81 | AJ179: 49 | AK179: 74 | AL179: 69 | AN179: 87 | AO179: 55 | AP179: 77 | AQ179: 72
B180: 170 | C180: Jun 19 | D180: 0 | E180: 86 | F180: 51 | J180: 92.2 | K180: 57.1 | N180: 0.01 | O180: 92 | P180: 58 | Q180: 80 | R180: 72 | S180: 0 | T180: 92 | U180: 58 | V180: 76 | W180: 73 | Y180: 88.05882353 | Z180: 53.11764706 | AA180: 76.33333333 | AB180: 71.66666667 | AC180: 0 | AD180: 90 | AE180: 58 | AF180: 79 | AG180: 73 | AH180: 0 | AI180: 77 | AJ180: 46 | AK180: 73 | AL180: 69 | AN180: 87 | AO180: 59 | AP180: 77 | AQ180: 73
B181: 171 | C181: Jun 20 | D181: 0 | E181: 85 | F181: 52 | J181: 92.4 | K181: 57.2 | N181: 0.01 | O181: 91 | P181: 58 | Q181: 80 | R181: 72 | S181: 0 | T181: 92 | U181: 58 | V181: 77 | W181: 73 | Y181: 87.82352941 | Z181: 52.82352941 | AA181: 78.66666667 | AB181: 71.33333333 | AC181: 0 | AD181: 84 | AE181: 51 | AF181: 79 | AG181: 72 | AH181: 0 | AI181: 79 | AJ181: 46 | AK181: 73 | AL181: 69 | AN181: 92 | AO181: 58 | AP181: 84 | AQ181: 73
B182: 172 | C182: Jun 21 | D182: 0 | E182: 84 | F182: 51 | J182: 92.7 | K182: 57.3 | N182: 0 | O182: 91 | P182: 59 | Q182: 81 | R182: 72 | S182: 0 | T182: 92 | U182: 58 | V182: 77 | W182: 74 | Y182: 88.47058824 | Z182: 53.47058824 | AA182: 77 | AB182: 72.66666667 | AC182: 0 | AD182: 78 | AE182: 49 | AF182: 77 | AG182: 71 | AH182: 0 | AI182: 84 | AJ182: 51 | AK182: 73 | AL182: 69 | AN182: 98 | AO182: 64 | AP182: 81 | AQ182: 78
B183: 173 | C183: Jun 22 | D183: 0.02 | E183: 86 | F183: 51 | J183: 92.9 | K183: 57.5 | N183: 0 | O183: 92 | P183: 58 | Q183: 81 | R183: 72 | S183: 0 | T183: 92 | U183: 58 | V183: 77 | W183: 73 | Y183: 90.58823529 | Z183: 54.05882353 | AA183: 78 | AB183: 72.66666667 | AC183: 0 | AD183: 86 | AE183: 52 | AF183: 77 | AG183: 72 | AH183: 0 | AI183: 90 | AJ183: 54 | AK183: 75 | AL183: 70 | AN183: 97 | AO183: 66 | AP183: 82 | AQ183: 76
B184: 174 | C184: Jun 23 | D184: 0 | E184: 86 | F184: 52 | J184: 93.1 | K184: 57.7 | N184: 0 | O184: 93 | P184: 60 | Q184: 81 | R184: 73 | S184: 0.01 | T184: 93 | U184: 60 | V184: 77 | W184: 74 | Y184: 90.76470588 | Z184: 55.11764706 | AA184: 78 | AB184: 73.33333333 | AC184: 0 | AD184: 94 | AE184: 56 | AF184: 78 | AG184: 72 | AH184: 0 | AI184: 91 | AJ184: 59 | AK184: 75 | AL184: 71 | AN184: 90 | AO184: 59 | AP184: 81 | AQ184: 77
B185: 175 | C185: Jun 24 | D185: 0 | E185: 84 | F185: 52 | J185: 93.4 | K185: 57.8 | N185: 0 | O185: 92 | P185: 60 | Q185: 81 | R185: 73 | S185: 0 | T185: 93 | U185: 60 | V185: 77 | W185: 74 | Y185: 88.70588235 | Z185: 56 | AA185: 78 | AB185: 73 | AC185: 0 | AD185: 94 | AE185: 59 | AF185: 79 | AG185: 73 | AH185: 0 | AI185: 85 | AJ185: 58 | AK185: 77 | AL185: 71 | AN185: 86 | AO185: 53 | AP185: 78 | AQ185: 75
B186: 176 | C186: Jun 25 | D186: 0 | E186: 85 | F186: 52 | J186: 93.5 | K186: 58 | N186: 0 | O186: 91 | P186: 60 | Q186: 82 | R186: 73 | S186: 0 | T186: 91 | U186: 59 | V186: 78 | W186: 74 | Y186: 89.11764706 | Z186: 56.05882353 | AA186: 77.33333333 | AB186: 71 | AC186: 0 | AD186: 90 | AE186: 57 | AF186: 79 | AG186: 73 | AH186: 0.19 | AI186: 81 | AJ186: 55 | AK186: 76 | AL186: 66 | AN186: 87 | AO186: 54 | AP186: 77 | AQ186: 74
B187: 177 | C187: Jun 26 | D187: 0.01 | E187: 83 | F187: 51 | J187: 93.8 | K187: 58.3 | N187: 0 | O187: 92 | P187: 60 | Q187: 82 | R187: 73 | S187: 0 | T187: 93 | U187: 60 | V187: 78 | W187: 75 | Y187: 90.17647059 | Z187: 55.70588235 | AA187: 77 | AB187: 73 | AC187: 0 | AD187: 90 | AE187: 54 | AF187: 78 | AG187: 73 | AH187: 0 | AI187: 88 | AJ187: 57 | AK187: 76 | AL187: 72 | AN187: 87 | AO187: 55 | AP187: 77 | AQ187: 74
B188: 178 | C188: Jun 27 | D188: 0 | E188: 83 | F188: 53 | J188: 94 | K188: 58.4 | N188: 0 | O188: 92 | P188: 60 | Q188: 81 | R188: 73 | S188: 0 | T188: 93 | U188: 60 | V188: 78 | W188: 75 | Y188: 91 | Z188: 57.29411765 | AA188: 80 | AB188: 73.66666667 | AC188: 0 | AD188: 98 | AE188: 59 | AF188: 85 | AG188: 73 | AH188: 0 | AI188: 94 | AJ188: 64 | AK188: 78 | AL188: 74 | AM188: 0 | AN188: 89 | AO188: 58 | AP188: 77 | AQ188: 74
B189: 179 | C189: Jun 28 | D189: 0 | E189: 82 | F189: 52 | J189: 94.3 | K189: 58.6 | N189: 0 | O189: 90 | P189: 59 | Q189: 80 | R189: 73 | S189: 0 | T189: 92 | U189: 59 | V189: 78 | W189: 75 | Y189: 91.17647059 | Z189: 57.58823529 | AA189: 78.66666667 | AB189: 73 | AC189: 0 | AD189: 102 | AE189: 64 | AF189: 80 | AG189: 70 | AH189: 0 | AI189: 97 | AJ189: 65 | AK189: 79 | AL189: 75 | AM189: 0.14 | AN189: 79 | AO189: 58 | AP189: 77 | AQ189: 74
B190: 180 | C190: Jun 29 | D190: 0 | E190: 84 | F190: 51 | J190: 94.6 | K190: 58.8 | N190: 0 | O190: 91 | P190: 59 | Q190: 80 | R190: 73 | S190: 0 | T190: 91 | U190: 58 | V190: 78 | W190: 74 | Y190: 91.29411765 | Z190: 57.29411765 | AA190: 78 | AB190: 74.66666667 | AC190: 0 | AD190: 100 | AE190: 64 | AF190: 80 | AG190: 76 | AH190: 0 | AI190: 92 | AJ190: 63 | AK190: 79 | AL190: 75 | AM190: 0 | AN190: 72 | AO190: 56 | AP190: 75 | AQ190: 73
B191: 181 | C191: Jun 30 | D191: 0 | E191: 85 | F191: 52 | J191: 94.9 | K191: 59.1 | N191: 0 | O191: 92 | P191: 60 | Q191: 81 | R191: 73 | S191: 0 | T191: 93 | U191: 60 | V191: 78 | W191: 75 | Y191: 90.23529412 | Z191: 56.35294118 | AA191: 76.66666667 | AB191: 73.66666667 | AC191: 0 | AD191: 95 | AE191: 59 | AF191: 79 | AG191: 75 | AH191: 0 | AI191: 87 | AJ191: 56 | AK191: 76 | AL191: 74 | AM191: 0 | AN191: 83 | AO191: 54 | AP191: 75 | AQ191: 72
B192: 182 | C192: Jul 1 | D192: 0 | E192: 87 | F192: 52 | J192: 95.1 | K192: 59.3 | N192: 0 | O192: 94 | P192: 59 | Q192: 81 | R192: 73 | S192: 0 | T192: 93 | U192: 60 | V192: 78 | W192: 74 | Y192: 90.11764706 | Z192: 55.58823529 | AA192: 77.66666667 | AB192: 73.66666667 | AC192: 0 | AD192: 92 | AE192: 60 | AF192: 79 | AG192: 75 | AH192: 0 | AI192: 84 | AJ192: 51 | AK192: 78 | AL192: 73 | AM192: 0 | AN192: 90 | AO192: 58 | AP192: 76 | AQ192: 73
B193: 183 | C193: Jul 2 | D193: 0 | E193: 86 | F193: 51 | J193: 95.2 | K193: 59.5 | N193: 0 | O193: 94 | P193: 60 | Q193: 82 | R193: 74 | S193: 0 | T193: 94 | U193: 60 | V193: 80 | W193: 75 | Y193: 90.05882353 | Z193: 55.52941176 | AA193: 77.66666667 | AB193: 73.66666667 | AC193: 0 | AD193: 93 | AE193: 58 | AF193: 79 | AG193: 74 | AH193: 0 | AI193: 83 | AJ193: 55 | AK193: 77 | AL193: 74 | AM193: 0 | AN193: 95 | AO193: 61 | AP193: 77 | AQ193: 73
B194: 184 | C194: Jul 3 | D194: 0 | E194: 86 | F194: 51 | J194: 95.4 | K194: 59.6 | N194: 0 | O194: 93 | P194: 60 | Q194: 82 | R194: 74 | S194: 0 | T194: 94 | U194: 61 | V194: 80 | W194: 76 | Y194: 90.52941176 | Z194: 56.05882353 | AA194: 78 | AB194: 74 | AC194: 0 | AD194: 93 | AE194: 57 | AF194: 79 | AG194: 74 | AH194: 0 | AI194: 87 | AJ194: 58 | AK194: 77 | AL194: 74 | AM194: 0 | AN194: 96 | AO194: 63 | AP194: 78 | AQ194: 74
B195: 185 | C195: Jul 4 | D195: 0.02 | E195: 85 | F195: 52 | J195: 95.4 | K195: 59.8 | N195: 0 | O195: 91 | P195: 60 | Q195: 81 | R195: 74 | S195: 0 | T195: 92 | U195: 60 | V195: 79 | W195: 76 | Y195: 90.23529412 | Z195: 56.17647059 | AA195: 77.66666667 | AB195: 74 | AC195: 0 | AD195: 90 | AE195: 58 | AF195: 78 | AG195: 74 | AH195: 0 | AI195: 92 | AJ195: 55 | AK195: 77 | AL195: 73 | AM195: 0 | AN195: 98 | AO195: 64 | AP195: 78 | AQ195: 75
B196: 186 | C196: Jul 5 | D196: 0.02 | E196: 85 | F196: 51 | J196: 95.5 | K196: 59.9 | N196: 0 | O196: 93 | P196: 60 | Q196: 82 | R196: 74 | S196: 0 | T196: 94 | U196: 59 | V196: 79 | W196: 75 | Y196: 91.58823529 | Z196: 56.17647059 | AA196: 78 | AB196: 74.66666667 | AC196: 0 | AD196: 87 | AE196: 56 | AF196: 78 | AG196: 74 | AH196: 0 | AI196: 91 | AJ196: 59 | AK196: 77 | AL196: 74 | AM196: 0 | AN196: 100 | AO196: 65 | AP196: 79 | AQ196: 76
B197: 187 | C197: Jul 6 | D197: 0 | E197: 87 | F197: 52 | J197: 95.6 | K197: 59.9 | N197: 0 | O197: 94 | P197: 60 | Q197: 82 | R197: 74 | S197: 0 | T197: 94 | U197: 60 | V197: 79 | W197: 76 | Y197: 91.17647059 | Z197: 56.58823529 | AA197: 77.66666667 | AB197: 74.66666667 | AC197: 0 | AD197: 85 | AE197: 51 | AF197: 77 | AG197: 73 | AH197: 0 | AI197: 84 | AJ197: 57 | AK197: 77 | AL197: 74 | AM197: 0 | AN197: 96 | AO197: 69 | AP197: 79 | AQ197: 77
B198: 188 | C198: Jul 7 | D198: 0 | E198: 88 | F198: 51 | J198: 95.7 | K198: 60 | N198: 0.03 | O198: 95 | P198: 61 | Q198: 82 | R198: 75 | S198: 0 | T198: 94 | U198: 61 | V198: 79 | W198: 76 | Y198: 91.17647059 | Z198: 56.52941176 | AA198: 77.66666667 | AB198: 73.33333333 | AC198: 0 | AD198: 87 | AE198: 51 | AF198: 77 | AG198: 72 | AH198: 0 | AI198: 87 | AJ198: 54 | AK198: 77 | AL198: 74 | AM198: 0 | AN198: 94 | AO198: 65 | AP198: 79 | AQ198: 74
B199: 189 | C199: Jul 8 | D199: 0 | E199: 92 | F199: 56 | J199: 95.7 | K199: 60.1 | N199: 0 | O199: 95 | P199: 63 | Q199: 83 | R199: 75 | S199: 0 | T199: 92 | U199: 62 | V199: 77 | W199: 76 | Y199: 92.88235294 | Z199: 57.11764706 | AA199: 77.66666667 | AB199: 74.33333333 | AC199: 0 | AD199: 86 | AE199: 54 | AF199: 76 | AG199: 73 | AH199: 0 | AI199: 89 | AJ199: 56 | AK199: 77 | AL199: 74 | AM199: 0 | AN199: 94 | AO199: 63 | AP199: 80 | AQ199: 76
B200: 190 | C200: Jul 9 | D200: 0 | E200: 90 | F200: 56 | J200: 95.8 | K200: 60.1 | N200: 0 | O200: 95 | P200: 63 | Q200: 83 | R200: 75 | S200: 0 | T200: 95 | U200: 63 | V200: 80 | W200: 77 | Y200: 91.94117647 | Z200: 58.17647059 | AA200: 78.33333333 | AB200: 73.66666667 | AC200: 0 | AD200: 86 | AE200: 52 | AF200: 78 | AG200: 71 | AH200: 0 | AI200: 90 | AJ200: 57 | AK200: 77 | AL200: 74 | AM200: 0 | AN200: 90 | AO200: 60 | AP200: 80 | AQ200: 76
B201: 191 | C201: Jul 10 | D201: 0 | E201: 90 | F201: 55 | J201: 95.9 | K201: 60.2 | N201: 0 | O201: 94 | P201: 62 | Q201: 83 | R201: 75 | S201: 0 | T201: 95 | U201: 63 | V201: 79 | W201: 77 | Y201: 91.58823529 | Z201: 57.35294118 | AA201: 77 | AB201: 72.33333333 | AC201: 0 | AD201: 87 | AE201: 53 | AF201: 74 | AG201: 68 | AH201: 0 | AI201: 96 | AJ201: 59 | AK201: 78 | AL201: 74 | AM201: 0 | AN201: 87 | AO201: 53 | AP201: 79 | AQ201: 75
B202: 192 | C202: Jul 11 | D202: 0 | E202: 90 | F202: 55 | J202: 96 | K202: 60.3 | N202: 0 | O202: 92 | P202: 62 | Q202: 82 | R202: 75 | S202: 0 | T202: 93 | U202: 62 | V202: 79 | W202: 76 | Y202: 91.05882353 | Z202: 56.82352941 | AA202: 76.66666667 | AB202: 73.66666667 | AC202: 0 | AD202: 88 | AE202: 59 | AF202: 74 | AG202: 72 | AH202: 0 | AI202: 92 | AJ202: 61 | AK202: 78 | AL202: 75 | AM202: 0 | AN202: 83 | AO202: 55 | AP202: 78 | AQ202: 74
B203: 193 | C203: Jul 12 | D203: 0 | E203: 89 | F203: 58 | J203: 96.1 | K203: 60.4 | N203: 0 | O203: 94 | P203: 63 | Q203: 82 | R203: 75 | S203: 0 | T203: 94 | U203: 63 | V203: 80 | W203: 76 | Y203: 90.52941176 | Z203: 57.70588235 | AA203: =AVERAGE(AF203,AK203,AP203) -> 77 | AB203: =AVERAGE(AG203,AL203,AQ203) -> 73.33333333 | AC203: 0 | AD203: 88 | AE203: 59 | AF203: 75 | AG203: 72 | AH203: 0 | AI203: 90 | AJ203: 60 | AK203: 78 | AL203: 75 | AM203: 0 | AN203: 83 | AO203: 53 | AP203: 78 | AQ203: 73
B204: 194 | C204: Jul 13 | D204: 0 | E204: 91 | F204: 57 | J204: 96.3 | K204: 60.4 | N204: 0 | O204: 96 | P204: 64 | Q204: 83 | R204: 75 | S204: 0 | T204: 95 | U204: 64 | V204: 81 | W204: 77 | Y204: 92.58823529 | Z204: 58.35294118 | AA204: 77 | AB204: 73 | AC204: 0 | AD204: 91 | AE204: 57 | AF204: 74 | AG204: 71 | AH204: 0 | AI204: 88 | AJ204: 57 | AK204: 79 | AL204: 74 | AM204: 0 | AN204: 80 | AO204: 53 | AP204: 78 | AQ204: 74
B205: 195 | C205: Jul 14 | D205: 0 | E205: 90 | F205: 55 | J205: 96.4 | K205: 60.6 | N205: 0 | O205: 96 | P205: 64 | Q205: 83 | R205: 76 | S205: 0 | T205: 96 | U205: 64 | V205: 81 | W205: 77 | Y205: 94.58823529 | Z205: 58.58823529 | AA205: 76.66666667 | AB205: 72.33333333 | AC205: 0 | AD205: 96 | AE205: 61 | AF205: 75 | AG205: 72 | AH205: 0 | AI205: 91 | AJ205: 59 | AK205: 78 | AL205: 72 | AM205: 0 | AN205: 79 | AO205: 51 | AP205: 77 | AQ205: 73
B206: 196 | C206: Jul 15 | D206: 0 | E206: 89 | F206: 55 | J206: 96.6 | K206: 60.7 | N206: 0 | O206: 95 | P206: 63 | Q206: 83 | R206: 76 | S206: 0 | T206: 95 | U206: 63 | V206: 81 | W206: 76 | Y206: 93.17647059 | Z206: 58.70588235 | AA206: 78 | AB206: 73.33333333 | AC206: 0 | AD206: 99 | AE206: 63 | AF206: 78 | AG206: 72 | AH206: 0 | AI206: 96 | AJ206: 62 | AK206: 79 | AL206: 75 | AM206: 0 | AN206: 81 | AO206: 51 | AP206: 77 | AQ206: 73
... 169 more rows

Sheet weather notes
B3: Updating weather data
B5: 1. Open the minmax data sheet and scroll to the column where you would like to place your data
B6: Name the data set. Select the first cell where the data will be placed.
B8: 2. Select a weather station and time frame (usually starts with Jan. 1)
B10: ipm.ucdavis.edu maintains a weather station network that does not require a log in
B12: 3. Download the data as a comma delimited text file and save it to your computer.
B14: 4. Open the text file with Excel. You may need to select "all file types" in order to find the file.
B16: 5. Choose a comma delimited file and choose the row where the data starts.
B18: 6. IF NOT A LEAP YEAR
C19: Copy the max and min data from Jan 1 to Feb 28. Paste the VALUES into the N uptake minmax sheet.
C20: Then copy the data from Mar 1 to Dec 31 and paste the VALUES into the approprate place in the minmax sheet.
C21: Another way is to insert a blank row for Feb 29 and copy and paste all the data at once
B23: If it IS a leap year, you can copy all the data and paste the values in as a single step.
B26: UC IPM weather network: http://www.ipm.ucdavis.edu/WEATHER/wxretrieve.html

Sheet N release (hidden)
J2: Corral Solids | K2: Fresh Manure | L2: Lagoon Water | M2: Lagoon Sludge | N2: Screen Separator | O2: Compost | P2: Commercial | Q2: A | R2: B | S2: C | T2: D
C3: Tr: | D3: 22 | I3: Microbial efficiency | J3: =$U3 -> 0.4081632653 | K3: 0.4081632653 | L3: 0.4081632653 | M3: 0.4081632653 | N3: 0.4081632653 | O3: 0.4081632653 | P3: 0.4081632653 | Q3: 0.4081632653 | R3: 0.4081632653 | S3: 0.4081632653 | T3: 0.4081632653 | U3: =U5/U7 -> 0.4081632653
C4: Q10: | D4: 2 | I4: C:N initial value | J4: 13.18011668 | K4: 18.24917477 | L4: 6.209575353 | M4: 11.07419999 | N4: 28.77836364 | O4: 13.79502846 | P4: 1 | Q4: 30 | R4: 30 | S4: 20 | T4: 20
I5: C:N final value | J5: =$U5 -> 8 | K5: 8 | L5: 8 | M5: 8 | N5: 8 | O5: 8 | P5: 8 | Q5: 8 | R5: 8 | S5: 8 | T5: 8 | U5: 8
I6: Carbon decay rate | J6: 0.006006597238 | K6: 0.01090556039 | L6: 0.009047643428 | M6: 0.001764617791 | N6: 0.01282314366 | O6: 0.003079595986 | P6: 1 | Q6: 0.06931471806 | R6: 0.05776226505 | S6: 0.002310490602 | T6: 0.001899033371
I7: C:N no net immobilization | J7: =J5/J3 -> 19.6 | K7: 19.6 | L7: 19.6 | M7: 19.6 | N7: 19.6 | O7: 19.6 | P7: 19.6 | Q7: 19.6 | R7: 19.6 | S7: 19.6 | T7: 19.6 | U7: 19.6
I8: Carbon half-life | J8: =LN(2)/J6 -> 115.3976458 | K8: 63.55906121 | L8: 76.61079773 | M8: 392.8030105 | N8: 54.05438785 | O8: 225.07731 | P8: 0.6931471806 | Q8: 10 | R8: 12 | S8: 300 | T8: 365
B11: start date: | C11: 2011-06-14
B12: day of season | C12: Date | D12: avg soil temp. | E12: data source for soil | F12: Avg soil temp oC | H12: Daily TAT | I12: Cum TAT | J12: =J$2 -> Corral Solids | K12: Fresh Manure | L12: Lagoon Water | M12: Lagoon Sludge | N12: Screen Separator | O12: Compost | P12: Commercial | Q12: A | R12: B | S12: C | T12: D
B13: 1 | C13: =Nrelease.StartDate -> 2011-06-14 | D13: 73 | E13: Year 1 | F13: =5/9*(D13-32) -> 22.77777778 | H13: =D$4^((1+(D$3+273.15)/10)*(1-(D$3+273.15)/(F13+273.15))) -> 1.057165776 | I13: =H13 -> 1.057165776 | J13: =1-J$4/J$5*EXP(-J$6*$I13)-(1-J$4/J$5)*EXP(J$6*$I13/(J$3-1)) -> 0.00351830713 | K13: 0.001433042441 | L13: 0.01097670244 | M13: 0.00137060535 | N13: -0.0103790585 | O13: 0.001631028228 | P13: 0.8099304508 | Q13: -0.05528849696 | R13: -0.04745170192 | S13: -7.892105049e-05 | T13: -6.564180478e-05
B14: 2 | C14: =C13+1 -> 2011-06-15 | D14: 73 | E14: Year 1 | F14: 22.77777778 | H14: 1.057165776 | I14: =H14+I13 -> 2.114331552 | J14: 0.007044348425 | K14: 0.003043146935 | L14: 0.02182554993 | M14: 0.002740208208 | N14: -0.02007842482 | O14: 0.003265638338 | P14: 0.9603356826 | Q14: -0.09200352475 | R14: -0.08163343456 | S14: -0.0001472768251 | T14: -0.0001241379908
B15: 3 | C15: =C14+1 -> 2011-06-16 | D15: 72 | E15: Year 1 | F15: 22.22222222 | H15: 1.016040458 | I15: 3.130372009 | J15: 0.01044016675 | K15: 0.004752118774 | L15: 0.0321333508 | M15: 0.004055583922 | N15: -0.0287798178 | O15: 0.004839979105 | P15: 0.9901224545 | Q15: -0.1125999088 | R15: -0.1036666389 | S15: -0.0002030804129 | T15: -0.0001736599514
B16: 4 | C16: 2011-06-17 | D16: 72 | E16: Year 1 | F16: 22.22222222 | H16: 1.016040458 | I16: 4.146412467 | J16: 0.01384246545 | K16: 0.006614325738 | L16: 0.04232591569 | M16: 0.005370028178 | N16: -0.03689161097 | O16: 0.006417519527 | P16: 0.9972292479 | Q16: -0.1211537549 | R16: -0.1165435117 | S16: -0.0002492485291 | T16: -0.0002166502816
B17: 5 | C17: 2011-06-18 | D17: 72 | E17: Year 1 | F17: 22.22222222 | H17: 1.016040458 | I17: 5.162452925 | J17: 0.01725092665 | K17: 0.008624887776 | L17: 0.05240462142 | M17: 0.006683538335 | N17: -0.04443182159 | O17: 0.007998206801 | P17: 0.9991415641 | Q17: -0.119677908 | R17: -0.1215318088 | S17: -0.0002858413929 | T17: -0.0002531425208
B18: 6 | C18: 2011-06-19 | D18: 71 | E18: Year 1 | F18: 21.66666667 | H18: 0.9763689576 | I18: 6.138821882 | J18: 0.0205318189 | K18: 0.01069229229 | L18: 0.06198378878 | M18: 0.007944879687 | N18: -0.05115541308 | O18: 0.009520092032 | P18: 0.9997029459 | Q18: -0.1104319377 | R18: -0.1199402006 | S18: -0.0003120394637 | T18: -0.0002821185151
B19: 7 | C19: 2011-06-20 | D19: 71 | E19: Year 1 | F19: 21.66666667 | H19: 0.9763689576 | I19: 7.11519084 | J19: 0.02381783896 | K19: 0.01288815629 | L19: 0.07146026104 | M19: 0.009205353723 | N19: -0.05738259213 | O19: 0.0110447886 | P19: 0.9998931587 | Q19: -0.09487303007 | R19: -0.1129905721 | S19: -0.0003295036903 | T19: -0.0003051543292
B20: 8 | C20: 2011-06-21 | D20: 71 | E20: Year 1 | F20: 21.66666667 | H20: 0.9763689576 | I20: 8.091559797 | J20: 0.02710871713 | K20: 0.01520843832 | L20: 0.0808352147 | M20: 0.01046495815 | N20: -0.06312817519 | O20: 0.01257225067 | P20: 0.9999607259 | Q20: -0.07416180615 | R20: -0.1014716748 | S20: -0.0003382867555 | T20: -0.0003222793799
B21: 9 | C21: 2011-06-22 | D21: 72 | E21: Year 1 | F21: 22.22222222 | H21: 1.016040458 | I21: 9.107600255 | J21: 0.0305381814 | K21: 0.01775085024 | L21: 0.09048454911 | M21: 0.01177481662 | N21: -0.06861141307 | O21: 0.01416466342 | P21: 0.999985966 | Q21: -0.04821726891 | R21: -0.08538619498 | S21: -0.0003382656984 | T21: -0.0003338558963
B22: 10 | C22: 2011-06-23 | D22: 73 | E22: Year 1 | F22: 22.77777778 | H22: 1.057165776 | I22: 10.16476603 | J22: 0.03411141866 | K22: 0.02052997359 | L22: 0.1004104769 | M22: 0.01313668796 | N22: -0.07379665688 | O22: 0.01582460275 | P22: 0.9999951567 | Q22: -0.01749829215 | R22: -0.06495215484 | S22: -0.000328387916 | T22: -0.0003391753447
B23: 11 | C23: 2011-06-24 | D23: 74 | E23: Year 1 | F23: 23.33333333 | H23: 1.099792134 | I23: 11.26455816 | J23: =1-J$4/J$5*EXP(-J$6*$I23)-(1-J$4/J$5)*EXP(J$6*$I23/(J$3-1)) -> 0.03783375682 | K23: 0.02356090192 | L23: 0.1106147987 | M23: 0.01455238098 | N23: -0.07864670629 | O23: 0.01755473761 | P23: 0.9999983928 | Q23: 0.01750114107 | R23: -0.04042431802 | S23: -0.0003075143592 | T23: -0.0003374689829
B24: 12 | C24: 2011-06-25 | D24: 71 | E24: Year 1 | F24: 21.66666667 | H24: 0.9763689576 | I24: 12.24092712 | J24: 0.04114236288 | K24: 0.02636692314 | L24: 0.1195711122 | M24: 0.01580826445 | N24: -0.0825025553 | O24: 0.01909344866 | P24: 0.9999993955 | Q24: 0.05046341608 | R24: -0.01639648882 | S24: -0.0002799863103 | T24: -0.0003298000583
B25: 13 | C25: 2011-06-26 | D25: 74 | E25: Year 1 | F25: 23.33333333 | H25: 1.099792134 | I25: 13.34071926 | J25: 0.04487339715 | K25: 0.02965280164 | L25: 0.1295451918 | M25: 0.01722184892 | N25: -0.08635591067 | O25: 0.02082969667 | P25: 0.9999997989 | Q25: 0.08904026601 | R25: 0.01266671794 | S25: -0.000238910867 | T25: -0.0003142671473
B26: 14 | C26: 2011-06-27 | D26: 76 | E26: Year 1 | F26: 24.44444444 | H26: 1.189743512 | I26: 14.53046277 | J26: 0.04891419348 | K26: 0.03335115984 | L26: 0.1402002973 | M26: 0.01874978672 | N26: -0.0899600967 | O26: 0.02271149388 | P26: 0.9999999388 | Q26: 0.1318019189 | R26: 0.04591738775 | S26: -0.0001825470707 | T26: -0.0002892845535
B27: 15 | C27: 2011-06-28 | D27: 77 | E27: Year 1 | F27: 25 | H27: 1.237169725 | I27: 15.76763249 | J27: 0.05312068251 | K27: 0.03734891844 | L27: 0.1511336491 | M27: 0.02033723578 | N27: -0.09310917315 | O27: 0.02467212668 | P27: 0.9999999823 | Q27: 0.1767188093 | R27: 0.08190254962 | S27: -0.0001108843079 | T27: -0.0002543446471
B28: 16 | C28: 2011-06-29 | D28: 77 | E28: Year 1 | F28: 25 | H28: 1.237169725 | I28: 17.00480222 | J28: 0.05733140238 | K28: 0.04149497657 | L28: 0.1619197671 | M28: 0.02192325696 | N28: -0.09567165352 | O28: 0.02663657005 | P28: 0.9999999948 | Q28: 0.2215097106 | R28: 0.118797186 | S28: -2.601591327e-05 | T28: -0.0002103253158
B29: 17 | C29: 2011-06-30 | D29: 75 | E29: Year 1 | F29: 23.88888889 | H29: 1.143968078 | I29: 18.1487703 | J29: 0.06122826401 | K29: 0.0454549811 | L29: 0.1717641411 | M29: 0.02338852155 | N29: -0.0975394597 | O29: 0.02845633843 | P29: 0.9999999984 | Q29: 0.2624042407 | R29: 0.153331375 | S29: 6.412104135e-05 | T29: -0.000161592939
B30: 18 | C30: 2011-07-01 | D30: 76 | E30: Year 1 | F30: 24.44444444 | H30: 1.189743512 | I30: 19.33851381 | J30: 0.06528407129 | K30: 0.04969662228 | L30: 0.1818725846 | M30: 0.02491111538 | N30: -0.09899052524 | O30: 0.03035222853 | P30: 0.9999999995 | Q30: 0.3040789726 | R30: 0.1893456665 | S30: 0.0001696631792 | T30: -0.0001027764015
B31: 19 | C31: 2011-07-02 | D31: 76 | E31: Year 1 | F31: 24.44444444 | H31: 1.189743512 | I31: 20.52825732 | J31: 0.06934255199 | K31: 0.05405843465 | L31: 0.1918504366 | M31: 0.02643237712 | N31: -0.09995981116 | O31: 0.03225141299 | P31: 0.9999999998 | Q31: 0.344628494 | R31: 0.2251844069 | S31: 0.0002871463217 | T31: -3.571626383e-05
B32: 20 | C32: 2011-07-03 | D32: 76 | E32: Year 1 | F32: 24.44444444 | H32: 1.189743512 | I32: 21.71800083 | J32: 0.07340330834 | K32: 0.05853507757 | L32: 0.2016994982 | M32: 0.02795230297 | N32: -0.1004663133 | O32: 0.03415381664 | P32: 1 | Q32: 0.3838591484 | R32: 0.2606162842 | S32: 0.0004164810131 | T32: 3.953695375e-05
B33: 21 | C33: =C32+1 -> 2011-07-04 | D33: 75 | E33: Year 1 | F33: 23.88888889 | H33: 1.143968078 | I33: 22.86196891 | J33: =1-J$4/J$5*EXP(-J$6*$I33)-(1-J$4/J$5)*EXP(J$6*$I33/(J$3-1)) -> 0.07730960943 | K33: 0.06294293735 | L33: 0.2110498164 | M33: 0.02941248633 | N33: -0.1005340537 | O33: 0.03598599165 | P33: 1 | Q33: 0.4202044953 | R33: 0.2941246628 | S33: 0.0005519330758 | T33: 0.0001195742871
B34: 22 | C34: 2011-07-05 | D34: 76 | E34: Year 1 | F34: 24.44444444 | H34: 1.189743512 | I34: 24.05171242 | J34: 0.08137370244 | K34: 0.06762988702 | L34: 0.2206513831 | M34: 0.03092978091 | N34: -0.100185738 | O34: 0.03789449403 | P34: 1 | Q34: 0.4564772923 | R34: 0.3282424275 | S34: 0.0007042569948 | T34: 0.0002107525992
B35: 23 | C35: 2011-07-06 | D35: 76 | E35: Year 1 | F35: 24.44444444 | H35: 1.189743512 | I35: 25.24145593 | J35: 0.085438936 | K35: 0.07241672268 | L35: 0.23012934 | M35: 0.03244572854 | N35: -0.09942752363 | O35: 0.03980599685 | P35: 1 | Q35: 0.4911304051 | R35: 0.361493409 | S35: 0.0008681705091 | T35: 0.0003099757524
B36: 24 | C36: 2011-07-07 | D36: 76 | E36: Year 1 | F36: 24.44444444 | H36: 1.189743512 | I36: 26.43119945 | J36: 0.08950494097 | K36: 0.07729868057 | L36: 0.2394853854 | M36: 0.03396032556 | N36: -0.0982761822 | O36: 0.04172042755 | P36: 1 | Q36: 0.524129252 | R36: 0.3937817903 | S36: 0.001043586161 | T36: 0.0004171941538
B37: 25 | C37: 2011-07-08 | D37: 76 | E37: Year 1 | F37: 24.44444444 | H37: 1.189743512 | I37: 27.62094296 | J37: 0.09357135516 | K37: 0.08227113372 | L37: 0.2487211929 | M37: 0.03547356831 | N37: -0.09674796242 | O37: 0.0436377142 | P37: 1 | Q37: 0.5554631625 | R37: 0.4250349331 | S37: 0.001230416991 | T37: 0.0005323584426
B38: 26 | C38: 2011-07-09 | D38: 76 | E38: Year 1 | F38: 24.44444444 | H38: 1.189743512 | I38: 28.81068647 | J38: 0.09763782324 | K38: 0.08732958855 | L38: 0.2578384116 | M38: 0.03698545319 | N38: -0.09485860495 | O38: 0.04555778553 | P38: 1 | Q38: 0.5851407314 | R38: 0.4551999955 | S38: 0.001428576535 | T38: 0.0006554194883
B39: 27 | C39: 2011-07-10 | D39: 76 | E39: Year 1 | F39: 24.44444444 | H39: 1.189743512 | I39: 30.00042998 | J39: 0.1017039966 | K39: 0.09246968154 | L39: 0.2668386663 | M39: 0.03849597661 | N39: -0.09262335679 | O39: 0.04748057088 | P39: 1 | Q39: 0.6131858968 | R39: 0.4842409751 | S39: 0.001637978822 | T39: 0.0007863283904
B40: 28 | C40: 2011-07-11 | D40: 76 | E40: Year 1 | F40: 24.44444444 | H40: 1.189743512 | I40: 31.19017349 | J40: 0.1057695335 | K40: 0.09768717601 | L40: 0.275723558 | M40: 0.04000513503 | N40: -0.09005698521 | O40: 0.04940600025 | P40: 1 | Q40: 0.6396346421 | R40: 0.51213613 | S40: 0.001858538369 | T40: 0.0009250364772
B41: 29 | C41: 2011-07-12 | D41: 76 | E41: Year 1 | F41: 24.44444444 | H41: 1.189743512 | I41: 32.37991701 | J41: 0.1098340983 | K41: 0.1029779589 | L41: 0.2844946643 | M41: 0.04151292492 | N41: -0.08717379139 | O41: 0.05133400424 | P41: 1 | Q41: 0.6645322291 | R41: 0.53887573 | S41: 0.002090170185 | T41: 0.001071495305
B42: 30 | C42: 2011-07-13 | D42: 76 | E42: Year 1 | F42: 24.44444444 | H42: 1.189743512 | I42: 33.56966052 | J42: 0.1138973624 | K42: 0.1083380379 | L42: 0.2931535398 | M42: 0.04301934279 | N42: -0.08398762359 | O42: 0.0532645141 | P42: 1 | Q42: 0.6879308864 | R42: 0.5644601006 | S42: 0.002332789759 | T42: 0.001225656656
B43: 31 | C43: 2011-07-14 | D43: 75 | E43: Year 1 | F43: 23.88888889 | H43: 1.143968078 | I43: 34.7136286 | J43: =1-J$4/J$5*EXP(-J$6*$I43)-(1-J$4/J$5)*EXP(J$6*$I43/(J$3-1)) -> 0.1178027652 | K43: 0.1135536273 | L43: 0.3013748542 | M43: 0.04446650409 | N43: -0.08065081697 | O43: 0.05512304715 | P43: 1 | Q43: 0.7090690296 | R43: 0.5879787159 | S43: 0.00257635807 | T43: 0.001381105656
B44: 32 | C44: 2011-07-15 | D44: 77 | E44: Year 1 | F44: 25 | H44: 1.237169725 | I44: 35.95079832 | J44: 0.1220243358 | K44: 0.1192583535 | L44: 0.3101523374 | M44: 0.04603013404 | N44: -0.07675417899 | O44: 0.0571354663 | P44: 1 | Q44: 0.7304915668 | R44: 0.6122363244 | S44: 0.002851030824 | T44: 0.001557135527
B45: 33 | C45: 2011-07-16 | D45: 78 | E45: Year 1 | F45: =5/9*(D45-32) -> 25.55555556 | H45: 1.286299427 | I45: 37.23709775 | J45: 0.1264109661 | K45: 0.1252560765 | L45: 0.3191549231 | M45: 0.04765427288 | N45: -0.07240029134 | O45: 0.05923044108 | P45: 1 | Q45: 0.7512546622 | R45: 0.6361852149 | S45: 0.003148920716 | T45: 0.001748822199
B46: 34 | C46: =C45+1 -> 2011-07-17 | D46: 78 | E46: Year 1 | F46: 25.55555556 | H46: 1.286299427 | I46: 38.52339718 | J46: 0.1307945826 | K46: 0.1313171385 | L46: 0.3280334693 | M46: 0.04927679166 | N46: -0.06775315383 | O46: 0.06132802425 | P46: 1 | Q46: 0.7705579738 | R46: 0.6588695984 | S46: 0.003459256754 | T46: 0.001949284987
B47: 35 | C47: 2011-07-18 | D47: 78 | E47: Year 1 | F47: 25.55555556 | H47: 1.286299427 | I47: 39.8096966 | J47: 0.1351748099 | K47: 0.1374372164 | L47: 0.3367897981 | M47: 0.05089768617 | N47: -0.06282758141 | O47: 0.06342813285 | P47: 1 | Q47: 0.7884824844 | R47: 0.680326885 | S47: 0.003781935233 | T47: 0.002158464408
B48: 36 | C48: 2011-07-19 | D48: 78 | E48: Year 1 | F48: 25.55555556 | H48: 1.286299427 | I48: 41.09599603 | J48: 0.1395512802 | K48: 0.1436121282 | L48: 0.3454257031 | M48: 0.05251695222 | N48: -0.05763787133 | O48: 0.06553068474 | P48: 1 | Q48: 0.8051083573 | R48: 0.700598075 | S48: 0.004116853087 | T48: 0.002376301276
B49: 37 | C49: 2011-07-20 | D49: 78 | E49: Year 1 | F49: 25.55555556 | H49: 1.286299427 | I49: 42.38229546 | J49: 0.1439236341 | K49: 0.1498378288 | L49: 0.3539429499 | M49: 0.05413458567 | N49: -0.05219781919 | O49: 0.06763559857 | P49: 1 | Q49: 0.8205141552 | R49: 0.7197267623 | S49: 0.004463907891 | T49: 0.00260273671
B50: 38 | C50: 2011-07-21 | D50: 78 | E50: Year 1 | F50: 25.55555556 | H50: 1.286299427 | I50: 43.66859488 | J50: 0.1482915197 | K50: 0.1561104062 | L50: 0.3623432761 | M50: 0.05575058242 | N50: -0.04652073448 | O50: 0.06974279379 | P50: 1 | Q50: 0.834776244 | R50: 0.7377582962 | S50: 0.004822997857 | T50: 0.002837712126
B51: 39 | C51: 2011-07-22 | D51: 78 | E51: Year 1 | F51: 25.55555556 | H51: 1.286299427 | I51: 44.95489431 | J51: 0.1526545929 | K51: 0.1624260781 | L51: 0.3706283923 | M51: 0.05736493841 | N51: -0.04061945573 | O51: 0.07185219065 | P51: 1 | Q51: 0.8479683507 | R51: 0.7547390804 | S51: 0.005194021824 | T51: 0.003081169237
B52: 40 | C52: 2011-07-23 | D52: 78 | E52: Year 1 | F52: 25.55555556 | H52: 1.286299427 | I52: 46.24119374 | J52: 0.1570125171 | K52: 0.168781188 | L52: 0.3787999824 | M52: 0.0589776496 | N52: -0.03450636513 | O52: 0.0739637102 | P52: 1 | Q52: 0.860161246 | R52: 0.7707159902 | S52: 0.005576879262 | T52: 0.003333050055
B53: 41 | C53: 2011-07-24 | D53: 78 | E53: Year 1 | F53: 25.55555556 | H53: 1.286299427 | I53: 47.52749316 | J53: =1-J$4/J$5*EXP(-J$6*$I53)-(1-J$4/J$5)*EXP(J$6*$I53/(J$3-1)) -> 0.1613649632 | K53: 0.1751722023 | L53: 0.3868597037 | M53: 0.06058871202 | N53: -0.02819340281 | O53: 0.07607727424 | P53: 1 | Q53: 0.8714225307 | R53: 0.7857358906 | S53: 0.005971470266 | T53: 0.003593296886
B54: 42 | C54: 2011-07-25 | D54: 78 | E54: Year 1 | F54: 25.55555556 | H54: 1.286299427 | I54: 48.81379259 | J54: 0.1657116094 | K54: 0.181595706 | L54: 0.3948091881 | M54: 0.06219812172 | N54: -0.02169208061 | O54: 0.07819280537 | P54: 1 | Q54: 0.8818165051 | R54: 0.7998452426 | S54: 0.00637769555 | T54: 0.003861852329
B55: 43 | C55: 2011-07-26 | D55: 77 | E55: Year 1 | F55: 25 | H55: 1.237169725 | I55: 50.05096231 | J55: 0.1698864723 | K55: 0.1878014446 | L55: 0.4023525394 | M55: 0.06374449776 | N55: -0.01527170771 | O55: 0.08022931905 | P55: 1 | Q55: 0.8910520206 | R55: 0.8125992574 | S55: 0.006779289527 | T55: 0.004127935863
B56: 44 | C56: 2011-07-27 | D56: 76 | E56: Year 1 | F56: 24.44444444 | H56: 1.189743512 | I56: 51.24070583 | J56: 0.1738957039 | K56: 0.1937921171 | L56: 0.4095132448 | M56: 0.06523014563 | N56: -0.00895165672 | O56: 0.08218935075 | P56: 1 | Q56: 0.8992776794 | R56: 0.8241468736 | S56: 0.007175472839 | T56: 0.004390972053
B57: 45 | C57: 2011-07-28 | D57: 75 | E57: Year 1 | F57: 23.88888889 | H57: 1.143968078 | I57: 52.3846739 | J57: 0.1777452865 | K57: 0.1995710999 | L57: 0.4163131777 | M57: 0.06665729079 | N57: -0.002747684469 | O57: 0.08407538102 | P57: 1 | Q57: 0.9066211976 | R57: 0.8346194372 | S57: 0.007565571588 | T57: 0.004650459185
B58: 46 | C58: 2011-07-29 | D58: 75 | E58: Year 1 | F58: 23.88888889 | H58: 1.143968078 | I58: 53.52864198 | J58: 0.181589371 | K58: 0.2053663852 | L58: 0.4230306144 | M58: 0.06808311724 | N58: 0.003573756254 | O58: 0.08596274137 | P58: 1 | Q58: 0.9134468766 | R58: 0.8445039053 | S58: 0.007964580201 | T58: 0.004916348569
B59: 47 | C59: 2011-07-30 | D59: 76 | E59: Year 1 | F59: 24.44444444 | H59: 1.189743512 | I59: 54.71838549 | J59: 0.1855812244 | K59: 0.2114086717 | L59: 0.4299304784 | M59: 0.06956459579 | N59: 0.01026545478 | O59: 0.08792697887 | P59: 1 | Q59: 0.9200331042 | R59: 0.8541911846 | S59: 0.008388933879 | T59: 0.005199626698
B60: 48 | C60: 2011-07-31 | D60: 76 | E60: Year 1 | F60: 24.44444444 | H60: 1.189743512 | I60: 55.90812901 | J60: 0.1895666873 | K60: 0.2174641707 | L60: 0.4367434466 | M60: 0.07104464215 | N60: 0.01706946844 | O60: 0.08989254097 | P60: 1 | Q60: 0.9261324657 | R60: 0.8633052383 | S60: 0.008822775545 | T60: 0.005489742937
B61: 49 | C61: 2011-08-01 | D61: 76 | E61: Year 1 | F61: 24.44444444 | H61: 1.189743512 | I61: 57.09787252 | J61: 0.193545541 | K61: 0.2235307364 | L61: 0.4434706842 | M61: 0.0725232534 | N61: 0.02397866018 | O61: 0.09185937032 | P61: 1 | Q61: 0.9317790149 | R61: 0.8718764467 | S61: 0.009266029788 | T61: 0.00578665336
B62: 50 | C62: 2011-08-02 | D62: 76 | E62: Year 1 | F62: 24.44444444 | H62: 1.189743512 | I62: 58.28761603 | J62: 0.1975175712 | K62: 0.2296062933 | L62: 0.4501133395 | M62: 0.07400042663 | N62: 0.03098613936 | O62: 0.09382741009 | P62: 1 | Q62: 0.9370046934 | R62: 0.8799340152 | S62: 0.009718621634 | T62: 0.006090314253
B63: 51 | C63: 2011-08-03 | D63: 76 | E63: Year 1 | F63: 24.44444444 | H63: 1.189743512 | I63: 59.47735954 | J63: =1-J$4/J$5*EXP(-J$6*$I63)-(1-J$4/J$5)*EXP(J$6*$I63/(J$3-1)) -> 0.2014825682 | K63: 0.2356888347 | L63: 0.4566725443 | M63: 0.07547615898 | N63: 0.03808525448 | O63: 0.09579660399 | P63: 1 | Q63: 0.9418394219 | R63: 0.8875059605 | S63: 0.01018047654 | T63: 0.006400682108
B64: 52 | C64: 2011-08-04 | D64: 76 | E64: Year 1 | F64: 24.44444444 | H64: 1.189743512 | I64: 60.66710305 | J64: 0.2054403272 | K64: 0.241776421 | L64: 0.4631494144 | M64: 0.07695044759 | N64: 0.04526958616 | O64: 0.09776689626 | P64: 1 | Q64: 0.946311194 | R64: 0.8946191067 | S64: 0.0106515204 | T64: 0.00671771362
B65: 53 | C65: 2011-08-05 | D65: 76 | E65: Year 1 | F65: 24.44444444 | H65: 1.189743512 | I65: 61.85684657 | J65: 0.2093906477 | K65: 0.2478671773 | L65: 0.4695450495 | M65: 0.07842328964 | N65: 0.05253294026 | O65: 0.09973823166 | P65: 1 | Q65: 0.9504461718 | R65: 0.9012990916 | S65: 0.01113167954 | T65: 0.007041365693
B66: 54 | C66: 2011-08-06 | D66: 74 | E66: Year 1 | F66: 23.33333333 | H66: 1.099792134 | I66: 62.9566387 | J66: 0.2130355152 | K66: 0.2534986859 | L66: 0.475385824 | M66: 0.07978348741 | N66: 0.05931224542 | O66: 0.1015614032 | P66: 1 | Q66: 0.9539901647 | R66: 0.9071099873 | S66: 0.01158357996 | T66: 0.007346399289
B67: 55 | C67: 2011-08-07 | D67: 74 | E67: Year 1 | F67: 23.33333333 | H67: 1.099792134 | I67: 64.05643083 | J67: 0.2166737074 | K67: 0.2591299712 | L67: 0.4811589538 | M67: 0.08114244451 | N67: 0.06614940858 | O67: 0.1033853766 | P67: 1 | Q67: 0.9572852959 | R67: 0.9125901097 | S67: 0.01204314929 | T67: 0.007657019804
B68: 56 | C68: 2011-08-08 | D68: 75 | E68: Year 1 | F68: 23.88888889 | H68: 1.143968078 | I68: 65.20039891 | J68: 0.2204507946 | K68: 0.2649857742 | L68: 0.4870930971 | M68: 0.08255466883 | N68: 0.07331785617 | O68: 0.1052834195 | P68: 1 | Q68: 0.9604668931 | R68: 0.9179583253 | S68: 0.012529254 | T68: 0.007986009121
B69: 57 | C69: 2011-08-09 | D69: 74 | E69: Year 1 | F69: 23.33333333 | H69: 1.099792134 | I69: 66.30019105 | J69: 0.2240749115 | K69: 0.270612495 | L69: 0.4927307931 | M69: 0.08391108808 | N69: 0.08025954624 | O69: 0.1071088972 | P69: 1 | Q69: 0.9633055739 | R69: 0.9228173989 | S69: 0.01300429202 | T69: 0.008307923908
B70: 58 | C70: 2011-08-10 | D70: 72 | E70: Year 1 | F70: 22.22222222 | H70: 1.016040458 | I70: 67.3162315 | J70: 0.2274167224 | K70: 0.2758070548 | L70: 0.4978812553 | M70: 0.08516310463 | N70: 0.08671260836 | O70: 0.1087959604 | P70: 1 | Q70: 0.9657493718 | R70: 0.9270575553 | S70: 0.01344981744 | T70: 0.008610199516
B71: 59 | C71: 2011-08-11 | D71: 74 | E71: Year 1 | F71: 23.33333333 | H71: 1.099792134 | I71: 68.41602364 | J71: 0.2310270243 | K71: 0.2814246851 | L71: 0.503394334 | M71: 0.08651712261 | N71: 0.09373715579 | O71: 0.1106226977 | P71: 1 | Q71: 0.9682141523 | R71: 0.9313921355 | S71: 0.01393922631 | T71: 0.008942637715
B72: 60 | C72: 2011-08-12 | D72: 72 | E72: Year 1 | F72: 22.22222222 | H72: 1.016040458 | I72: 69.4320641 | J72: 0.2343558369 | K72: 0.2866088032 | L72: 0.5084310295 | M72: 0.08776691715 | N72: 0.1002600695 | O72: 0.1123108541 | P72: 1 | Q72: 0.9703354655 | R72: 0.9351732432 | S72: 0.01439793217 | T72: 0.009254578816
B73: 61 | C73: 2011-08-13 | D73: 74 | E73: Year 1 | F73: 23.33333333 | H73: 1.099792134 | I73: 70.53185623 | J73: =1-J$4/J$5*EXP(-J$6*$I73)-(1-J$4/J$5)*EXP(J$6*$I73/(J$3-1)) -> 0.2379518195 | K73: 0.2922129903 | L73: 0.5138224178 | M73: 0.08911852612 | N73: 0.1073532181 | O73: 0.1141386992 | P73: 1 | Q73: 0.9724744247 | R73: 0.9390372311 | S73: 0.01490150454 | T73: 0.009597418291
B74: 62 | C74: 2011-08-14 | D74: 74 | E74: Year 1 | F74: 23.33333333 | H74: 1.099792134 | I74: 71.63164836 | J74: 0.2415401668 | K74: 0.2978085617 | L74: 0.5191516841 | M74: 0.0904688799 | N74: 0.1144767015 | O74: 0.115967061 | P74: 1 | Q74: 0.9744610253 | R74: 0.9426762266 | S74: 0.01541235778 | T74: 0.009945616364
B75: 63 | C75: 2011-08-15 | D75: 74 | E75: Year 1 | F75: 23.33333333 | H75: 1.099792134 | I75: 72.7314405 | J75: 0.2451207509 | K75: 0.3033944527 | L75: 0.5244195892 | M75: 0.09181797644 | N75: 0.1216270417 | O75: 0.1177958995 | P75: 1 | Q75: 0.9763058895 | R75: 0.9461027715 | S75: 0.01593043675 | T75: 0.01029914046
B76: 64 | C76: 2011-08-16 | D76: 74 | E76: Year 1 | F76: 23.33333333 | H76: 1.099792134 | I76: 73.83123263 | J76: 0.2486934469 | K76: 0.3089696345 | L76: 0.529626884 | M76: 0.09316581374 | N76: 0.1288008811 | O76: 0.1196251751 | P76: 1 | Q76: 0.9780189279 | R76: 0.9493287686 | S76: 0.01645568661 | T76: 0.01065795814
B77: 65 | C77: 2011-08-17 | D77: 74 | E77: Year 1 | F77: =5/9*(D77-32) -> 23.33333333 | H77: =D$4^((1+(D$3+273.15)/10)*(1-(D$3+273.15)/(F77+273.15))) -> 1.099792134 | I77: 74.93102476 | J77: 0.2522581326 | K77: 0.3145331137 | L77: 0.5347743094 | M77: 0.09451238978 | N77: 0.1359949795 | O77: 0.1214548486 | P77: 1 | Q77: 0.9796093831 | R77: 0.9523655074 | S77: 0.01698805279 | T77: 0.01102203712
B78: 66 | C78: 2011-08-18 | D78: 74 | E78: Year 1 | F78: 23.33333333 | H78: 1.099792134 | I78: =H78+I77 -> 76.0308169 | J78: 0.2558146886 | K78: 0.320083931 | L78: 0.5398625968 | M78: 0.09585770259 | N78: 0.1432062107 | O78: 0.1232848811 | P78: 1 | Q78: 0.9810858717 | R78: 0.9552236899 | S78: 0.01752748104 | T78: 0.01139134524
B79: 67 | C79: =C78+1 -> 2011-08-19 | D79: 74 | E79: Year 1 | F79: 23.33333333 | H79: 1.099792134 | I79: 77.13060903 | J79: 0.2593629981 | K79: 0.3256211608 | L79: 0.544892468 | M79: 0.09720175022 | N79: 0.150431559 | O79: 0.125115234 | P79: 1 | Q79: 0.9824564238 | R79: 0.9579134559 | S79: 0.01807391739 | T79: 0.01176585051
B80: 68 | C80: 2011-08-20 | D80: 74 | E80: Year 1 | F80: 23.33333333 | H80: 1.099792134 | I80: 78.23040117 | J80: 0.262902947 | K80: 0.33114391 | L80: 0.5498646353 | M80: 0.09854453071 | N80: 0.1576681163 | O80: 0.126945869 | P80: 1 | Q80: 0.9837285206 | R80: 0.9604444074 | S80: 0.01862730816 | T80: 0.01214552106
B81: 69 | C81: 2011-08-21 | D81: 73 | E81: Year 1 | F81: 22.77777778 | H81: 1.057165776 | I81: 79.28756694 | J81: 0.266297708 | K81: 0.3364381542 | L81: 0.5545903505 | M81: 0.09983407075 | N81: 0.1646321515 | O81: 0.128705782 | P81: 1 | Q81: 0.984864995 | R81: 0.9627360235 | S81: 0.01916575596 | T81: 0.01251531547
B82: 70 | C82: 2011-08-22 | D82: 72 | E82: Year 1 | F82: 22.22222222 | H82: 1.016040458 | I82: 80.3036074 | J82: 0.2695529406 | K82: 0.3415123986 | L82: 0.5590831675 | M82: 0.1010723391 | N82: 0.1713303597 | O82: 0.1303974135 | P82: 1 | Q82: 0.9858829675 | R82: 0.9648152344 | S82: 0.01968922268 | T82: 0.01287516835
B83: 71 | C83: 2011-08-23 | D83: 72 | E83: Year 1 | F83: 22.22222222 | H83: 1.016040458 | I83: 81.31964786 | J83: =1-J$4/J$5*EXP(-J$6*$I83)-(1-J$4/J$5)*EXP(J$6*$I83/(J$3-1)) -> 0.2728007689 | K83: 0.3465722342 | L83: 0.5635284447 | M83: 0.1023095213 | N83: 0.1780314642 | O83: 0.1320891933 | P83: 1 | Q83: 0.9868329779 | R83: 0.9667801627 | S83: 0.02021849416 | T83: 0.01323935198
B84: 72 | C84: 2011-08-24 | D84: 74 | E84: Year 1 | F84: 23.33333333 | H84: 1.099792134 | I84: 82.41943999 | J84: 0.2763078738 | K84: 0.3520322031 | L84: 0.5682871829 | M84: 0.1036474579 | N84: 0.1852859005 | O84: 0.1339205591 | P84: 1 | Q84: 0.9877898817 | R84: 0.9687853311 | S84: 0.02079788744 | T84: 0.01363840739
B85: 73 | C85: 2011-08-25 | D85: 74 | E85: Year 1 | F85: =5/9*(D85-32) -> 23.33333333 | H85: 1.099792134 | I85: 83.51923212 | J85: 0.2798061055 | K85: 0.3574738271 | L85: 0.5729915156 | M85: 0.1049841182 | N85: 0.19253897 | O85: 0.1357520281 | P85: 1 | Q85: 0.9886777028 | R85: 0.9706711039 | S85: 0.02138398105 | T85: 0.0140424768
B86: 74 | C86: 2011-08-26 | D86: 76 | E86: Year 1 | F86: 24.44444444 | H86: 1.189743512 | I86: 84.70897564 | J86: 0.283580349 | K86: 0.3633390304 | L86: 0.5780201143 | M86: 0.106428664 | N86: 0.2003810192 | O86: 0.1377333659 | P86: 1 | Q86: 0.9895660449 | R86: 0.9725846879 | S86: 0.02202549554 | T86: 0.01448520479
B87: 75 | C87: 2011-08-27 | D87: 75 | E87: Year 1 | F87: 23.88888889 | H87: 1.143968078 | I87: 85.85294372 | J87: 0.2871993618 | K87: 0.3689567168 | L87: 0.5827966918 | M87: 0.1078162183 | N87: 0.2079146033 | O87: 0.1396385031 | P87: 1 | Q87: 0.9903547988 | R87: 0.9743082453 | S87: 0.02264960383 | T87: 0.01491636151
B88: 76 | C88: 2011-08-28 | D88: 74 | E88: Year 1 | F88: 23.33333333 | H88: 1.099792134 | I88: 86.95273585 | J88: 0.2906692627 | K88: 0.3743365654 | L88: 0.5873353818 | M88: 0.1091488825 | N88: 0.2151487428 | O88: 0.141470062 | P88: 1 | Q88: 0.9910571347 | R88: 0.9758641906 | S88: 0.02325628221 | T88: 0.01533588518
B89: 77 | C89: 2011-08-29 | D89: 73 | E89: Year 1 | F89: 22.77777778 | H89: 1.057165776 | I89: 88.00990162 | J89: 0.2939959404 | K89: 0.379487983 | L89: 0.5916493814 | M89: 0.1104286846 | N89: 0.2220926636 | O89: 0.143230591 | P89: 1 | Q89: 0.9916842504 | R89: 0.9772719252 | S89: 0.02384556268 | T89: 0.0157437555
B90: 78 | C90: 2011-08-30 | D90: 73 | E90: Year 1 | F90: 22.77777778 | H90: 1.057165776 | I90: 89.0670674 | J90: 0.2973139751 | K90: 0.384619328 | L90: 0.595916131 | M90: 0.1117072989 | N90: 0.229025149 | O90: 0.1449910479 | P90: 1 | Q90: 0.9922676103 | R90: 0.9785984267 | S90: 0.02444079256 | T90: 0.01615611413
B91: 79 | C91: 2011-08-31 | D91: 73 | E91: Year 1 | F91: 22.77777778 | H91: 1.057165776 | I91: 90.12423318 | J91: 0.3006232891 | K91: 0.3897300787 | L91: 0.6001361795 | M91: 0.1129847241 | N91: 0.2359444947 | O91: 0.1467514022 | P91: 1 | Q91: 0.9928102415 | R91: 0.9798482955 | S91: 0.02504192691 | T91: 0.01657293408
B92: 80 | C92: 2011-09-01 | D92: 74 | E92: Year 1 | F92: 23.33333333 | H92: 1.099792134 | I92: 91.22402531 | J92: 0.3040567023 | K92: 0.3950245061 | L92: 0.6044774054 | M92: 0.1143123929 | N92: 0.2431271302 | O92: 0.1485825944 | P92: 1 | Q92: 0.9933345589 | R92: 0.9810719057 | S92: 0.02567351812 | T92: 0.01701126667
B93: 81 | C93: 2011-09-02 | D93: 74 | E93: Year 1 | F93: 23.33333333 | H93: 1.099792134 | I93: 92.32381744 | J93: =1-J$4/J$5*EXP(-J$6*$I93)-(1-J$4/J$5)*EXP(J$6*$I93/(J$3-1)) -> 0.3074805119 | K93: 0.4002955608 | L93: 0.6087692776 | M93: 0.1156387713 | N93: 0.2502919982 | O93: 0.1504136084 | P93: 1 | Q93: 0.9938208031 | R93: 0.9822219057 | S93: 0.02631140111 | T93: 0.01745436845
B94: 82 | C94: 2011-09-03 | D94: 75 | E94: Year 1 | F94: 23.88888889 | H94: 1.143968078 | I94: 93.46778552 | J94: 0.3110315705 | K94: 0.4057529836 | L94: 0.613181816 | M94: 0.1170170559 | N94: 0.2577239804 | O94: 0.1523179445 | P94: 1 | Q94: 0.99428913 | R94: 0.9833446763 | S94: 0.02698152871 | T94: 0.01792029669
B95: 83 | C95: 2011-09-04 | D95: 74 | E95: Year 1 | F95: 23.33333333 | H95: 1.099792134 | I95: 94.56757766 | J95: 0.3144355381 | K95: 0.4109747692 | L95: 0.6173748346 | M95: 0.1183407963 | N95: 0.2648473986 | O95: 0.1541484907 | P95: 1 | Q95: 0.9947060009 | R95: 0.9843577432 | S95: 0.02763209387 | T95: 0.0183730356
B96: 84 | C96: 2011-09-05 | D96: 74 | E96: Year 1 | F96: 23.33333333 | H96: 1.099792134 | I96: 95.66736979 | J96: 0.3178296622 | K96: 0.4161716733 | L96: 0.6215202844 | M96: 0.119663241 | N96: 0.2719480912 | O96: 0.1559787571 | P96: 1 | Q96: 0.9950925519 | R96: 0.9853096845 | S96: 0.02828880029 | T96: 0.01883045298
B97: 85 | C97: 2011-09-06 | D97: 74 | E97: Year 1 | F97: 23.33333333 | H97: 1.099792134 | I97: 96.76716192 | J97: 0.321213868 | K97: 0.4213432427 | L97: 0.6256187371 | M97: 0.1209843885 | N97: 0.2790245626 | O97: 0.1578087111 | P97: 1 | Q97: 0.9954509749 | R97: 0.9862041376 | S97: 0.02895159898 | T97: 0.01929251926
B98: 86 | C98: 2011-09-07 | D98: 74 | E98: Year 1 | F98: 23.33333333 | H98: 1.099792134 | I98: 97.86695406 | J98: 0.324588083 | K98: 0.4264890446 | L98: 0.6296707573 | M98: 0.1223042372 | N98: 0.2860753808 | O98: 0.15963832 | P98: 1 | Q98: 0.9957833049 | R98: 0.9870445284 | S98: 0.02962044126 | T98: 0.01975920502
B99: 87 | C99: 2011-09-08 | D99: 73 | E99: Year 1 | F99: 22.77777778 | H99: 1.057165776 | I99: 98.92411983 | J99: 0.3278220351 | K99: 0.4314107297 | L99: 0.6335224778 | M99: 0.1235717046 | N99: 0.2928274631 | O99: 0.1613966608 | P99: 1 | Q99: 0.9960799177 | R99: 0.987804391 | S99: 0.03026901186 | T99: 0.02021212981
B100: 88 | C100: 2011-09-09 | D100: 72 | E100: Year 1 | F100: 22.22222222 | H100: 1.016040458 | I100: 99.94016029 | J100: 0.3309213635 | K100: 0.4361178315 | L100: 0.6371848688 | M100: 0.1247887319 | N100: 0.2992922641 | O100: 0.1630862447 | P100: 1 | Q100: 0.9963453685 | R100: 0.9884929431 | S100: 0.03089753267 | T100: 0.020651408
B101: 89 | C101: 2011-09-10 | D101: 72 | E101: Year 1 | F101: 22.22222222 | H101: 1.016040458 | I101: 100.9562007 | J101: 0.3340119954 | K101: 0.4408019689 | L101: 0.6408089859 | M101: 0.1260046466 | N101: 0.3057319336 | O101: 0.1647754557 | P101: 1 | Q101: 0.9965928944 | R101: 0.9891428706 | S101: 0.03153109298 | T101: 0.02109455703
B102: 90 | C102: 2011-09-11 | D102: 72 | E102: Year 1 | F102: 22.22222222 | H102: 1.016040458 | I102: 101.9722412 | J102: 0.3370938794 | K102: 0.4454628589 | L102: 0.6443952526 | M102: 0.1272194477 | N102: 0.312145522 | O102: 0.1664642689 | P102: 1 | Q102: 0.9968237002 | R102: 0.9897563161 | S102: 0.03216965519 | T102: 0.02154155406
B103: 91 | C103: 2011-09-12 | D103: 72 | E103: Year 1 | F103: 22.22222222 | H103: 1.016040458 | I103: 102.9882817 | J103: =1-J$4/J$5*EXP(-J$6*$I103)-(1-J$4/J$5)*EXP(J$6*$I103/(J$3-1)) -> 0.3401669655 | K103: 0.4501002313 | L103: 0.6479440875 | M103: 0.1284331337 | N103: 0.3185321199 | O103: 0.16815266 | P103: 1 | Q103: 0.9970389101 | R103: 0.990335306 | S103: 0.03281318189 | T103: 0.02199237638
B104: 92 | C104: 2011-09-13 | D104: 72 | E104: Year 1 | F104: 22.22222222 | H104: 1.016040458 | I104: 104.0043221 | J104: 0.3432312053 | K104: 0.454713829 | L104: 0.6514559043 | M104: 0.1296457036 | N104: 0.3248908566 | O104: 0.1698406046 | P104: 1 | Q104: 0.9972395737 | R104: 0.990881756 | S104: 0.03346163586 | T104: 0.02244700136
B105: 93 | C105: 2011-09-14 | D105: 71 | E105: Year 1 | F105: 21.66666667 | H105: 0.9763689576 | I105: 104.9806911 | J105: 0.3461674222 | K105: 0.4591246596 | L105: 0.6547961035 | M105: 0.1308098756 | N105: 0.3309742898 | O105: 0.1714622001 | P105: 1 | Q105: 0.997419608 | R105: 0.9913778959 | S105: 0.03408937883 | T105: 0.0228874373
B106: 94 | C106: 2011-09-15 | D106: 70 | E106: Year 1 | F106: 21.11111111 | H106: 0.9381053491 | I106: 105.9187964 | J106: 0.3489807954 | K106: 0.463341545 | L106: 0.6579738897 | M106: 0.1319274512 | N106: 0.3367936977 | O106: 0.1730198167 | P106: 1 | Q106: 0.997581541 | R106: 0.9918292777 | S106: 0.03469674415 | T106: 0.02331388235
B107: 95 | C107: 2011-09-16 | D107: 70 | E107: Year 1 | F107: 21.11111111 | H107: 0.9381053491 | I107: 106.8569018 | J107: 0.3517865142 | K107: 0.4675375887 | L107: 0.6611211129 | M107: 0.1330440722 | N107: 0.3425873912 | O107: 0.1745769941 | P107: 1 | Q107: 0.9977333332 | R107: 0.9922571481 | S107: 0.03530821922 | T107: 0.02374351387
B108: 96 | C108: 2011-09-17 | D108: 72 | E108: Year 1 | F108: 22.22222222 | H108: 1.016040458 | I108: 107.8729422 | J108: 0.3548166497 | K108: 0.4720585243 | L108: 0.6644956819 | M108: 0.1342523813 | N108: 0.3488327344 | O108: 0.1762630203 | P108: 1 | Q108: 0.997887029 | R108: 0.9926954484 | S108: 0.03597509666 | T108: 0.02421241218
B109: 97 | C109: 2011-09-18 | D109: 72 | E109: Year 1 | F109: 22.22222222 | H109: 1.016040458 | I109: 108.8889827 | J109: 0.3578377237 | K109: 0.4765546161 | L109: 0.6678351543 | M109: 0.1354595685 | N109: 0.3550465406 | O109: 0.1779484863 | P109: 1 | Q109: 0.998030323 | R109: 0.9931090527 | S109: 0.03664672504 | T109: 0.02468500565
B110: 98 | C110: 2011-09-19 | D110: 72 | E110: Year 1 | F110: 22.22222222 | H110: 1.016040458 | I110: 109.9050232 | J110: 0.360849695 | K110: 0.4810256746 | L110: 0.6711399165 | M110: 0.1366656326 | N110: 0.3612281445 | O110: 0.1796333691 | P110: 1 | Q110: 0.9981639169 | R110: 0.9934993416 | S110: 0.03732306823 | T110: 0.02516127219
B111: 99 | C111: 2011-09-20 | D111: 72 | E111: Year 1 | F111: 22.22222222 | H111: 1.016040458 | I111: 110.9210636 | J111: 0.3638525239 | K111: 0.4854715211 | L111: 0.6744103499 | M111: 0.1378705727 | N111: 0.3673769128 | O111: 0.1813176456 | P111: 1 | Q111: 0.9982884654 | R111: 0.9938676196 | S111: 0.03800409027 | T111: 0.0256411898
B112: 100 | C112: 2011-09-21 | D112: 71 | E112: Year 1 | F112: 21.66666667 | H112: 0.9763689576 | I112: 111.8974326 | J112: 0.3667294569 | K112: 0.4897198673 | L112: 0.677521095 | M112: 0.1390274054 | N112: 0.3732541033 | O112: 0.182935567 | P112: 1 | Q112: 0.9984001965 | R112: 0.9942019261 | S112: 0.0386628968 | T112: 0.02610578858
B113: 101 | C113: 2011-09-22 | D113: 70 | E113: Year 1 | F113: 21.11111111 | H113: 0.9381053491 | I113: 112.8355379 | J113: =1-J$4/J$5*EXP(-J$6*$I113)-(1-J$4/J$5)*EXP(J$6*$I113/(J$3-1)) -> 0.3694856267 | K113: 0.4937795139 | L113: 0.6804807054 | M113: 0.1401379225 | N113: 0.3788714093 | O113: 0.184489517 | P113: 1 | Q113: 0.998500683 | R113: 0.9945060192 | S113: 0.03929989436 | T113: 0.02655531873
B114: 102 | C114: 2011-09-23 | D114: 70 | E114: Year 1 | F114: 21.11111111 | H114: 0.9381053491 | I114: 113.7736433 | J114: 0.3722339108 | K114: 0.497817277 | L114: 0.6834119685 | M114: 0.1412474786 | N114: 0.3844593119 | O114: 0.186042895 | P114: 1 | Q114: 0.9985948673 | R114: 0.994794224 | S114: 0.03994079298 | T114: 0.02700790766
B115: 103 | C115: 2011-09-24 | D115: 70 | E115: Year 1 | F115: 21.11111111 | H115: 0.9381053491 | I115: 114.7117486 | J115: 0.3749742813 | K115: 0.5018330464 | L115: 0.6863151715 | M115: 0.1423560728 | N115: 0.3900174029 | O115: 0.1875956835 | P115: 1 | Q115: 0.9986831436 | R115: 0.9950673653 | S115: 0.04058556493 | T115: 0.02746353832
B116: 104 | C116: 2011-09-25 | D116: 70 | E116: Year 1 | F116: 21.11111111 | H116: 0.9381053491 | I116: 115.649854 | J116: 0.3777067114 | K116: 0.5058267185 | L116: 0.6891905983 | M116: 0.1434637042 | N116: 0.3955452941 | O116: 0.1891478654 | P116: 1 | Q116: 0.9987658815 | R116: 0.9953262255 | S116: 0.04123418258 | T116: 0.02792219375
B117: 105 | C117: 2011-09-26 | D117: 70 | E117: Year 1 | F117: 21.11111111 | H117: 0.9381053491 | I117: 116.5879593 | J117: 0.3804311752 | K117: 0.5097981963 | L117: 0.6920385296 | M117: 0.1445703721 | N117: 0.4010426171 | O117: 0.1906994236 | P117: 1 | Q117: 0.9988434279 | R117: 0.9955715469 | S117: 0.04188661844 | T117: 0.02838385703
B118: 106 | C118: 2011-09-27 | D118: 70 | E118: Year 1 | F118: 21.11111111 | H118: 0.9381053491 | I118: 117.5260647 | J118: 0.3831476472 | K118: 0.5137473896 | L118: 0.6948592435 | M118: 0.1456760756 | N118: 0.4065090225 | O118: 0.192250341 | P118: 1 | Q118: 0.9989161078 | R118: 0.9958040335 | S118: 0.04254284515 | T118: 0.02884851131
B119: 107 | C119: 2011-09-28 | D119: 72 | E119: Year 1 | F119: 22.22222222 | H119: 1.016040458 | I119: 118.5421051 | J119: 0.3860807526 | K119: 0.5179994349 | L119: 0.6978839096 | M119: 0.146872549 | N119: 0.412394301 | O119: 0.1939293618 | P119: 1 | Q119: 0.9989896887 | R119: 0.9960421294 | S119: 0.04325783408 | T119: 0.02935512232
B120: 108 | C120: 2011-09-29 | D120: 72 | E120: Year 1 | F120: 22.22222222 | H120: 1.016040458 | I120: 119.5581456 | J120: 0.3890044246 | K120: 0.522225142 | L120: 0.7008773157 | M120: 0.148067889 | N120: 0.4182425272 | O120: 0.1956075901 | P120: 1 | Q120: 0.9990582802 | R120: 0.9962667553 | S120: 0.04397720352 | T120: 0.02986520103
B121: 109 | C121: 2011-09-30 | D121: 72 | E121: Year 1 | F121: 22.22222222 | H121: 1.016040458 | I121: 120.574186 | J121: 0.3919186345 | K121: 0.5264244207 | L121: 0.703839803 | M121: 0.1492620947 | N121: 0.4240533288 | O121: 0.1972850049 | P121: 1 | Q121: 0.9991222199 | R121: 0.9964786692 | S121: 0.04470091924 | T121: 0.03037872627
B122: 110 | C122: 2011-10-01 | D122: 72 | E122: Year 1 | F122: 22.22222222 | H122: 1.016040458 | I122: 121.5902265 | J122: 0.3948233542 | K122: 0.5305971887 | L122: 0.7067717089 | M122: 0.1504551651 | N122: 0.4298263567 | O122: 0.1989615853 | P122: 1 | Q122: 0.9991818228 | R122: 0.9966785872 | S122: 0.04542894715 | T122: 0.03089567699
B123: 111 | C123: 2011-10-02 | D123: 73 | E123: Year 1 | F123: 22.77777778 | H123: 1.057165776 | I123: 122.6473923 | J123: =1-J$4/J$5*EXP(-J$6*$I123)-(1-J$4/J$5)*EXP(J$6*$I123/(J$3-1)) -> 0.3978355428 | K123: 0.534910632 | L123: 0.7097901822 | M123: 0.15169532 | N123: 0.4357926053 | O123: 0.2007051191 | P123: 1 | Q123: 0.9992395502 | R123: 0.9968745898 | S123: 0.04619098383 | T123: 0.03143716553
B124: 112 | C124: 2011-10-03 | D124: 73 | E124: Year 1 | F124: 22.77777778 | H124: 1.057165776 | I124: 123.704558 | J124: 0.4008373995 | K124: 0.5391952195 | L124: 0.7127762802 | M124: 0.1529342435 | N124: 0.441717265 | O124: 0.2024477043 | P124: 1 | Q124: 0.9992932084 | R124: 0.9970590551 | S124: 0.04695761418 | T124: 0.03198231623
B125: 113 | C125: 2011-10-04 | D125: 72 | E125: Year 1 | F125: 22.22222222 | H125: 1.016040458 | I125: 124.7205985 | J125: 0.4037127168 | K125: 0.5432858744 | L125: 0.7156160449 | M125: 0.1541238098 | N125: 0.4473719577 | O125: 0.2041215852 | P125: 1 | Q125: 0.9993412109 | R125: 0.9972261011 | S125: 0.0476987154 | T125: 0.03250968919
B126: 114 | C126: 2011-10-05 | D126: 70 | E126: Year 1 | F126: 21.11111111 | H126: 0.9381053491 | I126: 125.6587038 | J126: 0.4063589667 | K126: 0.5470389915 | L126: 0.7182120127 | M126: 0.155221119 | N126: 0.4525583134 | O126: 0.2056662574 | P126: 1 | Q126: 0.9993826341 | R126: 0.9973719167 | S126: 0.04838667828 | T126: 0.03299957654
B127: 115 | C127: 2011-10-06 | D127: 68 | E127: Year 1 | F127: 20 | H127: 0.8656243963 | I127: 126.5243282 | J127: 0.4087934892 | K127: 0.5504818582 | L127: 0.7205855084 | M127: 0.1562327845 | N127: 0.4573143202 | O127: 0.2070908762 | P127: 1 | Q127: 0.9994185444 | R127: 0.9974996725 | S127: 0.04902462159 | T127: 0.03345412573
B128: 116 | C128: 2011-10-07 | D128: 69 | E128: Year 1 | F128: 20.55555556 | H128: 0.9012049705 | I128: 127.4255332 | J128: 0.4113206512 | K128: 0.5540455393 | L128: 0.7230344465 | M128: 0.1572851534 | N128: 0.4622354424 | O128: 0.2085733176 | P128: 1 | Q128: 0.9994537149 | R128: 0.9976260999 | S128: 0.04969196093 | T128: 0.03392990644
B129: 117 | C129: 2011-10-08 | D129: 68 | E129: Year 1 | F129: 20 | H129: 0.8656243963 | I129: 128.2911576 | J129: 0.413740889 | K129: 0.5574486176 | L129: 0.7253656525 | M129: 0.1582951277 | N129: 0.4669329642 | O129: 0.2099965123 | P129: 1 | Q129: 0.9994854936 | R129: 0.9977415252 | S129: 0.05033598066 | T129: 0.03438933688
B130: 118 | C130: 2011-10-09 | D130: 68 | E130: Year 1 | F130: 20 | H130: 0.8656243963 | I130: 129.156782 | J130: 0.416154109 | K130: 0.5608321747 | L130: 0.7276764305 | M130: 0.1593042727 | N130: 0.4716016467 | O130: 0.211418991 | P130: 1 | Q130: 0.9995154251 | R130: 0.9978513497 | S130: 0.05098294657 | T130: 0.03485113958
B131: 119 | C131: 2011-10-10 | D131: 68 | E131: Year 1 | F131: 20 | H131: 0.8656243963 | I131: 130.0224064 | J131: 0.4185602993 | K131: 0.564196197 | L131: 0.7299669692 | M131: 0.1603125877 | N131: 0.4762413807 | O131: 0.2128407419 | P131: 1 | Q131: 0.9995436165 | R131: 0.9979558441 | S131: 0.0516328385 | T131: 0.03531530199
B132: 120 | C132: 2011-10-11 | D132: 68 | E132: Year 1 | F132: 20 | H132: 0.8656243963 | I132: 130.8880308 | J132: 0.4209594483 | K132: 0.5675406741 | L132: 0.7322374557 | M132: 0.1613200722 | N132: 0.4808520661 | O132: 0.2142617531 | P132: 1 | Q132: 0.9995701688 | R132: 0.9980552664 | S132: 0.05228563636 | T132: 0.03578181157
B133: 121 | C133: 2011-10-12 | D133: 68 | E133: Year 1 | F133: 20 | H133: 0.8656243963 | I133: 131.7536552 | J133: =1-J$4/J$5*EXP(-J$6*$I133)-(1-J$4/J$5)*EXP(J$6*$I133/(J$3-1)) -> 0.423351545 | K133: 0.5708655987 | L133: 0.7344880751 | M133: 0.1623267256 | N133: 0.4854336116 | O133: 0.2156820128 | P133: 1 | Q133: 0.9995951774 | R133: 0.9981498618 | S133: 0.05294132017 | T133: 0.03625065584
B134: 122 | C134: 2011-10-13 | D134: 68 | E134: Year 1 | F134: 20 | H134: 0.8656243963 | I134: 132.6192796 | J134: 0.4257365787 | K134: 0.5741709667 | L134: 0.7367190107 | M134: 0.1633325473 | N134: 0.4899859347 | O134: 0.2171015096 | P134: 1 | Q134: 0.9996187317 | R134: 0.9982398641 | S134: 0.05359987002 | T134: 0.03672182238
B135: 123 | C135: 2011-10-14 | D135: 69 | E135: Year 1 | F135: 20.55555556 | H135: 0.9012049705 | I135: 133.5204846 | J135: 0.4282121316 | K135: 0.5775914183 | L135: 0.7390209279 | M135: 0.1643788281 | N135: 0.4946942475 | O135: 0.2185785301 | P135: 1 | Q135: 0.9996418001 | R135: 0.9983289249 | S135: 0.0542885127 | T135: 0.03721480977
B136: 124 | C136: 2011-10-15 | D136: 70 | E136: Year 1 | F136: 21.11111111 | H136: 0.9381053491 | I136: 134.4585899 | J136: 0.4307808921 | K136: 0.5811294063 | L136: 0.7413948623 | M136: 0.1654669907 | N136: 0.4995615339 | O136: 0.2201151224 | P136: 1 | Q136: 0.9996643325 | R136: 0.9984168567 | S136: 0.05500860538 | T136: 0.03773062735
B137: 125 | C137: 2011-10-16 | D137: 69 | E137: Year 1 | F137: 20.55555556 | H137: 0.9012049705 | I137: 135.3597949 | J137: 0.4332407651 | K137: 0.5845066029 | L137: 0.7436542641 | M137: 0.1665114286 | N137: 0.5042048173 | O137: 0.2215903896 | P137: 1 | Q137: 0.9996846433 | R137: 0.998496976 | S137: 0.05570347545 | T137: 0.0382286814
B138: 126 | C138: 2011-10-17 | D138: 68 | E138: Year 1 | F138: 20 | H138: 0.8656243963 | I138: 136.2254193 | J138: 0.4355962718 | K138: 0.5877305201 | L138: 0.7458051311 | M138: 0.16751378 | N138: 0.5086346951 | O138: 0.2230065845 | P138: 1 | Q138: 0.9997029947 | R138: 0.9985701176 | S138: 0.05637375284 | T138: 0.03870938949
B139: 127 | C139: 2011-10-18 | D139: 67 | E139: Year 1 | F139: 19.44444444 | H139: 0.831321408 | I139: 137.0567407 | J139: 0.4378517414 | K139: 0.5908082936 | L139: 0.7478530969 | M139: 0.1684756247 | N139: 0.5128612378 | O139: 0.2243658852 | P139: 1 | Q139: 0.9997196133 | R139: 0.9986370131 | S139: 0.05702007114 | T139: 0.03917317444
B140: 128 | C140: 2011-10-19 | D140: 66 | E140: Year 1 | F140: 18.88888889 | H140: 0.7982549664 | I140: 137.8549957 | J140: 0.4400113198 | K140: 0.5937467033 | L140: 0.7498034568 | M140: 0.1693984866 | N140: 0.5168940143 | O140: 0.2256703964 | P140: 1 | Q140: 0.9997346956 | R140: 0.9986983047 | S140: 0.05764306544 | T140: 0.03962046259
B141: 129 | C141: 2011-10-20 | D141: 67 | E141: Year 1 | F141: 19.44444444 | H141: =D$4^((1+(D$3+273.15)/10)*(1-(D$3+273.15)/(F141+273.15))) -> 0.831321408 | I141: 138.6863171 | J141: 0.4422539149 | K141: 0.5967892006 | L141: 0.7518179384 | M141: 0.1703588214 | N141: 0.5210671039 | O141: 0.2270281833 | P141: 1 | Q141: 0.9997495412 | R141: 0.9987592113 | S141: 0.05829433229 | T141: 0.04008829995
B142: 130 | C142: 2011-10-21 | D142: 67 | E142: Year 1 | F142: 19.44444444 | H142: 0.831321408 | I142: =H142+I141 -> 139.5176385 | J142: 0.4444899328 | K142: 0.5998137245 | L142: 0.753815561 | M142: 0.1713183853 | N142: 0.5252128939 | O142: 0.2283851835 | P142: 1 | Q142: 0.9997635565 | R142: 0.9988172719 | S142: 0.05894809841 | T142: 0.04055818877
B143: 131 | C143: =C142+1 -> 2011-10-22 | D143: 66 | E143: Year 1 | F143: 18.88888889 | H143: 0.7982549664 | I143: 140.3158934 | J143: =1-J$4/J$5*EXP(-J$6*$I143)-(1-J$4/J$5)*EXP(J$6*$I143/(J$3-1)) -> 0.446630816 | K143: 0.602701047 | L143: 0.755717998 | M143: 0.1722390558 | N143: 0.5291680775 | O143: 0.2296874589 | P143: 1 | Q143: 0.9997762759 | R143: 0.9988704679 | S143: 0.05957819687 | T143: 0.04101130818
B144: 132 | C144: 2011-10-23 | D144: 66 | E144: Year 1 | F144: 18.88888889 | H144: 0.7982549664 | I144: 141.1141484 | J144: 0.4487656246 | K144: 0.6055718318 | L144: 0.7576051577 | M144: 0.1731590147 | N144: 0.5330980712 | O144: 0.2309889918 | P144: 1 | Q144: 0.9997883114 | R144: 0.9989212743 | S144: 0.06021056917 | T144: 0.04146629984
B145: 133 | C145: 2011-10-24 | D145: 66 | E145: Year 1 | F145: 18.88888889 | H145: 0.7982549664 | I145: 141.9124034 | J145: 0.4508943541 | K145: 0.6084260983 | L145: 0.7594771695 | M145: 0.1740782616 | N145: 0.5370028729 | O145: 0.2322897738 | P145: 1 | Q145: 0.9997996997 | R145: 0.9989697981 | S145: 0.06084520043 | T145: 0.04192315438
B146: 134 | C146: 2011-10-25 | D146: 64 | E146: Year 1 | F146: 17.77777778 | H146: 0.7356732954 | I146: 142.6480767 | J146: 0.4528508085 | K146: 0.6110419873 | L146: 0.7611891163 | M146: 0.1749248105 | N146: 0.5405792404 | O146: 0.233487905 | P146: 1 | Q146: 0.9998096521 | R146: 0.9990125851 | S146: 0.06143206527 | T146: 0.04234583386
B147: 135 | C147: 2011-10-26 | D147: 62 | E147: Year 1 | F147: 16.66666667 | H147: 0.6775736116 | I147: 143.3256503 | J147: 0.4546481786 | K147: 0.6134389062 | L147: 0.7627546621 | M147: 0.1757039677 | N147: 0.5438542419 | O147: 0.234590838 | P147: 1 | Q147: 0.9998183806 | R147: 0.9990504209 | S147: 0.06197425882 | T147: 0.04273651872
B148: 136 | C148: 2011-10-27 | D148: 60 | E148: Year 1 | F148: 15.55555556 | H148: 0.6236672901 | I148: 143.9493176 | J148: 0.4562986756 | K148: 0.6156346519 | L148: 0.7641862326 | M148: 0.1764206828 | N148: 0.5468526597 | O148: 0.2356055314 | P148: 1 | Q148: 0.9998260606 | R148: 0.9990839654 | S148: 0.06247472924 | T148: 0.04309729147
B149: 137 | C149: 2011-10-28 | D149: 61 | E149: Year 1 | F149: =5/9*(D149-32) -> 16.11111111 | H149: 0.6501136723 | I149: 144.5994312 | J149: 0.4580152021 | K149: 0.6179128272 | L149: 0.7656689583 | M149: 0.1771673264 | N149: 0.5499618725 | O149: 0.2366627456 | P149: 1 | Q149: 0.999833721 | R149: 0.9991176729 | S149: 0.06299785565 | T149: 0.04347455157
B150: 138 | C150: 2011-10-29 | D150: 61 | E150: Year 1 | F150: 16.11111111 | H150: 0.6501136723 | I150: 145.2495449 | J150: 0.4597276854 | K150: 0.6201801149 | L150: 0.7671420018 | M150: 0.1779134967 | N150: 0.5530544032 | O150: 0.2377194381 | P150: 1 | Q150: 0.999841044 | R150: 0.9991501414 | S150: 0.06352243776 | T150: 0.04385302035
B151: 139 | C151: 2011-10-30 | D151: 62 | E151: Year 1 | F151: 16.66666667 | H151: 0.6775736116 | I151: 145.9271185 | J151: 0.4615081972 | K151: 0.6225315987 | L151: 0.7686670323 | M151: 0.1786906802 | N151: 0.556259816 | O151: 0.2388202039 | P151: 1 | Q151: 0.9998483335 | R151: 0.9991827117 | S151: 0.06407071826 | T151: 0.0442487561
B152: 140 | C152: 2011-10-31 | D152: 61 | E152: Year 1 | F152: 16.11111111 | H152: 0.6501136723 | I152: 146.5772322 | J152: 0.4632124185 | K152: 0.6247766982 | L152: 0.7701205088 | M152: 0.1794358831 | N152: 0.559318313 | O152: 0.2398758175 | P152: 1 | Q152: 0.9998550132 | R152: 0.9992127892 | S152: 0.06459824884 | T152: 0.04462967783
B153: 141 | C153: 2011-11-01 | D153: 60 | E153: Year 1 | F153: 15.55555556 | H153: 0.6236672901 | I153: 147.2008995 | J153: =1-J$4/J$5*EXP(-J$6*$I153)-(1-J$4/J$5)*EXP(J$6*$I153/(J$3-1)) -> 0.4648435086 | K153: 0.6269202798 | L153: 0.7715059469 | M153: 0.180150326 | N153: 0.5622367491 | O153: 0.2408879865 | P153: 1 | Q153: 0.9998611447 | R153: 0.9992406035 | S153: 0.06510566545 | T153: 0.04499622559
B154: 142 | C154: 2011-11-02 | D154: 60 | E154: Year 1 | F154: 15.55555556 | H154: 0.6236672901 | I154: 147.8245668 | J154: 0.4664708725 | K154: 0.6290538998 | L154: 0.772882717 | M154: 0.1808643326 | N154: 0.5651398815 | O154: 0.2418996595 | P154: 1 | Q154: 0.9998670169 | R154: 0.9992674359 | S154: 0.06561439291 | T154: 0.04536386742
B155: 143 | C155: 2011-11-03 | D155: 62 | E155: Year 1 | F155: 16.66666667 | H155: 0.6775736116 | I155: 148.5021404 | J155: 0.4682346721 | K155: 0.6313606657 | L155: 0.7743687296 | M155: 0.1816395591 | N155: 0.5682766175 | O155: 0.2429982094 | P155: 1 | Q155: 0.9998731156 | R155: 0.9992955151 | S155: 0.06616856966 | T155: 0.0457645211
B156: 144 | C156: 2011-11-04 | D156: 62 | E156: Year 1 | F156: 16.66666667 | H156: 0.6775736116 | I156: 149.179714 | J156: 0.469994071 | K156: 0.633655712 | L156: 0.7758446509 | M156: 0.1824142703 | N156: 0.5713953295 | O156: 0.2440961647 | P156: 1 | Q156: 0.9998789347 | R156: 0.999322519 | S156: 0.06672427681 | T156: 0.04616645546
B157: 145 | C157: 2011-11-05 | D157: 63 | E157: Year 1 | F157: 17.22222222 | H157: 0.7060816364 | I157: 149.8857956 | J157: 0.4718228108 | K157: 0.6360348724 | L157: 0.7773720103 | M157: 0.1832210276 | N157: 0.5746261048 | O157: 0.2452396773 | P157: 1 | Q157: 0.999884715 | R157: 0.9993495593 | S157: 0.06730498355 | T157: 0.04658665734
B158: 146 | C158: 2011-11-06 | D158: 63 | E158: Year 1 | F158: 17.22222222 | H158: 0.7060816364 | I158: 150.5918773 | J158: 0.4736467696 | K158: 0.6384013536 | L158: 0.7788885705 | M158: 0.1840272248 | N158: 0.5778373608 | O158: 0.2463825339 | P158: 1 | Q158: 0.9998902193 | R158: 0.9993755213 | S158: 0.06788733286 | T158: 0.04700823765
B159: 147 | C159: 2011-11-07 | D159: 62 | E159: Year 1 | F159: 16.66666667 | H159: 0.6775736116 | I159: 151.2694509 | J159: 0.47539259 | K159: 0.6406603899 | L159: 0.7803338202 | M159: 0.1848003449 | N159: 0.5809006374 | O159: 0.2474786258 | P159: 1 | Q159: 0.9998952542 | R159: 0.999399461 | S159: 0.06844770519 | T159: 0.04741408695
B160: 148 | C160: 2011-11-08 | D160: 60 | E160: Year 1 | F160: 15.55555556 | H160: 0.6236672901 | I160: 151.8931182 | J160: 0.476995624 | K160: 0.6427294227 | L160: 0.7816554254 | M160: 0.1855115008 | N160: 0.5837043683 | O160: 0.2484869727 | P160: 1 | Q160: 0.9998996843 | R160: 0.9994206848 | S160: 0.06896481697 | T160: 0.04778875984
B161: 149 | C161: 2011-11-09 | D161: 58 | E161: Year 1 | F161: 14.44444444 | H161: 0.5736820392 | I161: 152.4668002 | J161: 0.4784668842 | K161: 0.6446239439 | L161: 0.7828638228 | M161: 0.1861652731 | N161: 0.5862700031 | O161: 0.2494140411 | P161: 1 | Q161: 0.9999035937 | R161: 0.9994395452 | S161: 0.06944159622 | T161: 0.04813434121
B162: 150 | C162: 2011-11-10 | D162: 58 | E162: Year 1 | F162: 14.44444444 | H162: 0.5736820392 | I162: 153.0404823 | J162: 0.4799349865 | K162: 0.6465101583 | L162: 0.7840652831 | M162: 0.186818675 | N162: 0.5888228314 | O162: 0.2503406638 | P162: 1 | Q162: 0.9999073508 | R162: 0.999457792 | S162: 0.06991943625 | T162: 0.04848081753
B163: 151 | C163: 2011-11-11 | D163: 58 | E163: Year 1 | F163: 14.44444444 | H163: 0.5736820392 | I163: 153.6141643 | J163: =1-J$4/J$5*EXP(-J$6*$I163)-(1-J$4/J$5)*EXP(J$6*$I163/(J$3-1)) -> 0.481399931 | K163: 0.6483880809 | L163: 0.785259848 | M163: 0.1874717064 | N163: 0.5913628731 | O163: 0.251266838 | P163: 1 | Q163: 0.9999109615 | R163: 0.9994754452 | S163: 0.07039833186 | T163: 0.04882818549
B164: 152 | C164: 2011-11-12 | D164: 56 | E164: Year 1 | F164: 13.33333333 | H164: 0.5273611176 | I164: 154.1415254 | J164: 0.4827438052 | K164: 0.6501070724 | L164: 0.7863519131 | M164: 0.1880716831 | N164: 0.5936865616 | O164: 0.2521178319 | P164: 1 | Q164: 0.9999141564 | R164: 0.999491166 | S164: 0.07083948665 | T164: 0.04914828957
B165: 153 | C165: 2011-11-13 | D165: 56 | E165: Year 1 | F165: 13.33333333 | H165: 0.5273611176 | I165: 154.6688865 | J165: 0.4840850108 | K165: 0.6518190819 | L165: 0.7874382186 | M165: 0.1886713464 | N165: 0.5959994788 | O165: 0.2529684424 | P165: 1 | Q165: 0.9999172367 | R165: 0.9995064159 | S165: 0.07128152507 | T165: 0.04946914175
B166: 154 | C166: 2011-11-14 | D166: 56 | E166: Year 1 | F166: 13.33333333 | H166: 0.5273611176 | I166: 155.1962476 | J166: 0.4854235476 | K166: 0.6535241217 | L166: 0.7885187965 | M166: 0.1892706964 | N166: 0.5983016418 | O166: 0.2538186673 | P166: 1 | Q166: 0.9999202065 | R166: 0.9995212092 | S166: 0.07172444311 | T166: 0.0497907395
B167: 155 | C167: 2011-11-15 | D167: 57 | E167: Year 1 | F167: 13.88888889 | H167: 0.550078997 | I167: 155.7463266 | J167: 0.4868169028 | K167: 0.6552951987 | L167: 0.7896398553 | M167: 0.1898955314 | N167: 0.6006915381 | O167: 0.2547051055 | P167: 1 | Q167: 0.9999231907 | R167: 0.9995361678 | S167: 0.07218737433 | T167: 0.05012698282
B168: 156 | C168: 2011-11-16 | D168: 57 | E168: Year 1 | F168: 13.88888889 | H168: 0.550078997 | I168: 156.2964056 | J168: 0.4882073546 | K168: 0.6570587203 | L168: 0.7907547527 | M168: 0.1905200252 | N168: 0.6030697733 | O168: 0.2555911195 | P168: 1 | Q168: 0.9999260634 | R168: 0.9995506594 | S168: 0.07265125374 | T168: 0.05046403166
B169: 157 | C169: 2011-11-17 | D169: 57 | E169: Year 1 | F169: 13.88888889 | H169: 0.550078997 | I169: 156.8464846 | J169: 0.4895949031 | K169: 0.6588147012 | L169: 0.7918635244 | M169: 0.1911441778 | N169: 0.6054363684 | O169: 0.2564767071 | P169: 1 | Q169: 0.9999288287 | R169: 0.9995646985 | S169: 0.07311607684 | T169: 0.05080188313
B170: 158 | C170: 2011-11-18 | D170: 57 | E170: Year 1 | F170: 13.88888889 | H170: 0.550078997 | I170: 157.3965636 | J170: 0.4909795484 | K170: 0.660563156 | L170: 0.7929662056 | M170: 0.191767989 | N170: 0.6077913452 | O170: 0.2573618657 | P170: 1 | Q170: 0.9999314905 | R170: 0.9995782993 | S170: 0.07358183915 | T170: 0.05114053436
B171: 159 | C171: 2011-11-19 | D171: 57 | E171: Year 1 | F171: 13.88888889 | H171: 0.550078997 | I171: 157.9466426 | J171: 0.492361291 | K171: 0.6623040998 | L171: 0.7940628316 | M171: 0.1923914587 | N171: 0.6101347259 | O171: 0.2582465932 | P171: 1 | Q171: 0.9999340529 | R171: 0.9995914754 | S171: 0.07404853619 | T171: 0.05147998247
B172: 160 | C172: 2011-11-20 | D172: 56 | E172: Year 1 | F172: 13.33333333 | H172: 0.5273611176 | I172: 158.4740037 | J172: 0.4936832433 | K172: 0.6639661058 | L172: 0.7951085146 | M172: 0.1929888589 | N172: 0.61237046 | O172: 0.2590943751 | P172: 1 | Q172: 0.9999364193 | R172: 0.9996037209 | S172: 0.07449683246 | T172: 0.05180615717
B173: 161 | C173: 2011-11-21 | D173: 56 | E173: Year 1 | F173: 13.33333333 | H173: 0.5273611176 | I173: 159.0013649 | J173: =1-J$4/J$5*EXP(-J$6*$I173)-(1-J$4/J$5)*EXP(J$6*$I173/(J$3-1)) -> 0.4950025282 | K173: 0.6656212359 | L173: 0.796148695 | M173: 0.193585945 | N173: 0.6145955776 | O173: 0.2599417565 | P173: 1 | Q173: 0.9999387009 | R173: 0.9996155995 | S173: 0.07494597983 | T173: 0.05213305915
B174: 162 | C174: 2011-11-22 | D174: 56 | E174: Year 1 | F174: 13.33333333 | H174: 0.5273611176 | I174: 159.528726 | J174: 0.496319146 | K174: 0.6672695039 | L174: 0.7971834029 | M174: 0.194182717 | N174: 0.6168100995 | O174: 0.2607887355 | P174: 1 | Q174: 0.9999409006 | R174: 0.9996271223 | S174: 0.07539597439 | T174: 0.0524606859
B175: 163 | C175: 2011-11-23 | D175: 55 | E175: Year 1 | F175: 12.77777778 | H175: 0.5054986145 | I175: 160.0342246 | J175: 0.4975786785 | K175: 0.6688430122 | L175: 0.7981701069 | M175: 0.194754454 | N175: 0.6189228892 | O175: 0.261600222 | P175: 1 | Q175: 0.999942935 | R175: 0.9996378432 | S175: 0.07582810541 | T175: 0.05277540843
B176: 164 | C176: 2011-11-24 | D176: 53 | E176: Year 1 | F176: 11.66666667 | H176: 0.464224965 | I176: 160.4984496 | J176: 0.498733213 | K176: 0.6702825127 | L176: 0.7990718652 | M176: 0.1952792547 | N176: 0.6208546293 | O176: 0.2623451223 | P176: 1 | Q176: 0.9999447416 | R176: 0.9996474172 | S176: 0.07622563278 | T176: 0.05306501673
B177: 165 | C177: 2011-11-25 | D177: 50 | E177: Year 1 | F177: 10 | H177: 0.4080345438 | I177: 160.9064841 | J177: 0.4997462952 | K177: 0.6715434083 | L177: 0.7998610258 | M177: 0.1957403317 | N177: 0.6225458081 | O177: 0.2629995977 | P177: 1 | Q177: 0.9999462822 | R177: 0.9996556233 | S177: 0.07657557801 | T177: 0.05332002974
B178: 166 | C178: 2011-11-26 | D178: 49 | E178: Year 1 | F178: 9.444444444 | H178: 0.3907265062 | I178: 161.2972106 | J178: 0.5007149089 | K178: 0.6727469975 | L178: 0.8006137018 | M178: 0.1961816743 | N178: 0.6241593495 | O178: 0.2636260816 | P178: 1 | Q178: 0.9999477172 | R178: 0.9996633023 | S178: 0.07691114674 | T178: 0.0535646272
B179: 167 | C179: 2011-11-27 | D179: 50 | E179: Year 1 | F179: 10 | H179: 0.4080345438 | I179: 161.7052452 | J179: 0.5017248677 | K179: 0.6739999174 | L179: 0.8013965892 | M179: 0.1966423827 | N179: 0.6258382139 | O179: 0.264280076 | P179: 1 | Q179: 0.9999491749 | R179: 0.9996711388 | S179: 0.07726206668 | T179: 0.05382047793
B180: 168 | C180: 2011-11-28 | D180: 50 | E180: Year 1 | F180: 10 | H180: 0.4080345438 | I180: 162.1132797 | J180: 0.5027332314 | K180: 0.6752487731 | L180: 0.8021762921 | M180: 0.1971029028 | N180: 0.6275108036 | O180: 0.2649338234 | P180: 1 | Q180: 0.9999505919 | R180: 0.999678793 | S180: 0.0776134819 | T180: 0.05407675489
B181: 169 | C181: 2011-11-29 | D181: 49 | E181: Year 1 | F181: 9.444444444 | H181: 0.3907265062 | I181: 162.5040062 | J181: 0.5036973273 | K181: 0.6764408517 | L181: 0.8029199495 | M181: 0.1975437121 | N181: 0.6291065741 | O181: 0.2655596076 | P181: 1 | Q181: 0.9999519118 | R181: 0.9996859557 | S181: 0.07795045332 | T181: 0.05432255952
B182: 170 | C182: 2011-11-30 | D182: 49 | E182: Year 1 | F182: 9.444444444 | H182: 0.3907265062 | I182: 162.8947327 | J182: 0.5046599611 | K182: 0.6776292158 | L182: 0.8036607113 | M182: 0.1979843485 | N182: 0.6306966104 | O182: 0.2661851637 | P182: 1 | Q182: 0.9999531964 | R182: 0.9996929587 | S182: 0.0782878757 | T182: 0.05456875294
B183: 171 | C183: 2011-12-01 | D183: 49 | E183: Year 1 | F183: 9.444444444 | H183: 0.3907265062 | I183: 163.2854592 | J183: =1-J$4/J$5*EXP(-J$6*$I183)-(1-J$4/J$5)*EXP(J$6*$I183/(J$3-1)) -> 0.5056211329 | K183: 0.6788138715 | L183: 0.8043985894 | M183: 0.1984248122 | N183: 0.6322809224 | O183: 0.2668104908 | P183: 1 | Q183: 0.9999544467 | R183: 0.9996998056 | S183: 0.07862574747 | T183: 0.05481533414
B184: 172 | C184: 2011-12-02 | D184: 49 | E184: Year 1 | F184: 9.444444444 | H184: 0.3907265062 | I184: 163.6761857 | J184: 0.5065808431 | K184: 0.6799948248 | L184: 0.8051335955 | M184: 0.1988651031 | N184: 0.6338595198 | O184: 0.2674355881 | P184: 1 | Q184: 0.9999556637 | R184: 0.9997064999 | S184: 0.07896406708 | T184: 0.05506230213
B185: 173 | C185: 2011-12-03 | D185: 50 | E185: Year 1 | F185: 10 | H185: 0.4080345438 | I185: 164.0842203 | J185: 0.5075815058 | K185: 0.6812241456 | L185: 0.8058981072 | M185: 0.1993247131 | N185: 0.6355019554 | O185: 0.2680881294 | P185: 1 | Q185: 0.9999568998 | R185: 0.9997133315 | S185: 0.07931784962 | T185: 0.05532062184
B186: 174 | C186: 2011-12-04 | D186: 52 | E186: Year 1 | F186: 11.11111111 | H186: 0.4447585546 | I186: 164.5289788 | J186: 0.5086704154 | K186: 0.682559525 | L186: 0.8067278893 | M186: 0.1998254743 | N186: 0.6372851412 | O186: 0.2687991133 | P186: 1 | Q186: 0.999958208 | R186: 0.9997205971 | S186: 0.07970402569 | T186: 0.05560266878
B187: 175 | C187: 2011-12-05 | D187: 54 | E187: Year 1 | F187: 12.22222222 | H187: 0.4844625803 | I187: 165.0134414 | J187: 0.5098543795 | K187: 0.6840086859 | L187: 0.8076275679 | M187: 0.2003706839 | N187: 0.6392191364 | O187: 0.2695732251 | P187: 1 | Q187: 0.9999595878 | R187: 0.999728302 | S187: 0.080125329 | T187: 0.05591045985
B188: 176 | C188: 2011-12-06 | D188: 54 | E188: Year 1 | F188: 12.22222222 | H188: 0.4844625803 | I188: 165.497904 | J188: 0.5110360987 | K188: 0.6854521974 | L188: 0.8085229103 | M188: 0.2009156277 | N188: 0.6411444154 | O188: 0.2703469783 | P188: 1 | Q188: 0.9999609221 | R188: 0.9997357945 | S188: 0.08054731029 | T188: 0.05621883875
B189: 177 | C189: 2011-12-07 | D189: 53 | E189: Year 1 | F189: 11.66666667 | H189: 0.464224965 | I189: 165.9621289 | J189: 0.5121663479 | K189: 0.6868301196 | L189: 0.8093768035 | M189: 0.2014375578 | N189: 0.64298111 | O189: 0.2710880716 | P189: 1 | Q189: 0.9999621593 | R189: 0.9997427802 | S189: 0.0809522974 | T189: 0.0565148854
B190: 178 | C190: 2011-12-08 | D190: 53 | E190: Year 1 | F190: 11.66666667 | H190: 0.464224965 | I190: 166.4263539 | J190: 0.513294537 | K190: 0.6882028764 | L190: 0.8102267546 | M190: 0.2019592437 | N190: 0.6448098374 | O190: 0.2718288331 | P190: 1 | Q190: 0.9999633573 | R190: 0.9997495813 | S190: 0.08135790177 | T190: 0.0568114684
B191: 179 | C191: 2011-12-09 | D191: 54 | E191: Year 1 | F191: 12.22222222 | H191: 0.4844625803 | I191: 166.9108165 | J191: 0.5144697128 | K191: 0.6896299813 | L191: 0.8111095758 | M191: 0.2025034116 | N191: 0.6467098109 | O191: 0.2726015324 | P191: 1 | Q191: 0.9999645672 | R191: 0.9997564873 | S191: 0.08178184366 | T191: 0.0571215509
B192: 180 | C192: 2011-12-10 | D192: 55 | E192: Year 1 | F192: 12.77777778 | H192: 0.5054986145 | I192: 167.4163151 | J192: 0.515693526 | K192: 0.6911130818 | L192: 0.8120261989 | M192: 0.2030709243 | N192: 0.6486830767 | O192: 0.2734073951 | P192: 1 | Q192: 0.999965787 | R192: 0.9997634902 | S192: 0.08222490424 | T192: 0.05744571637
B193: 181 | C193: 2011-12-11 | D193: 56 | E193: Year 1 | F193: 13.33333333 | H193: 0.5273611176 | I193: 167.9436762 | J193: =1-J$4/J$5*EXP(-J$6*$I193)-(1-J$4/J$5)*EXP(J$6*$I193/(J$3-1)) -> 0.5169676675 | K193: 0.692653841 | L193: 0.8129775592 | M193: 0.2036626728 | N193: 0.6507316887 | O193: 0.2742476865 | P193: 1 | Q193: 0.9999670148 | R193: 0.9997705816 | S193: 0.08268789679 | T193: 0.05778457303
B194: 182 | C194: 2011-12-12 | D194: 56 | E194: Year 1 | F194: 13.33333333 | H194: 0.5273611176 | I194: 168.4710373 | J194: 0.5182391541 | K194: 0.6941879946 | L194: 0.8139239364 | M194: 0.2042541057 | N194: 0.6527701195 | O194: 0.2750875426 | P194: 1 | Q194: 0.9999681986 | R194: 0.9997774605 | S194: 0.08315167185 | T194: 0.05812411274
B195: 183 | C195: 2011-12-13 | D195: 56 | E195: Year 1 | F195: 13.33333333 | H195: 0.5273611176 | I195: 168.9983985 | J195: 0.5195079869 | K195: 0.6957155587 | L195: 0.814865358 | M195: 0.2048452231 | N195: 0.6547983965 | O195: 0.2759269617 | P195: 1 | Q195: 0.9999693399 | R195: 0.9997841332 | S195: 0.08361622568 | T195: 0.05846433308
B196: 184 | C196: 2011-12-14 | D196: 56 | E196: Year 1 | F196: 13.33333333 | H196: 0.5273611176 | I196: 169.5257596 | J196: 0.5207741669 | K196: 0.6972365499 | L196: 0.8158018513 | M196: 0.2054360248 | N196: 0.6568165475 | O196: 0.276765942 | P196: 1 | Q196: 0.9999704402 | R196: 0.9997906059 | S196: 0.08408155458 | T196: 0.05880523166
B197: 185 | C197: 2011-12-15 | D197: 56 | E197: Year 1 | F197: 13.33333333 | H197: 0.5273611176 | I197: 170.0531207 | J197: 0.5220376953 | K197: 0.6987509847 | L197: 0.8167334432 | M197: 0.2060265108 | N197: 0.6588246003 | O197: 0.2776044815 | P197: 1 | Q197: 0.9999715011 | R197: 0.9997968845 | S197: 0.08454765485 | T197: 0.05914680607
B198: 186 | C198: 2011-12-16 | D198: 54 | E198: Year 1 | F198: 12.22222222 | H198: 0.4844625803 | I198: 170.5375833 | J198: 0.5231961053 | K198: 0.7001364629 | L198: 0.8175849576 | M198: 0.206568685 | N198: 0.6606604317 | O198: 0.2783744196 | P198: 1 | Q198: 0.9999724421 | R198: 0.9998024865 | S198: 0.08497651651 | T198: 0.05946118842
B199: 187 | C199: 2011-12-17 | D199: 54 | E199: Year 1 | F199: 12.22222222 | H199: 0.4844625803 | I199: 171.0220459 | J199: 0.5243522795 | K199: 0.7015164351 | L199: 0.8184323791 | M199: 0.2071105926 | N199: 0.662487787 | O199: 0.2791439829 | P199: 1 | Q199: 0.999973352 | R199: 0.999807934 | S199: 0.08540602318 | T199: 0.05977613726
B200: 188 | C200: 2011-12-18 | D200: 54 | E200: Year 1 | F200: 12.22222222 | H200: 0.4844625803 | I200: 171.5065084 | J200: 0.5255062187 | K200: 0.7028909143 | L200: 0.8192757283 | M200: 0.2076522336 | N200: 0.6643066885 | O200: 0.2799131699 | P200: 1 | Q200: 0.9999742318 | R200: 0.9998132313 | S200: 0.08583617201 | T200: 0.06009165071
B201: 189 | C201: 2011-12-19 | D201: 55 | E201: Year 1 | F201: 12.77777778 | H201: 0.5054986145 | I201: 172.0120071 | J201: 0.5267078821 | K201: 0.7043192334 | L201: 0.8201513777 | M201: 0.2082171091 | N201: 0.6661955812 | O201: 0.2807153536 | P201: 1 | Q201: 0.999975119 | R201: 0.999818603 | S201: 0.08628568001 | T201: 0.06042146414
B202: 190 | C202: 2011-12-20 | D202: 54 | E202: Year 1 | F202: 12.22222222 | H202: 0.4844625803 | I202: 172.4964696 | J202: 0.5278572576 | K202: 0.705682529 | L202: 0.8209864691 | M202: 0.2087582051 | N202: 0.667997278 | O202: 0.2814837675 | P202: 1 | Q202: 0.9999759405 | R202: 0.9998236062 | S202: 0.08671713221 | T202: 0.06073812562
B203: 191 | C203: 2011-12-21 | D203: 54 | E203: Year 1 | F203: 12.22222222 | H203: 0.4844625803 | I203: 172.9809322 | J203: =1-J$4/J$5*EXP(-J$6*$I203)-(1-J$4/J$5)*EXP(J$6*$I203/(J$3-1)) -> 0.5290044012 | K203: 0.7070403717 | L203: 0.8218175502 | M203: 0.2092990343 | N203: 0.6697905899 | O203: 0.2822518011 | P203: 1 | Q203: 0.9999767349 | R203: 0.9998284714 | S203: 0.08714921796 | T203: 0.06105534613
... 257 more rows

Sheet uptake calcs (hidden)
G1: Adjust Karlen's times (GDD °C) to local conditons: | H1: Karlen: | O1: Scenario 2: Winter forage 130 lbs N/acre planted Nov 4, harvest March 28 | AK1: Adjust Karlen's times (GDD °C) to local conditons: | AL1: Karlen: | AU1: Karlen:
C2: Adjust Karlen's metric yields to English: | H2: Linear | I2: Start S | J2: Start Flat | K2: Start S | L2: End S | O2: Corn 240 lbs N/acre planted April 10, harvested Aug 8 | AG2: Adjust Karlen's metric yields to English: | AL2: Linear | AM2: Start S | AN2: Start Flat | AO2: Start S | AP2: End S | AU2: Linear | AV2: Start S | AW2: Start Flat | AX2: Start S | AY2: End S
C3: Maize | D3: GDD °C | E3: GDD °C | F3: GDD °C | G3: GDD °C | H3: GDD °C | I3: 0 | J3: 491.0569 | K3: 764.2276 | L3: 991.8699 | M3: 1469.9186 | O3: Sudan 100 lbs N/acre planted Aug 15, harvest Oct 15 | AG3: Maize | AH3: GDD °C | AI3: GDD °C | AJ3: GDD °C | AK3: GDD °C | AL3: GDD °C | AM3: 182.1138 | AN3: 491.0569 | AO3: 764.2276 | AP3: 991.8699 | AQ3: 1469.9186 | AU3: GDD °C | AV3: 182.1138 | AW3: 491.0569 | AX3: 764.2276 | AY3: 991.8699 | AZ3: 1469.9186
C4: CS, CH | D4: 180-491 | E4: 491-765 | F4: 765-991 | G4: 991-1470 | H4: tM: | I4: 364.4917559 | J4: 611.5617145 | K4: 1265.95477 | L4: Corn | M4: =VLOOKUP('daily uptake'!$AB$502,'daily uptake'!$AA$499:$AC$501,3) -> 1400 | N4: 5926.741902 | AG4: CS, CH | AH4: 180-491 | AI4: 491-765 | AJ4: 765-991 | AK4: 991-1470 | AL4: tM: | AM4: 364.4917559 | AN4: 611.5617145 | AO4: 1265.95477 | AP4: Corn | AU4: tM: | AV4: 364.4917559 | AW4: 611.5617145 | AX4: 1265.95477 | AY4: Corn
C5: kg/ha | D5: 0 | E5: 50.3631 | F5: 262.4697 | G5: 422.276 | H5: N: | I5: 0.02186273996 | J5: 2.040947361 | K5: 170259.6509 | L5: Adj. | M5: 0.755 | N5: 0.1900119231 | R5: 0.2112821904 | AG5: kg/ha | AH5: 0 | AI5: 50.3631 | AJ5: 262.4697 | AK5: 422.276 | AL5: N: | AM5: 0.02186273996 | AN5: 2.040947361 | AO5: 170259.6509 | AP5: Adj. | AU5: N: | AV5: 0.02186273996 | AW5: 2.040947361 | AX5: 170259.6509 | AY5: Adj.
C6: lb/ac | D6: =D5*0.893 -> 0 | E6: =E5*0.893 -> 44.9742483 | F6: =F5*0.893 -> 234.3854421 | G6: =G5*0.893 -> 377.092468 | H6: B: | I6: -0.02689264282 | J6: -0.01589595713 | K6: -0.006261284058 | L6: Factors | M6: -0.00204 | N6: -0.002441526966 | R6: -0.004618555323 | AG6: lb/ac | AH6: =AH5*0.893 -> 0 | AI6: =AI5*0.893 -> 44.9742483 | AJ6: =AJ5*0.893 -> 234.3854421 | AK6: =AK5*0.893 -> 377.092468 | AL6: B: | AM6: -0.02689264282 | AN6: -0.01589595713 | AO6: -0.006261284058 | AP6: Factors | AU6: B: | AV6: -0.02689264282 | AW6: -0.01589595713 | AX6: -0.006261284058 | AY6: Factors
H7: tS: | I7: =I3 -> 0 | J7: =I9 -> 491.0569 | K7: =L3 -> 991.8699 | L7: ='daily uptake'!I11 -> 250 | AL7: tS: | AM7: =AM3 -> 182.1138 | AN7: =AM9 -> 491.0569 | AO7: =AP3 -> 991.8699 | AP7: ='daily uptake'!I11 -> 250 | AU7: tS: | AV7: =AV3 -> 182.1138 | AW7: =AV9 -> 491.0569 | AX7: =AY3 -> 991.8699 | AY7: =AP7 -> 250
H8: CS: | I8: 0 | J8: 44.9742483 | K8: 234.3854421 | L8: =MAX(K12:K376) -> 292.6215614 | AL8: CS: | AM8: 0 | AN8: 44.9742483 | AO8: 234.3854421 | AP8: =MAX(AO12:AO376) -> 326.9843802 | AU8: CS: | AV8: 0 | AW8: 44.9742483 | AX8: 234.3854421 | AY8: =MAX(AX12:AX376) -> 0
C9: Denair | D9: Denair | E9: Specific | F9: Specific | H9: tH: | I9: =J3 -> 491.0569 | J9: =K3 -> 764.2276 | K9: =M3 -> 1469.9186 | M9: =MAX(E12:E419) -> 1663.888889 | N9: =MAX(G12:G419) -> 825.8333333 | AL9: tH: | AM9: =AN3 -> 491.0569 | AN9: =AO3 -> 764.2276 | AO9: =AQ3 -> 1469.9186 | AU9: tH: | AV9: =AW3 -> 491.0569 | AW9: =AX3 -> 764.2276 | AX9: =AZ3 -> 1469.9186
C10: GDD °C | D10: GDD °C | E10: GDD °C | F10: GDD °C | H10: CH: | I10: =E6 -> 44.9742483 | J10: =F6 -> 234.3854421 | K10: =G6 -> 377.092468 | M10: ='daily uptake'!E11 -> 140 | N10: ='daily uptake'!P11 -> 100 | R10: Daily | AL10: CH: | AM10: =AI6 -> 44.9742483 | AN10: =AJ6 -> 234.3854421 | AO10: =AK6 -> 377.092468 | AU10: CH: | AV10: =AO6 -> -0.006261284058 | AW10: =AP6 -> Factors | AX10: =AQ6 -> 0
B11: Date | C11: Wheat | D11: Corn | E11: Wheat | F11: Corn | G11: Sudan | H11: 180-491 | I11: 491-765 | J11: 765-991- | K11: Corn | L11: Corn | M11: Wheat | N11: Sudan | O11: =B11 -> Date | P11: Total | Q11: =B11 -> Date | R11: N demand (lb/ac) | Y11: period ending | Z11: lbs this period | AA11: cumulative | AB11: % this period | AJ11: GDD | AL11: 180-491 | AM11: 491-765 | AN11: 765-991- | AO11: Corn | AP11: Corn | AS11: GDD | AU11: 180-491 | AV11: 491-765 | AW11: 765-991- | AX11: Corn | AY11: Corn
A12: 1 | B12: ='daily uptake'!F95 -> 2010-11-01 | C12: =5/9*'daily uptake'!Q95 -> 14.44444444 | D12: =5/9*'daily uptake'!N95 -> 5.833333333 | E12: =IF(AND($A12>='daily uptake'!$C$9,$A12<='daily uptake'!$C$10),$C12,0) -> 14.44444444 | F12: =IF(AND($A12>='daily uptake'!$C$18,$A12<='daily uptake'!$C$20),$D12,0) -> 0 | G12: =IF(AND($A12>='daily uptake'!$C$24,$A12<='daily uptake'!$C$25),$C12,0) -> 0 | H12: =IF(OR(F12<=I7,F12>I9),0,I8+(I10-I8)*(1-((I5+EXP(I6*(I4-I7)))/(I5+EXP(I6*(I4-F12))))^I5)/(1-((I5+EXP(I6*(I4-I7)))/(I5+EXP(I6*(I4-I9))))^I5)) -> 0 | I12: =IF(OR(F12<=J7,F12>J9),0,J8+(J10-J8)*(1-((J5+EXP(J6*(J4-J7)))/(J5+EXP(J6*(J4-F12))))^J5)/(1-((J5+EXP(J6*(J4-J7)))/(J5+EXP(J6*(J4-J9))))^J5)) -> 0 | J12: =IF(OR(F12<=J9,F12>100000),0,IF(F12<=K7,K8,K8+(K10-K8)*(1-((K5+EXP(K6*(K4-K7)))/(K5+EXP(K6*(K4-F12))))^K5)/(1-((K5+EXP(K6*(K4-K7)))/(K5+EXP(K6*(K4-K9))))^K5))) -> 0 | K12: =H12+I12+J12 -> 0 | L12: =IF(L$8=0,0,K12*L$7/L$8) -> 0 | M12: =M$10*(1-(($M$5+EXP($M$6*$M$4))/($M$5+EXP($M$6*($M$4-$E12))))^$M$5)/(1-(($M$5+EXP($M$6*$M$4))/($M$5+EXP($M$6*($M$4-M$9))))^$M$5) -> 0.3932282541 | N12: =N$10*(1-(($N$5+EXP($N$6*$N$4))/($N$5+EXP($N$6*($N$4-$G12))))^$N$5)/(1-(($N$5+EXP($N$6*$N$4))/($N$5+EXP($N$6*($N$4-N$9))))^$N$5) -> 0 | O12: 2010-11-01 | P12: =MAX(L$12:L12)+MAX(M$12:M12)+MAX(N$12:N12) -> 0.3932282541 | Q12: 2010-11-01 | R12: =P12 -> 0.3932282541 | Y12: =O38 -> 2010-11-27 | Z12: =AA12-Z9 -> 10.86744995 | AA12: =P38 -> 10.86744995 | AB12: =Z12/AA$22 -> 0.07762464252 | AJ12: 0 | AL12: =IF(OR(AJ12<=AM7,AJ12>AM9),0,AM8+(AM10-AM8)*(1-((AM5+EXP(AM6*(AM4-AM7)))/(AM5+EXP(AM6*(AM4-AJ12))))^AM5)/(1-((AM5+EXP(AM6*(AM4-AM7)))/(AM5+EXP(AM6*(AM4-AM9))))^AM5)) -> 0 | AM12: =IF(OR(AJ12<=AN7,AJ12>AN9),0,AN8+(AN10-AN8)*(1-((AN5+EXP(AN6*(AN4-AN7)))/(AN5+EXP(AN6*(AN4-AJ12))))^AN5)/(1-((AN5+EXP(AN6*(AN4-AN7)))/(AN5+EXP(AN6*(AN4-AN9))))^AN5)) -> 0 | AN12: =IF(OR(AJ12<=AN9,AJ12>100000),0,IF(AJ12<=AO7,AO8,AO8+(AO10-AO8)*(1-((AO5+EXP(AO6*(AO4-AO7)))/(AO5+EXP(AO6*(AO4-AJ12))))^AO5)/(1-((AO5+EXP(AO6*(AO4-AO7)))/(AO5+EXP(AO6*(AO4-AO9))))^AO5))) -> 0 | AO12: =AL12+AM12+AN12 -> 0 | AP12: =IF(AP$8=0,0,AO12*AP$7/AP$8) -> 0 | AS12: 0 | AU12: =IF(OR(AS12<=AV7,AS12>AV9),0,AV8+(AV10-AV8)*(1-((AV5+EXP(AV6*(AV4-AV7)))/(AV5+EXP(AV6*(AV4-AS12))))^AV5)/(1-((AV5+EXP(AV6*(AV4-AV7)))/(AV5+EXP(AV6*(AV4-AV9))))^AV5)) -> 0 | AV12: =IF(OR(AS12<=AW7,AS12>AW9),0,AW8+(AW10-AW8)*(1-((AW5+EXP(AW6*(AW4-AW7)))/(AW5+EXP(AW6*(AW4-AS12))))^AW5)/(1-((AW5+EXP(AW6*(AW4-AW7)))/(AW5+EXP(AW6*(AW4-AW9))))^AW5)) -> 0 | AW12: =IF(OR(AS12<=AW9,AS12>100000),0,IF(AS12<=AX7,AX8,AX8+(AX10-AX8)*(1-((AX5+EXP(AX6*(AX4-AX7)))/(AX5+EXP(AX6*(AX4-AS12))))^AX5)/(1-((AX5+EXP(AX6*(AX4-AX7)))/(AX5+EXP(AX6*(AX4-AX9))))^AX5))) -> 0 | AX12: =AU12+AV12+AW12 -> 0 | AY12: =IF(AY$8=0,0,AX12*AY$7/AY$8) -> 0
A13: 2 | B13: ='daily uptake'!F96 -> 2010-11-02 | C13: =5/9*'daily uptake'!Q96 -> 16.11111111 | D13: =5/9*'daily uptake'!N96 -> 7.5 | E13: =IF(AND($A13>='daily uptake'!$C$9,$A13<='daily uptake'!$C$10),$C13+E12,0) -> 30.55555556 | F13: =IF(AND($A13>='daily uptake'!$C$18,$A13<='daily uptake'!$C$20),$D13+F12,0) -> 0 | G13: =IF(AND($A13>='daily uptake'!$C$24,$A13<='daily uptake'!$C$25),$C13+G12,0) -> 0 | H13: =IF(OR(F13<=I7,F13>I9),0,I8+(I10-I8)*(1-((I5+EXP(I6*(I4-I7)))/(I5+EXP(I6*(I4-F13))))^I5)/(1-((I5+EXP(I6*(I4-I7)))/(I5+EXP(I6*(I4-I9))))^I5)) -> 0 | I13: =IF(OR(F13<=J7,F13>J9),0,J8+(J10-J8)*(1-((J5+EXP(J6*(J4-J7)))/(J5+EXP(J6*(J4-F13))))^J5)/(1-((J5+EXP(J6*(J4-J7)))/(J5+EXP(J6*(J4-J9))))^J5)) -> 0 | J13: =IF(OR(F13<=J9,F13>100000),0,IF(F13<=K7,K8,K8+(K10-K8)*(1-((K5+EXP(K6*(K4-K7)))/(K5+EXP(K6*(K4-F13))))^K5)/(1-((K5+EXP(K6*(K4-K7)))/(K5+EXP(K6*(K4-K9))))^K5))) -> 0 | K13: 0 | L13: =IF(L$8=0,0,K13*L$7/L$8) -> 0 | M13: 0.8439184104 | N13: =N$10*(1-(($N$5+EXP($N$6*$N$4))/($N$5+EXP($N$6*($N$4-$G13))))^$N$5)/(1-(($N$5+EXP($N$6*$N$4))/($N$5+EXP($N$6*($N$4-N$9))))^$N$5) -> 0 | O13: 2010-11-02 | P13: =MAX(L$12:L13)+MAX(M$12:M13)+MAX(N$12:N13) -> 0.8439184104 | Q13: 2010-11-02 | R13: =P13-P12 -> 0.4506901564 | Y13: =O53 -> 2010-12-12 | Z13: =AA13-AA12 -> 7.451020908 | AA13: =P53 -> 18.31847086 | AB13: 0.05322157791 | AJ13: 0 | AL13: =IF(OR(AJ13<=AM7,AJ13>AM9),0,AM8+(AM10-AM8)*(1-((AM5+EXP(AM6*(AM4-AM7)))/(AM5+EXP(AM6*(AM4-AJ13))))^AM5)/(1-((AM5+EXP(AM6*(AM4-AM7)))/(AM5+EXP(AM6*(AM4-AM9))))^AM5)) -> 0 | AM13: =IF(OR(AJ13<=AN7,AJ13>AN9),0,AN8+(AN10-AN8)*(1-((AN5+EXP(AN6*(AN4-AN7)))/(AN5+EXP(AN6*(AN4-AJ13))))^AN5)/(1-((AN5+EXP(AN6*(AN4-AN7)))/(AN5+EXP(AN6*(AN4-AN9))))^AN5)) -> 0 | AN13: =IF(OR(AJ13<=AN9,AJ13>100000),0,IF(AJ13<=AO7,AO8,AO8+(AO10-AO8)*(1-((AO5+EXP(AO6*(AO4-AO7)))/(AO5+EXP(AO6*(AO4-AJ13))))^AO5)/(1-((AO5+EXP(AO6*(AO4-AO7)))/(AO5+EXP(AO6*(AO4-AO9))))^AO5))) -> 0 | AO13: 0 | AP13: =IF(AP$8=0,0,AO13*AP$7/AP$8) -> 0 | AS13: 0 | AU13: =IF(OR(AS13<=AV7,AS13>AV9),0,AV8+(AV10-AV8)*(1-((AV5+EXP(AV6*(AV4-AV7)))/(AV5+EXP(AV6*(AV4-AS13))))^AV5)/(1-((AV5+EXP(AV6*(AV4-AV7)))/(AV5+EXP(AV6*(AV4-AV9))))^AV5)) -> 0 | AV13: =IF(OR(AS13<=AW7,AS13>AW9),0,AW8+(AW10-AW8)*(1-((AW5+EXP(AW6*(AW4-AW7)))/(AW5+EXP(AW6*(AW4-AS13))))^AW5)/(1-((AW5+EXP(AW6*(AW4-AW7)))/(AW5+EXP(AW6*(AW4-AW9))))^AW5)) -> 0 | AW13: =IF(OR(AS13<=AW9,AS13>100000),0,IF(AS13<=AX7,AX8,AX8+(AX10-AX8)*(1-((AX5+EXP(AX6*(AX4-AX7)))/(AX5+EXP(AX6*(AX4-AS13))))^AX5)/(1-((AX5+EXP(AX6*(AX4-AX7)))/(AX5+EXP(AX6*(AX4-AX9))))^AX5))) -> 0 | AX13: 0 | AY13: =IF(AY$8=0,0,AX13*AY$7/AY$8) -> 0
A14: 3 | B14: ='daily uptake'!F97 -> 2010-11-03 | C14: =5/9*'daily uptake'!Q97 -> 17.5 | D14: =5/9*'daily uptake'!N97 -> 8.055555556 | E14: =IF(AND($A14>='daily uptake'!$C$9,$A14<='daily uptake'!$C$10),$C14+E13,0) -> 48.05555556 | F14: =IF(AND($A14>='daily uptake'!$C$18,$A14<='daily uptake'!$C$20),$D14+F13,0) -> 0 | G14: =IF(AND($A14>='daily uptake'!$C$24,$A14<='daily uptake'!$C$25),$C14+G13,0) -> 0 | H14: =IF(OR(F14<=I7,F14>I9),0,I8+(I10-I8)*(1-((I5+EXP(I6*(I4-I7)))/(I5+EXP(I6*(I4-F14))))^I5)/(1-((I5+EXP(I6*(I4-I7)))/(I5+EXP(I6*(I4-I9))))^I5)) -> 0 | I14: =IF(OR(F14<=J7,F14>J9),0,J8+(J10-J8)*(1-((J5+EXP(J6*(J4-J7)))/(J5+EXP(J6*(J4-F14))))^J5)/(1-((J5+EXP(J6*(J4-J7)))/(J5+EXP(J6*(J4-J9))))^J5)) -> 0 | J14: =IF(OR(F14<=J9,F14>100000),0,IF(F14<=K7,K8,K8+(K10-K8)*(1-((K5+EXP(K6*(K4-K7)))/(K5+EXP(K6*(K4-F14))))^K5)/(1-((K5+EXP(K6*(K4-K7)))/(K5+EXP(K6*(K4-K9))))^K5))) -> 0 | K14: 0 | L14: 0 | M14: 1.348255766 | N14: 0 | O14: 2010-11-03 | P14: =MAX(L$12:L14)+MAX(M$12:M14)+MAX(N$12:N14) -> 1.348255766 | Q14: 2010-11-03 | R14: 0.5043373558 | Y14: =O68 -> 2010-12-27 | Z14: 9.054670297 | AA14: =P68 -> 27.37314116 | AB14: 0.06467621641 | AJ14: 0 | AL14: =IF(OR(AJ14<=AM7,AJ14>AM9),0,AM8+(AM10-AM8)*(1-((AM5+EXP(AM6*(AM4-AM7)))/(AM5+EXP(AM6*(AM4-AJ14))))^AM5)/(1-((AM5+EXP(AM6*(AM4-AM7)))/(AM5+EXP(AM6*(AM4-AM9))))^AM5)) -> 0 | AM14: =IF(OR(AJ14<=AN7,AJ14>AN9),0,AN8+(AN10-AN8)*(1-((AN5+EXP(AN6*(AN4-AN7)))/(AN5+EXP(AN6*(AN4-AJ14))))^AN5)/(1-((AN5+EXP(AN6*(AN4-AN7)))/(AN5+EXP(AN6*(AN4-AN9))))^AN5)) -> 0 | AN14: =IF(OR(AJ14<=AN9,AJ14>100000),0,IF(AJ14<=AO7,AO8,AO8+(AO10-AO8)*(1-((AO5+EXP(AO6*(AO4-AO7)))/(AO5+EXP(AO6*(AO4-AJ14))))^AO5)/(1-((AO5+EXP(AO6*(AO4-AO7)))/(AO5+EXP(AO6*(AO4-AO9))))^AO5))) -> 0 | AO14: 0 | AP14: 0 | AS14: 0 | AU14: =IF(OR(AS14<=AV7,AS14>AV9),0,AV8+(AV10-AV8)*(1-((AV5+EXP(AV6*(AV4-AV7)))/(AV5+EXP(AV6*(AV4-AS14))))^AV5)/(1-((AV5+EXP(AV6*(AV4-AV7)))/(AV5+EXP(AV6*(AV4-AV9))))^AV5)) -> 0 | AV14: =IF(OR(AS14<=AW7,AS14>AW9),0,AW8+(AW10-AW8)*(1-((AW5+EXP(AW6*(AW4-AW7)))/(AW5+EXP(AW6*(AW4-AS14))))^AW5)/(1-((AW5+EXP(AW6*(AW4-AW7)))/(AW5+EXP(AW6*(AW4-AW9))))^AW5)) -> 0 | AW14: =IF(OR(AS14<=AW9,AS14>100000),0,IF(AS14<=AX7,AX8,AX8+(AX10-AX8)*(1-((AX5+EXP(AX6*(AX4-AX7)))/(AX5+EXP(AX6*(AX4-AS14))))^AX5)/(1-((AX5+EXP(AX6*(AX4-AX7)))/(AX5+EXP(AX6*(AX4-AX9))))^AX5))) -> 0 | AX14: 0 | AY14: 0
A15: 4 | B15: ='daily uptake'!F98 -> 2010-11-04 | C15: =5/9*'daily uptake'!Q98 -> 17.77777778 | D15: =5/9*'daily uptake'!N98 -> 8.055555556 | E15: =IF(AND($A15>='daily uptake'!$C$9,$A15<='daily uptake'!$C$10),$C15+E14,0) -> 65.83333333 | F15: =IF(AND($A15>='daily uptake'!$C$18,$A15<='daily uptake'!$C$20),$D15+F14,0) -> 0 | G15: =IF(AND($A15>='daily uptake'!$C$24,$A15<='daily uptake'!$C$25),$C15+G14,0) -> 0 | H15: =IF(OR(F15<=I7,F15>I9),0,I8+(I10-I8)*(1-((I5+EXP(I6*(I4-I7)))/(I5+EXP(I6*(I4-F15))))^I5)/(1-((I5+EXP(I6*(I4-I7)))/(I5+EXP(I6*(I4-I9))))^I5)) -> 0 | I15: =IF(OR(F15<=J7,F15>J9),0,J8+(J10-J8)*(1-((J5+EXP(J6*(J4-J7)))/(J5+EXP(J6*(J4-F15))))^J5)/(1-((J5+EXP(J6*(J4-J7)))/(J5+EXP(J6*(J4-J9))))^J5)) -> 0 | J15: =IF(OR(F15<=J9,F15>100000),0,IF(F15<=K7,K8,K8+(K10-K8)*(1-((K5+EXP(K6*(K4-K7)))/(K5+EXP(K6*(K4-F15))))^K5)/(1-((K5+EXP(K6*(K4-K7)))/(K5+EXP(K6*(K4-K9))))^K5))) -> 0 | K15: 0 | L15: 0 | M15: 1.876777026 | N15: 0 | O15: 2010-11-04 | P15: =MAX(L$12:L15)+MAX(M$12:M15)+MAX(N$12:N15) -> 1.876777026 | Q15: 2010-11-04 | R15: 0.5285212599 | Y15: =O84 -> 2011-01-12 | Z15: 6.422755798 | AA15: =P84 -> 33.79589696 | AB15: 0.04587682713 | AJ15: 0 | AL15: =IF(OR(AJ15<=AM7,AJ15>AM9),0,AM8+(AM10-AM8)*(1-((AM5+EXP(AM6*(AM4-AM7)))/(AM5+EXP(AM6*(AM4-AJ15))))^AM5)/(1-((AM5+EXP(AM6*(AM4-AM7)))/(AM5+EXP(AM6*(AM4-AM9))))^AM5)) -> 0 | AM15: =IF(OR(AJ15<=AN7,AJ15>AN9),0,AN8+(AN10-AN8)*(1-((AN5+EXP(AN6*(AN4-AN7)))/(AN5+EXP(AN6*(AN4-AJ15))))^AN5)/(1-((AN5+EXP(AN6*(AN4-AN7)))/(AN5+EXP(AN6*(AN4-AN9))))^AN5)) -> 0 | AN15: =IF(OR(AJ15<=AN9,AJ15>100000),0,IF(AJ15<=AO7,AO8,AO8+(AO10-AO8)*(1-((AO5+EXP(AO6*(AO4-AO7)))/(AO5+EXP(AO6*(AO4-AJ15))))^AO5)/(1-((AO5+EXP(AO6*(AO4-AO7)))/(AO5+EXP(AO6*(AO4-AO9))))^AO5))) -> 0 | AO15: 0 | AP15: 0 | AS15: 0 | AU15: =IF(OR(AS15<=AV7,AS15>AV9),0,AV8+(AV10-AV8)*(1-((AV5+EXP(AV6*(AV4-AV7)))/(AV5+EXP(AV6*(AV4-AS15))))^AV5)/(1-((AV5+EXP(AV6*(AV4-AV7)))/(AV5+EXP(AV6*(AV4-AV9))))^AV5)) -> 0 | AV15: =IF(OR(AS15<=AW7,AS15>AW9),0,AW8+(AW10-AW8)*(1-((AW5+EXP(AW6*(AW4-AW7)))/(AW5+EXP(AW6*(AW4-AS15))))^AW5)/(1-((AW5+EXP(AW6*(AW4-AW7)))/(AW5+EXP(AW6*(AW4-AW9))))^AW5)) -> 0 | AW15: =IF(OR(AS15<=AW9,AS15>100000),0,IF(AS15<=AX7,AX8,AX8+(AX10-AX8)*(1-((AX5+EXP(AX6*(AX4-AX7)))/(AX5+EXP(AX6*(AX4-AS15))))^AX5)/(1-((AX5+EXP(AX6*(AX4-AX7)))/(AX5+EXP(AX6*(AX4-AX9))))^AX5))) -> 0 | AX15: 0 | AY15: 0
A16: 5 | B16: ='daily uptake'!F99 -> 2010-11-05 | C16: =5/9*'daily uptake'!Q99 -> 20 | D16: =5/9*'daily uptake'!N99 -> 10 | E16: =IF(AND($A16>='daily uptake'!$C$9,$A16<='daily uptake'!$C$10),$C16+E15,0) -> 85.83333333 | F16: =IF(AND($A16>='daily uptake'!$C$18,$A16<='daily uptake'!$C$20),$D16+F15,0) -> 0 | G16: =IF(AND($A16>='daily uptake'!$C$24,$A16<='daily uptake'!$C$25),$C16+G15,0) -> 0 | H16: =IF(OR(F16<=I7,F16>I9),0,I8+(I10-I8)*(1-((I5+EXP(I6*(I4-I7)))/(I5+EXP(I6*(I4-F16))))^I5)/(1-((I5+EXP(I6*(I4-I7)))/(I5+EXP(I6*(I4-I9))))^I5)) -> 0 | I16: =IF(OR(F16<=J7,F16>J9),0,J8+(J10-J8)*(1-((J5+EXP(J6*(J4-J7)))/(J5+EXP(J6*(J4-F16))))^J5)/(1-((J5+EXP(J6*(J4-J7)))/(J5+EXP(J6*(J4-J9))))^J5)) -> 0 | J16: =IF(OR(F16<=J9,F16>100000),0,IF(F16<=K7,K8,K8+(K10-K8)*(1-((K5+EXP(K6*(K4-K7)))/(K5+EXP(K6*(K4-F16))))^K5)/(1-((K5+EXP(K6*(K4-K7)))/(K5+EXP(K6*(K4-K9))))^K5))) -> 0 | K16: 0 | L16: 0 | M16: 2.491384056 | N16: 0 | O16: 2010-11-05 | P16: =MAX(L$12:L16)+MAX(M$12:M16)+MAX(N$12:N16) -> 2.491384056 | Q16: 2010-11-05 | R16: 0.6146070301 | Y16: =O99 -> 2011-01-27 | Z16: 9.85558612 | AA16: =P99 -> 43.65148308 | AB16: 0.07039704372 | AJ16: 0 | AL16: =IF(OR(AJ16<=AM7,AJ16>AM9),0,AM8+(AM10-AM8)*(1-((AM5+EXP(AM6*(AM4-AM7)))/(AM5+EXP(AM6*(AM4-AJ16))))^AM5)/(1-((AM5+EXP(AM6*(AM4-AM7)))/(AM5+EXP(AM6*(AM4-AM9))))^AM5)) -> 0 | AM16: =IF(OR(AJ16<=AN7,AJ16>AN9),0,AN8+(AN10-AN8)*(1-((AN5+EXP(AN6*(AN4-AN7)))/(AN5+EXP(AN6*(AN4-AJ16))))^AN5)/(1-((AN5+EXP(AN6*(AN4-AN7)))/(AN5+EXP(AN6*(AN4-AN9))))^AN5)) -> 0 | AN16: =IF(OR(AJ16<=AN9,AJ16>100000),0,IF(AJ16<=AO7,AO8,AO8+(AO10-AO8)*(1-((AO5+EXP(AO6*(AO4-AO7)))/(AO5+EXP(AO6*(AO4-AJ16))))^AO5)/(1-((AO5+EXP(AO6*(AO4-AO7)))/(AO5+EXP(AO6*(AO4-AO9))))^AO5))) -> 0 | AO16: 0 | AP16: 0 | AS16: 0 | AU16: =IF(OR(AS16<=AV7,AS16>AV9),0,AV8+(AV10-AV8)*(1-((AV5+EXP(AV6*(AV4-AV7)))/(AV5+EXP(AV6*(AV4-AS16))))^AV5)/(1-((AV5+EXP(AV6*(AV4-AV7)))/(AV5+EXP(AV6*(AV4-AV9))))^AV5)) -> 0 | AV16: =IF(OR(AS16<=AW7,AS16>AW9),0,AW8+(AW10-AW8)*(1-((AW5+EXP(AW6*(AW4-AW7)))/(AW5+EXP(AW6*(AW4-AS16))))^AW5)/(1-((AW5+EXP(AW6*(AW4-AW7)))/(AW5+EXP(AW6*(AW4-AW9))))^AW5)) -> 0 | AW16: =IF(OR(AS16<=AW9,AS16>100000),0,IF(AS16<=AX7,AX8,AX8+(AX10-AX8)*(1-((AX5+EXP(AX6*(AX4-AX7)))/(AX5+EXP(AX6*(AX4-AS16))))^AX5)/(1-((AX5+EXP(AX6*(AX4-AX7)))/(AX5+EXP(AX6*(AX4-AX9))))^AX5))) -> 0 | AX16: 0 | AY16: 0
A17: 6 | B17: ='daily uptake'!F100 -> 2010-11-06 | C17: =5/9*'daily uptake'!Q100 -> 16.38888889 | D17: =5/9*'daily uptake'!N100 -> 6.388888889 | E17: =IF(AND($A17>='daily uptake'!$C$9,$A17<='daily uptake'!$C$10),$C17+E16,0) -> 102.2222222 | F17: =IF(AND($A17>='daily uptake'!$C$18,$A17<='daily uptake'!$C$20),$D17+F16,0) -> 0 | G17: =IF(AND($A17>='daily uptake'!$C$24,$A17<='daily uptake'!$C$25),$C17+G16,0) -> 0 | H17: =IF(OR(F17<=I7,F17>I9),0,I8+(I10-I8)*(1-((I5+EXP(I6*(I4-I7)))/(I5+EXP(I6*(I4-F17))))^I5)/(1-((I5+EXP(I6*(I4-I7)))/(I5+EXP(I6*(I4-I9))))^I5)) -> 0 | I17: =IF(OR(F17<=J7,F17>J9),0,J8+(J10-J8)*(1-((J5+EXP(J6*(J4-J7)))/(J5+EXP(J6*(J4-F17))))^J5)/(1-((J5+EXP(J6*(J4-J7)))/(J5+EXP(J6*(J4-J9))))^J5)) -> 0 | J17: =IF(OR(F17<=J9,F17>100000),0,IF(F17<=K7,K8,K8+(K10-K8)*(1-((K5+EXP(K6*(K4-K7)))/(K5+EXP(K6*(K4-F17))))^K5)/(1-((K5+EXP(K6*(K4-K7)))/(K5+EXP(K6*(K4-K9))))^K5))) -> 0 | K17: 0 | L17: 0 | M17: 3.011237608 | N17: 0 | O17: 2010-11-06 | P17: =MAX(L$12:L17)+MAX(M$12:M17)+MAX(N$12:N17) -> 3.011237608 | Q17: 2010-11-06 | R17: 0.5198535515 | Y17: =O115 -> 2011-02-12 | Z17: 12.84863756 | AA17: =P115 -> 56.50012064 | AB17: 0.09177598259 | AJ17: 0 | AL17: =IF(OR(AJ17<=AM7,AJ17>AM9),0,AM8+(AM10-AM8)*(1-((AM5+EXP(AM6*(AM4-AM7)))/(AM5+EXP(AM6*(AM4-AJ17))))^AM5)/(1-((AM5+EXP(AM6*(AM4-AM7)))/(AM5+EXP(AM6*(AM4-AM9))))^AM5)) -> 0 | AM17: =IF(OR(AJ17<=AN7,AJ17>AN9),0,AN8+(AN10-AN8)*(1-((AN5+EXP(AN6*(AN4-AN7)))/(AN5+EXP(AN6*(AN4-AJ17))))^AN5)/(1-((AN5+EXP(AN6*(AN4-AN7)))/(AN5+EXP(AN6*(AN4-AN9))))^AN5)) -> 0 | AN17: =IF(OR(AJ17<=AN9,AJ17>100000),0,IF(AJ17<=AO7,AO8,AO8+(AO10-AO8)*(1-((AO5+EXP(AO6*(AO4-AO7)))/(AO5+EXP(AO6*(AO4-AJ17))))^AO5)/(1-((AO5+EXP(AO6*(AO4-AO7)))/(AO5+EXP(AO6*(AO4-AO9))))^AO5))) -> 0 | AO17: 0 | AP17: 0 | AS17: 0 | AU17: =IF(OR(AS17<=AV7,AS17>AV9),0,AV8+(AV10-AV8)*(1-((AV5+EXP(AV6*(AV4-AV7)))/(AV5+EXP(AV6*(AV4-AS17))))^AV5)/(1-((AV5+EXP(AV6*(AV4-AV7)))/(AV5+EXP(AV6*(AV4-AV9))))^AV5)) -> 0 | AV17: =IF(OR(AS17<=AW7,AS17>AW9),0,AW8+(AW10-AW8)*(1-((AW5+EXP(AW6*(AW4-AW7)))/(AW5+EXP(AW6*(AW4-AS17))))^AW5)/(1-((AW5+EXP(AW6*(AW4-AW7)))/(AW5+EXP(AW6*(AW4-AW9))))^AW5)) -> 0 | AW17: =IF(OR(AS17<=AW9,AS17>100000),0,IF(AS17<=AX7,AX8,AX8+(AX10-AX8)*(1-((AX5+EXP(AX6*(AX4-AX7)))/(AX5+EXP(AX6*(AX4-AS17))))^AX5)/(1-((AX5+EXP(AX6*(AX4-AX7)))/(AX5+EXP(AX6*(AX4-AX9))))^AX5))) -> 0 | AX17: 0 | AY17: 0
A18: 7 | B18: ='daily uptake'!F101 -> 2010-11-07 | C18: =5/9*'daily uptake'!Q101 -> 11.94444444 | D18: =5/9*'daily uptake'!N101 -> 1.944444444 | E18: =IF(AND($A18>='daily uptake'!$C$9,$A18<='daily uptake'!$C$10),$C18+E17,0) -> 114.1666667 | F18: =IF(AND($A18>='daily uptake'!$C$18,$A18<='daily uptake'!$C$20),$D18+F17,0) -> 0 | G18: =IF(AND($A18>='daily uptake'!$C$24,$A18<='daily uptake'!$C$25),$C18+G17,0) -> 0 | H18: =IF(OR(F18<=I7,F18>I9),0,I8+(I10-I8)*(1-((I5+EXP(I6*(I4-I7)))/(I5+EXP(I6*(I4-F18))))^I5)/(1-((I5+EXP(I6*(I4-I7)))/(I5+EXP(I6*(I4-I9))))^I5)) -> 0 | I18: =IF(OR(F18<=J7,F18>J9),0,J8+(J10-J8)*(1-((J5+EXP(J6*(J4-J7)))/(J5+EXP(J6*(J4-F18))))^J5)/(1-((J5+EXP(J6*(J4-J7)))/(J5+EXP(J6*(J4-J9))))^J5)) -> 0 | J18: =IF(OR(F18<=J9,F18>100000),0,IF(F18<=K7,K8,K8+(K10-K8)*(1-((K5+EXP(K6*(K4-K7)))/(K5+EXP(K6*(K4-F18))))^K5)/(1-((K5+EXP(K6*(K4-K7)))/(K5+EXP(K6*(K4-K9))))^K5))) -> 0 | K18: 0 | L18: 0 | M18: 3.399528752 | N18: 0 | O18: 2010-11-07 | P18: =MAX(L$12:L18)+MAX(M$12:M18)+MAX(N$12:N18) -> 3.399528752 | Q18: 2010-11-07 | R18: 0.3882911446 | Y18: =O130 -> 2011-02-27 | Z18: 12.74161958 | AA18: =P130 -> 69.24174022 | AB18: 0.09101156843 | AJ18: 0 | AL18: =IF(OR(AJ18<=AM7,AJ18>AM9),0,AM8+(AM10-AM8)*(1-((AM5+EXP(AM6*(AM4-AM7)))/(AM5+EXP(AM6*(AM4-AJ18))))^AM5)/(1-((AM5+EXP(AM6*(AM4-AM7)))/(AM5+EXP(AM6*(AM4-AM9))))^AM5)) -> 0 | AM18: =IF(OR(AJ18<=AN7,AJ18>AN9),0,AN8+(AN10-AN8)*(1-((AN5+EXP(AN6*(AN4-AN7)))/(AN5+EXP(AN6*(AN4-AJ18))))^AN5)/(1-((AN5+EXP(AN6*(AN4-AN7)))/(AN5+EXP(AN6*(AN4-AN9))))^AN5)) -> 0 | AN18: =IF(OR(AJ18<=AN9,AJ18>100000),0,IF(AJ18<=AO7,AO8,AO8+(AO10-AO8)*(1-((AO5+EXP(AO6*(AO4-AO7)))/(AO5+EXP(AO6*(AO4-AJ18))))^AO5)/(1-((AO5+EXP(AO6*(AO4-AO7)))/(AO5+EXP(AO6*(AO4-AO9))))^AO5))) -> 0 | AO18: 0 | AP18: 0 | AS18: 0 | AU18: =IF(OR(AS18<=AV7,AS18>AV9),0,AV8+(AV10-AV8)*(1-((AV5+EXP(AV6*(AV4-AV7)))/(AV5+EXP(AV6*(AV4-AS18))))^AV5)/(1-((AV5+EXP(AV6*(AV4-AV7)))/(AV5+EXP(AV6*(AV4-AV9))))^AV5)) -> 0 | AV18: =IF(OR(AS18<=AW7,AS18>AW9),0,AW8+(AW10-AW8)*(1-((AW5+EXP(AW6*(AW4-AW7)))/(AW5+EXP(AW6*(AW4-AS18))))^AW5)/(1-((AW5+EXP(AW6*(AW4-AW7)))/(AW5+EXP(AW6*(AW4-AW9))))^AW5)) -> 0 | AW18: =IF(OR(AS18<=AW9,AS18>100000),0,IF(AS18<=AX7,AX8,AX8+(AX10-AX8)*(1-((AX5+EXP(AX6*(AX4-AX7)))/(AX5+EXP(AX6*(AX4-AS18))))^AX5)/(1-((AX5+EXP(AX6*(AX4-AX7)))/(AX5+EXP(AX6*(AX4-AX9))))^AX5))) -> 0 | AX18: 0 | AY18: 0
A19: 8 | B19: ='daily uptake'!F102 -> 2010-11-08 | C19: =5/9*'daily uptake'!Q102 -> 10.27777778 | D19: =5/9*'daily uptake'!N102 -> 2.777777778 | E19: =IF(AND($A19>='daily uptake'!$C$9,$A19<='daily uptake'!$C$10),$C19+E18,0) -> 124.4444444 | F19: =IF(AND($A19>='daily uptake'!$C$18,$A19<='daily uptake'!$C$20),$D19+F18,0) -> 0 | G19: =IF(AND($A19>='daily uptake'!$C$24,$A19<='daily uptake'!$C$25),$C19+G18,0) -> 0 | H19: =IF(OR(F19<=I7,F19>I9),0,I8+(I10-I8)*(1-((I5+EXP(I6*(I4-I7)))/(I5+EXP(I6*(I4-F19))))^I5)/(1-((I5+EXP(I6*(I4-I7)))/(I5+EXP(I6*(I4-I9))))^I5)) -> 0 | I19: =IF(OR(F19<=J7,F19>J9),0,J8+(J10-J8)*(1-((J5+EXP(J6*(J4-J7)))/(J5+EXP(J6*(J4-F19))))^J5)/(1-((J5+EXP(J6*(J4-J7)))/(J5+EXP(J6*(J4-J9))))^J5)) -> 0 | J19: =IF(OR(F19<=J9,F19>100000),0,IF(F19<=K7,K8,K8+(K10-K8)*(1-((K5+EXP(K6*(K4-K7)))/(K5+EXP(K6*(K4-F19))))^K5)/(1-((K5+EXP(K6*(K4-K7)))/(K5+EXP(K6*(K4-K9))))^K5))) -> 0 | K19: 0 | L19: 0 | M19: 3.740108742 | N19: 0 | O19: 2010-11-08 | P19: =MAX(L$12:L19)+MAX(M$12:M19)+MAX(N$12:N19) -> 3.740108742 | Q19: 2010-11-08 | R19: 0.3405799896 | Y19: =O143 -> 2011-03-12 | Z19: 16.89233312 | AA19: =P143 -> 86.13407333 | AB19: 0.1206595223 | AJ19: 0 | AL19: =IF(OR(AJ19<=AM7,AJ19>AM9),0,AM8+(AM10-AM8)*(1-((AM5+EXP(AM6*(AM4-AM7)))/(AM5+EXP(AM6*(AM4-AJ19))))^AM5)/(1-((AM5+EXP(AM6*(AM4-AM7)))/(AM5+EXP(AM6*(AM4-AM9))))^AM5)) -> 0 | AM19: =IF(OR(AJ19<=AN7,AJ19>AN9),0,AN8+(AN10-AN8)*(1-((AN5+EXP(AN6*(AN4-AN7)))/(AN5+EXP(AN6*(AN4-AJ19))))^AN5)/(1-((AN5+EXP(AN6*(AN4-AN7)))/(AN5+EXP(AN6*(AN4-AN9))))^AN5)) -> 0 | AN19: =IF(OR(AJ19<=AN9,AJ19>100000),0,IF(AJ19<=AO7,AO8,AO8+(AO10-AO8)*(1-((AO5+EXP(AO6*(AO4-AO7)))/(AO5+EXP(AO6*(AO4-AJ19))))^AO5)/(1-((AO5+EXP(AO6*(AO4-AO7)))/(AO5+EXP(AO6*(AO4-AO9))))^AO5))) -> 0 | AO19: 0 | AP19: 0
A20: 9 | B20: ='daily uptake'!F103 -> 2010-11-09 | C20: =5/9*'daily uptake'!Q103 -> 10.27777778 | D20: =5/9*'daily uptake'!N103 -> 3.888888889 | E20: =IF(AND($A20>='daily uptake'!$C$9,$A20<='daily uptake'!$C$10),$C20+E19,0) -> 134.7222222 | F20: =IF(AND($A20>='daily uptake'!$C$18,$A20<='daily uptake'!$C$20),$D20+F19,0) -> 0 | G20: =IF(AND($A20>='daily uptake'!$C$24,$A20<='daily uptake'!$C$25),$C20+G19,0) -> 0 | H20: =IF(OR(F20<=I7,F20>I9),0,I8+(I10-I8)*(1-((I5+EXP(I6*(I4-I7)))/(I5+EXP(I6*(I4-F20))))^I5)/(1-((I5+EXP(I6*(I4-I7)))/(I5+EXP(I6*(I4-I9))))^I5)) -> 0 | I20: =IF(OR(F20<=J7,F20>J9),0,J8+(J10-J8)*(1-((J5+EXP(J6*(J4-J7)))/(J5+EXP(J6*(J4-F20))))^J5)/(1-((J5+EXP(J6*(J4-J7)))/(J5+EXP(J6*(J4-J9))))^J5)) -> 0 | J20: =IF(OR(F20<=J9,F20>100000),0,IF(F20<=K7,K8,K8+(K10-K8)*(1-((K5+EXP(K6*(K4-K7)))/(K5+EXP(K6*(K4-F20))))^K5)/(1-((K5+EXP(K6*(K4-K7)))/(K5+EXP(K6*(K4-K9))))^K5))) -> 0 | K20: 0 | L20: 0 | M20: 4.086762765 | N20: 0 | O20: 2010-11-09 | P20: =MAX(L$12:L20)+MAX(M$12:M20)+MAX(N$12:N20) -> 4.086762765 | Q20: 2010-11-09 | R20: 0.3466540231 | Y20: =O158 -> 2011-03-27 | Z20: 18.84671358 | AA20: =P158 -> 104.9807869 | AB20: 0.1346193827 | AJ20: 0 | AL20: =IF(OR(AJ20<=AM7,AJ20>AM9),0,AM8+(AM10-AM8)*(1-((AM5+EXP(AM6*(AM4-AM7)))/(AM5+EXP(AM6*(AM4-AJ20))))^AM5)/(1-((AM5+EXP(AM6*(AM4-AM7)))/(AM5+EXP(AM6*(AM4-AM9))))^AM5)) -> 0 | AM20: =IF(OR(AJ20<=AN7,AJ20>AN9),0,AN8+(AN10-AN8)*(1-((AN5+EXP(AN6*(AN4-AN7)))/(AN5+EXP(AN6*(AN4-AJ20))))^AN5)/(1-((AN5+EXP(AN6*(AN4-AN7)))/(AN5+EXP(AN6*(AN4-AN9))))^AN5)) -> 0 | AN20: =IF(OR(AJ20<=AN9,AJ20>100000),0,IF(AJ20<=AO7,AO8,AO8+(AO10-AO8)*(1-((AO5+EXP(AO6*(AO4-AO7)))/(AO5+EXP(AO6*(AO4-AJ20))))^AO5)/(1-((AO5+EXP(AO6*(AO4-AO7)))/(AO5+EXP(AO6*(AO4-AO9))))^AO5))) -> 0 | AO20: 0 | AP20: 0
A21: 10 | B21: ='daily uptake'!F104 -> 2010-11-10 | C21: =5/9*'daily uptake'!Q104 -> 11.38888889 | D21: =5/9*'daily uptake'!N104 -> 3.055555556 | E21: =IF(AND($A21>='daily uptake'!$C$9,$A21<='daily uptake'!$C$10),$C21+E20,0) -> 146.1111111 | F21: =IF(AND($A21>='daily uptake'!$C$18,$A21<='daily uptake'!$C$20),$D21+F20,0) -> 0 | G21: =IF(AND($A21>='daily uptake'!$C$24,$A21<='daily uptake'!$C$25),$C21+G20,0) -> 0 | H21: =IF(OR(F21<=I7,F21>I9),0,I8+(I10-I8)*(1-((I5+EXP(I6*(I4-I7)))/(I5+EXP(I6*(I4-F21))))^I5)/(1-((I5+EXP(I6*(I4-I7)))/(I5+EXP(I6*(I4-I9))))^I5)) -> 0 | I21: =IF(OR(F21<=J7,F21>J9),0,J8+(J10-J8)*(1-((J5+EXP(J6*(J4-J7)))/(J5+EXP(J6*(J4-F21))))^J5)/(1-((J5+EXP(J6*(J4-J7)))/(J5+EXP(J6*(J4-J9))))^J5)) -> 0 | J21: =IF(OR(F21<=J9,F21>100000),0,IF(F21<=K7,K8,K8+(K10-K8)*(1-((K5+EXP(K6*(K4-K7)))/(K5+EXP(K6*(K4-F21))))^K5)/(1-((K5+EXP(K6*(K4-K7)))/(K5+EXP(K6*(K4-K9))))^K5))) -> 0 | K21: 0 | L21: 0 | M21: 4.478091457 | N21: 0 | O21: 2010-11-10 | P21: =MAX(L$12:L21)+MAX(M$12:M21)+MAX(N$12:N21) -> 4.478091457 | Q21: 2010-11-10 | R21: 0.3913286918 | Y21: =O174 -> 2011-04-12 | Z21: 25.13668722 | AA21: =P174 -> 130.1174741 | AB21: 0.1795477659 | AJ21: 0 | AL21: =IF(OR(AJ21<=AM7,AJ21>AM9),0,AM8+(AM10-AM8)*(1-((AM5+EXP(AM6*(AM4-AM7)))/(AM5+EXP(AM6*(AM4-AJ21))))^AM5)/(1-((AM5+EXP(AM6*(AM4-AM7)))/(AM5+EXP(AM6*(AM4-AM9))))^AM5)) -> 0 | AM21: =IF(OR(AJ21<=AN7,AJ21>AN9),0,AN8+(AN10-AN8)*(1-((AN5+EXP(AN6*(AN4-AN7)))/(AN5+EXP(AN6*(AN4-AJ21))))^AN5)/(1-((AN5+EXP(AN6*(AN4-AN7)))/(AN5+EXP(AN6*(AN4-AN9))))^AN5)) -> 0 | AN21: =IF(OR(AJ21<=AN9,AJ21>100000),0,IF(AJ21<=AO7,AO8,AO8+(AO10-AO8)*(1-((AO5+EXP(AO6*(AO4-AO7)))/(AO5+EXP(AO6*(AO4-AJ21))))^AO5)/(1-((AO5+EXP(AO6*(AO4-AO7)))/(AO5+EXP(AO6*(AO4-AO9))))^AO5))) -> 0 | AO21: 0 | AP21: 0
A22: 11 | B22: ='daily uptake'!F105 -> 2010-11-11 | C22: =5/9*'daily uptake'!Q105 -> 10.55555556 | D22: =5/9*'daily uptake'!N105 -> 3.611111111 | E22: =IF(AND($A22>='daily uptake'!$C$9,$A22<='daily uptake'!$C$10),$C22+E21,0) -> 156.6666667 | F22: =IF(AND($A22>='daily uptake'!$C$18,$A22<='daily uptake'!$C$20),$D22+F21,0) -> 0 | G22: =IF(AND($A22>='daily uptake'!$C$24,$A22<='daily uptake'!$C$25),$C22+G21,0) -> 0 | H22: =IF(OR(F22<=I7,F22>I9),0,I8+(I10-I8)*(1-((I5+EXP(I6*(I4-I7)))/(I5+EXP(I6*(I4-F22))))^I5)/(1-((I5+EXP(I6*(I4-I7)))/(I5+EXP(I6*(I4-I9))))^I5)) -> 0 | I22: =IF(OR(F22<=J7,F22>J9),0,J8+(J10-J8)*(1-((J5+EXP(J6*(J4-J7)))/(J5+EXP(J6*(J4-F22))))^J5)/(1-((J5+EXP(J6*(J4-J7)))/(J5+EXP(J6*(J4-J9))))^J5)) -> 0 | J22: =IF(OR(F22<=J9,F22>100000),0,IF(F22<=K7,K8,K8+(K10-K8)*(1-((K5+EXP(K6*(K4-K7)))/(K5+EXP(K6*(K4-F22))))^K5)/(1-((K5+EXP(K6*(K4-K7)))/(K5+EXP(K6*(K4-K9))))^K5))) -> 0 | K22: 0 | L22: 0 | M22: 4.847642646 | N22: 0 | O22: 2010-11-11 | P22: =MAX(L$12:L22)+MAX(M$12:M22)+MAX(N$12:N22) -> 4.847642646 | Q22: 2010-11-11 | R22: 0.3695511888 | Y22: =O189 -> 2011-04-27 | Z22: 9.882525866 | AA22: =P189 -> 140 | AB22: 0.07058947047 | AJ22: 0 | AL22: =IF(OR(AJ22<=AM7,AJ22>AM9),0,AM8+(AM10-AM8)*(1-((AM5+EXP(AM6*(AM4-AM7)))/(AM5+EXP(AM6*(AM4-AJ22))))^AM5)/(1-((AM5+EXP(AM6*(AM4-AM7)))/(AM5+EXP(AM6*(AM4-AM9))))^AM5)) -> 0 | AM22: =IF(OR(AJ22<=AN7,AJ22>AN9),0,AN8+(AN10-AN8)*(1-((AN5+EXP(AN6*(AN4-AN7)))/(AN5+EXP(AN6*(AN4-AJ22))))^AN5)/(1-((AN5+EXP(AN6*(AN4-AN7)))/(AN5+EXP(AN6*(AN4-AN9))))^AN5)) -> 0 | AN22: =IF(OR(AJ22<=AN9,AJ22>100000),0,IF(AJ22<=AO7,AO8,AO8+(AO10-AO8)*(1-((AO5+EXP(AO6*(AO4-AO7)))/(AO5+EXP(AO6*(AO4-AJ22))))^AO5)/(1-((AO5+EXP(AO6*(AO4-AO7)))/(AO5+EXP(AO6*(AO4-AO9))))^AO5))) -> 0 | AO22: 0 | AP22: 0
A23: 12 | B23: ='daily uptake'!F106 -> 2010-11-12 | C23: =5/9*'daily uptake'!Q106 -> 10 | D23: =5/9*'daily uptake'!N106 -> 3.888888889 | E23: =IF(AND($A23>='daily uptake'!$C$9,$A23<='daily uptake'!$C$10),$C23+E22,0) -> 166.6666667 | F23: =IF(AND($A23>='daily uptake'!$C$18,$A23<='daily uptake'!$C$20),$D23+F22,0) -> 0 | G23: =IF(AND($A23>='daily uptake'!$C$24,$A23<='daily uptake'!$C$25),$C23+G22,0) -> 0 | H23: =IF(OR(F23<=I7,F23>I9),0,I8+(I10-I8)*(1-((I5+EXP(I6*(I4-I7)))/(I5+EXP(I6*(I4-F23))))^I5)/(1-((I5+EXP(I6*(I4-I7)))/(I5+EXP(I6*(I4-I9))))^I5)) -> 0 | I23: =IF(OR(F23<=J7,F23>J9),0,J8+(J10-J8)*(1-((J5+EXP(J6*(J4-J7)))/(J5+EXP(J6*(J4-F23))))^J5)/(1-((J5+EXP(J6*(J4-J7)))/(J5+EXP(J6*(J4-J9))))^J5)) -> 0 | J23: =IF(OR(F23<=J9,F23>100000),0,IF(F23<=K7,K8,K8+(K10-K8)*(1-((K5+EXP(K6*(K4-K7)))/(K5+EXP(K6*(K4-F23))))^K5)/(1-((K5+EXP(K6*(K4-K7)))/(K5+EXP(K6*(K4-K9))))^K5))) -> 0 | K23: 0 | L23: 0 | M23: 5.203915469 | N23: 0 | O23: 2010-11-12 | P23: =MAX(L$12:L23)+MAX(M$12:M23)+MAX(N$12:N23) -> 5.203915469 | Q23: 2010-11-12 | R23: 0.3562728237 | AJ23: 0 | AL23: =IF(OR(AJ23<=AM7,AJ23>AM9),0,AM8+(AM10-AM8)*(1-((AM5+EXP(AM6*(AM4-AM7)))/(AM5+EXP(AM6*(AM4-AJ23))))^AM5)/(1-((AM5+EXP(AM6*(AM4-AM7)))/(AM5+EXP(AM6*(AM4-AM9))))^AM5)) -> 0 | AM23: =IF(OR(AJ23<=AN7,AJ23>AN9),0,AN8+(AN10-AN8)*(1-((AN5+EXP(AN6*(AN4-AN7)))/(AN5+EXP(AN6*(AN4-AJ23))))^AN5)/(1-((AN5+EXP(AN6*(AN4-AN7)))/(AN5+EXP(AN6*(AN4-AN9))))^AN5)) -> 0 | AN23: =IF(OR(AJ23<=AN9,AJ23>100000),0,IF(AJ23<=AO7,AO8,AO8+(AO10-AO8)*(1-((AO5+EXP(AO6*(AO4-AO7)))/(AO5+EXP(AO6*(AO4-AJ23))))^AO5)/(1-((AO5+EXP(AO6*(AO4-AO7)))/(AO5+EXP(AO6*(AO4-AO9))))^AO5))) -> 0 | AO23: 0 | AP23: 0
A24: 13 | B24: ='daily uptake'!F107 -> 2010-11-13 | C24: =5/9*'daily uptake'!Q107 -> 10 | D24: =5/9*'daily uptake'!N107 -> 3.611111111 | E24: =IF(AND($A24>='daily uptake'!$C$9,$A24<='daily uptake'!$C$10),$C24+E23,0) -> 176.6666667 | F24: =IF(AND($A24>='daily uptake'!$C$18,$A24<='daily uptake'!$C$20),$D24+F23,0) -> 0 | G24: =IF(AND($A24>='daily uptake'!$C$24,$A24<='daily uptake'!$C$25),$C24+G23,0) -> 0 | H24: =IF(OR(F24<=I7,F24>I9),0,I8+(I10-I8)*(1-((I5+EXP(I6*(I4-I7)))/(I5+EXP(I6*(I4-F24))))^I5)/(1-((I5+EXP(I6*(I4-I7)))/(I5+EXP(I6*(I4-I9))))^I5)) -> 0 | I24: =IF(OR(F24<=J7,F24>J9),0,J8+(J10-J8)*(1-((J5+EXP(J6*(J4-J7)))/(J5+EXP(J6*(J4-F24))))^J5)/(1-((J5+EXP(J6*(J4-J7)))/(J5+EXP(J6*(J4-J9))))^J5)) -> 0 | J24: =IF(OR(F24<=J9,F24>100000),0,IF(F24<=K7,K8,K8+(K10-K8)*(1-((K5+EXP(K6*(K4-K7)))/(K5+EXP(K6*(K4-F24))))^K5)/(1-((K5+EXP(K6*(K4-K7)))/(K5+EXP(K6*(K4-K9))))^K5))) -> 0 | K24: 0 | L24: 0 | M24: 5.566274745 | N24: 0 | O24: 2010-11-13 | P24: =MAX(L$12:L24)+MAX(M$12:M24)+MAX(N$12:N24) -> 5.566274745 | Q24: 2010-11-13 | R24: 0.362359276 | AJ24: 0 | AL24: =IF(OR(AJ24<=AM7,AJ24>AM9),0,AM8+(AM10-AM8)*(1-((AM5+EXP(AM6*(AM4-AM7)))/(AM5+EXP(AM6*(AM4-AJ24))))^AM5)/(1-((AM5+EXP(AM6*(AM4-AM7)))/(AM5+EXP(AM6*(AM4-AM9))))^AM5)) -> 0 | AM24: =IF(OR(AJ24<=AN7,AJ24>AN9),0,AN8+(AN10-AN8)*(1-((AN5+EXP(AN6*(AN4-AN7)))/(AN5+EXP(AN6*(AN4-AJ24))))^AN5)/(1-((AN5+EXP(AN6*(AN4-AN7)))/(AN5+EXP(AN6*(AN4-AN9))))^AN5)) -> 0 | AN24: =IF(OR(AJ24<=AN9,AJ24>100000),0,IF(AJ24<=AO7,AO8,AO8+(AO10-AO8)*(1-((AO5+EXP(AO6*(AO4-AO7)))/(AO5+EXP(AO6*(AO4-AJ24))))^AO5)/(1-((AO5+EXP(AO6*(AO4-AO7)))/(AO5+EXP(AO6*(AO4-AO9))))^AO5))) -> 0 | AO24: 0 | AP24: 0
A25: 14 | B25: ='daily uptake'!F108 -> 2010-11-14 | C25: =5/9*'daily uptake'!Q108 -> 12.22222222 | D25: =5/9*'daily uptake'!N108 -> 5.277777778 | E25: =IF(AND($A25>='daily uptake'!$C$9,$A25<='daily uptake'!$C$10),$C25+E24,0) -> 188.8888889 | F25: =IF(AND($A25>='daily uptake'!$C$18,$A25<='daily uptake'!$C$20),$D25+F24,0) -> 0 | G25: =IF(AND($A25>='daily uptake'!$C$24,$A25<='daily uptake'!$C$25),$C25+G24,0) -> 0 | H25: =IF(OR(F25<=I7,F25>I9),0,I8+(I10-I8)*(1-((I5+EXP(I6*(I4-I7)))/(I5+EXP(I6*(I4-F25))))^I5)/(1-((I5+EXP(I6*(I4-I7)))/(I5+EXP(I6*(I4-I9))))^I5)) -> 0 | I25: =IF(OR(F25<=J7,F25>J9),0,J8+(J10-J8)*(1-((J5+EXP(J6*(J4-J7)))/(J5+EXP(J6*(J4-F25))))^J5)/(1-((J5+EXP(J6*(J4-J7)))/(J5+EXP(J6*(J4-J9))))^J5)) -> 0 | J25: =IF(OR(F25<=J9,F25>100000),0,IF(F25<=K7,K8,K8+(K10-K8)*(1-((K5+EXP(K6*(K4-K7)))/(K5+EXP(K6*(K4-F25))))^K5)/(1-((K5+EXP(K6*(K4-K7)))/(K5+EXP(K6*(K4-K9))))^K5))) -> 0 | K25: 0 | L25: 0 | M25: 6.017540973 | N25: 0 | O25: 2010-11-14 | P25: =MAX(L$12:L25)+MAX(M$12:M25)+MAX(N$12:N25) -> 6.017540973 | Q25: 2010-11-14 | R25: 0.4512662277 | AJ25: 0 | AL25: =IF(OR(AJ25<=AM7,AJ25>AM9),0,AM8+(AM10-AM8)*(1-((AM5+EXP(AM6*(AM4-AM7)))/(AM5+EXP(AM6*(AM4-AJ25))))^AM5)/(1-((AM5+EXP(AM6*(AM4-AM7)))/(AM5+EXP(AM6*(AM4-AM9))))^AM5)) -> 0 | AM25: =IF(OR(AJ25<=AN7,AJ25>AN9),0,AN8+(AN10-AN8)*(1-((AN5+EXP(AN6*(AN4-AN7)))/(AN5+EXP(AN6*(AN4-AJ25))))^AN5)/(1-((AN5+EXP(AN6*(AN4-AN7)))/(AN5+EXP(AN6*(AN4-AN9))))^AN5)) -> 0 | AN25: =IF(OR(AJ25<=AN9,AJ25>100000),0,IF(AJ25<=AO7,AO8,AO8+(AO10-AO8)*(1-((AO5+EXP(AO6*(AO4-AO7)))/(AO5+EXP(AO6*(AO4-AJ25))))^AO5)/(1-((AO5+EXP(AO6*(AO4-AO7)))/(AO5+EXP(AO6*(AO4-AO9))))^AO5))) -> 0 | AO25: 0 | AP25: 0
A26: 15 | B26: ='daily uptake'!F109 -> 2010-11-15 | C26: =5/9*'daily uptake'!Q109 -> 14.16666667 | D26: =5/9*'daily uptake'!N109 -> 6.388888889 | E26: =IF(AND($A26>='daily uptake'!$C$9,$A26<='daily uptake'!$C$10),$C26+E25,0) -> 203.0555556 | F26: =IF(AND($A26>='daily uptake'!$C$18,$A26<='daily uptake'!$C$20),$D26+F25,0) -> 0 | G26: =IF(AND($A26>='daily uptake'!$C$24,$A26<='daily uptake'!$C$25),$C26+G25,0) -> 0 | H26: =IF(OR(F26<=I7,F26>I9),0,I8+(I10-I8)*(1-((I5+EXP(I6*(I4-I7)))/(I5+EXP(I6*(I4-F26))))^I5)/(1-((I5+EXP(I6*(I4-I7)))/(I5+EXP(I6*(I4-I9))))^I5)) -> 0 | I26: =IF(OR(F26<=J7,F26>J9),0,J8+(J10-J8)*(1-((J5+EXP(J6*(J4-J7)))/(J5+EXP(J6*(J4-F26))))^J5)/(1-((J5+EXP(J6*(J4-J7)))/(J5+EXP(J6*(J4-J9))))^J5)) -> 0 | J26: =IF(OR(F26<=J9,F26>100000),0,IF(F26<=K7,K8,K8+(K10-K8)*(1-((K5+EXP(K6*(K4-K7)))/(K5+EXP(K6*(K4-F26))))^K5)/(1-((K5+EXP(K6*(K4-K7)))/(K5+EXP(K6*(K4-K9))))^K5))) -> 0 | K26: 0 | L26: 0 | M26: 6.552320103 | N26: 0 | O26: 2010-11-15 | P26: =MAX(L$12:L26)+MAX(M$12:M26)+MAX(N$12:N26) -> 6.552320103 | Q26: 2010-11-15 | R26: 0.5347791297 | AJ26: 0 | AL26: =IF(OR(AJ26<=AM7,AJ26>AM9),0,AM8+(AM10-AM8)*(1-((AM5+EXP(AM6*(AM4-AM7)))/(AM5+EXP(AM6*(AM4-AJ26))))^AM5)/(1-((AM5+EXP(AM6*(AM4-AM7)))/(AM5+EXP(AM6*(AM4-AM9))))^AM5)) -> 0 | AM26: =IF(OR(AJ26<=AN7,AJ26>AN9),0,AN8+(AN10-AN8)*(1-((AN5+EXP(AN6*(AN4-AN7)))/(AN5+EXP(AN6*(AN4-AJ26))))^AN5)/(1-((AN5+EXP(AN6*(AN4-AN7)))/(AN5+EXP(AN6*(AN4-AN9))))^AN5)) -> 0 | AN26: =IF(OR(AJ26<=AN9,AJ26>100000),0,IF(AJ26<=AO7,AO8,AO8+(AO10-AO8)*(1-((AO5+EXP(AO6*(AO4-AO7)))/(AO5+EXP(AO6*(AO4-AJ26))))^AO5)/(1-((AO5+EXP(AO6*(AO4-AO7)))/(AO5+EXP(AO6*(AO4-AO9))))^AO5))) -> 0 | AO26: 0 | AP26: 0
A27: 16 | B27: ='daily uptake'!F110 -> 2010-11-16 | C27: =5/9*'daily uptake'!Q110 -> 12.77777778 | D27: =5/9*'daily uptake'!N110 -> 5 | E27: =IF(AND($A27>='daily uptake'!$C$9,$A27<='daily uptake'!$C$10),$C27+E26,0) -> 215.8333333 | F27: =IF(AND($A27>='daily uptake'!$C$18,$A27<='daily uptake'!$C$20),$D27+F26,0) -> 0 | G27: =IF(AND($A27>='daily uptake'!$C$24,$A27<='daily uptake'!$C$25),$C27+G26,0) -> 0 | H27: =IF(OR(F27<=I7,F27>I9),0,I8+(I10-I8)*(1-((I5+EXP(I6*(I4-I7)))/(I5+EXP(I6*(I4-F27))))^I5)/(1-((I5+EXP(I6*(I4-I7)))/(I5+EXP(I6*(I4-I9))))^I5)) -> 0 | I27: =IF(OR(F27<=J7,F27>J9),0,J8+(J10-J8)*(1-((J5+EXP(J6*(J4-J7)))/(J5+EXP(J6*(J4-F27))))^J5)/(1-((J5+EXP(J6*(J4-J7)))/(J5+EXP(J6*(J4-J9))))^J5)) -> 0 | J27: =IF(OR(F27<=J9,F27>100000),0,IF(F27<=K7,K8,K8+(K10-K8)*(1-((K5+EXP(K6*(K4-K7)))/(K5+EXP(K6*(K4-F27))))^K5)/(1-((K5+EXP(K6*(K4-K7)))/(K5+EXP(K6*(K4-K9))))^K5))) -> 0 | K27: 0 | L27: 0 | M27: 7.045645135 | N27: 0 | O27: 2010-11-16 | P27: =MAX(L$12:L27)+MAX(M$12:M27)+MAX(N$12:N27) -> 7.045645135 | Q27: 2010-11-16 | R27: 0.4933250325 | AJ27: 0 | AL27: =IF(OR(AJ27<=AM7,AJ27>AM9),0,AM8+(AM10-AM8)*(1-((AM5+EXP(AM6*(AM4-AM7)))/(AM5+EXP(AM6*(AM4-AJ27))))^AM5)/(1-((AM5+EXP(AM6*(AM4-AM7)))/(AM5+EXP(AM6*(AM4-AM9))))^AM5)) -> 0 | AM27: =IF(OR(AJ27<=AN7,AJ27>AN9),0,AN8+(AN10-AN8)*(1-((AN5+EXP(AN6*(AN4-AN7)))/(AN5+EXP(AN6*(AN4-AJ27))))^AN5)/(1-((AN5+EXP(AN6*(AN4-AN7)))/(AN5+EXP(AN6*(AN4-AN9))))^AN5)) -> 0 | AN27: =IF(OR(AJ27<=AN9,AJ27>100000),0,IF(AJ27<=AO7,AO8,AO8+(AO10-AO8)*(1-((AO5+EXP(AO6*(AO4-AO7)))/(AO5+EXP(AO6*(AO4-AJ27))))^AO5)/(1-((AO5+EXP(AO6*(AO4-AO7)))/(AO5+EXP(AO6*(AO4-AO9))))^AO5))) -> 0 | AO27: 0 | AP27: 0
A28: 17 | B28: ='daily uptake'!F111 -> 2010-11-17 | C28: =5/9*'daily uptake'!Q111 -> 13.05555556 | D28: =5/9*'daily uptake'!N111 -> 6.388888889 | E28: =IF(AND($A28>='daily uptake'!$C$9,$A28<='daily uptake'!$C$10),$C28+E27,0) -> 228.8888889 | F28: =IF(AND($A28>='daily uptake'!$C$18,$A28<='daily uptake'!$C$20),$D28+F27,0) -> 0 | G28: =IF(AND($A28>='daily uptake'!$C$24,$A28<='daily uptake'!$C$25),$C28+G27,0) -> 0 | H28: =IF(OR(F28<=I7,F28>I9),0,I8+(I10-I8)*(1-((I5+EXP(I6*(I4-I7)))/(I5+EXP(I6*(I4-F28))))^I5)/(1-((I5+EXP(I6*(I4-I7)))/(I5+EXP(I6*(I4-I9))))^I5)) -> 0 | I28: =IF(OR(F28<=J7,F28>J9),0,J8+(J10-J8)*(1-((J5+EXP(J6*(J4-J7)))/(J5+EXP(J6*(J4-F28))))^J5)/(1-((J5+EXP(J6*(J4-J7)))/(J5+EXP(J6*(J4-J9))))^J5)) -> 0 | J28: =IF(OR(F28<=J9,F28>100000),0,IF(F28<=K7,K8,K8+(K10-K8)*(1-((K5+EXP(K6*(K4-K7)))/(K5+EXP(K6*(K4-F28))))^K5)/(1-((K5+EXP(K6*(K4-K7)))/(K5+EXP(K6*(K4-K9))))^K5))) -> 0 | K28: 0 | L28: 0 | M28: 7.560627496 | N28: 0 | O28: 2010-11-17 | P28: =MAX(L$12:L28)+MAX(M$12:M28)+MAX(N$12:N28) -> 7.560627496 | Q28: 2010-11-17 | R28: 0.5149823607 | AJ28: 0 | AL28: =IF(OR(AJ28<=AM7,AJ28>AM9),0,AM8+(AM10-AM8)*(1-((AM5+EXP(AM6*(AM4-AM7)))/(AM5+EXP(AM6*(AM4-AJ28))))^AM5)/(1-((AM5+EXP(AM6*(AM4-AM7)))/(AM5+EXP(AM6*(AM4-AM9))))^AM5)) -> 0 | AM28: =IF(OR(AJ28<=AN7,AJ28>AN9),0,AN8+(AN10-AN8)*(1-((AN5+EXP(AN6*(AN4-AN7)))/(AN5+EXP(AN6*(AN4-AJ28))))^AN5)/(1-((AN5+EXP(AN6*(AN4-AN7)))/(AN5+EXP(AN6*(AN4-AN9))))^AN5)) -> 0 | AN28: =IF(OR(AJ28<=AN9,AJ28>100000),0,IF(AJ28<=AO7,AO8,AO8+(AO10-AO8)*(1-((AO5+EXP(AO6*(AO4-AO7)))/(AO5+EXP(AO6*(AO4-AJ28))))^AO5)/(1-((AO5+EXP(AO6*(AO4-AO7)))/(AO5+EXP(AO6*(AO4-AO9))))^AO5))) -> 0 | AO28: 0 | AP28: 0
A29: 18 | B29: ='daily uptake'!F112 -> 2010-11-18 | C29: =5/9*'daily uptake'!Q112 -> 13.33333333 | D29: =5/9*'daily uptake'!N112 -> 5.833333333 | E29: =IF(AND($A29>='daily uptake'!$C$9,$A29<='daily uptake'!$C$10),$C29+E28,0) -> 242.2222222 | F29: =IF(AND($A29>='daily uptake'!$C$18,$A29<='daily uptake'!$C$20),$D29+F28,0) -> 0 | G29: =IF(AND($A29>='daily uptake'!$C$24,$A29<='daily uptake'!$C$25),$C29+G28,0) -> 0 | H29: =IF(OR(F29<=I7,F29>I9),0,I8+(I10-I8)*(1-((I5+EXP(I6*(I4-I7)))/(I5+EXP(I6*(I4-F29))))^I5)/(1-((I5+EXP(I6*(I4-I7)))/(I5+EXP(I6*(I4-I9))))^I5)) -> 0 | I29: =IF(OR(F29<=J7,F29>J9),0,J8+(J10-J8)*(1-((J5+EXP(J6*(J4-J7)))/(J5+EXP(J6*(J4-F29))))^J5)/(1-((J5+EXP(J6*(J4-J7)))/(J5+EXP(J6*(J4-J9))))^J5)) -> 0 | J29: =IF(OR(F29<=J9,F29>100000),0,IF(F29<=K7,K8,K8+(K10-K8)*(1-((K5+EXP(K6*(K4-K7)))/(K5+EXP(K6*(K4-F29))))^K5)/(1-((K5+EXP(K6*(K4-K7)))/(K5+EXP(K6*(K4-K9))))^K5))) -> 0 | K29: 0 | L29: 0 | M29: 8.098157946 | N29: 0 | O29: 2010-11-18 | P29: =MAX(L$12:L29)+MAX(M$12:M29)+MAX(N$12:N29) -> 8.098157946 | Q29: 2010-11-18 | R29: 0.5375304498 | AJ29: 0 | AL29: =IF(OR(AJ29<=AM7,AJ29>AM9),0,AM8+(AM10-AM8)*(1-((AM5+EXP(AM6*(AM4-AM7)))/(AM5+EXP(AM6*(AM4-AJ29))))^AM5)/(1-((AM5+EXP(AM6*(AM4-AM7)))/(AM5+EXP(AM6*(AM4-AM9))))^AM5)) -> 0 | AM29: =IF(OR(AJ29<=AN7,AJ29>AN9),0,AN8+(AN10-AN8)*(1-((AN5+EXP(AN6*(AN4-AN7)))/(AN5+EXP(AN6*(AN4-AJ29))))^AN5)/(1-((AN5+EXP(AN6*(AN4-AN7)))/(AN5+EXP(AN6*(AN4-AN9))))^AN5)) -> 0 | AN29: =IF(OR(AJ29<=AN9,AJ29>100000),0,IF(AJ29<=AO7,AO8,AO8+(AO10-AO8)*(1-((AO5+EXP(AO6*(AO4-AO7)))/(AO5+EXP(AO6*(AO4-AJ29))))^AO5)/(1-((AO5+EXP(AO6*(AO4-AO7)))/(AO5+EXP(AO6*(AO4-AO9))))^AO5))) -> 0 | AO29: 0 | AP29: 0
A30: 19 | B30: ='daily uptake'!F113 -> 2010-11-19 | C30: =5/9*'daily uptake'!Q113 -> 10.27777778 | D30: =5/9*'daily uptake'!N113 -> 1.388888889 | E30: =IF(AND($A30>='daily uptake'!$C$9,$A30<='daily uptake'!$C$10),$C30+E29,0) -> 252.5 | F30: =IF(AND($A30>='daily uptake'!$C$18,$A30<='daily uptake'!$C$20),$D30+F29,0) -> 0 | G30: =IF(AND($A30>='daily uptake'!$C$24,$A30<='daily uptake'!$C$25),$C30+G29,0) -> 0 | H30: =IF(OR(F30<=I7,F30>I9),0,I8+(I10-I8)*(1-((I5+EXP(I6*(I4-I7)))/(I5+EXP(I6*(I4-F30))))^I5)/(1-((I5+EXP(I6*(I4-I7)))/(I5+EXP(I6*(I4-I9))))^I5)) -> 0 | I30: =IF(OR(F30<=J7,F30>J9),0,J8+(J10-J8)*(1-((J5+EXP(J6*(J4-J7)))/(J5+EXP(J6*(J4-F30))))^J5)/(1-((J5+EXP(J6*(J4-J7)))/(J5+EXP(J6*(J4-J9))))^J5)) -> 0 | J30: =IF(OR(F30<=J9,F30>100000),0,IF(F30<=K7,K8,K8+(K10-K8)*(1-((K5+EXP(K6*(K4-K7)))/(K5+EXP(K6*(K4-F30))))^K5)/(1-((K5+EXP(K6*(K4-K7)))/(K5+EXP(K6*(K4-K9))))^K5))) -> 0 | K30: 0 | L30: 0 | M30: 8.520618214 | N30: 0 | O30: 2010-11-19 | P30: =MAX(L$12:L30)+MAX(M$12:M30)+MAX(N$12:N30) -> 8.520618214 | Q30: 2010-11-19 | R30: 0.4224602679 | AJ30: 0 | AL30: =IF(OR(AJ30<=AM7,AJ30>AM9),0,AM8+(AM10-AM8)*(1-((AM5+EXP(AM6*(AM4-AM7)))/(AM5+EXP(AM6*(AM4-AJ30))))^AM5)/(1-((AM5+EXP(AM6*(AM4-AM7)))/(AM5+EXP(AM6*(AM4-AM9))))^AM5)) -> 0 | AM30: =IF(OR(AJ30<=AN7,AJ30>AN9),0,AN8+(AN10-AN8)*(1-((AN5+EXP(AN6*(AN4-AN7)))/(AN5+EXP(AN6*(AN4-AJ30))))^AN5)/(1-((AN5+EXP(AN6*(AN4-AN7)))/(AN5+EXP(AN6*(AN4-AN9))))^AN5)) -> 0 | AN30: =IF(OR(AJ30<=AN9,AJ30>100000),0,IF(AJ30<=AO7,AO8,AO8+(AO10-AO8)*(1-((AO5+EXP(AO6*(AO4-AO7)))/(AO5+EXP(AO6*(AO4-AJ30))))^AO5)/(1-((AO5+EXP(AO6*(AO4-AO7)))/(AO5+EXP(AO6*(AO4-AO9))))^AO5))) -> 0 | AO30: 0 | AP30: 0
A31: 20 | B31: ='daily uptake'!F114 -> 2010-11-20 | C31: =5/9*'daily uptake'!Q114 -> 10 | D31: =5/9*'daily uptake'!N114 -> 1.666666667 | E31: =IF(AND($A31>='daily uptake'!$C$9,$A31<='daily uptake'!$C$10),$C31+E30,0) -> 262.5 | F31: =IF(AND($A31>='daily uptake'!$C$18,$A31<='daily uptake'!$C$20),$D31+F30,0) -> 0 | G31: =IF(AND($A31>='daily uptake'!$C$24,$A31<='daily uptake'!$C$25),$C31+G30,0) -> 0 | H31: =IF(OR(F31<=I7,F31>I9),0,I8+(I10-I8)*(1-((I5+EXP(I6*(I4-I7)))/(I5+EXP(I6*(I4-F31))))^I5)/(1-((I5+EXP(I6*(I4-I7)))/(I5+EXP(I6*(I4-I9))))^I5)) -> 0 | I31: =IF(OR(F31<=J7,F31>J9),0,J8+(J10-J8)*(1-((J5+EXP(J6*(J4-J7)))/(J5+EXP(J6*(J4-F31))))^J5)/(1-((J5+EXP(J6*(J4-J7)))/(J5+EXP(J6*(J4-J9))))^J5)) -> 0 | J31: =IF(OR(F31<=J9,F31>100000),0,IF(F31<=K7,K8,K8+(K10-K8)*(1-((K5+EXP(K6*(K4-K7)))/(K5+EXP(K6*(K4-F31))))^K5)/(1-((K5+EXP(K6*(K4-K7)))/(K5+EXP(K6*(K4-K9))))^K5))) -> 0 | K31: 0 | L31: 0 | M31: 8.9385322 | N31: 0 | O31: 2010-11-20 | P31: =MAX(L$12:L31)+MAX(M$12:M31)+MAX(N$12:N31) -> 8.9385322 | Q31: 2010-11-20 | R31: 0.4179139863 | AJ31: 0 | AL31: =IF(OR(AJ31<=AM7,AJ31>AM9),0,AM8+(AM10-AM8)*(1-((AM5+EXP(AM6*(AM4-AM7)))/(AM5+EXP(AM6*(AM4-AJ31))))^AM5)/(1-((AM5+EXP(AM6*(AM4-AM7)))/(AM5+EXP(AM6*(AM4-AM9))))^AM5)) -> 0 | AM31: =IF(OR(AJ31<=AN7,AJ31>AN9),0,AN8+(AN10-AN8)*(1-((AN5+EXP(AN6*(AN4-AN7)))/(AN5+EXP(AN6*(AN4-AJ31))))^AN5)/(1-((AN5+EXP(AN6*(AN4-AN7)))/(AN5+EXP(AN6*(AN4-AN9))))^AN5)) -> 0 | AN31: =IF(OR(AJ31<=AN9,AJ31>100000),0,IF(AJ31<=AO7,AO8,AO8+(AO10-AO8)*(1-((AO5+EXP(AO6*(AO4-AO7)))/(AO5+EXP(AO6*(AO4-AJ31))))^AO5)/(1-((AO5+EXP(AO6*(AO4-AO7)))/(AO5+EXP(AO6*(AO4-AO9))))^AO5))) -> 0 | AO31: 0 | AP31: 0
A32: 21 | B32: ='daily uptake'!F115 -> 2010-11-21 | C32: =5/9*'daily uptake'!Q115 -> 8.611111111 | D32: =5/9*'daily uptake'!N115 -> 1.111111111 | E32: =IF(AND($A32>='daily uptake'!$C$9,$A32<='daily uptake'!$C$10),$C32+E31,0) -> 271.1111111 | F32: =IF(AND($A32>='daily uptake'!$C$18,$A32<='daily uptake'!$C$20),$D32+F31,0) -> 0 | G32: =IF(AND($A32>='daily uptake'!$C$24,$A32<='daily uptake'!$C$25),$C32+G31,0) -> 0 | H32: =IF(OR(F32<=I7,F32>I9),0,I8+(I10-I8)*(1-((I5+EXP(I6*(I4-I7)))/(I5+EXP(I6*(I4-F32))))^I5)/(1-((I5+EXP(I6*(I4-I7)))/(I5+EXP(I6*(I4-I9))))^I5)) -> 0 | I32: =IF(OR(F32<=J7,F32>J9),0,J8+(J10-J8)*(1-((J5+EXP(J6*(J4-J7)))/(J5+EXP(J6*(J4-F32))))^J5)/(1-((J5+EXP(J6*(J4-J7)))/(J5+EXP(J6*(J4-J9))))^J5)) -> 0 | J32: =IF(OR(F32<=J9,F32>100000),0,IF(F32<=K7,K8,K8+(K10-K8)*(1-((K5+EXP(K6*(K4-K7)))/(K5+EXP(K6*(K4-F32))))^K5)/(1-((K5+EXP(K6*(K4-K7)))/(K5+EXP(K6*(K4-K9))))^K5))) -> 0 | K32: 0 | L32: 0 | M32: 9.303895451 | N32: 0 | O32: 2010-11-21 | P32: =MAX(L$12:L32)+MAX(M$12:M32)+MAX(N$12:N32) -> 9.303895451 | Q32: 2010-11-21 | R32: 0.365363251 | AJ32: 0 | AL32: =IF(OR(AJ32<=AM7,AJ32>AM9),0,AM8+(AM10-AM8)*(1-((AM5+EXP(AM6*(AM4-AM7)))/(AM5+EXP(AM6*(AM4-AJ32))))^AM5)/(1-((AM5+EXP(AM6*(AM4-AM7)))/(AM5+EXP(AM6*(AM4-AM9))))^AM5)) -> 0 | AM32: =IF(OR(AJ32<=AN7,AJ32>AN9),0,AN8+(AN10-AN8)*(1-((AN5+EXP(AN6*(AN4-AN7)))/(AN5+EXP(AN6*(AN4-AJ32))))^AN5)/(1-((AN5+EXP(AN6*(AN4-AN7)))/(AN5+EXP(AN6*(AN4-AN9))))^AN5)) -> 0 | AN32: =IF(OR(AJ32<=AN9,AJ32>100000),0,IF(AJ32<=AO7,AO8,AO8+(AO10-AO8)*(1-((AO5+EXP(AO6*(AO4-AO7)))/(AO5+EXP(AO6*(AO4-AJ32))))^AO5)/(1-((AO5+EXP(AO6*(AO4-AO7)))/(AO5+EXP(AO6*(AO4-AO9))))^AO5))) -> 0 | AO32: 0 | AP32: 0
A33: 22 | B33: ='daily uptake'!F116 -> 2010-11-22 | C33: =5/9*'daily uptake'!Q116 -> 10.27777778 | D33: =5/9*'daily uptake'!N116 -> 1.944444444 | E33: =IF(AND($A33>='daily uptake'!$C$9,$A33<='daily uptake'!$C$10),$C33+E32,0) -> 281.3888889 | F33: =IF(AND($A33>='daily uptake'!$C$18,$A33<='daily uptake'!$C$20),$D33+F32,0) -> 0 | G33: =IF(AND($A33>='daily uptake'!$C$24,$A33<='daily uptake'!$C$25),$C33+G32,0) -> 0 | H33: =IF(OR(F33<=I7,F33>I9),0,I8+(I10-I8)*(1-((I5+EXP(I6*(I4-I7)))/(I5+EXP(I6*(I4-F33))))^I5)/(1-((I5+EXP(I6*(I4-I7)))/(I5+EXP(I6*(I4-I9))))^I5)) -> 0 | I33: =IF(OR(F33<=J7,F33>J9),0,J8+(J10-J8)*(1-((J5+EXP(J6*(J4-J7)))/(J5+EXP(J6*(J4-F33))))^J5)/(1-((J5+EXP(J6*(J4-J7)))/(J5+EXP(J6*(J4-J9))))^J5)) -> 0 | J33: =IF(OR(F33<=J9,F33>100000),0,IF(F33<=K7,K8,K8+(K10-K8)*(1-((K5+EXP(K6*(K4-K7)))/(K5+EXP(K6*(K4-F33))))^K5)/(1-((K5+EXP(K6*(K4-K7)))/(K5+EXP(K6*(K4-K9))))^K5))) -> 0 | K33: 0 | L33: 0 | M33: 9.746702996 | N33: 0 | O33: 2010-11-22 | P33: =MAX(L$12:L33)+MAX(M$12:M33)+MAX(N$12:N33) -> 9.746702996 | Q33: 2010-11-22 | R33: 0.4428075449 | AJ33: 0 | AL33: =IF(OR(AJ33<=AM7,AJ33>AM9),0,AM8+(AM10-AM8)*(1-((AM5+EXP(AM6*(AM4-AM7)))/(AM5+EXP(AM6*(AM4-AJ33))))^AM5)/(1-((AM5+EXP(AM6*(AM4-AM7)))/(AM5+EXP(AM6*(AM4-AM9))))^AM5)) -> 0 | AM33: =IF(OR(AJ33<=AN7,AJ33>AN9),0,AN8+(AN10-AN8)*(1-((AN5+EXP(AN6*(AN4-AN7)))/(AN5+EXP(AN6*(AN4-AJ33))))^AN5)/(1-((AN5+EXP(AN6*(AN4-AN7)))/(AN5+EXP(AN6*(AN4-AN9))))^AN5)) -> 0 | AN33: =IF(OR(AJ33<=AN9,AJ33>100000),0,IF(AJ33<=AO7,AO8,AO8+(AO10-AO8)*(1-((AO5+EXP(AO6*(AO4-AO7)))/(AO5+EXP(AO6*(AO4-AJ33))))^AO5)/(1-((AO5+EXP(AO6*(AO4-AO7)))/(AO5+EXP(AO6*(AO4-AO9))))^AO5))) -> 0 | AO33: 0 | AP33: 0
A34: 23 | B34: ='daily uptake'!F117 -> 2010-11-23 | C34: =5/9*'daily uptake'!Q117 -> 6.944444444 | D34: =5/9*'daily uptake'!N117 -> 0.2777777778 | E34: =IF(AND($A34>='daily uptake'!$C$9,$A34<='daily uptake'!$C$10),$C34+E33,0) -> 288.3333333 | F34: =IF(AND($A34>='daily uptake'!$C$18,$A34<='daily uptake'!$C$20),$D34+F33,0) -> 0 | G34: =IF(AND($A34>='daily uptake'!$C$24,$A34<='daily uptake'!$C$25),$C34+G33,0) -> 0 | H34: =IF(OR(F34<=I7,F34>I9),0,I8+(I10-I8)*(1-((I5+EXP(I6*(I4-I7)))/(I5+EXP(I6*(I4-F34))))^I5)/(1-((I5+EXP(I6*(I4-I7)))/(I5+EXP(I6*(I4-I9))))^I5)) -> 0 | I34: =IF(OR(F34<=J7,F34>J9),0,J8+(J10-J8)*(1-((J5+EXP(J6*(J4-J7)))/(J5+EXP(J6*(J4-F34))))^J5)/(1-((J5+EXP(J6*(J4-J7)))/(J5+EXP(J6*(J4-J9))))^J5)) -> 0 | J34: =IF(OR(F34<=J9,F34>100000),0,IF(F34<=K7,K8,K8+(K10-K8)*(1-((K5+EXP(K6*(K4-K7)))/(K5+EXP(K6*(K4-F34))))^K5)/(1-((K5+EXP(K6*(K4-K7)))/(K5+EXP(K6*(K4-K9))))^K5))) -> 0 | K34: 0 | L34: 0 | M34: 10.05008381 | N34: 0 | O34: 2010-11-23 | P34: =MAX(L$12:L34)+MAX(M$12:M34)+MAX(N$12:N34) -> 10.05008381 | Q34: 2010-11-23 | R34: 0.3033808113 | AJ34: 0 | AL34: =IF(OR(AJ34<=AM7,AJ34>AM9),0,AM8+(AM10-AM8)*(1-((AM5+EXP(AM6*(AM4-AM7)))/(AM5+EXP(AM6*(AM4-AJ34))))^AM5)/(1-((AM5+EXP(AM6*(AM4-AM7)))/(AM5+EXP(AM6*(AM4-AM9))))^AM5)) -> 0 | AM34: =IF(OR(AJ34<=AN7,AJ34>AN9),0,AN8+(AN10-AN8)*(1-((AN5+EXP(AN6*(AN4-AN7)))/(AN5+EXP(AN6*(AN4-AJ34))))^AN5)/(1-((AN5+EXP(AN6*(AN4-AN7)))/(AN5+EXP(AN6*(AN4-AN9))))^AN5)) -> 0 | AN34: =IF(OR(AJ34<=AN9,AJ34>100000),0,IF(AJ34<=AO7,AO8,AO8+(AO10-AO8)*(1-((AO5+EXP(AO6*(AO4-AO7)))/(AO5+EXP(AO6*(AO4-AJ34))))^AO5)/(1-((AO5+EXP(AO6*(AO4-AO7)))/(AO5+EXP(AO6*(AO4-AO9))))^AO5))) -> 0 | AO34: 0 | AP34: 0
A35: 24 | B35: ='daily uptake'!F118 -> 2010-11-24 | C35: =5/9*'daily uptake'!Q118 -> 3.611111111 | D35: =5/9*'daily uptake'!N118 -> 0 | E35: =IF(AND($A35>='daily uptake'!$C$9,$A35<='daily uptake'!$C$10),$C35+E34,0) -> 291.9444444 | F35: =IF(AND($A35>='daily uptake'!$C$18,$A35<='daily uptake'!$C$20),$D35+F34,0) -> 0 | G35: =IF(AND($A35>='daily uptake'!$C$24,$A35<='daily uptake'!$C$25),$C35+G34,0) -> 0 | H35: =IF(OR(F35<=I7,F35>I9),0,I8+(I10-I8)*(1-((I5+EXP(I6*(I4-I7)))/(I5+EXP(I6*(I4-F35))))^I5)/(1-((I5+EXP(I6*(I4-I7)))/(I5+EXP(I6*(I4-I9))))^I5)) -> 0 | I35: =IF(OR(F35<=J7,F35>J9),0,J8+(J10-J8)*(1-((J5+EXP(J6*(J4-J7)))/(J5+EXP(J6*(J4-F35))))^J5)/(1-((J5+EXP(J6*(J4-J7)))/(J5+EXP(J6*(J4-J9))))^J5)) -> 0 | J35: =IF(OR(F35<=J9,F35>100000),0,IF(F35<=K7,K8,K8+(K10-K8)*(1-((K5+EXP(K6*(K4-K7)))/(K5+EXP(K6*(K4-F35))))^K5)/(1-((K5+EXP(K6*(K4-K7)))/(K5+EXP(K6*(K4-K9))))^K5))) -> 0 | K35: 0 | L35: 0 | M35: 10.20918667 | N35: 0 | O35: 2010-11-24 | P35: =MAX(L$12:L35)+MAX(M$12:M35)+MAX(N$12:N35) -> 10.20918667 | Q35: 2010-11-24 | R35: 0.159102864 | AJ35: 0 | AL35: =IF(OR(AJ35<=AM7,AJ35>AM9),0,AM8+(AM10-AM8)*(1-((AM5+EXP(AM6*(AM4-AM7)))/(AM5+EXP(AM6*(AM4-AJ35))))^AM5)/(1-((AM5+EXP(AM6*(AM4-AM7)))/(AM5+EXP(AM6*(AM4-AM9))))^AM5)) -> 0 | AM35: =IF(OR(AJ35<=AN7,AJ35>AN9),0,AN8+(AN10-AN8)*(1-((AN5+EXP(AN6*(AN4-AN7)))/(AN5+EXP(AN6*(AN4-AJ35))))^AN5)/(1-((AN5+EXP(AN6*(AN4-AN7)))/(AN5+EXP(AN6*(AN4-AN9))))^AN5)) -> 0 | AN35: =IF(OR(AJ35<=AN9,AJ35>100000),0,IF(AJ35<=AO7,AO8,AO8+(AO10-AO8)*(1-((AO5+EXP(AO6*(AO4-AO7)))/(AO5+EXP(AO6*(AO4-AJ35))))^AO5)/(1-((AO5+EXP(AO6*(AO4-AO7)))/(AO5+EXP(AO6*(AO4-AO9))))^AO5))) -> 0 | AO35: 0 | AP35: 0
A36: 25 | B36: ='daily uptake'!F119 -> 2010-11-25 | C36: =5/9*'daily uptake'!Q119 -> 4.166666667 | D36: =5/9*'daily uptake'!N119 -> 0.5555555556 | E36: =IF(AND($A36>='daily uptake'!$C$9,$A36<='daily uptake'!$C$10),$C36+E35,0) -> 296.1111111 | F36: =IF(AND($A36>='daily uptake'!$C$18,$A36<='daily uptake'!$C$20),$D36+F35,0) -> 0 | G36: =IF(AND($A36>='daily uptake'!$C$24,$A36<='daily uptake'!$C$25),$C36+G35,0) -> 0 | H36: =IF(OR(F36<=I7,F36>I9),0,I8+(I10-I8)*(1-((I5+EXP(I6*(I4-I7)))/(I5+EXP(I6*(I4-F36))))^I5)/(1-((I5+EXP(I6*(I4-I7)))/(I5+EXP(I6*(I4-I9))))^I5)) -> 0 | I36: =IF(OR(F36<=J7,F36>J9),0,J8+(J10-J8)*(1-((J5+EXP(J6*(J4-J7)))/(J5+EXP(J6*(J4-F36))))^J5)/(1-((J5+EXP(J6*(J4-J7)))/(J5+EXP(J6*(J4-J9))))^J5)) -> 0 | J36: =IF(OR(F36<=J9,F36>100000),0,IF(F36<=K7,K8,K8+(K10-K8)*(1-((K5+EXP(K6*(K4-K7)))/(K5+EXP(K6*(K4-F36))))^K5)/(1-((K5+EXP(K6*(K4-K7)))/(K5+EXP(K6*(K4-K9))))^K5))) -> 0 | K36: 0 | L36: 0 | M36: 10.39391661 | N36: 0 | O36: 2010-11-25 | P36: =MAX(L$12:L36)+MAX(M$12:M36)+MAX(N$12:N36) -> 10.39391661 | Q36: 2010-11-25 | R36: 0.184729942 | AJ36: 0 | AL36: =IF(OR(AJ36<=AM7,AJ36>AM9),0,AM8+(AM10-AM8)*(1-((AM5+EXP(AM6*(AM4-AM7)))/(AM5+EXP(AM6*(AM4-AJ36))))^AM5)/(1-((AM5+EXP(AM6*(AM4-AM7)))/(AM5+EXP(AM6*(AM4-AM9))))^AM5)) -> 0 | AM36: =IF(OR(AJ36<=AN7,AJ36>AN9),0,AN8+(AN10-AN8)*(1-((AN5+EXP(AN6*(AN4-AN7)))/(AN5+EXP(AN6*(AN4-AJ36))))^AN5)/(1-((AN5+EXP(AN6*(AN4-AN7)))/(AN5+EXP(AN6*(AN4-AN9))))^AN5)) -> 0 | AN36: =IF(OR(AJ36<=AN9,AJ36>100000),0,IF(AJ36<=AO7,AO8,AO8+(AO10-AO8)*(1-((AO5+EXP(AO6*(AO4-AO7)))/(AO5+EXP(AO6*(AO4-AJ36))))^AO5)/(1-((AO5+EXP(AO6*(AO4-AO7)))/(AO5+EXP(AO6*(AO4-AO9))))^AO5))) -> 0 | AO36: 0 | AP36: 0
A37: 26 | B37: ='daily uptake'!F120 -> 2010-11-26 | C37: =5/9*'daily uptake'!Q120 -> 5.277777778 | D37: =5/9*'daily uptake'!N120 -> 1.388888889 | E37: =IF(AND($A37>='daily uptake'!$C$9,$A37<='daily uptake'!$C$10),$C37+E36,0) -> 301.3888889 | F37: =IF(AND($A37>='daily uptake'!$C$18,$A37<='daily uptake'!$C$20),$D37+F36,0) -> 0 | G37: =IF(AND($A37>='daily uptake'!$C$24,$A37<='daily uptake'!$C$25),$C37+G36,0) -> 0 | H37: =IF(OR(F37<=I7,F37>I9),0,I8+(I10-I8)*(1-((I5+EXP(I6*(I4-I7)))/(I5+EXP(I6*(I4-F37))))^I5)/(1-((I5+EXP(I6*(I4-I7)))/(I5+EXP(I6*(I4-I9))))^I5)) -> 0 | I37: =IF(OR(F37<=J7,F37>J9),0,J8+(J10-J8)*(1-((J5+EXP(J6*(J4-J7)))/(J5+EXP(J6*(J4-F37))))^J5)/(1-((J5+EXP(J6*(J4-J7)))/(J5+EXP(J6*(J4-J9))))^J5)) -> 0 | J37: =IF(OR(F37<=J9,F37>100000),0,IF(F37<=K7,K8,K8+(K10-K8)*(1-((K5+EXP(K6*(K4-K7)))/(K5+EXP(K6*(K4-F37))))^K5)/(1-((K5+EXP(K6*(K4-K7)))/(K5+EXP(K6*(K4-K9))))^K5))) -> 0 | K37: 0 | L37: 0 | M37: 10.62968485 | N37: 0 | O37: 2010-11-26 | P37: =MAX(L$12:L37)+MAX(M$12:M37)+MAX(N$12:N37) -> 10.62968485 | Q37: 2010-11-26 | R37: 0.2357682389 | AJ37: 0 | AL37: =IF(OR(AJ37<=AM7,AJ37>AM9),0,AM8+(AM10-AM8)*(1-((AM5+EXP(AM6*(AM4-AM7)))/(AM5+EXP(AM6*(AM4-AJ37))))^AM5)/(1-((AM5+EXP(AM6*(AM4-AM7)))/(AM5+EXP(AM6*(AM4-AM9))))^AM5)) -> 0 | AM37: =IF(OR(AJ37<=AN7,AJ37>AN9),0,AN8+(AN10-AN8)*(1-((AN5+EXP(AN6*(AN4-AN7)))/(AN5+EXP(AN6*(AN4-AJ37))))^AN5)/(1-((AN5+EXP(AN6*(AN4-AN7)))/(AN5+EXP(AN6*(AN4-AN9))))^AN5)) -> 0 | AN37: =IF(OR(AJ37<=AN9,AJ37>100000),0,IF(AJ37<=AO7,AO8,AO8+(AO10-AO8)*(1-((AO5+EXP(AO6*(AO4-AO7)))/(AO5+EXP(AO6*(AO4-AJ37))))^AO5)/(1-((AO5+EXP(AO6*(AO4-AO7)))/(AO5+EXP(AO6*(AO4-AO9))))^AO5))) -> 0 | AO37: 0 | AP37: 0
A38: 27 | B38: ='daily uptake'!F121 -> 2010-11-27 | C38: =5/9*'daily uptake'!Q121 -> 5.277777778 | D38: =5/9*'daily uptake'!N121 -> 0 | E38: =IF(AND($A38>='daily uptake'!$C$9,$A38<='daily uptake'!$C$10),$C38+E37,0) -> 306.6666667 | F38: =IF(AND($A38>='daily uptake'!$C$18,$A38<='daily uptake'!$C$20),$D38+F37,0) -> 0 | G38: =IF(AND($A38>='daily uptake'!$C$24,$A38<='daily uptake'!$C$25),$C38+G37,0) -> 0 | H38: =IF(OR(F38<=I7,F38>I9),0,I8+(I10-I8)*(1-((I5+EXP(I6*(I4-I7)))/(I5+EXP(I6*(I4-F38))))^I5)/(1-((I5+EXP(I6*(I4-I7)))/(I5+EXP(I6*(I4-I9))))^I5)) -> 0 | I38: =IF(OR(F38<=J7,F38>J9),0,J8+(J10-J8)*(1-((J5+EXP(J6*(J4-J7)))/(J5+EXP(J6*(J4-F38))))^J5)/(1-((J5+EXP(J6*(J4-J7)))/(J5+EXP(J6*(J4-J9))))^J5)) -> 0 | J38: =IF(OR(F38<=J9,F38>100000),0,IF(F38<=K7,K8,K8+(K10-K8)*(1-((K5+EXP(K6*(K4-K7)))/(K5+EXP(K6*(K4-F38))))^K5)/(1-((K5+EXP(K6*(K4-K7)))/(K5+EXP(K6*(K4-K9))))^K5))) -> 0 | K38: 0 | L38: 0 | M38: 10.86744995 | N38: 0 | O38: 2010-11-27 | P38: =MAX(L$12:L38)+MAX(M$12:M38)+MAX(N$12:N38) -> 10.86744995 | Q38: 2010-11-27 | R38: 0.2377651003 | AJ38: 0 | AL38: =IF(OR(AJ38<=AM7,AJ38>AM9),0,AM8+(AM10-AM8)*(1-((AM5+EXP(AM6*(AM4-AM7)))/(AM5+EXP(AM6*(AM4-AJ38))))^AM5)/(1-((AM5+EXP(AM6*(AM4-AM7)))/(AM5+EXP(AM6*(AM4-AM9))))^AM5)) -> 0 | AM38: =IF(OR(AJ38<=AN7,AJ38>AN9),0,AN8+(AN10-AN8)*(1-((AN5+EXP(AN6*(AN4-AN7)))/(AN5+EXP(AN6*(AN4-AJ38))))^AN5)/(1-((AN5+EXP(AN6*(AN4-AN7)))/(AN5+EXP(AN6*(AN4-AN9))))^AN5)) -> 0 | AN38: =IF(OR(AJ38<=AN9,AJ38>100000),0,IF(AJ38<=AO7,AO8,AO8+(AO10-AO8)*(1-((AO5+EXP(AO6*(AO4-AO7)))/(AO5+EXP(AO6*(AO4-AJ38))))^AO5)/(1-((AO5+EXP(AO6*(AO4-AO7)))/(AO5+EXP(AO6*(AO4-AO9))))^AO5))) -> 0 | AO38: 0 | AP38: 0
A39: 28 | B39: ='daily uptake'!F122 -> 2010-11-28 | C39: =5/9*'daily uptake'!Q122 -> 6.111111111 | D39: =5/9*'daily uptake'!N122 -> 0 | E39: =IF(AND($A39>='daily uptake'!$C$9,$A39<='daily uptake'!$C$10),$C39+E38,0) -> 312.7777778 | F39: =IF(AND($A39>='daily uptake'!$C$18,$A39<='daily uptake'!$C$20),$D39+F38,0) -> 0 | G39: =IF(AND($A39>='daily uptake'!$C$24,$A39<='daily uptake'!$C$25),$C39+G38,0) -> 0 | H39: =IF(OR(F39<=I7,F39>I9),0,I8+(I10-I8)*(1-((I5+EXP(I6*(I4-I7)))/(I5+EXP(I6*(I4-F39))))^I5)/(1-((I5+EXP(I6*(I4-I7)))/(I5+EXP(I6*(I4-I9))))^I5)) -> 0 | I39: =IF(OR(F39<=J7,F39>J9),0,J8+(J10-J8)*(1-((J5+EXP(J6*(J4-J7)))/(J5+EXP(J6*(J4-F39))))^J5)/(1-((J5+EXP(J6*(J4-J7)))/(J5+EXP(J6*(J4-J9))))^J5)) -> 0 | J39: =IF(OR(F39<=J9,F39>100000),0,IF(F39<=K7,K8,K8+(K10-K8)*(1-((K5+EXP(K6*(K4-K7)))/(K5+EXP(K6*(K4-F39))))^K5)/(1-((K5+EXP(K6*(K4-K7)))/(K5+EXP(K6*(K4-K9))))^K5))) -> 0 | K39: 0 | L39: 0 | M39: 11.14526687 | N39: 0 | O39: 2010-11-28 | P39: =MAX(L$12:L39)+MAX(M$12:M39)+MAX(N$12:N39) -> 11.14526687 | Q39: 2010-11-28 | R39: 0.2778169215 | AJ39: 0 | AL39: =IF(OR(AJ39<=AM7,AJ39>AM9),0,AM8+(AM10-AM8)*(1-((AM5+EXP(AM6*(AM4-AM7)))/(AM5+EXP(AM6*(AM4-AJ39))))^AM5)/(1-((AM5+EXP(AM6*(AM4-AM7)))/(AM5+EXP(AM6*(AM4-AM9))))^AM5)) -> 0 | AM39: =IF(OR(AJ39<=AN7,AJ39>AN9),0,AN8+(AN10-AN8)*(1-((AN5+EXP(AN6*(AN4-AN7)))/(AN5+EXP(AN6*(AN4-AJ39))))^AN5)/(1-((AN5+EXP(AN6*(AN4-AN7)))/(AN5+EXP(AN6*(AN4-AN9))))^AN5)) -> 0 | AN39: =IF(OR(AJ39<=AN9,AJ39>100000),0,IF(AJ39<=AO7,AO8,AO8+(AO10-AO8)*(1-((AO5+EXP(AO6*(AO4-AO7)))/(AO5+EXP(AO6*(AO4-AJ39))))^AO5)/(1-((AO5+EXP(AO6*(AO4-AO7)))/(AO5+EXP(AO6*(AO4-AO9))))^AO5))) -> 0 | AO39: 0 | AP39: 0
A40: 29 | B40: ='daily uptake'!F123 -> 2010-11-29 | C40: =5/9*'daily uptake'!Q123 -> 5 | D40: =5/9*'daily uptake'!N123 -> 0.5555555556 | E40: =IF(AND($A40>='daily uptake'!$C$9,$A40<='daily uptake'!$C$10),$C40+E39,0) -> 317.7777778 | F40: =IF(AND($A40>='daily uptake'!$C$18,$A40<='daily uptake'!$C$20),$D40+F39,0) -> 0 | G40: =IF(AND($A40>='daily uptake'!$C$24,$A40<='daily uptake'!$C$25),$C40+G39,0) -> 0 | H40: =IF(OR(F40<=I7,F40>I9),0,I8+(I10-I8)*(1-((I5+EXP(I6*(I4-I7)))/(I5+EXP(I6*(I4-F40))))^I5)/(1-((I5+EXP(I6*(I4-I7)))/(I5+EXP(I6*(I4-I9))))^I5)) -> 0 | I40: =IF(OR(F40<=J7,F40>J9),0,J8+(J10-J8)*(1-((J5+EXP(J6*(J4-J7)))/(J5+EXP(J6*(J4-F40))))^J5)/(1-((J5+EXP(J6*(J4-J7)))/(J5+EXP(J6*(J4-J9))))^J5)) -> 0 | J40: =IF(OR(F40<=J9,F40>100000),0,IF(F40<=K7,K8,K8+(K10-K8)*(1-((K5+EXP(K6*(K4-K7)))/(K5+EXP(K6*(K4-F40))))^K5)/(1-((K5+EXP(K6*(K4-K7)))/(K5+EXP(K6*(K4-K9))))^K5))) -> 0 | K40: 0 | L40: 0 | M40: 11.37458709 | N40: 0 | O40: 2010-11-29 | P40: =MAX(L$12:L40)+MAX(M$12:M40)+MAX(N$12:N40) -> 11.37458709 | Q40: 2010-11-29 | R40: 0.2293202209 | AJ40: 0 | AL40: =IF(OR(AJ40<=AM7,AJ40>AM9),0,AM8+(AM10-AM8)*(1-((AM5+EXP(AM6*(AM4-AM7)))/(AM5+EXP(AM6*(AM4-AJ40))))^AM5)/(1-((AM5+EXP(AM6*(AM4-AM7)))/(AM5+EXP(AM6*(AM4-AM9))))^AM5)) -> 0 | AM40: =IF(OR(AJ40<=AN7,AJ40>AN9),0,AN8+(AN10-AN8)*(1-((AN5+EXP(AN6*(AN4-AN7)))/(AN5+EXP(AN6*(AN4-AJ40))))^AN5)/(1-((AN5+EXP(AN6*(AN4-AN7)))/(AN5+EXP(AN6*(AN4-AN9))))^AN5)) -> 0 | AN40: =IF(OR(AJ40<=AN9,AJ40>100000),0,IF(AJ40<=AO7,AO8,AO8+(AO10-AO8)*(1-((AO5+EXP(AO6*(AO4-AO7)))/(AO5+EXP(AO6*(AO4-AJ40))))^AO5)/(1-((AO5+EXP(AO6*(AO4-AO7)))/(AO5+EXP(AO6*(AO4-AO9))))^AO5))) -> 0 | AO40: 0 | AP40: 0
